Workbook

Sheet Vypocet
B1: Legenda | E1: hodnotu nutno zadat
E2: hodnota se vypočítává
E3: pomocná hodnota
A4: Parametry vzduchu | G4: interier klidovy rezim | U4: Produkce tepla od | X4: ni | Y4: =0.85*Y5+0.75*Y6+Y7 -> 60.5 | AA4: Qi=ni.6,2*(36-ti)
A5: Interiér | B5: ti | G5: Interiér | H5: ti | M5: Exteriér | N5: te | P5: minimální teplota -20 | U5: lidí | V5: =Y4*6.2*(36-Teplota) -> 1500.4 | W5: W | X5: nz | Y5: 30 | Z5: zeny | AA5: ni=0,85nz+0,75nd+nm
A6: teplota | C6: ti | D6: 32 | E6: °C | G6: teplota | I6: ti | J6: =AQ22 -> 24 | K6: °C | M6: teplota | O6: te | P6: -12 | Q6: °C | X6: nd | Y6: 20 | Z6: deti | AA6: nz - zeny, nd deti, nm muzi
A7: relativní vlhkost | C7: rhi | D7: 60 | E7: % | G7: relativní vlhkost | I7: rhi | J7: =AQ23 -> 55 | K7: % | M7: relativní vlhkost | O7: rhe | P7: 100 | Q7: % | X7: nm | Y7: 20 | Z7: muzi
A8: entalpie s.v. | C8: hsvi | D8: =Konstanty!$F$2*Teplota -> 32320 | E8: J/kg | G8: entalpie s.v. | I8: hsvi | J8: =Konstanty!$F$2*J6 -> 24240 | K8: J/kg | M8: entalpie s.v. | O8: hsve | P8: =Konstanty!$F$2*te -> -12120 | Q8: J/kg
A9: entalpie v.p. | C9: hvpi | D9: =$D$16*(Konstanty!$F$3*Teplota+Konstanty!$F$4) -> 46343.0627 | E9: J/kg | G9: entalpie v.p. | I9: hvpi | J9: =$D$16*(Konstanty!$F$3*J6+Konstanty!$F$4) -> 46076.47346 | K9: J/kg | M9: entalpie v.p. | O9: hvpe | P9: =P16*(Konstanty!F3*P6+Konstanty!F4) -> 3802.661331 | Q9: J/kg | U9: Odpar z povrchů
A10: entalpie | C10: hi | D10: =D8+D9 -> 78663.0627 | E10: J/kg | G10: entalpie | I10: hi | J10: =J8+J9 -> 70316.47346 | K10: J/kg | M10: entalpie | O10: he | P10: =IF(P8<0,P9-P8,P8+P9) -> 15922.66133 | Q10: J/kg | X10: (7+3,5*w)*S*(xp´´-x).10-3
D11: =D10/1000 -> 78.6630627 | E11: kJ/kg | J11: =J10/1000 -> 70.31647346 | K11: kJ/kg | P11: =P10/1000 -> 15.92266133 | Q11: kJ/kg | X11: w stredni rychlost vzduchu | AT11: Exteriér | AU11: minimální teplota -20
A12: tlak nasycené vodní páry | C12: p''vpi | D12: =Konstanty!$F$12^((1500.3+23.5*D6)/(234+D6)) -> 4756.622959 | E12: Pa | G12: tlak nasycené vodní páry | I12: p''vpi | J12: =Konstanty!$F$12^((1500.3+23.5*J6)/(234+J6)) -> 2984.426233 | K12: Pa | M12: tlak nasycené vodní páry | O12: p''vpe | P12: =Konstanty!$F$12^((1500.3+23.5*P6)/(234+P6)) -> 241.7339733 | Q12: Pa | S12: =2.718^(28.926-(6148/(273.15+te))) -> 217.7649153 | X12: xp´´-merna vlhkost nasyceneho vzduchu | AT12: te | AU12: -12 | AV12: °C
A13: tlak vodní páry | C13: pvpi | D13: =(D7/100)*D12 -> 2853.973775 | E13: Pa | G13: tlak vodní páry | I13: pvpi | J13: =(J7/100)*J12 -> 1641.434428 | K13: Pa | M13: tlak vodní páry | O13: pvpe | P13: =(P7/100)*P12 -> 241.7339733 | Q13: Pa | X13: x - merna vlhkost vzduchu nad povrchem | AT13: rhe | AU13: 100 | AV13: % | AX13: Distribuce tepla v závislosti na externí teplotě
A14: tlak suchého vzduchu | C14: psvi | D14: =D18*Konstanty!$F$5*(Teplota+273.15) -> 98021.00865 | E14: Pa | G14: tlak suchého vzduchu | I14: psvi | J14: =J18*Konstanty!$F$5*(Teplota+273.15) -> 100648.9177 | K14: Pa | M14: tlak suchého vzduchu | O14: psve | P14: =P18*Konstanty!F5*(P6+273.15) -> 97980.87738 | Q14: Pa | T14: (93*T-3153,5)/(T-39,17) | X14: S plocha | AX14: teplota předehřevu te | AZ14: tpřed | BA14: 5 | BB14: °C
A15: tlak směsi vlhkého vzduchu | C15: pi | D15: =D13+D14 -> 100874.9824 | E15: Pa | G15: tlak směsi vlhkého vzduchu | I15: pi | J15: =J13+J14 -> 102290.3522 | K15: Pa | M15: tlak směsi vlhkého vzduchu | O15: pe | P15: =P13+P14 -> 98222.61135 | Q15: Pa | T15: =(93*te-3153.5)/(te-39.17) -> 83.43756107 | AX15: množství čerst vzduchu | BA15: 30 | BB15: %
A16: měrná vlhkost vzduchu | C16: xi | D16: =(Konstanty!$F$5/Konstanty!$F$6)*(D13/D14) -> 0.01811068229 | E16: kg/kg s.v. | G16: měrná vlhkost vzduchu | I16: xi | J16: =(Konstanty!$F$5/Konstanty!$F$6)*(J13/J14) -> 0.01014421464 | K16: kg/kg s.v. | M16: měrná vlhkost vzduchu | O16: xe | P16: =(Konstanty!F5/Konstanty!F6)*(P13/P14) -> 0.001534618281 | Q16: kg/kg s.v. | AP16: Interiér
D17: =D16*1000 -> 18.11068229 | E17: g/kg s.v. | J17: =J16*1000 -> 10.14421464 | K17: g/kg s.v. | P17: =P16*1000 -> 1.534618281 | Q17: g/kg s.v. | AP17: plný provoz
A18: hustota vzduchu při t | D18: =VLOOKUP(Teplota,Tabulky!$V$15:$AF$75,9,0) -> 1.119 | E18: kg/m3 | G18: hustota vzduchu při t | J18: =VLOOKUP(J6,Tabulky!V15:AF75,9,0) -> 1.149 | K18: kg/m3 | M18: hustota vzduchu při t | P18: =VLOOKUP(te,Tabulky!V15:AF75,9,0) -> 1.307 | Q18: kg/m3 | AP18: ti | AQ18: 32 | AR18: °C
AP19: rhi | AQ19: 60 | AR19: %
A20: Bazén | I20: rozměry bazénu
A21: Teplota vody | C21: tsniz | D21: =AO29 -> 2 | E21: °C | F21: snížení teploty vody (dop 2-3°C) | I21: délka bazén | J21: a | K21: =AK42 -> 25 | L21: m | AP21: klidový režim
A22: tvz-(2-3)°C | C22: tvod | D22: =D6-D21 -> 30 | E22: °C | I22: šířka bazén | J22: b | K22: =AK43 -> 12 | L22: m | AP22: ti | AQ22: 24 | AR22: °C
AP23: rhi | AQ23: 55 | AR23: %
A24: Mn. odpařené vody | AD24: HALA
A25: mw=ε*A*(p´´vp-pvp) | C25: mw | D25: =D28*$D$29*($D$12/100-$D$13/100) -> 114158.951 | E25: g/h | BC25: plný provoz
D26: =D25/1000 -> 114.158951 | E26: kg/h | I26: budova | AD26: délka | AE26: c | AF26: 40 | AG26: m | AH26: c | AL26: a | AN26: teplota vody | BC26: teplota zvýšení do int | BE26: tzv | BF26: 2 | BG26: °C
A27: typ bazenu | D27: =AH47 -> bazény - normální provoz | I27: délka | J27: a | K27: =AF26 -> 40 | L27: m | AD27: šířka | AE27: d | AF27: 15 | AG27: m | AN27: sníření oproti int teplotě | BC27: klidový režim
A28: mnozstvi odp vody | D28: =VLOOKUP(AH47,Tab_souc_odparu_bazen,7,0) -> 20 | H28: [g/(hPa.m2.h)] | I28: šířka | J28: b | K28: =AF27 -> 15 | L28: m | AD28: výška | AE28: v | AF28: 7 | AG28: m | AN28: doporučení 2-3°C | BC28: teplota zvýšení do int | BE28: tzv | BF28: 2 | BG28: °C
A29: plocha bazénu | C29: A | D29: =K21*K22 -> 300 | E29: m2 | I29: výška | J29: v | K29: =AF28 -> 7 | L29: m | M29: Produkce vlhkosti osobami - klidový režim | AN29: tsniz | AO29: 2 | AP29: °C
A30: Objem haly | C30: V | D30: =K27*K28*K29 -> 4200 | E30: m3 | M30: počet osob v bazénu | O30: nos | P30: =AO36 -> 2 | AD30: Výměna vzduchu
M31: množství vlhkosti | O31: mos | P31: =P30*100 -> 200 | Q31: g/h | AD31: plný provoz | AN31: Provoz bazénu
A32: Produkce vlhkosti osobami - v provozu | P32: =P31/1000 -> 0.2 | Q32: kg/h | AD32: n | AE32: 1 | AF32: 1/h | AN32: počet osob
A33: počet osob v bazénu | C33: nos | D33: =AO34 -> 60 | E33: počet | G33: Produkce vlhkosti člověkem | P33: =P31/3600 -> 0.05555555556 | Q33: g/s | AD33: klidový režim | AK33: b | AN33: provoz | AR33: VÝPARNÍK -CHLADIČ
A34: množství vlhkosti | C34: mos | D34: =D33*H35 -> 6300 | E34: g/h | G34: =AH50 -> člověk při středně těžké práci | AD34: n | AE34: 1 | AF34: 1/h | AN34: nos | AO34: 60 | AR34: plný provoz
D35: =D34/1000 -> 6.3 | E35: kg/h | G35: =VLOOKUP(AH50,Tabulky!W146:Z148,4,0) -> 60-150 | H35: =IF(G35="60-150",105,IF(G35="30-60",45,225)) -> 105 | I35: g/h | M35: Produkce vlhkosti - klidový režim | AN35: klid | AR35: teplota chladiče | AT35: tch | AU35: 9 | AV35: °C
D36: =D34/3600 -> 1.75 | E36: g/s | G36: rozmezí | H36: průměr | M36: množství odpařené vody | O36: mw | P36: =Tabulky!$G$4*$D$29*($D$12/100-$D$13/100) -> 28539.73775 | Q36: g/h | AD36: Tepelné zisky | AK36: d | AN36: nos | AO36: 2 | AR36: relativní vlhkost | AT36: rhch | AU36: 100 | AV36: %
A37: celkové množství odpařené vody | D37: =(D25+D34)*(I37/100+1) -> 126481.8986 | E37: g/h | H37: korekce | I37: =AH53 -> 5 | J37: % | M37: celkové množství odpařené vody | P37: =(P36+P31)*(I37/100+1) -> 30176.72464 | Q37: g/h | AD37: tepelné ztráty | AE37: Qzt | AF37: 7 | AG37: kW | AN37: množství čerstvého vzduchu/osoba | AR37: klidový režim
A38: Dimenzování průtoku vzduchu bazénové větrací jednotky pro zátěž | M38: Dimenzování průtoku vzduchu bazénové větrací jednotky pro klidový režim | AD38: tepelné zisky | AE38: Qzisk | AF38: 16 | AG38: kW | AN38: doporučená hodnota při zátěži 50 | AR38: teplota chladiče | AT38: tch | AU38: =P61 -> 9 | AV38: °C
A39: z množství odpařené vody | M39: z množství odpařené vody | AN39: (min hodnota 25m3/h) | AR39: relativní vlhkost | AT39: rhch | AU39: =P62 -> 100 | AV39: %
A40: požadovaná vlhkost přiváděná | C40: xpoz | D40: 9 | E40: g/kg | G40: doporučená hodnota 8-10 g/kg | M40: požadovaná vlhkost přiváděná | O40: xpoz | P40: =D40 -> 9 | Q40: g/kg | S40: doporučená hodnota 8-10 g/kg | AO40: 50 | AP40: m3/h/os
C41: V1 | D41: =(D37)/(D18*(D17-D40)) -> 12406.44594 | E41: m3/h | I41: =D147 -> 8.899758868 | J41: g/kg s.v. | O41: V1 | P41: =(P36+P31)/(Konstanty!$F$8*(J17-5)) -> 4560.659311 | Q41: m3/h | AH41: BAZÉN
A42: z objemu haly | M42: z objemu haly | AH42: rozměry | AI42: délka | AJ42: a | AK42: 25 | AL42: m
A43: výměna vzduchu | C43: n | D43: =AE32 -> 1 | E43: 1/h | M43: výměna vzduchu | O43: n | P43: =AE34 -> 1 | Q43: 1/h | AI43: šířka | AJ43: b | AK43: 12 | AL43: m
A44: V=n*VH | C44: V2 | D44: =D30*D43 -> 4200 | E44: m3/h | M44: V=n*VH | O44: V2 | P44: =D30*P43 -> 4200 | Q44: m3/h
A45: z tepelných zisků | AH45: produkce vlhkosti
B46: tepelné ztráty | C46: Qzt | D46: =AF37 -> 7 | E46: kW | H46: teplotní spád výústky | I46: dt | J46: 8 | K46: °C | AH46: provoz bazénu - produkce vlhkosti
B47: tepelné zisky | C47: Qzisk | D47: =AF38 -> 16 | E47: kW | AH47: bazény - normální provoz
B48: Množství vzduchu | C48: V3 | D48: =((D47-D46)/J46*Konstanty!$F$2*Konstanty!$F$8) -> 1391.90625 | E48: m3/h
AH49: produkce vlhkosti člověkem
A50: potřeba vzduchu pro osoby | AH50: člověk při středně těžké práci
C51: V4 | D51: =D33*D52 -> 3000
A52: množství čerstvého vzduchu/osoba | D52: =AO40 -> 50 | E52: m3/h/os | G52: doporučená hodnota při zátěži (min hodnota 25m3/h) | AH52: korekce na vodní odpar
AH53: 5 | AI53: %
A54: Potřeba čerstvého vzduchu | D54: =IF(MAX(D41,D44,D48)>D51,"Ne","Ano") -> Ne | G54: nepočítá s tím dál samo!
A55: Množství čerstvého vzduchu | D55: =IF(D54="ano",D51-MAX(D41,D44,D48),0) -> 0 | E55: m3/h | G55: pouze informativní charakter, množství V čerst rozhodne projektant
A57: průtok vzduchu | C57: V | D57: =MAX(D41,D44,D48) -> 12406.44594 | E57: m3/h | M57: průtok vzduchu | O57: V | P57: =MAX(P41,P44) -> 4560.659311 | Q57: m3/h
C58: V | D58: =D57/3600 -> 3.446234982 | E58: m3/s | O58: V | P58: =P57/3600 -> 1.266849809 | Q58: m3/s
G59: doporučená hodnota 8-10 g/kg s.v.
A60: množství odebrané měrné vlh | C60: Δx | D60: 1.652342482 | E60: g/kg s.v | G60: vstupní měrná vlhkost do int | I60: xvyst | J60: =D147 -> 8.899758868 | K60: g/kg s.v. | M60: množství odebrané měrné vlh | O60: Δx | P60: 1.5 | Q60: g/kg s.v.
A61: teplota chladiče | C61: tch | D61: =AU35 -> 9 | E61: °C | M61: teplota chladiče | O61: tch | P61: 9 | Q61: °C
A62: relativní vlhkost | C62: rhch | D62: =AU36 -> 100 | E62: % | G62: měrná vlhkost xvýst=8 g/kg s.v. | M62: relativní vlhkost | O62: rhch | P62: 100 | Q62: %
G63: měrná vlhkost xvýst=9 g/kg s.v.
G64: měrná vlhkost xvýst=10 g/kg s.v. | M64: vstupní měrná vlhkost do int | O64: xvyst | P64: =P147 -> 9.594066298 | Q64: g/kg s.v. | AE64: Výkon na kondenzátoru | AI64: Qk | AJ64: =AH101 -> 38693.73808 | AK64: W
X65: Parametry chladiče | AJ65: =AH102 -> 38.69373808 | AK65: kW
A66: t3 | B66: parametry vzduchu za vyparnikem | M66: t3 | N66: parametry vzduchu za vyparnikem | X66: teplota | Z66: ti | AA66: =tch -> 9 | AB66: °C | AE66: Teplota požadovaná v interiéru | AI66: ti | AJ66: =Teplota -> 32 | AK66: °C
A67: teplota | C67: tvyp | D67: =W87 -> 28 | E67: °C | G67: =tvyp-te -> 40 | H67: tvyp-te | M67: teplota | O67: tvyp | P67: =W112 -> 16 | Q67: °C | X67: relativní vlhkost | Z67: rhi | AA67: =D62 -> 100 | AB67: % | AY67: Výkon na kondenzátoru | BC67: Qk | BD67: =BB102 -> 63695.45393 | BE67: W
A68: relativní vlhkost | C68: rh3 | D68: =IF((D74/D73)*100>100,100,(D74/D73)*100) -> 68.60284916 | E68: % | M68: relativní vlhkost | O68: rh3 | P68: =IF((P74/P73)*100>100,100,(P74/P73)*100) -> 74.95783123 | Q68: % | X68: entalpie s.v. | Z68: hsvi | AA68: =Konstanty!$F$2*AA66 -> 9090 | AB68: J/kg | AE68: Výkonová bilance pro režim plného provozu | BD68: =BB103 -> 63.69545393 | BE68: kW
A69: entalpie s.v. | C69: h3 | D69: =Konstanty!$F$2*D67 -> 28280 | E69: J/kg | M69: entalpie s.v. | O69: h3 | P69: =Konstanty!$F$2*P67 -> 16160 | Q69: J/kg | X69: entalpie v.p. | Z69: hvpi | AA69: =$AA$76*(Konstanty!$F$3*AA66+Konstanty!$F$4) -> 18311.90427 | AB69: J/kg | AD69: Sešit | AE69: te | AF69: Qdoh te | AG69: Qvýpar | AH69: dx výp | AI69: Qkond | AJ69: Qdohř celk | AK69: Qzbýva | AL69: Q dodat | AM69: Q přebyt | AY69: Teplota požadovaná v interiéru | BC69: ti | BD69: =J6 -> 24 | BE69: °C
A70: entalpie v.p. | C70: h3 | D70: =D77*(Konstanty!$F$3*D67+Konstanty!$F$4) -> 41993.78319 | E70: J/kg | M70: entalpie v.p. | O70: h3 | P70: =P77*(Konstanty!$F$3*P67+Konstanty!$F$4) -> 21865.02229 | Q70: J/kg | X70: entalpie | Z70: hi | AA70: =AA68+AA69 -> 27401.90427 | AB70: J/kg | AE70: °C | AF70: W | AG70: W | AH70: g/kg s.v. | AI70: W | AJ70: W | AK70: W | AL70: W | AM70: W
A71: entalpie | C71: h3 | D71: =D69+D70 -> 70273.78319 | E71: J/kg | M71: entalpie | O71: h3 | P71: =P69+P70 -> 38025.02229 | Q71: J/kg | AA71: =AA70/1000 -> 27.40190427 | AB71: kJ/kg | AD71: Vypocet | AE71: =te -> -12 | AF71: =IF(AE71<$D$85,$D$88,0) -> 30277.61388 | AG71: =$D$81 -> 32351.88853 | AH71: =deltaT -> 1.652342482 | AI71: =$D$121 -> 38693.73808 | AJ71: =$D$122 -> 90731.752 | AK71: =AI71-AJ71 -> -52038.01392 | AL71: =IF(AK71<0,ABS(AK71),0) -> 52038.01392 | AM71: =IF(AK71>0,AK71,0) -> 0 | AY71: Výkonová bilance pro klidový režim
D72: =D71/1000 -> 70.27378319 | E72: kJ/kg | P72: =P71/1000 -> 38.02502229 | Q72: kJ/kg | X72: tlak nasycené vodní páry | Z72: p''vpi | AA72: =Konstanty!$F$12^((1500.3+23.5*AA66)/(234+AA66)) -> 1146.47173 | AB72: Pa | AD72: V2 | AE72: ='V2'!te -> -10 | AF72: =IF(AE72<'V2'!$D$85,'V2'!$D$88,0) -> 26309.28872 | AG72: ='V2'!$D$81 -> 27580.43383 | AH72: =IF('V2'!deltaT=$AH$71,0,'V2'!deltaT) -> 1.575181805 | AI72: ='V2'!$D$121 -> 36473.52298 | AJ72: ='V2'!$D$122 -> 81723.74267 | AK72: =AI72-AJ72 -> -45250.21969 | AL72: =IF(AK72<0,ABS(AK72),0) -> 45250.21969 | AM72: =IF(AK72>0,AK72,0) -> 0 | AV72: te | AW72: Qpředehřev | AX72: Qpředehřev | AY72: Qzbýva | AZ72: Qdohřátí | BA72: Qdohřátí | BB72: Qzbýva
A73: tlak nasycené vodní páry | C73: p''vp3 | D73: =Konstanty!$F$12^((1500.3+23.5*D67)/(234+D67)) -> 3781.160528 | E73: Pa | M73: tlak nasycené vodní páry | O73: p''vp3 | P73: =Konstanty!$F$12^((1500.3+23.5*P67)/(234+P67)) -> 1817.468722 | Q73: Pa | X73: tlak vodní páry | Z73: pvpi | AA73: =(AA67/100)*AA72 -> 1146.47173 | AB73: Pa | AD73: V3 | AE73: ='V3'!te -> -5 | AF73: =IF(AE73<'V3'!$D$85,'V3'!$D$88,0) -> 16884.90189 | AG73: ='V3'!$D$81 -> 42872.41608 | AH73: =IF('V3'!deltaT=$AH$71,0,'V3'!deltaT) -> 2.314320004 | AI73: ='V3'!$D$121 -> 56696.28197 | AJ73: ='V3'!$D$122 -> 82432.22806 | AK73: -25735.9461 | AL73: 25735.9461 | AM73: 0 | AV73: °C | AW73: W | AX73: kW | AY73: Qpřed- Qk | AZ73: W | BA73: kW | BB73: Qpřed- Qk
A74: tlak vodní páry | C74: pvp3 | D74: =(D77*D75)/0.622 -> 2593.983854 | E74: Pa | M74: tlak vodní páry | O74: pvp3 | P74: =(P77*P75)/0.622 -> 1362.335137 | Q74: Pa | X74: tlak suchého vzduchu | Z74: psvi | AA74: =AA78*Konstanty!$F$5*(AA66+273.15) -> 98003.39739 | AB74: Pa | AD74: V4 | AE74: ='V4'!te -> 0 | AF74: =IF(AE74<'V4'!$D$85,'V4'!$D$88,0) -> 8132.432581 | AG74: ='V4'!$D$81 -> 85631.99912 | AH74: =IF('V4'!deltaT=$AH$71,0,'V4'!deltaT) -> 4.63388483 | AI74: ='V4'!$D$121 -> 113243.3488 | AJ74: ='V4'!$D$122 -> 89373.74697 | AK74: 23869.60182 | AL74: 0 | AM74: 23869.60182 | AV74: =te -> -12 | AW74: =IF(AV74<$D$85,$P$58*($D$86/100)*Konstanty!$F$2*($D$85-AV74),0) -> 6525.543365 | AX74: =AW74/1000 -> 6.525543365 | AY74: =$BD$68-AX74 -> 57.16991056 | AZ74: =IF(AV74<$D$85,$P$58*Konstanty!$F$8*Konstanty!$F$2*($BD$69-$D$85),$P$58*Konstanty!$F$8*Konstanty!$F$2*($BD$69-AV74)) -> 29780.78859 | BA74: =AZ74/1000 -> 29.78078859 | BB74: =AY74-BA74 -> 27.38912197
A75: tlak suchého vzduchu | C75: psv3 | D75: =D79*Konstanty!$F$5*(D67+273.15) -> 98032.84995 | E75: Pa | M75: tlak suchého vzduchu | O75: psv3 | P75: =P79*Konstanty!$F$5*(P67+273.15) -> 98027.69719 | Q75: Pa | X75: tlak směsi vlhkého vzduchu | Z75: pi | AA75: =AA73+AA74 -> 99149.86912 | AB75: Pa | AD75: V5 | AE75: ='V5'!te -> 5 | AF75: =IF(AE75<'V5'!$D$85,'V5'!$D$88,0) -> 0 | AG75: ='V5'!$D$81 -> 113504.7391 | AH75: =IF('V5'!deltaT=$AH$71,0,'V5'!deltaT) -> 6.26049202 | AI75: ='V5'!$D$121 -> 150103.4296 | AJ75: ='V5'!$D$122 -> 92037.6234 | AK75: 58065.80624 | AL75: 0 | AM75: 58065.80624 | AV75: =IF(AV74=CEILING(AV74,5),CEILING(AV74,5)+5,CEILING(AV74,5)) -> -10 | AW75: =IF(AV75<$D$85,$P$58*($D$86/100)*Konstanty!$F$2*($D$85-AV75),0) -> 5757.83238 | AX75: 5.75783238 | AY75: 57.93762155 | AZ75: =IF(AV75<$D$85,$P$58*Konstanty!$F$8*Konstanty!$F$2*($BD$69-$D$85),$P$58*Konstanty!$F$8*Konstanty!$F$2*($BD$69-AV75)) -> 29780.78859 | BA75: 29.78078859 | BB75: 28.15683296
A76: tlak směsi vlhkého vzduchu | C76: p3 | D76: =D74+D75 -> 100626.8338 | E76: Pa | M76: tlak směsi vlhkého vzduchu | O76: p3 | P76: =P74+P75 -> 99390.03233 | Q76: Pa | X76: měrná vlhkost vzduchu | Z76: xi | AA76: =(Konstanty!$F$5/Konstanty!$F$6)*(AA73/AA74) -> 0.007276561764 | AB76: kg/kg s.v. | AD76: V6 | AE76: ='V6'!te -> 10 | AF76: =IF(AE76<'V6'!$D$85,'V6'!$D$88,0) -> 0 | AG76: ='V6'!$D$81 -> 145578.9019 | AH76: =IF('V6'!deltaT=$AH$71,0,'V6'!deltaT) -> 7.918208476 | AI76: ='V6'!$D$121 -> 192519.6485 | AJ76: ='V6'!$D$122 -> 97536.86646 | AK76: 94982.782 | AL76: 0 | AM76: 94982.782 | AV76: =AV75+5 -> -5 | AW76: =IF(AV76<$D$85,$P$58*($D$86/100)*Konstanty!$F$2*($D$85-AV76),0) -> 3838.55492 | AX76: 3.83855492 | AY76: 59.85689901 | AZ76: =IF(AV76<$D$85,$P$58*Konstanty!$F$8*Konstanty!$F$2*($BD$69-$D$85),$P$58*Konstanty!$F$8*Konstanty!$F$2*($BD$69-AV76)) -> 29780.78859 | BA76: 29.78078859 | BB76: 30.07611042
A77: měrná vlhkost vzduchu | C77: x3 | D77: =D16-deltaT/1000 -> 0.01645833981 | E77: kg/kg s.v. | M77: měrná vlhkost vzduchu | O77: x3 | P77: =J16-P60/1000 -> 0.008644214643 | Q77: kg/kg s.v. | AA77: =AA76*1000 -> 7.276561764 | AB77: g/kg s.v. | AD77: V7 | AE77: ='V7'!te -> 15 | AF77: =IF(AE77<'V7'!$D$85,'V7'!$D$88,0) -> 0 | AG77: ='V7'!$D$81 -> 147350.8743 | AH77: ='V7'!deltaT -> 8.1 | AI77: ='V7'!$D$121 -> 194862.9791 | AJ77: ='V7'!$D$122 -> 92003.29833 | AK77: 102859.6808 | AL77: 0 | AM77: 102859.6808 | AV77: 0 | AW77: =IF(AV77<$D$85,$P$58*($D$86/100)*Konstanty!$F$2*($D$85-AV77),0) -> 1919.27746 | AX77: 1.91927746 | AY77: 61.77617647 | AZ77: =IF(AV77<$D$85,$P$58*Konstanty!$F$8*Konstanty!$F$2*($BD$69-$D$85),$P$58*Konstanty!$F$8*Konstanty!$F$2*($BD$69-AV77)) -> 29780.78859 | BA77: 29.78078859 | BB77: 31.99538788
D78: =D77*1000 -> 16.45833981 | E78: g/kg s.v. | P78: =P77*1000 -> 8.644214643 | Q78: g/kg s.v. | X78: hustota vzduchu při t | AA78: =VLOOKUP(AA66,Tabulky!$V$15:$AF$75,9,0) -> 1.21 | AB78: kg/m3 | AD78: V8 | AE78: ='V8'!te -> 20 | AF78: =IF(AE78<'V8'!$D$85,'V8'!$D$88,0) -> 0 | AG78: ='V8'!$D$81 -> 147350.8743 | AH78: ='V8'!deltaT -> 8.1 | AI78: ='V8'!$D$121 -> 194862.9791 | AJ78: ='V8'!$D$122 -> 65486.35639 | AK78: 129376.6227 | AL78: 0 | AM78: 129376.6227 | AV78: 5 | AW78: =IF(AV78<$D$85,$P$58*($D$86/100)*Konstanty!$F$2*($D$85-AV78),0) -> 0 | AX78: 0 | AY78: 63.69545393 | AZ78: =IF(AV78<$D$85,$P$58*Konstanty!$F$8*Konstanty!$F$2*($BD$69-$D$85),$P$58*Konstanty!$F$8*Konstanty!$F$2*($BD$69-AV78)) -> 29780.78859 | BA78: 29.78078859 | BB78: 33.91466534
A79: hustota vzduchu při t | D79: =VLOOKUP(tvyp,Tabulky!$V$15:$AF$75,9,0) -> 1.134 | E79: kg/m3 | M79: hustota vzduchu při t | P79: =VLOOKUP(P67,Tabulky!$V$15:$AF$75,9,0) -> 1.181 | Q79: kg/m3 | AA79: =1.395-Teplota*0.004414 -> 1.253752 | AD79: V9 | AE79: ='V9'!te -> 25 | AF79: =IF(AE79<'V9'!$D$85,'V9'!$D$88,0) -> 0 | AG79: ='V9'!$D$81 -> 147350.8743 | AH79: ='V9'!deltaT -> 8.1 | AI79: ='V9'!$D$121 -> 194862.9791 | AJ79: ='V9'!$D$122 -> 40595.98524 | AK79: 154266.9939 | AL79: 0 | AM79: 154266.9939 | AV79: 10 | AW79: =IF(AV79<$D$85,$P$58*($D$86/100)*Konstanty!$F$2*($D$85-AV79),0) -> 0 | AX79: 0 | AY79: 63.69545393 | AZ79: =IF(AV79<$D$85,$P$58*Konstanty!$F$8*Konstanty!$F$2*($BD$69-$D$85),$P$58*Konstanty!$F$8*Konstanty!$F$2*($BD$69-AV79)) -> 21943.73896 | BA79: 21.94373896 | BB79: 41.75171497
AD80: V10 | AE80: ='V10'!te -> 30 | AF80: =IF(AE80<'V10'!$D$85,'V10'!$D$88,0) -> 0 | AG80: ='V10'!$D$81 -> 147350.8743 | AH80: ='V10'!deltaT -> 8.1 | AI80: ='V10'!$D$121 -> 194862.9791 | AJ80: =IF('V10'!$D$122<0,0,'V10'!$D$122) -> 17189.20033 | AK80: 177673.7788 | AL80: 0 | AM80: 177673.7788 | AV80: 15 | AW80: =IF(AV80<$D$85,$P$58*($D$86/100)*Konstanty!$F$2*($D$85-AV80),0) -> 0 | AX80: 0 | AY80: 63.69545393 | AZ80: =IF(AV80<$D$85,$P$58*Konstanty!$F$8*Konstanty!$F$2*($BD$69-$D$85),$P$58*Konstanty!$F$8*Konstanty!$F$2*($BD$69-AV80)) -> 14106.68933 | BA80: 14.10668933 | BB80: 49.5887646
A81: teplo získané na výparníku | C81: Qv | D81: =D58*D18*(D10-D71) -> 32351.88853 | E81: W | M81: teplo získané na výparníku | O81: Qv | P81: =P58*J18*(J10-P71) -> 47003.77313 | Q81: W | U81: A | V81: Ti | W81: =Teplota -> 32 | Y81: B | Z81: tch | AA81: =AA66 -> 9 | AD81: V11 | AE81: ='V11'!te -> 35 | AF81: =IF(AE81<'V11'!$D$85,'V11'!$D$88,0) -> 0 | AG81: ='V11'!$D$81 -> 147350.8743 | AH81: ='V11'!deltaT -> 8.1 | AI81: ='V11'!$D$121 -> 194862.9791 | AJ81: =IF('V11'!$D$122<0,0,'V11'!$D$122) -> 0 | AK81: 194862.9791 | AL81: 0 | AM81: 194862.9791 | AV81: 20 | AW81: =IF(AV81<$D$85,$P$58*($D$86/100)*Konstanty!$F$2*($D$85-AV81),0) -> 0 | AX81: 0 | AY81: 63.69545393 | AZ81: =IF(AV81<$D$85,$P$58*Konstanty!$F$8*Konstanty!$F$2*($BD$69-$D$85),$P$58*Konstanty!$F$8*Konstanty!$F$2*($BD$69-AV81)) -> 6269.639703 | BA81: 6.269639703 | BB81: 57.42581422 | BF81: te | BG81: teplota exteriérového vzduchu
B82: rosný bod | C82: tRB | D82: =(243.5*LN(($D$7/100)*Konstanty!$F$12^((17.67*Teplota)/(243.5+Teplota))))/(17.67-(LN(($D$7/100)*Konstanty!$F$12^((17.67*Teplota)/(243.5+Teplota))))) -> 23.27425187 | E82: °C | N82: rosný bod | P82: =(243.5*LN((J7/100)*Konstanty!$F$12^((17.67*J6)/(243.5+J6))))/(17.67-(LN((J7/100)*Konstanty!$F$12^((17.67*J6)/(243.5+J6))))) -> 14.41381795 | Q82: °C | V82: xi | W82: =D16 -> 0.01811068229 | Z82: xch | AA82: =AA76 -> 0.007276561764 | AD82: V12 | AE82: ='V12'!te -> 40 | AF82: =IF(AE82<'V12'!$D$85,'V12'!$D$88,0) -> 0 | AG82: ='V12'!$D$81 -> 147350.8743 | AH82: ='V12'!deltaT -> 8.1 | AI82: ='V12'!$D$121 -> 194862.9791 | AJ82: =IF('V12'!$D$122<0,0,'V12'!$D$122) -> 0 | AK82: 194862.9791 | AL82: 0 | AM82: 194862.9791 | AV82: 25 | AW82: =IF(AV82<$D$85,$P$58*($D$86/100)*Konstanty!$F$2*($D$85-AV82),0) -> 0 | AX82: 0 | AY82: 63.69545393 | AZ82: =IF(AV82<$D$85,$P$58*Konstanty!$F$8*Konstanty!$F$2*($BD$69-$D$85),$P$58*Konstanty!$F$8*Konstanty!$F$2*($BD$69-AV82)) -> -1567.409926 | BA82: -1.567409926 | BB82: 65.26286385 | BF82: Qpředehřev | BG82: Výkon pro předehřátí vzduchu
V83: xi | W83: =D17 -> 18.11068229 | Z83: xch | AA83: =AA77 -> 7.276561764 | AV83: 30 | AW83: =IF(AV83<$D$85,$P$58*($D$86/100)*Konstanty!$F$2*($D$85-AV83),0) -> 0 | AX83: 0 | AY83: 63.69545393 | AZ83: =IF(AV83<$D$85,$P$58*Konstanty!$F$8*Konstanty!$F$2*($BD$69-$D$85),$P$58*Konstanty!$F$8*Konstanty!$F$2*($BD$69-AV83)) -> -9404.459555 | BA83: -9.404459555 | BB83: 73.09991348 | BF83: Qdohřátí | BG83: Výkon spotřebovaný na dohřátí vzduchu na požadovanou úroveň
A84: Distribuce tepla v závislosti na externí teplotě | AE84: červeně zvýrazněné pole je teplota ext vyšší než teplota exteriéru, přívod vzduchu plně čerstvý
A85: teplota předehřevu te | C85: tpřed | D85: =BA14 -> 5 | E85: °C | V85: dx | W85: =deltaT -> 1.652342482 | Y85: výpočet teplochy při teplote chladice
A86: množství čerst vzduchu | D86: =BA15 -> 30 | E86: % | V86: th | W86: =((W81-AA81)*W83+(AA83-W83)*W81-(W81-AA81)*(W83-W85))/(AA83-W83) -> 28.4922047 | Y86: počítá s přímkou ti - tch a na ní počítá bod | AE86: Teplo odevzdané na výparníku | AK86: Množství kondenzátu
A87: množství předehřívaného vzd | C87: V | D87: =D58*(D86/100) -> 1.033870495 | E87: m3/h | W87: =ROUND(W86,0) -> 28 | AE87: Qv=V*ρ*(hi-h3) | AG87: Qv | AH87: =D81 -> 32351.88853 | AI87: W | AK87: mkond = V*ρ*(xi-x3) | AM87: mkond | AN87: =IF(D58*D18*(D16-D77)<0,0,D58*D18*(D16-D77)) -> 0.006371989361 | AO87: kg/s | AY87: Teplo odevzdané na výparníku | BE87: Množství kondenzátu
A88: potřeba tepla na předehřev | C88: Qpotř | D88: =IF(D85>te,((D87*P18)/(1+P16))*(D85-te)*P18*Konstanty!$F$2,0) -> 30277.61388 | E88: W | AH88: =AH87/1000 -> 32.35188853 | AI88: kW | AN88: =AN87*1000 -> 6.371989361 | AO88: g/s | AY88: Qv=V*ρ*(hi-h3) | BA88: Qv | BB88: =P81 -> 47003.77313 | BC88: W | BE88: mkond = V*ρ*(xi-x3) | BG88: mkond | BH88: =IF(P58*J18*(J16-P77)<0,0,P58*J18*(J16-P77)) -> 0.002183415645 | BI88: kg/s
AN89: =AN87*3600 -> 22.9391617 | AO89: kg/h | BB89: =BB88/1000 -> 47.00377313 | BC89: kW | BH89: =BH88*1000 -> 2.183415645 | BI89: g/s
A90: t4 | B90: Předehřev exteriérového vzduchu | M90: t4 | N90: Předehřev exteriérového vzduchu | X90: Parametry chladiče klidovy rezim | AE90: Tepelné čerpadlo (TČ) | AI90: typ TČ | BH90: =BH88*3600 -> 7.860296323 | BI90: kg/h
A91: teplota předehřevu | C91: tpředehřev | D91: =IF($D$85>te,$D$85,te) -> 5 | E91: °C | M91: teplota předehřevu | O91: tpředehřev | P91: =IF($D$85>te,$D$85,te) -> 5 | Q91: °C | X91: teplota | Z91: ti | AA91: =P61 -> 9 | AB91: °C | AE91: Topný faktor TČ | AG91: COP | AH91: =VLOOKUP(Teplota,Vypocet!AE115:AF168,2,0) -> 4.101333333 | AY91: Tepelné čerpadlo (TČ) | BC91: typ TČ
C92: rhpředehřev | D92: =((D101*P15)/(D97*(0.622+D101)))*100 -> 27.77125915 | E92: % | O92: rhpředehřev | P92: =((P101*P15)/(P97*(0.622+P101)))*100 -> 27.77125915 | Q92: % | X92: relativní vlhkost | Z92: rhi | AA92: =P62 -> 100 | AB92: % | AY92: Topný faktor TČ | BA92: COP | BB92: =VLOOKUP(J6,Vypocet!AY116:AZ164,2,0) -> 3.816 | BC92: Alfa S Duo
A93: entalpie s.v. | C93: hsv4 | D93: =Konstanty!$F$2*D91 -> 5050 | E93: J/kg | M93: entalpie s.v. | O93: hsv4 | P93: =Konstanty!$F$2*P91 -> 5050 | Q93: J/kg | X93: entalpie s.v. | Z93: hsvi | AA93: =Konstanty!$F$2*AA91 -> 9090 | AB93: J/kg | AE93: Tepelná bilance TČ
A94: entalpie v.p. | C94: hvp4 | D94: =D101*(Konstanty!$F$3*D91+Konstanty!$F$4) -> 3850.664191 | E94: J/kg | M94: entalpie v.p. | O94: hvp4 | P94: =P101*(Konstanty!$F$3*P91+Konstanty!$F$4) -> 3850.664191 | Q94: J/kg | X94: entalpie v.p. | Z94: hvpi | AA94: =$AA$76*(Konstanty!$F$3*AA91+Konstanty!$F$4) -> 18311.90427 | AB94: J/kg | AE94: Qk=Pel+Qv | AY94: Tepelná bilance TČ
A95: entalpie | C95: h4 | D95: =D93+D94 -> 8900.664191 | E95: J/kg | M95: entalpie | O95: h4 | P95: =P93+P94 -> 8900.664191 | Q95: J/kg | X95: entalpie | Z95: hi | AA95: =AA93+AA94 -> 27401.90427 | AB95: J/kg | AE95: εt = COP | AF95: εt = Qv/Pel | AY95: Qk=Pel+Qv
D96: =D95/1000 -> 8.900664191 | E96: kJ/kg | P96: =P95/1000 -> 8.900664191 | Q96: kJ/kg | AA96: =AA95/1000 -> 27.40190427 | AB96: kJ/kg | AE96: Pel=Qk/(1+Et) | AY96: εt = COP | AZ96: εt = Qv/Pel
A97: tlak nasycené vodní páry | C97: p''vp4 | D97: =Konstanty!$F$12^((1500.3+23.5*D91)/(234+D91)) -> 870.4737963 | E97: Pa | M97: tlak nasycené vodní páry | O97: p''vp4 | P97: =Konstanty!$F$12^((1500.3+23.5*P91)/(234+P91)) -> 870.4737963 | Q97: Pa | X97: tlak nasycené vodní páry | Z97: p''vpi | AA97: =Konstanty!$F$12^((1500.3+23.5*AA91)/(234+AA91)) -> 1146.47173 | AB97: Pa | AE97: Výkon kompresoru | AG97: Pet | AH97: =AH87/(AH91+1) -> 6341.849554 | AI97: W | AY97: Pel=Qk/(1+Et)
A98: tlak vodní páry | C98: pvp4 | D98: =(D92/100)*D97 -> 241.7415338 | E98: Pa | M98: tlak vodní páry | O98: pvp4 | P98: =(P92/100)*P97 -> 241.7415338 | Q98: Pa | X98: tlak vodní páry | Z98: pvpi | AA98: =(AA92/100)*AA97 -> 1146.47173 | AB98: Pa | AH98: =AH97/1000 -> 6.341849554 | AI98: kW | AY98: Výkon kompresoru | BA98: Pet | BB98: =BB88/(BB92-1) -> 16691.6808 | BC98: W
A99: tlak suchého vzduchu | C99: psv4 | D99: =D103*Konstanty!$F$5*(D91+273.15) -> 97971.40433 | E99: Pa | M99: tlak suchého vzduchu | O99: psv4 | P99: =P103*Konstanty!$F$5*(P91+273.15) -> 97971.40433 | Q99: Pa | X99: tlak suchého vzduchu | Z99: psvi | AA99: =AA103*Konstanty!$F$5*(AA91+273.15) -> 98003.39739 | AB99: Pa | AE99: Příkon kompresoru | AG99: P0 | AH99: =AH98/AH91 -> 1.546289716 | AI99: kW | BB99: =BB98/1000 -> 16.6916808 | BC99: kW
A100: tlak směsi vlhkého vzduchu | C100: p4 | D100: =D98+D99 -> 98213.14587 | E100: Pa | M100: tlak směsi vlhkého vzduchu | O100: p4 | P100: =P98+P99 -> 98213.14587 | Q100: Pa | X100: tlak směsi vlhkého vzduchu | Z100: pi | AA100: =AA98+AA99 -> 99149.86912 | AB100: Pa | AE100: Teplo na kondenzátoru
A101: měrná vlhkost vzduchu | C101: x4 | D101: =P16 -> 0.001534618281 | E101: kg/kg s.v. | M101: měrná vlhkost vzduchu | O101: x4 | P101: =P16 -> 0.001534618281 | Q101: kg/kg s.v. | X101: měrná vlhkost vzduchu | Z101: xi | AA101: =(Konstanty!$F$5/Konstanty!$F$6)*(AA98/AA99) -> 0.007276561764 | AB101: kg/kg s.v. | AE101: Výkon na kondenzátoru | AG101: Qk | AH101: =AH97+AH87 -> 38693.73808 | AI101: W | AY101: Teplo na kondenzátoru
D102: =D101*1000 -> 1.534618281 | E102: g/kg s.v. | P102: =P101*1000 -> 1.534618281 | Q102: g/kg s.v. | AA102: =AA101*1000 -> 7.276561764 | AB102: g/kg s.v. | AH102: =AH101/1000 -> 38.69373808 | AI102: kW | AY102: Výkon na kondenzátoru | BA102: Qk | BB102: =BB98+BB88 -> 63695.45393 | BC102: W
A103: hustota vzduchu při t | D103: =VLOOKUP(D91,Tabulky!$V$15:$AF$75,9,0) -> 1.227 | E103: kg/m3 | M103: hustota vzduchu při t | P103: =VLOOKUP(P91,Tabulky!$V$15:$AF$75,9,0) -> 1.227 | Q103: kg/m3 | X103: hustota vzduchu při t | AA103: =VLOOKUP(AA91,Tabulky!$V$15:$AF$75,9,0) -> 1.21 | AB103: kg/m3 | BB103: =BB102/1000 -> 63.69545393 | BC103: kW
AA104: =1.395-Teplota*0.004414 -> 1.253752
A105: t4' | B105: smíšení vzduchu s exteriérovým | M105: t4' | N105: smíšení vzduchu s exteriérovým | AE105: Graf topneho faktoru | AH105: TnG Air 13, vzduch/voda
A106: Množství čerstvého vzduchu | C106: Včerstv | D106: =IF(D91>tvyp,100,$D$86) -> 30 | E106: % | M106: Množství čerstvého vzduchu | O106: Včerstv | P106: =IF(P91>tvyp,100,$D$86) -> 30 | Q106: % | U106: A | V106: Ti | W106: =J6 -> 24 | Y106: B | Z106: tch | AA106: =AA91 -> 9 | AY106: Graf topneho faktoru | BB106: TnG Air 13, vzduch/voda
A107: teplota vzduchu | C107: t4 | D107: =ROUND(((((D106/100)*D58)*D91+((1-(D106/100))*D58)*tvyp)/D58),0) -> 21 | E107: °C | M107: teplota vzduchu | O107: t4 | P107: =ROUND(((((P106/100)*P58)*P91+((1-(P106/100))*P58)*tvyp)/P58),0) -> 21 | Q107: °C | V107: xi | W107: =J16 -> 0.01014421464 | Z107: xch | AA107: =AA101 -> 0.007276561764 | AE107: teplota | AF107: -18 | AG107: -15 | AH107: -10 | AI107: -5 | AJ107: 0 | AK107: 5 | AL107: 10 | AM107: 15
A108: relativní vlhkost | C108: rh4 | D108: =ROUND(((1-(D106/100))*D68+(D106/100)*D92),1) -> 56.4 | E108: % | M108: relativní vlhkost | O108: rh4 | P108: =ROUND(((1-(P106/100))*P68+(P106/100)*P92),1) -> 60.8 | Q108: % | V108: xi | W108: =J17 -> 10.14421464 | Z108: xch | AA108: =AA102 -> 7.276561764 | AE108: vykon | AF108: 4.7 | AG108: 5.75 | AH108: 7 | AI108: 8.24 | AJ108: 9.46 | AK108: 10.69 | AL108: 11.8 | AM108: 13.1 | AY108: teplota | AZ108: -18 | BA108: -15 | BB108: -10 | BC108: -5 | BD108: 0 | BE108: 5 | BF108: 10 | BG108: 15
A109: entalpie s.v. | C109: hsv4 | D109: =Konstanty!$F$2*D107 -> 21210 | E109: J/kg | M109: entalpie s.v. | O109: hsv4 | P109: =Konstanty!$F$2*P107 -> 21210 | Q109: J/kg | AE109: el prikon | AF109: 2.24 | AG109: 2.47 | AH109: 2.72 | AI109: 2.94 | AJ109: 3.2 | AK109: 3.37 | AL109: 3.55 | AM109: 3.85 | AY109: vykon | AZ109: 4.7 | BA109: 5.75 | BB109: 7 | BC109: 8.24 | BD109: 9.46 | BE109: 10.69 | BF109: 11.8 | BG109: 13.1
A110: entalpie v.p. | C110: hvp4 | D110: =D117*(Konstanty!$F$3*D107+Konstanty!$F$4) -> 22593.28385 | E110: J/kg | M110: entalpie v.p. | O110: hvp4 | P110: =P117*(Konstanty!$F$3*P107+Konstanty!$F$4) -> 24355.88047 | Q110: J/kg | V110: dx | W110: =P60 -> 1.5 | AE110: COP | AF110: 2.1 | AG110: 2.33 | AH110: 2.57 | AI110: 2.8 | AJ110: 2.96 | AK110: 3.17 | AL110: 3.32 | AM110: 3.4 | AY110: el prikon | AZ110: 2.24 | BA110: 2.47 | BB110: 2.72 | BC110: 2.94 | BD110: 3.2 | BE110: 3.37 | BF110: 3.55 | BG110: 3.85
A111: entalpie | C111: h4 | D111: =D109+D110 -> 43803.28385 | E111: J/kg | M111: entalpie | O111: h4 | P111: =P109+P110 -> 45565.88047 | Q111: J/kg | V111: th | W111: =((W106-AA106)*W108+(AA108-W108)*W106-(W106-AA106)*(W108-W110))/(AA108-W108) -> 16.15386208 | AH111: =AH110-AG110 -> 0.24 | AI111: 0.23 | AJ111: 0.16 | AK111: 0.21 | AL111: 0.15 | AM111: 0.08 | AN111: průměr | AO111: =AVERAGE(AG111:AM111) -> 0.1783333333 | AP111: prumer/1 | AQ111: =AO111/5 -> 0.03566666667 | AY111: COP | AZ111: 2.1 | BA111: 2.33 | BB111: 2.57 | BC111: 2.8 | BD111: 2.96 | BE111: 3.17 | BF111: 3.32 | BG111: 3.4
D112: =D111/1000 -> 43.80328385 | E112: kJ/kg | P112: =P111/1000 -> 45.56588047 | Q112: kJ/kg | W112: =ROUND(W111,0) -> 16 | AF112: popis závislosti | AH112: y=0,18571x+2,96 | BB112: =BB111-BA111 -> 0.24 | BC112: 0.23 | BD112: 0.16 | BE112: 0.21 | BF112: 0.15 | BG112: 0.08 | BH112: průměr | BI112: =AVERAGE(BA112:BG112) -> 0.1783333333 | BJ112: prumer/1 | BK112: =BI112/5 -> 0.03566666667
A113: tlak nasycené vodní páry | C113: p''vp4 | D113: =Konstanty!$F$12^((1500.3+23.5*D107)/(234+D107)) -> 2486.97783 | E113: Pa | M113: tlak nasycené vodní páry | O113: p''vp4 | P113: =Konstanty!$F$12^((1500.3+23.5*P107)/(234+P107)) -> 2486.97783 | Q113: Pa | AZ113: popis závislosti | BB113: y=0,18571x+2,96
A114: tlak vodní páry | C114: pvp4 | D114: =(D108/100)*D113 -> 1402.655496 | E114: Pa | M114: tlak vodní páry | O114: pvp4 | P114: =(P108/100)*P113 -> 1512.082521 | Q114: Pa | AE114: teplota | AF114: COP | AH114: =AF107 -> -18 | AI114: =AF110 -> 2.1
A115: tlak suchého vzduchu | C115: psv4 | D115: =D119*Konstanty!$F$5*(D107+273.15) -> 98034.01256 | E115: Pa | M115: tlak suchého vzduchu | O115: psv4 | P115: =P119*Konstanty!$F$5*(P107+273.15) -> 98034.01256 | Q115: Pa | AE115: -18 | AF115: =$AQ$111*AE115+$AJ$110 -> 2.318 | AH115: =AG107 -> -15 | AI115: =AG110 -> 2.33 | AY115: teplota | AZ115: COP
A116: tlak směsi vlhkého vzduchu | C116: p4 | D116: =D114+D115 -> 99436.66805 | E116: Pa | M116: tlak směsi vlhkého vzduchu | O116: p4 | P116: =P114+P115 -> 99546.09508 | Q116: Pa | AE116: -17 | AF116: 2.353666667 | AH116: =AH107 -> -10 | AI116: =AH110 -> 2.57 | AY116: -18 | AZ116: =$AQ$111*AY116+$AJ$110 -> 2.318
A117: měrná vlhkost vzduchu | C117: x4 | D117: =(Konstanty!$F$5/Konstanty!$F$6)*(D114/D115) -> 0.008899758868 | E117: kg/kg s.v. | M117: měrná vlhkost vzduchu | O117: x4 | P117: =(Konstanty!$F$5/Konstanty!$F$6)*(P114/P115) -> 0.009594066298 | Q117: kg/kg s.v. | AE117: -16 | AF117: 2.389333333 | AH117: =AI107 -> -5 | AI117: =AI110 -> 2.8 | AY117: -17 | AZ117: 2.353666667
D118: =D117*1000 -> 8.899758868 | E118: g/kg s.v. | P118: =P117*1000 -> 9.594066298 | Q118: g/kg s.v. | AE118: -15 | AF118: 2.425 | AH118: =AJ107 -> 0 | AI118: =AJ110 -> 2.96 | AY118: -16 | AZ118: 2.389333333
A119: hustota vzduchu při t | D119: =VLOOKUP(D107,Tabulky!$V$15:$AF$75,9,0) -> 1.161 | E119: kg/m3 | M119: hustota vzduchu při t | P119: =VLOOKUP(P107,Tabulky!$V$15:$AF$75,9,0) -> 1.161 | Q119: kg/m3 | AE119: -14 | AF119: 2.460666667 | AH119: =AK107 -> 5 | AI119: =AK110 -> 3.17 | AY119: -15 | AZ119: 2.425
AE120: -13 | AF120: 2.496333333 | AH120: =AL107 -> 10 | AI120: =AL110 -> 3.32 | AY120: -14 | AZ120: 2.460666667
A121: množství tepla na kondenzátoru | C121: Qk | D121: =AH101 -> 38693.73808 | E121: W | H121: přepočet mw na msv | I121: =(D58*D119)/(1+D117) -> 3.96578429 | J121: m3/s | M121: množství tepla na kondenzátoru | O121: Qk | P121: =BB102 -> 63695.45393 | Q121: W | AE121: -12 | AF121: 2.532 | AH121: =AM107 -> 15 | AI121: =AM110 -> 3.4 | AY121: -13 | AZ121: 2.496333333
A122: Požadované teplo na dohřev | C122: Qpož | D122: =(D134-D107)*Konstanty!F2*D119*I121+D88 -> 90731.752 | E122: W | M122: Požadované teplo na dohřev | P122: =(P134-P107)*Konstanty!$F$2*P119*P58 -> 19311.7698 | Q122: W | AE122: -11 | AF122: 2.567666667 | AY122: -12 | AZ122: 2.532
AE123: -10 | AF123: 2.603333333 | AY123: -11 | AZ123: 2.567666667
A124: potřeba dohřevu | C124: Qdohř | D124: =IF((D122-D121)>0,D122-D121,0) -> 52038.01392 | E124: W | M124: potřeba dohřevu | O124: Qdohř | P124: =IF((P122-P121)>0,P122-P121,0) -> 0 | Q124: W | AE124: -9 | AF124: 2.639 | AY124: -10 | AZ124: 2.603333333
A125: přebytečné teplo | C125: Qpřebyt | D125: =IF((D122-D121)<0,D121-D122,0) -> 0 | E125: W | M125: přebytečné teplo | O125: Qpřebyt | P125: =IF((P122-P121)<0,P121-P122,0) -> 44383.68412 | Q125: W | AE125: -8 | AF125: 2.674666667 | AY125: -9 | AZ125: 2.639
AE126: -7 | AF126: 2.710333333 | AY126: -8 | AZ126: 2.674666667
AE127: -6 | AF127: 2.746 | AY127: -7 | AZ127: 2.710333333
A128: teplota zvýšení do int | C128: tzv | D128: =BF26 -> 2 | E128: °C | N128: teplota zvýšení do int | O128: tzv | P128: =BF28 -> 2 | Q128: °C | AE128: -5 | AF128: 2.781666667 | AY128: -6 | AZ128: 2.746
C129: doporučená hodnota 1-2°C | O129: doporučená hodnota 1-2°C | AE129: -4 | AF129: 2.817333333 | AY129: -5 | AZ129: 2.781666667
AE130: -3 | AF130: 2.853 | AY130: -4 | AZ130: 2.817333333
AE131: -2 | AF131: 2.888666667 | AY131: -3 | AZ131: 2.853
AE132: -1 | AF132: 2.924333333 | AY132: -2 | AZ132: 2.888666667
A133: t5 | B133: parametry vyduchu za kondenzátorem | M133: t5 | N133: parametry vyduchu za kondenzátorem | AE133: 0 | AF133: 2.96 | AY133: -1 | AZ133: 2.924333333
A134: požadovaná teplotateplota do I | C134: t5 | D134: =Teplota+D128 -> 34 | E134: °C | M134: požadovaná teplota do I | O134: t5 | P134: =Teplota+P128 -> 34 | Q134: °C | AE134: 1 | AF134: 2.995666667 | AY134: 0 | AZ134: 2.96
AE135: 2 | AF135: 3.031333333 | AY135: 1 | AZ135: 2.995666667
AE136: 3 | AF136: 3.067 | AY136: 2 | AZ136: 3.031333333
A137: relativní vlhkost | C137: rh5 | D137: =((D146*D116)/(D142*(0.622+D146)))*100 -> 26.35995457 | E137: % | M137: relativní vlhkost | O137: rh5 | P137: =((P146*P116)/(P142*(0.622+P146)))*100 -> 28.41640396 | Q137: % | AE137: 4 | AF137: 3.102666667 | AY137: 3 | AZ137: 3.067
A138: entalpie s.v. | C138: hsv5 | D138: =Konstanty!$F$2*D134 -> 34340 | E138: J/kg | M138: entalpie s.v. | O138: hsv5 | P138: =Konstanty!$F$2*P134 -> 34340 | Q138: J/kg | AE138: 5 | AF138: 3.138333333 | AY138: 4 | AZ138: 3.102666667
A139: entalpie v.p. | C139: hvp5 | D139: =D146*(Konstanty!$F$3*D134+Konstanty!$F$4) -> 22806.16609 | E139: J/kg | M139: entalpie v.p. | O139: hvp5 | P139: =P146*(Konstanty!$F$3*P134+Konstanty!$F$4) -> 24585.37053 | Q139: J/kg | AE139: 6 | AF139: 3.174 | AY139: 5 | AZ139: 3.138333333
A140: entalpie | C140: h5 | D140: =D138+D139 -> 57146.16609 | E140: J/kg | M140: entalpie | O140: h5 | P140: =P138+P139 -> 58925.37053 | Q140: J/kg | AE140: 7 | AF140: 3.209666667 | AY140: 6 | AZ140: 3.174
D141: =D140/1000 -> 57.14616609 | E141: kJ/kg | P141: =P140/1000 -> 58.92537053 | Q141: kJ/kg | AE141: 8 | AF141: 3.245333333 | AY141: 7 | AZ141: 3.209666667
A142: tlak nasycené vodní páry | C142: p''vp5 | D142: =Konstanty!$F$12^((1500.3+23.5*D134)/(234+D134)) -> 5321.325002 | E142: Pa | M142: tlak nasycené vodní páry | O142: p''vp5 | P142: =Konstanty!$F$12^((1500.3+23.5*P134)/(234+P134)) -> 5321.325002 | Q142: Pa | AE142: 9 | AF142: 3.281 | AY142: 8 | AZ142: 3.245333333
A143: tlak vodní páry | C143: pvp5 | D143: =(D137/100)*D142 -> 1402.698853 | E143: Pa | M143: tlak vodní páry | O143: pvp5 | P143: =(P137/100)*P142 -> 1512.129209 | Q143: Pa | AE143: 10 | AF143: 3.316666667 | AY143: 9 | AZ143: 3.281
A144: tlak suchého vzduchu | C144: psv5 | D144: =D148*Konstanty!$F$5*(D134+273.15) -> 97958.08466 | E144: Pa | M144: tlak suchého vzduchu | O144: psv5 | P144: =Konstanty!$F$8*Konstanty!$F$5*(P134+273.15) -> 108009.5893 | Q144: Pa | AE144: 11 | AF144: 3.352333333 | AY144: 10 | AZ144: 3.316666667
A145: tlak směsi vlhkého vzduchu | C145: p5 | D145: =D143+D144 -> 99360.78351 | E145: Pa | M145: tlak směsi vlhkého vzduchu | O145: p5 | P145: =P143+P144 -> 109521.7185 | Q145: Pa | AE145: 12 | AF145: 3.388 | AY145: 11 | AZ145: 3.352333333
A146: měrná vlhkost vzduchu | C146: x5 | D146: =D117 -> 0.008899758868 | E146: kg/kg s.v. | M146: měrná vlhkost vzduchu | O146: x5 | P146: =P117 -> 0.009594066298 | Q146: kg/kg s.v. | AE146: 13 | AF146: 3.423666667 | AY146: 12 | AZ146: 3.388
D147: =D146*1000 -> 8.899758868 | E147: g/kg s.v. | P147: =P146*1000 -> 9.594066298 | Q147: g/kg s.v. | AE147: 14 | AF147: =$AQ$111*AE147+$AJ$110 -> 3.459333333 | AY147: 13 | AZ147: 3.423666667
A148: hustota vzduchu při t | D148: =VLOOKUP(D134,Tabulky!$V$15:$AF$75,9,0) -> 1.111 | E148: kg/m3 | M148: hustota vzduchu při t | P148: =VLOOKUP(P134,Tabulky!$V$15:$AF$75,9,0) -> 1.111 | Q148: kg/m3 | AE148: 15 | AF148: 3.495 | AY148: 14 | AZ148: =$AQ$111*AY148+$AJ$110 -> 3.459333333
AE149: 16 | AF149: 3.530666667 | AY149: 15 | AZ149: 3.495
A150: navlhčení z prostoru | M150: navlhčení z prostoru | AE150: 17 | AF150: 3.566333333 | AY150: 16 | AZ150: 3.530666667
A151: dx=n.100/V.ρ | C151: dx | D151: =(D33*100)/D57*Konstanty!$F$8 -> 0.5924339684 | E151: g/kg s.v | M151: dx=n.100/V.ρ | O151: dx | P151: =(P30*100)/P57*Konstanty!$F$8 -> 0.05372030298 | Q151: g/kg s.v | AE151: 18 | AF151: 3.602 | AY151: 17 | AZ151: 3.566333333
AE152: 19 | AF152: 3.637666667 | AY152: 18 | AZ152: 3.602
AE153: 20 | AF153: 3.673333333 | AY153: 19 | AZ153: 3.637666667
AE154: 21 | AF154: 3.709 | AY154: 20 | AZ154: 3.673333333
AE155: 22 | AF155: 3.744666667 | AY155: 21 | AZ155: 3.709
AE156: 23 | AF156: 3.780333333 | AY156: 22 | AZ156: 3.744666667
AE157: 24 | AF157: 3.816 | AY157: 23 | AZ157: 3.780333333
AE158: 25 | AF158: 3.851666667 | AY158: 24 | AZ158: 3.816
AE159: 26 | AF159: 3.887333333 | AY159: 25 | AZ159: 3.851666667
AE160: 27 | AF160: 3.923 | AY160: 26 | AZ160: 3.887333333
AE161: 28 | AF161: 3.958666667 | AY161: 27 | AZ161: 3.923
AE162: 29 | AF162: 3.994333333 | AY162: 28 | AZ162: 3.958666667
AE163: 30 | AF163: 4.03 | AY163: 29 | AZ163: 3.994333333
AE164: 31 | AF164: 4.065666667 | AJ164: teplota | AK164: -18 | AL164: -15 | AM164: -10 | AN164: -5 | AO164: 0 | AP164: 5 | AQ164: 10 | AR164: 15 | AS164: 20 | AT164: 25 | AU164: 30 | AY164: 30 | AZ164: 4.03
AE165: 32 | AF165: 4.101333333 | AJ165: COP | AK165: 2.1 | AL165: 2.33 | AM165: 2.57 | AN165: 2.8 | AO165: 2.96 | AP165: 3.17 | AQ165: 3.32 | AR165: 3.4 | AS165: 3.67 | AT165: 3.85 | AU165: 4.03
AE166: 33 | AF166: 4.137
AE167: 34 | AF167: 4.172666667
AE168: 35 | AF168: 4.208333333
AE174: dt vyp
AE175: 2
AE176: 3
AE177: 4
AE178: 5
AE179: 6 | AF179: =D124 -> 52038.01392
AE180: 7
AE181: 8
AE182: 9
AE183: 10
AE184: 11
AE185: 12
AE186: 13
AE187: 14
AE188: 15

Sheet V2
B1: Legenda | E1: hodnotu nutno zadat | J1: prevzato z první
E2: hodnota se vypočítává
E3: pomocná hodnota
A4: Parametry vzduchu | G4: interier klidovy rezim | U4: Produkce tepla od | X4: ni | Y4: =0.85*Y5+0.75*Y6+Y7 -> 60.5 | AB4: Qi=ni.6,2*(36-ti)
A5: Interiér | B5: ti | G5: Interiér | H5: ti | M5: Exteriér | N5: te | P5: minimální teplota -20 | U5: lidí | V5: =Y4*6.2*(36-Teplota) -> 1500.4 | W5: W | X5: nz | Y5: =Vypocet!Y5 -> 30 | Z5: zeny | AB5: ni=0,85nz+0,75nd+nm
A6: teplota | C6: ti | D6: =[0]!Teplota -> 32 | E6: °C | G6: teplota | I6: ti | J6: =Vypocet!J6 -> 24 | K6: °C | M6: teplota | O6: te | P6: =CEILING(Vypocet!P6,5) -> -10 | Q6: °C | X6: nd | Y6: =Vypocet!Y6 -> 20 | Z6: deti | AB6: nz - zeny, nd deti, nm muzi
A7: relativní vlhkost | C7: rhi | D7: =Vypocet!D7 -> 60 | E7: % | G7: relativní vlhkost | I7: rhi | J7: =Vypocet!J7 -> 55 | K7: % | M7: relativní vlhkost | O7: rhe | P7: =(93*te-3153.5)/(te-39.17) -> 83.04860687 | Q7: % | X7: nm | Y7: =Vypocet!Y7 -> 20 | Z7: muzi
A8: entalpie s.v. | C8: hsvi | D8: =Konstanty!$F$2*Teplota -> 32320 | E8: J/kg | G8: entalpie s.v. | I8: hsvi | J8: =Konstanty!$F$2*J6 -> 24240 | K8: J/kg | M8: entalpie s.v. | O8: hsve | P8: =Konstanty!$F$2*te -> -10100 | Q8: J/kg
A9: entalpie v.p. | C9: hvpi | D9: =$D$16*(Konstanty!$F$3*Teplota+Konstanty!$F$4) -> 46343.0627 | E9: J/kg | G9: entalpie v.p. | I9: hvpi | J9: =$D$16*(Konstanty!$F$3*J6+Konstanty!$F$4) -> 46076.47346 | K9: J/kg | M9: entalpie v.p. | O9: hvpe | P9: =P16*(Konstanty!F3*P6+Konstanty!F4) -> 3714.764227 | Q9: J/kg | U9: Odpar z povrchů
A10: entalpie | C10: hi | D10: =D8+D9 -> 78663.0627 | E10: J/kg | G10: entalpie | I10: hi | J10: =J8+J9 -> 70316.47346 | K10: J/kg | M10: entalpie | O10: he | P10: =IF(P8<0,P9-P8,P8+P9) -> 13814.76423 | Q10: J/kg | AB10: (7+3,5*w)*S*(xp´´-x).10-3
D11: =D10/1000 -> 78.6630627 | E11: kJ/kg | J11: =J10/1000 -> 70.31647346 | K11: kJ/kg | P11: =P10/1000 -> 13.81476423 | Q11: kJ/kg | AB11: w stredni rychlost vzduchu
A12: tlak nasycené vodní páry | C12: p''vpi | D12: =Konstanty!$F$12^((1500.3+23.5*D6)/(234+D6)) -> 4756.622959 | E12: Pa | G12: tlak nasycené vodní páry | I12: p''vpi | J12: =Konstanty!$F$12^((1500.3+23.5*J6)/(234+J6)) -> 2984.426233 | K12: Pa | M12: tlak nasycené vodní páry | O12: p''vpe | P12: =Konstanty!$F$12^((1500.3+23.5*P6)/(234+P6)) -> 283.9109732 | Q12: Pa | S12: =2.718^(28.926-(6148/(273.15+te))) -> 260.4269297 | AB12: xp´´-merna vlhkost nasyceneho vzduchu
A13: tlak vodní páry | C13: pvpi | D13: =(D7/100)*D12 -> 2853.973775 | E13: Pa | G13: tlak vodní páry | I13: pvpi | J13: =(J7/100)*J12 -> 1641.434428 | K13: Pa | M13: tlak vodní páry | O13: pvpe | P13: =(P7/100)*P12 -> 235.784108 | Q13: Pa | AB13: x - merna vlhkost vzduchu nad povrchem
A14: tlak suchého vzduchu | C14: psvi | D14: =D18*Konstanty!$F$5*(Teplota+273.15) -> 98021.00865 | E14: Pa | G14: tlak suchého vzduchu | I14: psvi | J14: =J18*Konstanty!$F$5*(Teplota+273.15) -> 100648.9177 | K14: Pa | M14: tlak suchého vzduchu | O14: psve | P14: =P18*Konstanty!F5*(P6+273.15) -> 97975.85379 | Q14: Pa | AB14: S plocha
A15: tlak směsi vlhkého vzduchu | C15: pi | D15: =D13+D14 -> 100874.9824 | E15: Pa | G15: tlak směsi vlhkého vzduchu | I15: pi | J15: =J13+J14 -> 102290.3522 | K15: Pa | M15: tlak směsi vlhkého vzduchu | O15: pe | P15: =P13+P14 -> 98211.6379 | Q15: Pa
A16: měrná vlhkost vzduchu | C16: xi | D16: =(Konstanty!$F$5/Konstanty!$F$6)*(D13/D14) -> 0.01811068229 | E16: kg/kg s.v. | G16: měrná vlhkost vzduchu | I16: xi | J16: =(Konstanty!$F$5/Konstanty!$F$6)*(J13/J14) -> 0.01014421464 | K16: kg/kg s.v. | M16: měrná vlhkost vzduchu | O16: xe | P16: =(Konstanty!F5/Konstanty!F6)*(P13/P14) -> 0.001496923044 | Q16: kg/kg s.v.
D17: =D16*1000 -> 18.11068229 | E17: g/kg s.v. | J17: =J16*1000 -> 10.14421464 | K17: g/kg s.v. | P17: =P16*1000 -> 1.496923044 | Q17: g/kg s.v.
A18: hustota vzduchu při t | D18: =VLOOKUP(Teplota,Tabulky!$V$15:$AF$75,9,0) -> 1.119 | E18: kg/m3 | G18: hustota vzduchu při t | J18: =VLOOKUP(J6,Tabulky!V15:AF75,9,0) -> 1.149 | K18: kg/m3 | M18: hustota vzduchu při t | P18: =VLOOKUP(te,Tabulky!V15:AF75,9,0) -> 1.297 | Q18: kg/m3
A20: Bazén | I20: rozměry bazénu
A21: Teplota vody | C21: tsniz | D21: =Vypocet!D21 -> 2 | E21: °C | F21: snížení teploty vody (dop 2-3°C) | I21: délka bazén | J21: a | K21: =Vypocet!K21 -> 25 | L21: m
A22: tvz-(2-3)°C | C22: tvod | D22: =D6-D21 -> 30 | E22: °C | I22: šířka bazén | J22: b | K22: =Vypocet!K22 -> 12 | L22: m
A24: Mn. odpařené vody
A25: mw=ε*A*(p´´vp-pvp) | C25: mw | D25: =D28*$D$29*($D$12/100-$D$13/100) -> 114158.951 | E25: g/h
D26: =D25/1000 -> 114.158951 | E26: kg/h | I26: budova
A27: typ bazenu | D27: =Vypocet!AH47 -> bazény - normální provoz | I27: délka | J27: a | K27: =Vypocet!K27 -> 40 | L27: m
A28: mnozstvi odp vody | D28: =VLOOKUP(D27,Tab_souc_odparu_bazen,7,0) -> 20 | H28: [g/(hPa.m2.h)] | I28: šířka | J28: b | K28: =Vypocet!K28 -> 15 | L28: m
A29: plocha bazénu | C29: A | D29: =K21*K22 -> 300 | E29: m2 | I29: výška | J29: v | K29: =Vypocet!K29 -> 7 | L29: m | M29: Produkce vlhkosti osobami - klidový režim
A30: Objem haly | C30: V | D30: =K27*K28*K29 -> 4200 | E30: m3 | M30: počet osob v bazénu | O30: nos | P30: =Vypocet!P30 -> 2
M31: množství vlhkosti | O31: mos | P31: =P30*100 -> 200 | Q31: g/h
A32: Produkce vlhkosti osobami - v provozu | P32: =P31/1000 -> 0.2 | Q32: kg/h | AE32: Výkon na kondenzátoru | AI32: Qk | AJ32: =AH69 -> 36473.52298 | AK32: W
A33: počet osob v bazénu | C33: nos | D33: =Vypocet!D33 -> 60 | E33: počet | G33: Produkce vlhkosti člověkem | P33: =P31/3600 -> 0.05555555556 | Q33: g/s | AJ33: =AH70 -> 36.47352298 | AK33: kW
A34: množství vlhkosti | C34: mos | D34: =D33*H35 -> 6300 | E34: g/h | G34: =Vypocet!AH50 -> člověk při středně těžké práci | AE34: Teplota požadovaná v interiéru | AI34: ti | AJ34: =Teplota -> 32 | AK34: °C
D35: =D34/1000 -> 6.3 | E35: kg/h | G35: =VLOOKUP(G34,Tabulky!W146:Z148,4,0) -> 60-150 | H35: =IF(G35="60-150",105,IF(G35="30-60",45,225)) -> 105 | I35: g/h | M35: Produkce vlhkosti - klidový režim | AY35: Výkon na kondenzátoru | BC35: Qk | BD35: =BB70 -> 56763.6928 | BE35: W
D36: =D34/3600 -> 1.75 | E36: g/s | G36: rozmezí | H36: průměr | L36: množství odpařené vody | O36: mw | P36: =Tabulky!$G$4*$D$29*($D$12/100-$D$13/100) -> 28539.73775 | Q36: g/h | BD36: =BB71 -> 56.7636928 | BE36: kW
A37: celkové množství odpařené vody | D37: =(D25+D34)*(I37/100+1) -> 126481.8986 | E37: g/h | H37: korekce | I37: =Vypocet!I37 -> 5 | J37: % | M37: celkové množství odpařené vody | P37: =(P36+P31)*(I37/100+1) -> 30176.72464 | Q37: g/h | AY37: Teplota požadovaná v interiéru | BC37: ti | BD37: =J6 -> 24 | BE37: °C
A38: Dimenzování průtoku vzduchu bazénové větrací jednotky pro zátěž | M38: Dimenzování průtoku vzduchu bazénové větrací jednotky pro klidový režim
A39: z množství odpařené vody | M39: z množství odpařené vody
A40: požadovaná vlhkost přiváděná | C40: xpoz | D40: =Vypocet!D40 -> 9 | E40: g/kg | G40: doporučená hodnota 8-10 g/kg | M40: požadovaná vlhkost přiváděná | O40: xpoz | P40: =Vypocet!P40 -> 9 | Q40: g/kg | S40: doporučená hodnota 8-10 g/kg
C41: V1 | D41: =(D37)/(D18*(D17-D40)) -> 12406.44594 | E41: m3/h | I41: =D147 -> 9 | J41: g/kg s.v. | O41: V1 | P41: =(P36+P31)/(Konstanty!$F$8*(J17-5)) -> 4560.659311 | Q41: m3/h
A42: z objemu haly | M42: z objemu haly
A43: výměna vzduchu | C43: n | D43: =Vypocet!D43 -> 1 | E43: 1/h | M43: výměna vzduchu | O43: n | P43: =Vypocet!P43 -> 1 | Q43: 1/h
A44: V=n*VH | C44: V2 | D44: =D30*D43 -> 4200 | E44: m3/h | M44: V=n*VH | O44: V2 | P44: =D30*P43 -> 4200 | Q44: m3/h
A45: z tepelných zisků
B46: tepelné ztráty | C46: Qzt | D46: =Vypocet!D46 -> 7 | E46: kW | H46: teplotní spád výústky | I46: dt | J46: =Vypocet!J46 -> 8 | K46: °C
B47: tepelné zisky | C47: Qzisk | D47: =Vypocet!D47 -> 16 | E47: kW
B48: Množství vzduchu | D48: =((D47-D46)/J46*Konstanty!$F$2*Konstanty!$F$8) -> 1391.90625 | E48: m3/h
A50: potřeba vzduchu pro osoby | W50: te | X50: teplota exteriérového vzduchu
C51: V2 | D51: =D33*D52 -> 3000 | W51: Qpředehřev | X51: Výkon pro předehřátí vzduchu
A52: množství čerstvého vzduchu/osoba | D52: =Vypocet!D52 -> 50 | E52: m3/h/os | G52: doporučená hodnota při zátěži (min hodnota 25m3/h) | W52: Qdohřátí | X52: Výkon spotřebovaný na dohřátí vzduchu na požadovanou úroveň
A54: Potřeba čerstvého vzduchu | D54: =IF(MAX(D41,D44,D48)>D51,"Ne","Ano") -> Ne | G54: nepočítá s tím dál samo! | AE54: Teplo odevzdané na výparníku | AK54: Množství kondenzátu
A55: Množství čerstvého vzduchu | D55: =IF(D54="ano",D51-MAX(D41,D44,D48),0) -> 0 | E55: m3/h | G55: pouze informativní charakter, množství V čerst rozhodne projektant | AE55: Qv=V*ρ*(hi-h3) | AG55: Qv | AH55: =D81 -> 27580.43383 | AI55: W | AK55: mkond = V*ρ*(xi-x3) | AM55: mkond | AN55: =IF(D58*D18*(D16-D77)<0,0,D58*D18*(D16-D77)) -> 0.006074431789 | AO55: kg/s | AY55: Teplo odevzdané na výparníku | BE55: Množství kondenzátu
AH56: =AH55/1000 -> 27.58043383 | AI56: kW | AN56: =AN55*1000 -> 6.074431789 | AO56: g/s | AY56: Qv=V*ρ*(hi-h3) | BA56: Qv | BB56: =P81 -> 47003.77313 | BC56: W | BE56: mkond = V*ρ*(xi-x3) | BG56: mkond | BH56: =IF(P58*J18*(J16-P77)<0,0,P58*J18*(J16-P77)) -> 0.002183415645 | BI56: kg/s
A57: průtok vzduchu | C57: V | D57: =MAX(D41,D44,D48) -> 12406.44594 | E57: m3/h | M57: průtok vzduchu | O57: V | P57: =MAX(P41,P44) -> 4560.659311 | Q57: m3/h | AN57: =AN55*3600 -> 21.86795444 | AO57: kg/h | BB57: =BB56/1000 -> 47.00377313 | BC57: kW | BH57: =BH56*1000 -> 2.183415645 | BI57: g/s
C58: V | D58: =D57/3600 -> 3.446234982 | E58: m3/s | O58: V | P58: =P57/3600 -> 1.266849809 | Q58: m3/s | AE58: Tepelné čerpadlo (TČ) | AI58: typ TČ | BH58: =BH56*3600 -> 7.860296323 | BI58: kg/h
AE59: Topný faktor TČ | AG59: COP | AH59: =VLOOKUP(Teplota,'V2'!AE83:AF136,2,0) -> 4.101333333 | AI59: Alfa S Duo | AY59: Tepelné čerpadlo (TČ) | BC59: typ TČ
A60: množství odebrané měrné vlh | C60: Δx | D60: 1.575181805 | E60: g/kg s.v | G60: vstupní měrná vlhkost do int | I60: xvyst | J60: =D147 -> 9 | K60: g/kg s.v. | AY60: Topný faktor TČ | BA60: COP | BB60: =VLOOKUP(J6,'V2'!AY84:AZ132,2,0) -> 3.816 | BC60: Alfa S Duo
A61: teplota chladiče | C61: tch | D61: =Vypocet!D61 -> 9 | E61: °C | AE61: Tepelná bilance TČ
A62: relativní vlhkost | C62: rhch | D62: =Vypocet!D62 -> 100 | E62: % | M62: množství odebrané měrné vlh | O62: Δx | P62: =Vypocet!P60 -> 1.5 | Q62: g/kg s.v. | AE62: Qk=Pel+Qv | AY62: Tepelná bilance TČ
M63: teplota chladiče | O63: tch | P63: =Vypocet!P61 -> 9 | Q63: °C | AE63: εt = COP | AF63: εt = Qv/Pel | AY63: Qk=Pel+Qv
M64: relativní vlhkost | O64: rhch | P64: =Vypocet!P62 -> 100 | Q64: % | AE64: Pel=Qk/(1+Et) | AY64: εt = COP | AZ64: εt = Qv/Pel
X65: Parametry chladiče | AE65: Výkon kompresoru | AG65: Pet | AH65: =AH55/(AH59-1) -> 8893.089153 | AI65: W | AY65: Pel=Qk/(1+Et)
A66: t3 | B66: parametry vyduchu za vyparnikem | M66: t3 | N66: parametry vyduchu za vyparnikem | X66: teplota | Z66: ti | AA66: =tch -> 9 | AB66: °C | AH66: =AH65/1000 -> 8.893089153 | AI66: kW | AY66: Výkon kompresoru | BA66: Pet | BB66: =BB56/(BB60+1) -> 9759.91967 | BC66: W
A67: teplota | C67: tvyp | D67: =W87 -> 29 | E67: °C | G67: =tvyp-te -> 39 | H67: tvyp-te | M67: teplota | O67: tvyp | P67: =W112 -> 16 | Q67: °C | X67: relativní vlhkost | Z67: rhi | AA67: =D62 -> 100 | AB67: % | AE67: Prikon kompresoru | AH67: =AH66/AH59 -> 2.168340983 | AI67: kW | BB67: =BB66/1000 -> 9.75991967 | BC67: kW
A68: relativní vlhkost | C68: rh3 | D68: =IF((D74/D73)*100>100,100,(D74/D73)*100) -> 65.02433945 | E68: % | M68: relativní vlhkost | O68: rh3 | P68: =IF((P74/P73)*100>100,100,(P74/P73)*100) -> 74.95783123 | Q68: % | X68: entalpie s.v. | Z68: hsvi | AA68: =Konstanty!$F$2*AA66 -> 9090 | AB68: J/kg | AE68: Teplo na kondenzátoru
A69: entalpie s.v. | C69: h3 | D69: =Konstanty!$F$2*D67 -> 29290 | E69: J/kg | M69: entalpie s.v. | O69: h3 | P69: =Konstanty!$F$2*P67 -> 16160 | Q69: J/kg | X69: entalpie v.p. | Z69: hvpi | AA69: =$AA$76*(Konstanty!$F$3*AA66+Konstanty!$F$4) -> 18311.90427 | AB69: J/kg | AE69: Výkon na kondenzátoru | AG69: Qk | AH69: =AH65+AH55 -> 36473.52298 | AI69: W | AY69: Teplo na kondenzátoru
A70: entalpie v.p. | C70: h3 | D70: =D77*(Konstanty!$F$3*D67+Konstanty!$F$4) -> 42221.08552 | E70: J/kg | M70: entalpie v.p. | O70: h3 | P70: =P77*(Konstanty!$F$3*P67+Konstanty!$F$4) -> 21865.02229 | Q70: J/kg | X70: entalpie | Z70: hi | AA70: =AA68+AA69 -> 27401.90427 | AB70: J/kg | AH70: =AH69/1000 -> 36.47352298 | AI70: kW | AY70: Výkon na kondenzátoru | BA70: Qk | BB70: =BB66+BB56 -> 56763.6928 | BC70: W
A71: entalpie | C71: h3 | D71: =D69+D70 -> 71511.08552 | E71: J/kg | M71: entalpie | O71: h3 | P71: =P69+P70 -> 38025.02229 | Q71: J/kg | AA71: =AA70/1000 -> 27.40190427 | AB71: kJ/kg | BB71: =BB70/1000 -> 56.7636928 | BC71: kW
D72: =D71/1000 -> 71.51108552 | E72: kJ/kg | P72: =P71/1000 -> 38.02502229 | Q72: kJ/kg | X72: tlak nasycené vodní páry | Z72: p''vpi | AA72: =Konstanty!$F$12^((1500.3+23.5*AA66)/(234+AA66)) -> 1146.47173 | AB72: Pa
A73: tlak nasycené vodní páry | C73: p''vp3 | D73: =Konstanty!$F$12^((1500.3+23.5*D67)/(234+D67)) -> 4007.077656 | E73: Pa | M73: tlak nasycené vodní páry | O73: p''vp3 | P73: =Konstanty!$F$12^((1500.3+23.5*P67)/(234+P67)) -> 1817.468722 | Q73: Pa | X73: tlak vodní páry | Z73: pvpi | AA73: =(AA67/100)*AA72 -> 1146.47173 | AB73: Pa | AE73: Graf topneho faktoru | AH73: TnG Air 13, vzduch/voda
A74: tlak vodní páry | C74: pvp3 | D74: =(D77*D75)/0.622 -> 2605.575777 | E74: Pa | G74: =((G77*D75)/(0.622+G77))/((0.622-G77)/(0.622)) -> 2856.205972 | H74: přepočet tlaku z x | M74: tlak vodní páry | O74: pvp3 | P74: =(P77*P75)/0.622 -> 1362.335137 | Q74: Pa | S74: =((S77*P75)/(0.622+S77))/((0.622-S77)/(0.622)) -> 1599.161688 | T74: přepočet tlaku z x | X74: tlak suchého vzduchu | Z74: psvi | AA74: =AA78*Konstanty!$F$5*(AA66+273.15) -> 98003.39739 | AB74: Pa | AY74: Graf topneho faktoru | BB74: TnG Air 13, vzduch/voda
A75: tlak suchého vzduchu | C75: psv3 | D75: =D79*Konstanty!$F$5*(D67+273.15) -> 98011.43513 | E75: Pa | M75: tlak suchého vzduchu | O75: psv3 | P75: =P79*Konstanty!$F$5*(P67+273.15) -> 98027.69719 | Q75: Pa | X75: tlak směsi vlhkého vzduchu | Z75: pi | AA75: =AA73+AA74 -> 99149.86912 | AB75: Pa | AE75: =Vypocet!AE107 -> teplota | AF75: =Vypocet!AF107 -> -18 | AG75: =Vypocet!AG107 -> -15 | AH75: =Vypocet!AH107 -> -10 | AI75: =Vypocet!AI107 -> -5 | AJ75: =Vypocet!AJ107 -> 0 | AK75: =Vypocet!AK107 -> 5 | AL75: =Vypocet!AL107 -> 10 | AM75: =Vypocet!AM107 -> 15
A76: tlak směsi vlhkého vzduchu | C76: p3 | D76: =D74+D75 -> 100617.0109 | E76: Pa | M76: tlak směsi vlhkého vzduchu | O76: p3 | P76: =P74+P75 -> 99390.03233 | Q76: Pa | X76: měrná vlhkost vzduchu | Z76: xi | AA76: =(Konstanty!$F$5/Konstanty!$F$6)*(AA73/AA74) -> 0.007276561764 | AB76: kg/kg s.v. | AE76: =Vypocet!AE108 -> vykon | AF76: =Vypocet!AF108 -> 4.7 | AG76: =Vypocet!AG108 -> 5.75 | AH76: =Vypocet!AH108 -> 7 | AI76: =Vypocet!AI108 -> 8.24 | AJ76: =Vypocet!AJ108 -> 9.46 | AK76: =Vypocet!AK108 -> 10.69 | AL76: =Vypocet!AL108 -> 11.8 | AM76: =Vypocet!AM108 -> 13.1 | AY76: =Vypocet!AY108 -> teplota | AZ76: =Vypocet!AZ108 -> -18 | BA76: =Vypocet!BA108 -> -15 | BB76: =Vypocet!BB108 -> -10 | BC76: =Vypocet!BC108 -> -5 | BD76: =Vypocet!BD108 -> 0 | BE76: =Vypocet!BE108 -> 5 | BF76: =Vypocet!BF108 -> 10 | BG76: =Vypocet!BG108 -> 15
A77: měrná vlhkost vzduchu | C77: x3 | D77: =D16-deltaT/1000 -> 0.01653550049 | E77: kg/kg s.v. | G77: =IF(tvyp<D82,0,D16) -> 0.01811068229 | H77: vezme x z Ti když tvyp<rosny bod | M77: měrná vlhkost vzduchu | O77: x3 | P77: =J16-P62/1000 -> 0.008644214643 | Q77: kg/kg s.v. | S77: =IF(tvyp<P82,0,J16) -> 0.01014421464 | T77: vezme x z Ti když tvyp<rosny bod | AA77: =AA76*1000 -> 7.276561764 | AB77: g/kg s.v. | AE77: =Vypocet!AE109 -> el prikon | AF77: =Vypocet!AF109 -> 2.24 | AG77: =Vypocet!AG109 -> 2.47 | AH77: =Vypocet!AH109 -> 2.72 | AI77: =Vypocet!AI109 -> 2.94 | AJ77: =Vypocet!AJ109 -> 3.2 | AK77: =Vypocet!AK109 -> 3.37 | AL77: =Vypocet!AL109 -> 3.55 | AM77: =Vypocet!AM109 -> 3.85 | AY77: =Vypocet!AY109 -> vykon | AZ77: =Vypocet!AZ109 -> 4.7 | BA77: =Vypocet!BA109 -> 5.75 | BB77: =Vypocet!BB109 -> 7 | BC77: =Vypocet!BC109 -> 8.24 | BD77: =Vypocet!BD109 -> 9.46 | BE77: =Vypocet!BE109 -> 10.69 | BF77: =Vypocet!BF109 -> 11.8 | BG77: =Vypocet!BG109 -> 13.1
D78: =D77*1000 -> 16.53550049 | E78: g/kg s.v. | P78: =P77*1000 -> 8.644214643 | Q78: g/kg s.v. | X78: hustota vzduchu při t | AA78: =VLOOKUP(AA66,Tabulky!$V$15:$AF$75,9,0) -> 1.21 | AB78: kg/m3 | AE78: =Vypocet!AE110 -> COP | AF78: =Vypocet!AF110 -> 2.1 | AG78: =Vypocet!AG110 -> 2.33 | AH78: =Vypocet!AH110 -> 2.57 | AI78: =Vypocet!AI110 -> 2.8 | AJ78: =Vypocet!AJ110 -> 2.96 | AK78: =Vypocet!AK110 -> 3.17 | AL78: =Vypocet!AL110 -> 3.32 | AM78: =Vypocet!AM110 -> 3.4 | AY78: =Vypocet!AY110 -> el prikon | AZ78: =Vypocet!AZ110 -> 2.24 | BA78: =Vypocet!BA110 -> 2.47 | BB78: =Vypocet!BB110 -> 2.72 | BC78: =Vypocet!BC110 -> 2.94 | BD78: =Vypocet!BD110 -> 3.2 | BE78: =Vypocet!BE110 -> 3.37 | BF78: =Vypocet!BF110 -> 3.55 | BG78: =Vypocet!BG110 -> 3.85
A79: hustota vzduchu při t | D79: =VLOOKUP(tvyp,Tabulky!$V$15:$AF$75,9,0) -> 1.13 | E79: kg/m3 | M79: hustota vzduchu při t | P79: =VLOOKUP(P67,Tabulky!$V$15:$AF$75,9,0) -> 1.181 | Q79: kg/m3 | AA79: =1.395-Teplota*0.004414 -> 1.253752 | AH79: =AH78-AG78 -> 0.24 | AI79: 0.23 | AJ79: 0.16 | AK79: 0.21 | AL79: 0.15 | AM79: 0.08 | AN79: průměr | AO79: =AVERAGE(AG79:AM79) -> 0.1783333333 | AP79: prumer/1 | AQ79: =AO79/5 -> 0.03566666667 | AY79: =Vypocet!AY111 -> COP | AZ79: =Vypocet!AZ111 -> 2.1 | BA79: =Vypocet!BA111 -> 2.33 | BB79: =Vypocet!BB111 -> 2.57 | BC79: =Vypocet!BC111 -> 2.8 | BD79: =Vypocet!BD111 -> 2.96 | BE79: =Vypocet!BE111 -> 3.17 | BF79: =Vypocet!BF111 -> 3.32 | BG79: =Vypocet!BG111 -> 3.4
AF80: popis závislosti | AH80: y=0,18571x+2,96 | BB80: =BB79-BA79 -> 0.24 | BC80: 0.23 | BD80: 0.16 | BE80: 0.21 | BF80: 0.15 | BG80: 0.08 | BH80: průměr | BI80: =AVERAGE(BA80:BG80) -> 0.1783333333 | BJ80: prumer/1 | BK80: =BI80/5 -> 0.03566666667
A81: teplo získané na výparníku | C81: Qv | D81: =D58*D18*(D10-D71) -> 27580.43383 | E81: W | M81: teplo získané na výparníku | O81: Qv | P81: =P58*J18*(J10-P71) -> 47003.77313 | Q81: W | U81: A | V81: Ti | W81: =Teplota -> 32 | Y81: B | Z81: tch | AA81: =AA66 -> 9 | AZ81: popis závislosti | BB81: y=0,18571x+2,96
B82: rosný bod | D82: =(243.5*LN(($D$7/100)*Konstanty!$F$12^((17.67*Teplota)/(243.5+Teplota))))/(17.67-(LN(($D$7/100)*Konstanty!$F$12^((17.67*Teplota)/(243.5+Teplota))))) -> 23.27425187 | E82: °C | N82: rosný bod | P82: =(243.5*LN((J7/100)*Konstanty!$F$12^((17.67*J6)/(243.5+J6))))/(17.67-(LN((J7/100)*Konstanty!$F$12^((17.67*J6)/(243.5+J6))))) -> 14.41381795 | Q82: °C | V82: xi | W82: =D16 -> 0.01811068229 | Z82: xch | AA82: =AA76 -> 0.007276561764 | AE82: teplota | AF82: COP | AH82: -18 | AI82: 2.1
V83: xi | W83: =D17 -> 18.11068229 | Z83: xch | AA83: =AA77 -> 7.276561764 | AE83: -18 | AF83: =$AQ$79*AE83+$AJ$78 -> 2.318 | AH83: -15 | AI83: 2.33 | AY83: teplota | AZ83: COP
A84: Distribuce tepla v závislosti na externí teplotě | AE84: -17 | AF84: 2.353666667 | AH84: -10 | AI84: 2.57 | AY84: -18 | AZ84: =$AQ$79*AY84+$AJ$78 -> 2.318
A85: teplota předehřevu te | C85: tpřed | D85: =Vypocet!D85 -> 5 | E85: °C | V85: dx | W85: =deltaT -> 1.575181805 | Y85: výpočet teplochy při teplote chladice | AE85: -16 | AF85: 2.389333333 | AH85: -5 | AI85: 2.8 | AY85: -17 | AZ85: 2.353666667
A86: množství čerst vzduchu | D86: =Vypocet!D86 -> 30 | E86: % | V86: th | W86: =((W81-AA81)*W83+(AA83-W83)*W81-(W81-AA81)*(W83-W85))/(AA83-W83) -> 28.65601085 | Y86: počítá s přímkou ti - tch a na ní počítá bod | AE86: -15 | AF86: 2.425 | AH86: 0 | AI86: 2.96 | AY86: -16 | AZ86: 2.389333333
A87: množství předehřívaného vzd | D87: =D58*(D86/100) -> 1.033870495 | E87: m3/h | W87: =ROUND(W86,0) -> 29 | AE87: -14 | AF87: 2.460666667 | AH87: 5 | AI87: 3.17 | AY87: -15 | AZ87: 2.425
A88: potřeba tepla na předehřev | D88: =IF(D85>te,((D87*P18)/(1+P16))*(D85-te)*P18*Konstanty!$F$2,0) -> 26309.28872 | E88: W | AE88: -13 | AF88: 2.496333333 | AH88: 10 | AI88: 3.32 | AY88: -14 | AZ88: 2.460666667
AE89: -12 | AF89: 2.532 | AH89: 15 | AI89: 3.4 | AY89: -13 | AZ89: 2.496333333
A90: t4 | B90: Předehřev exteriérového vzduchu | M90: t4 | N90: Předehřev exteriérového vzduchu | X90: Parametry chladiče klidovy rezim | AE90: -11 | AF90: 2.567666667 | AY90: -12 | AZ90: 2.532
A91: teplota předehřevu | C91: tpředehřev | D91: =IF($D$85>te,$D$85,te) -> 5 | E91: °C | M91: teplota předehřevu | O91: tpředehřev | P91: =IF($D$85>te,$D$85,te) -> 5 | Q91: °C | X91: teplota | Z91: ti | AA91: =P63 -> 9 | AB91: °C | AE91: -10 | AF91: 2.603333333 | AY91: -11 | AZ91: 2.567666667
C92: rhpředehřev | D92: =((D101*P15)/(D97*(0.622+D101)))*100 -> 27.08771749 | E92: % | O92: rhpředehřev | P92: =((P101*P15)/(P97*(0.622+P101)))*100 -> 27.08771749 | Q92: % | X92: relativní vlhkost | Z92: rhi | AA92: =P64 -> 100 | AB92: % | AE92: -9 | AF92: 2.639 | AY92: -10 | AZ92: 2.603333333
A93: entalpie s.v. | C93: hsv4 | D93: =Konstanty!$F$2*D91 -> 5050 | E93: J/kg | M93: entalpie s.v. | O93: hsv4 | P93: =Konstanty!$F$2*P91 -> 5050 | Q93: J/kg | X93: entalpie s.v. | Z93: hsvi | AA93: =Konstanty!$F$2*AA91 -> 9090 | AB93: J/kg | AE93: -8 | AF93: 2.674666667 | AY93: -9 | AZ93: 2.639
A94: entalpie v.p. | C94: hvp4 | D94: =D101*(Konstanty!$F$3*D91+Konstanty!$F$4) -> 3756.079303 | E94: J/kg | M94: entalpie v.p. | O94: hvp4 | P94: =P101*(Konstanty!$F$3*P91+Konstanty!$F$4) -> 3756.079303 | Q94: J/kg | X94: entalpie v.p. | Z94: hvpi | AA94: =$AA$76*(Konstanty!$F$3*AA91+Konstanty!$F$4) -> 18311.90427 | AB94: J/kg | AE94: -7 | AF94: 2.710333333 | AY94: -8 | AZ94: 2.674666667
A95: entalpie | C95: h4 | D95: =D93+D94 -> 8806.079303 | E95: J/kg | M95: entalpie | O95: h4 | P95: =P93+P94 -> 8806.079303 | Q95: J/kg | X95: entalpie | Z95: hi | AA95: =AA93+AA94 -> 27401.90427 | AB95: J/kg | AE95: -6 | AF95: 2.746 | AY95: -7 | AZ95: 2.710333333
D96: =D95/1000 -> 8.806079303 | E96: kJ/kg | P96: =P95/1000 -> 8.806079303 | Q96: kJ/kg | AA96: =AA95/1000 -> 27.40190427 | AB96: kJ/kg | AE96: -5 | AF96: 2.781666667 | AY96: -6 | AZ96: 2.746
A97: tlak nasycené vodní páry | C97: p''vp4 | D97: =Konstanty!$F$12^((1500.3+23.5*D91)/(234+D91)) -> 870.4737963 | E97: Pa | M97: tlak nasycené vodní páry | O97: p''vp4 | P97: =Konstanty!$F$12^((1500.3+23.5*P91)/(234+P91)) -> 870.4737963 | Q97: Pa | X97: tlak nasycené vodní páry | Z97: p''vpi | AA97: =Konstanty!$F$12^((1500.3+23.5*AA91)/(234+AA91)) -> 1146.47173 | AB97: Pa | AE97: -4 | AF97: 2.817333333 | AY97: -5 | AZ97: 2.781666667
A98: tlak vodní páry | C98: pvp4 | D98: =(D92/100)*D97 -> 235.7914828 | E98: Pa | M98: tlak vodní páry | O98: pvp4 | P98: =(P92/100)*P97 -> 235.7914828 | Q98: Pa | X98: tlak vodní páry | Z98: pvpi | AA98: =(AA92/100)*AA97 -> 1146.47173 | AB98: Pa | AE98: -3 | AF98: 2.853 | AY98: -4 | AZ98: 2.817333333
A99: tlak suchého vzduchu | C99: psv4 | D99: =D103*Konstanty!$F$5*(D91+273.15) -> 97971.40433 | E99: Pa | M99: tlak suchého vzduchu | O99: psv4 | P99: =P103*Konstanty!$F$5*(P91+273.15) -> 97971.40433 | Q99: Pa | X99: tlak suchého vzduchu | Z99: psvi | AA99: =AA103*Konstanty!$F$5*(AA91+273.15) -> 98003.39739 | AB99: Pa | AE99: -2 | AF99: 2.888666667 | AY99: -3 | AZ99: 2.853
A100: tlak směsi vlhkého vzduchu | C100: p4 | D100: =D98+D99 -> 98207.19582 | E100: Pa | M100: tlak směsi vlhkého vzduchu | O100: p4 | P100: =P98+P99 -> 98207.19582 | Q100: Pa | X100: tlak směsi vlhkého vzduchu | Z100: pi | AA100: =AA98+AA99 -> 99149.86912 | AB100: Pa | AE100: -1 | AF100: 2.924333333 | AY100: -2 | AZ100: 2.888666667
A101: měrná vlhkost vzduchu | C101: x4 | D101: =P16 -> 0.001496923044 | E101: kg/kg s.v. | M101: měrná vlhkost vzduchu | O101: x4 | P101: =P16 -> 0.001496923044 | Q101: kg/kg s.v. | X101: měrná vlhkost vzduchu | Z101: xi | AA101: =(Konstanty!$F$5/Konstanty!$F$6)*(AA98/AA99) -> 0.007276561764 | AB101: kg/kg s.v. | AE101: 0 | AF101: 2.96 | AY101: -1 | AZ101: 2.924333333
D102: =D101*1000 -> 1.496923044 | E102: g/kg s.v. | P102: =P101*1000 -> 1.496923044 | Q102: g/kg s.v. | AA102: =AA101*1000 -> 7.276561764 | AB102: g/kg s.v. | AE102: 1 | AF102: 2.995666667 | AY102: 0 | AZ102: 2.96
A103: hustota vzduchu při t | D103: =VLOOKUP(D91,Tabulky!$V$15:$AF$75,9,0) -> 1.227 | E103: kg/m3 | M103: hustota vzduchu při t | P103: =VLOOKUP(P91,Tabulky!$V$15:$AF$75,9,0) -> 1.227 | Q103: kg/m3 | X103: hustota vzduchu při t | AA103: =VLOOKUP(AA91,Tabulky!$V$15:$AF$75,9,0) -> 1.21 | AB103: kg/m3 | AE103: 2 | AF103: 3.031333333 | AY103: 1 | AZ103: 2.995666667
AA104: =1.395-Teplota*0.004414 -> 1.253752 | AE104: 3 | AF104: 3.067 | AY104: 2 | AZ104: 3.031333333
A105: t4' | B105: smíšení vzduchu s exteriérovým | M105: t4' | N105: smíšení vzduchu s exteriérovým | AE105: 4 | AF105: 3.102666667 | AY105: 3 | AZ105: 3.067
A106: Množství čerstvého vzduchu | C106: Včerstv | D106: =IF(D91>tvyp,100,$D$86) -> 30 | E106: % | M106: Množství čerstvého vzduchu | O106: Včerstv | P106: =IF(P91>tvyp,100,$D$86) -> 30 | Q106: % | U106: A | V106: Ti | W106: =J6 -> 24 | Y106: B | Z106: tch | AA106: =AA91 -> 9 | AE106: 5 | AF106: 3.138333333 | AY106: 4 | AZ106: 3.102666667
A107: teplota vzduchu | C107: t4 | D107: =ROUND(((((D106/100)*D58)*D91+((1-(D106/100))*D58)*tvyp)/D58),0) -> 22 | E107: °C | M107: teplota vzduchu | O107: t4 | P107: =ROUND(((((P106/100)*P58)*P91+((1-(P106/100))*P58)*tvyp)/P58),0) -> 22 | Q107: °C | V107: xi | W107: =J16 -> 0.01014421464 | Z107: xch | AA107: =AA101 -> 0.007276561764 | AE107: 6 | AF107: 3.174 | AY107: 5 | AZ107: 3.138333333
A108: relativní vlhkost | C108: rh4 | D108: =(1-(D106/100))*D68+(D106/100)*D92 -> 53.64335286 | E108: % | M108: relativní vlhkost | O108: rh4 | P108: =(1-(P106/100))*P68+(P106/100)*P92 -> 60.59679711 | Q108: % | V108: xi | W108: =J17 -> 10.14421464 | Z108: xch | AA108: =AA102 -> 7.276561764 | AE108: 7 | AF108: 3.209666667 | AY108: 6 | AZ108: 3.174
A109: entalpie s.v. | C109: hsv4 | D109: =Konstanty!$F$2*D107 -> 22220 | E109: J/kg | M109: entalpie s.v. | O109: hsv4 | P109: =Konstanty!$F$2*P107 -> 22220 | Q109: J/kg | AE109: 8 | AF109: 3.245333333 | AY109: 7 | AZ109: 3.209666667
A110: entalpie v.p. | C110: hvp4 | D110: =D117*(Konstanty!$F$3*D107+Konstanty!$F$4) -> 22864.32 | E110: J/kg | M110: entalpie v.p. | O110: hvp4 | P110: =P117*(Konstanty!$F$3*P107+Konstanty!$F$4) -> 25828.07536 | Q110: J/kg | V110: dx | W110: =P62 -> 1.5 | AE110: 9 | AF110: 3.281 | AY110: 8 | AZ110: 3.245333333
A111: entalpie | C111: h4 | D111: =D109+D110 -> 45084.32 | E111: J/kg | M111: entalpie | O111: h4 | P111: =P109+P110 -> 48048.07536 | Q111: J/kg | V111: th | W111: =((W106-AA106)*W108+(AA108-W108)*W106-(W106-AA106)*(W108-W110))/(AA108-W108) -> 16.15386208 | AE111: 10 | AF111: 3.316666667 | AY111: 9 | AZ111: 3.281
D112: =D111/1000 -> 45.08432 | E112: kJ/kg | P112: =P111/1000 -> 48.04807536 | Q112: kJ/kg | W112: =ROUND(W111,0) -> 16 | AE112: 11 | AF112: 3.352333333 | AY112: 10 | AZ112: 3.316666667
A113: tlak nasycené vodní páry | C113: p''vp4 | D113: =Konstanty!$F$12^((1500.3+23.5*D107)/(234+D107)) -> 2644.07912 | E113: Pa | M113: tlak nasycené vodní páry | O113: p''vp4 | P113: =Konstanty!$F$12^((1500.3+23.5*P107)/(234+P107)) -> 2644.07912 | Q113: Pa | AE113: 12 | AF113: 3.388 | AY113: 11 | AZ113: 3.352333333
A114: tlak vodní páry | C114: pvp4 | D114: =(D108/100)*D113 -> 1418.372692 | E114: Pa | M114: tlak vodní páry | O114: pvp4 | P114: =(P108/100)*P113 -> 1602.22726 | Q114: Pa | AE114: 13 | AF114: 3.423666667 | AY114: 12 | AZ114: 3.388
A115: tlak suchého vzduchu | C115: psv4 | D115: =D119*Konstanty!$F$5*(D107+273.15) -> 98028.38614 | E115: Pa | M115: tlak suchého vzduchu | O115: psv4 | P115: =P119*Konstanty!$F$5*(P107+273.15) -> 98028.38614 | Q115: Pa | AE115: 14 | AF115: 3.459333333 | AY115: 13 | AZ115: 3.423666667
A116: tlak směsi vlhkého vzduchu | C116: p4 | D116: =D114+D115 -> 99446.75883 | E116: Pa | M116: tlak směsi vlhkého vzduchu | O116: p4 | P116: =P114+P115 -> 99630.6134 | Q116: Pa | AE116: 15 | AF116: 3.495 | AY116: 14 | AZ116: 3.459333333
A117: měrná vlhkost vzduchu | C117: x4 | D117: =(Konstanty!$F$5/Konstanty!$F$6)*(D114/D115) -> 0.009 | E117: kg/kg s.v. | M117: měrná vlhkost vzduchu | O117: x4 | P117: =(Konstanty!$F$5/Konstanty!$F$6)*(P114/P115) -> 0.01016661236 | Q117: kg/kg s.v. | AE117: 16 | AF117: 3.530666667 | AY117: 15 | AZ117: 3.495
D118: =D117*1000 -> 9 | E118: g/kg s.v. | P118: =P117*1000 -> 10.16661236 | Q118: g/kg s.v. | AE118: 17 | AF118: 3.566333333 | AY118: 16 | AZ118: 3.530666667
A119: hustota vzduchu při t | D119: =VLOOKUP(D107,Tabulky!$V$15:$AF$75,9,0) -> 1.157 | E119: kg/m3 | M119: hustota vzduchu při t | P119: =VLOOKUP(P107,Tabulky!$V$15:$AF$75,9,0) -> 1.157 | Q119: kg/m3 | AE119: 18 | AF119: 3.602 | AY119: 17 | AZ119: 3.566333333
AE120: 19 | AF120: 3.637666667 | AY120: 18 | AZ120: 3.602
A121: množství tepla na kondenzátoru | C121: Qk | D121: =AH69 -> 36473.52298 | E121: W | H121: přepočet mw na msv | I121: =(D58*D119)/(1+D117) -> 3.95172832 | J121: m3/s | M121: množství tepla na kondenzátoru | O121: Qk | P121: =BB70 -> 56763.6928 | Q121: W | AE121: 20 | AF121: 3.673333333 | AY121: 19 | AZ121: 3.637666667
A122: Požadované teplo na dohřev | C122: Qpož | D122: =(D134-D107)*Konstanty!F2*D119*I121+D88 -> 81723.74267 | E122: W | M122: Požadované teplo na dohřev | P122: =(P134-P107)*Konstanty!$F$2*P119*P58 -> 17764.83217 | Q122: W | AE122: 21 | AF122: 3.709 | AY122: 20 | AZ122: 3.673333333
A123: dosažená teplota | C123: t6 | D123: =D121/(D58*D119*Konstanty!$F$2)+D107 -> 31.05686918 | E123: °C | M123: dosažená teplota | O123: t6 | P123: =P121/(P58*P119*Konstanty!$F$2)+P107 -> 60.34341394 | Q123: °C | AE123: 22 | AF123: 3.744666667 | AY123: 21 | AZ123: 3.709
A124: potřeba dohřevu | C124: Qdohř | D124: =IF((D122-D121)>0,D122-D121,0) -> 45250.21969 | E124: W | M124: potřeba dohřevu | O124: Qdohř | P124: =IF((P122-P121)>0,P122-P121,0) -> 0 | Q124: W | AE124: 23 | AF124: 3.780333333 | AY124: 22 | AZ124: 3.744666667
A125: přebytečné teplo | C125: Qpřebyt | D125: =IF((D122-D121)<0,D121-D122,0) -> 0 | E125: W | M125: přebytečné teplo | O125: Qpřebyt | P125: =IF((P122-P121)<0,P121-P122,0) -> 38998.86063 | Q125: W | AE125: 24 | AF125: 3.816 | AY125: 23 | AZ125: 3.780333333
AE126: 25 | AF126: 3.851666667 | AY126: 24 | AZ126: 3.816
AE127: 26 | AF127: 3.887333333 | AY127: 25 | AZ127: 3.851666667
A128: teplota zvýšení do int | C128: tzv | D128: =Vypocet!D128 -> 2 | E128: °C | N128: teplota zvýšení do int | O128: tzv | P128: =Vypocet!P128 -> 2 | Q128: °C | AE128: 27 | AF128: 3.923 | AY128: 26 | AZ128: 3.887333333
A129: teplotní spád kondenzatoru | C129: Δt | D129: =Vypocet!D129 -> 0 | E129: °C | N129: teplotní spád kondenzatoru | O129: Δt | P129: =Vypocet!P129 -> 0 | Q129: °C | AE129: 28 | AF129: 3.958666667 | AY129: 27 | AZ129: 3.923
A130: teplota kondenzatoru | C130: tohř | D130: =Vypocet!D130 -> 0 | E130: °C | N130: teplota kondenzatoru | O130: tohř | P130: =Vypocet!P130 -> 0 | Q130: °C | AE130: 29 | AF130: 3.994333333 | AY130: 28 | AZ130: 3.958666667
A131: relativní vlhkost | C131: rhohř | D131: =Vypocet!D131 -> 0 | E131: % | N131: relativní vlhkost | O131: rhohř | P131: =Vypocet!P131 -> 0 | Q131: % | AE131: 30 | AF131: 4.03 | AY131: 29 | AZ131: 3.994333333
AE132: 31 | AF132: 4.065666667 | AY132: 30 | AZ132: 4.03
A133: t5 | B133: parametry vyduchu za kondenzátorem | M133: t5 | N133: parametry vyduchu za kondenzátorem | AE133: 32 | AF133: 4.101333333
A134: požadovaná teplotateplota do I | C134: t5 | D134: =Teplota+D128 -> 34 | E134: °C | M134: požadovaná teplota do I | O134: t5 | P134: =Teplota+P128 -> 34 | Q134: °C | AE134: 33 | AF134: 4.137
A135: dosažená teplota | C135: tdos | D135: =D123 -> 31.05686918 | E135: °C | M135: dosažená teplota | O135: t6 | P135: =P123 -> 60.34341394 | AE135: 34 | AF135: 4.172666667
AE136: 35 | AF136: 4.208333333
A137: relativní vlhkost | C137: rh5 | D137: =((D146*D116)/(D142*(0.622+D146)))*100 -> 26.65532603 | E137: % | M137: relativní vlhkost | O137: rh5 | P137: =((P146*P116)/(P142*(0.622+P146)))*100 -> 30.1104835 | Q137: %
A138: entalpie s.v. | C138: hsv5 | D138: =Konstanty!$F$2*D134 -> 34340 | E138: J/kg | M138: entalpie s.v. | O138: hsv5 | P138: =Konstanty!$F$2*P134 -> 34340 | Q138: J/kg
A139: entalpie v.p. | C139: hvp5 | D139: =D146*(Konstanty!$F$3*D134+Konstanty!$F$4) -> 23063.04 | E139: J/kg | M139: entalpie v.p. | O139: hvp5 | P139: =P146*(Konstanty!$F$3*P134+Konstanty!$F$4) -> 26052.55416 | Q139: J/kg
A140: entalpie | C140: h5 | D140: =D138+D139 -> 57403.04 | E140: J/kg | M140: entalpie | O140: h5 | P140: =P138+P139 -> 60392.55416 | Q140: J/kg
D141: =D140/1000 -> 57.40304 | E141: kJ/kg | P141: =P140/1000 -> 60.39255416 | Q141: kJ/kg
A142: tlak nasycené vodní páry | C142: p''vp5 | D142: =Konstanty!$F$12^((1500.3+23.5*D134)/(234+D134)) -> 5321.325002 | E142: Pa | M142: tlak nasycené vodní páry | O142: p''vp5 | P142: =Konstanty!$F$12^((1500.3+23.5*P134)/(234+P134)) -> 5321.325002 | Q142: Pa | AE142: dt vyp
A143: tlak vodní páry | C143: pvp5 | D143: =(D137/100)*D142 -> 1418.416529 | E143: Pa | M143: tlak vodní páry | O143: pvp5 | P143: =(P137/100)*P142 -> 1602.276687 | Q143: Pa | AE143: 2
A144: tlak suchého vzduchu | C144: psv5 | D144: =D148*Konstanty!$F$5*(D134+273.15) -> 97958.08466 | E144: Pa | M144: tlak suchého vzduchu | O144: psv5 | P144: =Konstanty!$F$8*Konstanty!$F$5*(P134+273.15) -> 108009.5893 | Q144: Pa | AE144: 3
A145: tlak směsi vlhkého vzduchu | C145: p5 | D145: =D143+D144 -> 99376.50118 | E145: Pa | M145: tlak směsi vlhkého vzduchu | O145: p5 | P145: =P143+P144 -> 109611.866 | Q145: Pa | AE145: 4
A146: měrná vlhkost vzduchu | C146: x5 | D146: =D117 -> 0.009 | E146: kg/kg s.v. | M146: měrná vlhkost vzduchu | O146: x5 | P146: =P117 -> 0.01016661236 | Q146: kg/kg s.v. | AE146: 5
D147: =D146*1000 -> 9 | E147: g/kg s.v. | P147: =P146*1000 -> 10.16661236 | Q147: g/kg s.v. | AE147: 6 | AF147: =D124 -> 45250.21969
A148: hustota vzduchu při t | D148: =VLOOKUP(D134,Tabulky!$V$15:$AF$75,9,0) -> 1.111 | E148: kg/m3 | M148: hustota vzduchu při t | P148: =VLOOKUP(P134,Tabulky!$V$15:$AF$75,9,0) -> 1.111 | Q148: kg/m3 | AE148: 7
AE149: 8
A150: navlhčení z prostoru | M150: navlhčení z prostoru | AE150: 9
A151: dx=n.100/V.ρ | C151: dx | D151: =(D33*100)/D57*Konstanty!$F$8 -> 0.5924339684 | E151: g/kg s.v | M151: dx=n.100/V.ρ | O151: dx | P151: =(P30*100)/P57*Konstanty!$F$8 -> 0.05372030298 | Q151: g/kg s.v | AE151: 10
AE152: 11
A153: NUTNÉ vzduch privlhčit | M153: NUTNÉ vzduch privlhčit | AE153: 12
AE154: 13
AE155: 14
AE156: 15

Sheet V3
B1: Legenda | E1: hodnotu nutno zadat | J1: prevzato z první
E2: hodnota se vypočítává
E3: pomocná hodnota
A4: Parametry vzduchu | G4: interier klidovy rezim | U4: Produkce tepla od | X4: ni | Y4: =0.85*Y5+0.75*Y6+Y7 -> 60.5 | AB4: Qi=ni.6,2*(36-ti)
A5: Interiér | B5: ti | G5: Interiér | H5: ti | M5: Exteriér | N5: te | P5: minimální teplota -15 (tabulka) | U5: lidí | V5: =Y4*6.2*(36-Teplota) -> 1500.4 | W5: W | X5: nz | Y5: =Vypocet!Y5 -> 30 | Z5: zeny | AB5: ni=0,85nz+0,75nd+nm
A6: teplota | C6: ti | D6: =[0]!Teplota -> 32 | E6: °C | G6: teplota | I6: ti | J6: =Vypocet!J6 -> 24 | K6: °C | M6: teplota | O6: te | P6: =CEILING(Vypocet!P6+5,5) -> -5 | Q6: °C | X6: nd | Y6: =Vypocet!Y6 -> 20 | Z6: deti | AB6: nz - zeny, nd deti, nm muzi
A7: relativní vlhkost | C7: rhi | D7: =Vypocet!D7 -> 60 | E7: % | G7: relativní vlhkost | I7: rhi | J7: =Vypocet!J7 -> 55 | K7: % | M7: relativní vlhkost | O7: rhe | P7: =(93*te-3153.5)/(te-39.17) -> 81.92211909 | Q7: % | X7: nm | Y7: =Vypocet!Y7 -> 20 | Z7: muzi
A8: entalpie s.v. | C8: hsvi | D8: =Konstanty!$F$2*Teplota -> 32320 | E8: J/kg | G8: entalpie s.v. | I8: hsvi | J8: =Konstanty!$F$2*J6 -> 24240 | K8: J/kg | M8: entalpie s.v. | O8: hsve | P8: =Konstanty!$F$2*te -> -5050 | Q8: J/kg
A9: entalpie v.p. | C9: hvpi | D9: =$D$16*(Konstanty!$F$3*Teplota+Konstanty!$F$4) -> 46343.0627 | E9: J/kg | G9: entalpie v.p. | I9: hvpi | J9: =$D$16*(Konstanty!$F$3*J6+Konstanty!$F$4) -> 46076.47346 | K9: J/kg | M9: entalpie v.p. | O9: hvpe | P9: =P16*(Konstanty!F3*P6+Konstanty!F4) -> 5430.227958 | Q9: J/kg | U9: Odpar z povrchů
A10: entalpie | C10: hi | D10: =D8+D9 -> 78663.0627 | E10: J/kg | G10: entalpie | I10: hi | J10: =J8+J9 -> 70316.47346 | K10: J/kg | M10: entalpie | O10: he | P10: =IF(P8<0,P9-P8,P8+P9) -> 10480.22796 | Q10: J/kg | AB10: (7+3,5*w)*S*(xp´´-x).10-3
D11: =D10/1000 -> 78.6630627 | E11: kJ/kg | J11: =J10/1000 -> 70.31647346 | K11: kJ/kg | P11: =P10/1000 -> 10.48022796 | Q11: kJ/kg | AB11: w stredni rychlost vzduchu
A12: tlak nasycené vodní páry | C12: p''vpi | D12: =Konstanty!$F$12^((1500.3+23.5*D6)/(234+D6)) -> 4756.622959 | E12: Pa | G12: tlak nasycené vodní páry | I12: p''vpi | J12: =Konstanty!$F$12^((1500.3+23.5*J6)/(234+J6)) -> 2984.426233 | K12: Pa | M12: tlak nasycené vodní páry | O12: p''vpe | P12: =Konstanty!$F$12^((1500.3+23.5*P6)/(234+P6)) -> 419.2334596 | Q12: Pa | S12: =2.718^(28.926-(6148/(273.15+te))) -> 402.5873435 | AB12: xp´´-merna vlhkost nasyceneho vzduchu
A13: tlak vodní páry | C13: pvpi | D13: =(D7/100)*D12 -> 2853.973775 | E13: Pa | G13: tlak vodní páry | I13: pvpi | J13: =(J7/100)*J12 -> 1641.434428 | K13: Pa | M13: tlak vodní páry | O13: pvpe | P13: =(P7/100)*P12 -> 343.444934 | Q13: Pa | AB13: x - merna vlhkost vzduchu nad povrchem
A14: tlak suchého vzduchu | C14: psvi | D14: =D18*Konstanty!$F$5*(Teplota+273.15) -> 98021.00865 | E14: Pa | G14: tlak suchého vzduchu | I14: psvi | J14: =J18*Konstanty!$F$5*(Teplota+273.15) -> 100648.9177 | K14: Pa | M14: tlak suchého vzduchu | O14: psve | P14: =P18*Konstanty!F5*(P6+273.15) -> 97990.03466 | Q14: Pa | AB14: S plocha
A15: tlak směsi vlhkého vzduchu | C15: pi | D15: =D13+D14 -> 100874.9824 | E15: Pa | G15: tlak směsi vlhkého vzduchu | I15: pi | J15: =J13+J14 -> 102290.3522 | K15: Pa | M15: tlak směsi vlhkého vzduchu | O15: pe | P15: =P13+P14 -> 98333.47959 | Q15: Pa
A16: měrná vlhkost vzduchu | C16: xi | D16: =(Konstanty!$F$5/Konstanty!$F$6)*(D13/D14) -> 0.01811068229 | E16: kg/kg s.v. | G16: měrná vlhkost vzduchu | I16: xi | J16: =(Konstanty!$F$5/Konstanty!$F$6)*(J13/J14) -> 0.01014421464 | K16: kg/kg s.v. | M16: měrná vlhkost vzduchu | O16: xe | P16: =(Konstanty!F5/Konstanty!F6)*(P13/P14) -> 0.002180114003 | Q16: kg/kg s.v.
D17: =D16*1000 -> 18.11068229 | E17: g/kg s.v. | J17: =J16*1000 -> 10.14421464 | K17: g/kg s.v. | P17: =P16*1000 -> 2.180114003 | Q17: g/kg s.v.
A18: hustota vzduchu při t | D18: =VLOOKUP(Teplota,Tabulky!$V$15:$AF$75,9,0) -> 1.119 | E18: kg/m3 | G18: hustota vzduchu při t | J18: =VLOOKUP(J6,Tabulky!V15:AF75,9,0) -> 1.149 | K18: kg/m3 | M18: hustota vzduchu při t | P18: =VLOOKUP(te,Tabulky!V15:AF75,9,0) -> 1.273 | Q18: kg/m3
D19: =1.395-Teplota*0.004414 -> 1.253752
A20: Bazén | I20: rozměry bazénu
A21: Teplota vody | C21: tsniz | D21: =Vypocet!D21 -> 2 | E21: °C | F21: snížení teploty vody (dop 2-3°C) | I21: délka bazén | J21: a | K21: =Vypocet!K21 -> 25 | L21: m
A22: tvz-(2-3)°C | C22: tvod | D22: =D6-D21 -> 30 | E22: °C | I22: šířka bazén | J22: b | K22: =Vypocet!K22 -> 12 | L22: m
A24: Mn. odpařené vody
A25: mw=ε*A*(p´´vp-pvp) | C25: mw | D25: =D28*$D$29*($D$12/100-$D$13/100) -> 114158.951 | E25: g/h
D26: =D25/1000 -> 114.158951 | E26: kg/h | I26: budova
A27: typ bazenu | D27: =Vypocet!AH47 -> bazény - normální provoz | I27: délka | J27: a | K27: =Vypocet!K27 -> 40 | L27: m
A28: mnozstvi odp vody | D28: =VLOOKUP(D27,Tab_souc_odparu_bazen,7,0) -> 20 | H28: [g/(hPa.m2.h)] | I28: šířka | J28: b | K28: =Vypocet!K28 -> 15 | L28: m
A29: plocha bazénu | C29: A | D29: =K21*K22 -> 300 | E29: m2 | I29: výška | J29: v | K29: =Vypocet!K29 -> 7 | L29: m | M29: Produkce vlhkosti osobami - klidový režim
A30: Objem haly | C30: V | D30: =K27*K28*K29 -> 4200 | E30: m3 | M30: počet osob v bazénu | O30: nos | P30: =Vypocet!P30 -> 2
M31: množství vlhkosti | O31: mos | P31: =P30*100 -> 200 | Q31: g/h
A32: Produkce vlhkosti osobami - v provozu | P32: =P31/1000 -> 0.2 | Q32: kg/h | AE32: Výkon na kondenzátoru | AI32: Qk | AJ32: =AH69 -> 56696.28197 | AK32: W
A33: počet osob v bazénu | C33: nos | D33: =Vypocet!D33 -> 60 | E33: počet | G33: Produkce vlhkosti člověkem | P33: =P31/3600 -> 0.05555555556 | Q33: g/s | AJ33: =AH70 -> 56.69628197 | AK33: kW
A34: množství vlhkosti | C34: mos | D34: =D33*H35 -> 6300 | E34: g/h | G34: =Vypocet!AH50 -> člověk při středně těžké práci | AE34: Teplota požadovaná v interiéru | AI34: ti | AJ34: =Teplota -> 32 | AK34: °C
D35: =D34/1000 -> 6.3 | E35: kg/h | G35: =VLOOKUP(G34,Tabulky!W146:Z148,4,0) -> 60-150 | H35: =IF(G35="60-150",105,IF(G35="30-60",45,225)) -> 105 | I35: g/h | M35: Produkce vlhkosti - klidový režim | AY35: Výkon na kondenzátoru | BC35: Qk | BD35: =BB70 -> 56763.6928 | BE35: W
D36: =D34/3600 -> 1.75 | E36: g/s | G36: rozmezí | H36: průměr | L36: množství odpařené vody | O36: mw | P36: =Tabulky!$G$4*$D$29*($D$12/100-$D$13/100) -> 28539.73775 | Q36: g/h | BD36: =BB71 -> 56.7636928 | BE36: kW
A37: celkové množství odpařené vody | D37: =(D25+D34)*(I37/100+1) -> 126481.8986 | E37: g/h | H37: korekce | I37: =Vypocet!I37 -> 5 | J37: % | M37: celkové množství odpařené vody | P37: =(P36+P31)*(I37/100+1) -> 30176.72464 | Q37: g/h | AY37: Teplota požadovaná v interiéru | BC37: ti | BD37: =J6 -> 24 | BE37: °C
A38: Dimenzování průtoku vzduchu bazénové větrací jednotky pro zátěž | M38: Dimenzování průtoku vzduchu bazénové větrací jednotky pro klidový režim
A39: z množství odpařené vody | M39: z množství odpařené vody
A40: požadovaná vlhkost přiváděná | C40: xpoz | D40: =Vypocet!D40 -> 9 | E40: g/kg | G40: doporučená hodnota 8-10 g/kg | M40: požadovaná vlhkost přiváděná | O40: xpoz | P40: =Vypocet!P40 -> 9 | Q40: g/kg | S40: doporučená hodnota 8-10 g/kg
C41: V1 | D41: =(D37)/(D18*(D17-D40)) -> 12406.44594 | E41: m3/h | I41: =D147 -> 9 | J41: g/kg s.v. | O41: V1 | P41: =(P36+P31)/(Konstanty!$F$8*(J17-5)) -> 4560.659311 | Q41: m3/h
A42: z objemu haly | M42: z objemu haly
A43: výměna vzduchu | C43: n | D43: =Vypocet!D43 -> 1 | E43: 1/h | M43: výměna vzduchu | O43: n | P43: =Vypocet!P43 -> 1 | Q43: 1/h
A44: V=n*VH | C44: V2 | D44: =D30*D43 -> 4200 | E44: m3/h | M44: V=n*VH | O44: V2 | P44: =D30*P43 -> 4200 | Q44: m3/h
A45: z tepelných zisků
B46: tepelné ztráty | C46: Qzt | D46: =Vypocet!D46 -> 7 | E46: kW | H46: teplotní spád výústky | I46: dt | J46: =Vypocet!J46 -> 8 | K46: °C
B47: tepelné zisky | C47: Qzisk | D47: =Vypocet!D47 -> 16 | E47: kW
B48: Množství vzduchu | D48: =((D47-D46)/J46*Konstanty!$F$2*Konstanty!$F$8) -> 1391.90625 | E48: m3/h
A50: potřeba vzduchu pro osoby | W50: te | X50: teplota exteriérového vzduchu
C51: V2 | D51: =D33*D52 -> 3000 | W51: Qpředehřev | X51: Výkon pro předehřátí vzduchu
A52: množství čerstvého vzduchu/osoba | D52: =Vypocet!D52 -> 50 | E52: m3/h/os | G52: doporučená hodnota při zátěži (min hodnota 25m3/h) | W52: Qdohřátí | X52: Výkon spotřebovaný na dohřátí vzduchu na požadovanou úroveň
A54: Potřeba čerstvého vzduchu | D54: =IF(MAX(D41,D44,D48)>D51,"Ne","Ano") -> Ne | G54: nepočítá s tím dál samo! | AE54: Teplo odevzdané na výparníku | AK54: Množství kondenzátu
A55: Množství čerstvého vzduchu | D55: =IF(D54="ano",D51-MAX(D41,D44,D48),0) -> 0 | E55: m3/h | G55: pouze informativní charakter, množství V čerst rozhodne projektant | AE55: Qv=V*ρ*(hi-h3) | AG55: Qv | AH55: =D81 -> 42872.41608 | AI55: W | AK55: mkond = V*ρ*(xi-x3) | AM55: mkond | AN55: =IF(D58*D18*(D16-D77)<0,0,D58*D18*(D16-D77)) -> 0.008924797735 | AO55: kg/s | AY55: Teplo odevzdané na výparníku | BE55: Množství kondenzátu
AH56: =AH55/1000 -> 42.87241608 | AI56: kW | AN56: =AN55*1000 -> 8.924797735 | AO56: g/s | AY56: Qv=V*ρ*(hi-h3) | BA56: Qv | BB56: =P81 -> 47003.77313 | BC56: W | BE56: mkond = V*ρ*(xi-x3) | BG56: mkond | BH56: =IF(P58*J18*(J16-P77)<0,0,P58*J18*(J16-P77)) -> 0.002183415645 | BI56: kg/s
A57: průtok vzduchu | C57: V | D57: =MAX(D41,D44,D48) -> 12406.44594 | E57: m3/h | M57: průtok vzduchu | O57: V | P57: =MAX(P41,P44) -> 4560.659311 | Q57: m3/h | AN57: =AN55*3600 -> 32.12927185 | AO57: kg/h | BB57: =BB56/1000 -> 47.00377313 | BC57: kW | BH57: =BH56*1000 -> 2.183415645 | BI57: g/s
C58: V | D58: =D57/3600 -> 3.446234982 | E58: m3/s | O58: V | P58: =P57/3600 -> 1.266849809 | Q58: m3/s | AE58: Tepelné čerpadlo (TČ) | AI58: typ TČ | BH58: =BH56*3600 -> 7.860296323 | BI58: kg/h
AE59: Topný faktor TČ | AG59: COP | AH59: =VLOOKUP(Teplota,'V3'!AE83:AF136,2,0) -> 4.101333333 | AI59: Alfa S Duo | AY59: Tepelné čerpadlo (TČ) | BC59: typ TČ
A60: množství odebrané měrné vlh | C60: Δx | D60: 2.314320004 | E60: g/kg s.v | G60: vstupní měrná vlhkost do int | I60: xvyst | J60: =D147 -> 9 | K60: g/kg s.v. | AY60: Topný faktor TČ | BA60: COP | BB60: =VLOOKUP(J6,'V3'!AY84:AZ132,2,0) -> 3.816 | BC60: Alfa S Duo
A61: teplota chladiče | C61: tch | D61: =Vypocet!D61 -> 9 | E61: °C | AE61: Tepelná bilance TČ
A62: relativní vlhkost | C62: rhch | D62: =Vypocet!D62 -> 100 | E62: % | M62: množství odebrané měrné vlh | O62: Δx | P62: =Vypocet!P60 -> 1.5 | Q62: g/kg s.v. | AE62: Qk=Pel+Qv | AY62: Tepelná bilance TČ
M63: teplota chladiče | O63: tch | P63: =Vypocet!P61 -> 9 | Q63: °C | AE63: εt = COP | AF63: εt = Qv/Pel | AY63: Qk=Pel+Qv
M64: relativní vlhkost | O64: rhch | P64: =Vypocet!P62 -> 100 | Q64: % | AE64: Pel=Qk/(1+Et) | AY64: εt = COP | AZ64: εt = Qv/Pel
X65: Parametry chladiče | AE65: Výkon kompresoru | AG65: Pet | AH65: =AH55/(AH59-1) -> 13823.86589 | AI65: W | AY65: Pel=Qk/(1+Et)
A66: t3 | B66: parametry vyduchu za vyparnikem | M66: t3 | N66: parametry vyduchu za vyparnikem | X66: teplota | Z66: ti | AA66: =tch -> 9 | AB66: °C | AH66: =AH65/1000 -> 13.82386589 | AI66: kW | AY66: Výkon kompresoru | BA66: Pet | BB66: =BB56/(BB60+1) -> 9759.91967 | BC66: W
A67: teplota | C67: tvyp | D67: =W87 -> 27 | E67: °C | G67: =tvyp-te -> 32 | M67: teplota | O67: tvyp | P67: =W112 -> 16 | Q67: °C | X67: relativní vlhkost | Z67: rhi | AA67: =D62 -> 100 | AB67: % | AE67: Prikon kompresoru | AH67: =AH66/AH59 -> 3.370578484 | AI67: kW | BB67: =BB66/1000 -> 9.75991967 | BC67: kW
A68: relativní vlhkost | C68: rh3 | D68: =IF((D74/D73)*100>100,100,(D74/D73)*100) -> 69.76086727 | E68: % | M68: relativní vlhkost | O68: rh3 | P68: =IF((P74/P73)*100>100,100,(P74/P73)*100) -> 74.95783123 | Q68: % | X68: entalpie s.v. | Z68: hsvi | AA68: =Konstanty!$F$2*AA66 -> 9090 | AB68: J/kg | AE68: Teplo na kondenzátoru
A69: entalpie s.v. | C69: h3 | D69: =Konstanty!$F$2*D67 -> 27270 | E69: J/kg | M69: entalpie s.v. | O69: h3 | P69: =Konstanty!$F$2*P67 -> 16160 | Q69: J/kg | X69: entalpie v.p. | Z69: hvpi | AA69: =$AA$76*(Konstanty!$F$3*AA66+Konstanty!$F$4) -> 18311.90427 | AB69: J/kg | AE69: Výkon na kondenzátoru | AG69: Qk | AH69: =AH65+AH55 -> 56696.28197 | AI69: W | AY69: Teplo na kondenzátoru
A70: entalpie v.p. | C70: h3 | D70: =D77*(Konstanty!$F$3*D67+Konstanty!$F$4) -> 40275.66899 | E70: J/kg | M70: entalpie v.p. | O70: h3 | P70: =P77*(Konstanty!$F$3*P67+Konstanty!$F$4) -> 21865.02229 | Q70: J/kg | X70: entalpie | Z70: hi | AA70: =AA68+AA69 -> 27401.90427 | AB70: J/kg | AH70: =AH69/1000 -> 56.69628197 | AI70: kW | AY70: Výkon na kondenzátoru | BA70: Qk | BB70: =BB66+BB56 -> 56763.6928 | BC70: W
A71: entalpie | C71: h3 | D71: =D69+D70 -> 67545.66899 | E71: J/kg | M71: entalpie | O71: h3 | P71: =P69+P70 -> 38025.02229 | Q71: J/kg | AA71: =AA70/1000 -> 27.40190427 | AB71: kJ/kg | BB71: =BB70/1000 -> 56.7636928 | BC71: kW
D72: =D71/1000 -> 67.54566899 | E72: kJ/kg | P72: =P71/1000 -> 38.02502229 | Q72: kJ/kg | X72: tlak nasycené vodní páry | Z72: p''vpi | AA72: =Konstanty!$F$12^((1500.3+23.5*AA66)/(234+AA66)) -> 1146.47173 | AB72: Pa
A73: tlak nasycené vodní páry | C73: p''vp3 | D73: =Konstanty!$F$12^((1500.3+23.5*D67)/(234+D67)) -> 3566.39423 | E73: Pa | M73: tlak nasycené vodní páry | O73: p''vp3 | P73: =Konstanty!$F$12^((1500.3+23.5*P67)/(234+P67)) -> 1817.468722 | Q73: Pa | X73: tlak vodní páry | Z73: pvpi | AA73: =(AA67/100)*AA72 -> 1146.47173 | AB73: Pa | AE73: Graf topneho faktoru | AH73: TnG Air 13, vzduch/voda
A74: tlak vodní páry | C74: pvp3 | D74: =(D77*D75)/0.622 -> 2487.947545 | E74: Pa | G74: =((G77*D75)/(0.622+G77))/((0.622-G77)/(0.622)) -> 2854.876286 | H74: přepočet tlaku z x | M74: tlak vodní páry | O74: pvp3 | P74: =(P77*P75)/0.622 -> 1362.335137 | Q74: Pa | S74: =((S77*P75)/(0.622+S77))/((0.622-S77)/(0.622)) -> 1599.161688 | T74: přepočet tlaku z x | X74: tlak suchého vzduchu | Z74: psvi | AA74: =AA78*Konstanty!$F$5*(AA66+273.15) -> 98003.39739 | AB74: Pa | AY74: Graf topneho faktoru | BB74: TnG Air 13, vzduch/voda
A75: tlak suchého vzduchu | C75: psv3 | D75: =D79*Konstanty!$F$5*(D67+273.15) -> 97965.80662 | E75: Pa | M75: tlak suchého vzduchu | O75: psv3 | P75: =P79*Konstanty!$F$5*(P67+273.15) -> 98027.69719 | Q75: Pa | X75: tlak směsi vlhkého vzduchu | Z75: pi | AA75: =AA73+AA74 -> 99149.86912 | AB75: Pa | AE75: =Vypocet!AE107 -> teplota | AF75: =Vypocet!AF107 -> -18 | AG75: =Vypocet!AG107 -> -15 | AH75: =Vypocet!AH107 -> -10 | AI75: =Vypocet!AI107 -> -5 | AJ75: =Vypocet!AJ107 -> 0 | AK75: =Vypocet!AK107 -> 5 | AL75: =Vypocet!AL107 -> 10 | AM75: =Vypocet!AM107 -> 15
A76: tlak směsi vlhkého vzduchu | C76: p3 | D76: =D74+D75 -> 100453.7542 | E76: Pa | M76: tlak směsi vlhkého vzduchu | O76: p3 | P76: =P74+P75 -> 99390.03233 | Q76: Pa | X76: měrná vlhkost vzduchu | Z76: xi | AA76: =(Konstanty!$F$5/Konstanty!$F$6)*(AA73/AA74) -> 0.007276561764 | AB76: kg/kg s.v. | AE76: =Vypocet!AE108 -> vykon | AF76: =Vypocet!AF108 -> 4.7 | AG76: =Vypocet!AG108 -> 5.75 | AH76: =Vypocet!AH108 -> 7 | AI76: =Vypocet!AI108 -> 8.24 | AJ76: =Vypocet!AJ108 -> 9.46 | AK76: =Vypocet!AK108 -> 10.69 | AL76: =Vypocet!AL108 -> 11.8 | AM76: =Vypocet!AM108 -> 13.1 | AY76: =Vypocet!AY108 -> teplota | AZ76: =Vypocet!AZ108 -> -18 | BA76: =Vypocet!BA108 -> -15 | BB76: =Vypocet!BB108 -> -10 | BC76: =Vypocet!BC108 -> -5 | BD76: =Vypocet!BD108 -> 0 | BE76: =Vypocet!BE108 -> 5 | BF76: =Vypocet!BF108 -> 10 | BG76: =Vypocet!BG108 -> 15
A77: měrná vlhkost vzduchu | C77: x3 | D77: =D16-deltaT/1000 -> 0.01579636229 | E77: kg/kg s.v. | G77: =IF(tvyp<D82,0,D16) -> 0.01811068229 | H77: vezme x z Ti když tvyp<rosny bod | M77: měrná vlhkost vzduchu | O77: x3 | P77: =J16-P62/1000 -> 0.008644214643 | Q77: kg/kg s.v. | S77: =IF(tvyp<P82,0,J16) -> 0.01014421464 | T77: vezme x z Ti když tvyp<rosny bod | AA77: =AA76*1000 -> 7.276561764 | AB77: g/kg s.v. | AE77: =Vypocet!AE109 -> el prikon | AF77: =Vypocet!AF109 -> 2.24 | AG77: =Vypocet!AG109 -> 2.47 | AH77: =Vypocet!AH109 -> 2.72 | AI77: =Vypocet!AI109 -> 2.94 | AJ77: =Vypocet!AJ109 -> 3.2 | AK77: =Vypocet!AK109 -> 3.37 | AL77: =Vypocet!AL109 -> 3.55 | AM77: =Vypocet!AM109 -> 3.85 | AY77: =Vypocet!AY109 -> vykon | AZ77: =Vypocet!AZ109 -> 4.7 | BA77: =Vypocet!BA109 -> 5.75 | BB77: =Vypocet!BB109 -> 7 | BC77: =Vypocet!BC109 -> 8.24 | BD77: =Vypocet!BD109 -> 9.46 | BE77: =Vypocet!BE109 -> 10.69 | BF77: =Vypocet!BF109 -> 11.8 | BG77: =Vypocet!BG109 -> 13.1
D78: =D77*1000 -> 15.79636229 | E78: g/kg s.v. | P78: =P77*1000 -> 8.644214643 | Q78: g/kg s.v. | X78: hustota vzduchu při t | AA78: =VLOOKUP(AA66,Tabulky!$V$15:$AF$75,9,0) -> 1.21 | AB78: kg/m3 | AE78: =Vypocet!AE110 -> COP | AF78: =Vypocet!AF110 -> 2.1 | AG78: =Vypocet!AG110 -> 2.33 | AH78: =Vypocet!AH110 -> 2.57 | AI78: =Vypocet!AI110 -> 2.8 | AJ78: =Vypocet!AJ110 -> 2.96 | AK78: =Vypocet!AK110 -> 3.17 | AL78: =Vypocet!AL110 -> 3.32 | AM78: =Vypocet!AM110 -> 3.4 | AY78: =Vypocet!AY110 -> el prikon | AZ78: =Vypocet!AZ110 -> 2.24 | BA78: =Vypocet!BA110 -> 2.47 | BB78: =Vypocet!BB110 -> 2.72 | BC78: =Vypocet!BC110 -> 2.94 | BD78: =Vypocet!BD110 -> 3.2 | BE78: =Vypocet!BE110 -> 3.37 | BF78: =Vypocet!BF110 -> 3.55 | BG78: =Vypocet!BG110 -> 3.85
A79: hustota vzduchu při t | D79: =VLOOKUP(tvyp,Tabulky!$V$15:$AF$75,9,0) -> 1.137 | E79: kg/m3 | M79: hustota vzduchu při t | P79: =VLOOKUP(P67,Tabulky!$V$15:$AF$75,9,0) -> 1.181 | Q79: kg/m3 | AA79: =1.395-Teplota*0.004414 -> 1.253752 | AH79: =AH78-AG78 -> 0.24 | AI79: 0.23 | AJ79: 0.16 | AK79: 0.21 | AL79: 0.15 | AM79: 0.08 | AN79: průměr | AO79: =AVERAGE(AG79:AM79) -> 0.1783333333 | AP79: prumer/1 | AQ79: =AO79/5 -> 0.03566666667 | AY79: =Vypocet!AY111 -> COP | AZ79: =Vypocet!AZ111 -> 2.1 | BA79: =Vypocet!BA111 -> 2.33 | BB79: =Vypocet!BB111 -> 2.57 | BC79: =Vypocet!BC111 -> 2.8 | BD79: =Vypocet!BD111 -> 2.96 | BE79: =Vypocet!BE111 -> 3.17 | BF79: =Vypocet!BF111 -> 3.32 | BG79: =Vypocet!BG111 -> 3.4
AF80: popis závislosti | AH80: y=0,18571x+2,96 | BB80: =BB79-BA79 -> 0.24 | BC80: 0.23 | BD80: 0.16 | BE80: 0.21 | BF80: 0.15 | BG80: 0.08 | BH80: průměr | BI80: =AVERAGE(BA80:BG80) -> 0.1783333333 | BJ80: prumer/1 | BK80: =BI80/5 -> 0.03566666667
A81: teplo získané na výparníku | C81: Qv | D81: =D58*D18*(D10-D71) -> 42872.41608 | E81: W | M81: teplo získané na výparníku | O81: Qv | P81: =P58*J18*(J10-P71) -> 47003.77313 | Q81: W | U81: A | V81: Ti | W81: =Teplota -> 32 | Y81: B | Z81: tch | AA81: =AA66 -> 9 | AZ81: popis závislosti | BB81: y=0,18571x+2,96
B82: rosný bod | D82: =(243.5*LN(($D$7/100)*Konstanty!$F$12^((17.67*Teplota)/(243.5+Teplota))))/(17.67-(LN(($D$7/100)*Konstanty!$F$12^((17.67*Teplota)/(243.5+Teplota))))) -> 23.27425187 | E82: °C | N82: rosný bod | P82: =(243.5*LN((J7/100)*Konstanty!$F$12^((17.67*J6)/(243.5+J6))))/(17.67-(LN((J7/100)*Konstanty!$F$12^((17.67*J6)/(243.5+J6))))) -> 14.41381795 | Q82: °C | V82: xi | W82: =D16 -> 0.01811068229 | Z82: xch | AA82: =AA76 -> 0.007276561764 | AE82: teplota | AF82: COP | AH82: -18 | AI82: 2.1
V83: xi | W83: =D17 -> 18.11068229 | Z83: xch | AA83: =AA77 -> 7.276561764 | AE83: -18 | AF83: =$AQ$79*AE83+$AJ$78 -> 2.318 | AH83: -15 | AI83: 2.33 | AY83: teplota | AZ83: COP
A84: Distribuce tepla v závislosti na externí teplotě | AE84: -17 | AF84: 2.353666667 | AH84: -10 | AI84: 2.57 | AY84: -18 | AZ84: =$AQ$79*AY84+$AJ$78 -> 2.318
A85: teplota předehřevu te | C85: tpřed | D85: =Vypocet!D85 -> 5 | E85: °C | V85: dx | W85: =deltaT -> 2.314320004 | Y85: výpočet teplochy při teplote chladice | AE85: -16 | AF85: 2.389333333 | AH85: -5 | AI85: 2.8 | AY85: -17 | AZ85: 2.353666667
A86: množství čerst vzduchu | D86: =Vypocet!D86 -> 30 | E86: % | V86: th | W86: =((W81-AA81)*W83+(AA83-W83)*W81-(W81-AA81)*(W83-W85))/(AA83-W83) -> 27.08687761 | Y86: počítá s přímkou ti - tch a na ní počítá bod | AE86: -15 | AF86: 2.425 | AH86: 0 | AI86: 2.96 | AY86: -16 | AZ86: 2.389333333
A87: množství předehřívaného vzd | D87: =D58*(D86/100) -> 1.033870495 | E87: m3/h | W87: =ROUND(W86,0) -> 27 | AE87: -14 | AF87: 2.460666667 | AH87: 5 | AI87: 3.17 | AY87: -15 | AZ87: 2.425
A88: potřeba tepla na předehřev | D88: =IF(D85>te,((D87*P18)/(1+P16))*(D85-te)*P18*Konstanty!$F$2,0) -> 16884.90189 | E88: W | AE88: -13 | AF88: 2.496333333 | AH88: 10 | AI88: 3.32 | AY88: -14 | AZ88: 2.460666667
AE89: -12 | AF89: 2.532 | AH89: 15 | AI89: 3.4 | AY89: -13 | AZ89: 2.496333333
A90: t4 | B90: Předehřev exteriérového vzduchu | M90: t4 | N90: Předehřev exteriérového vzduchu | X90: Parametry chladiče klidovy rezim | AE90: -11 | AF90: 2.567666667 | AY90: -12 | AZ90: 2.532
A91: teplota předehřevu | C91: tpředehřev | D91: =IF($D$85>te,$D$85,te) -> 5 | E91: °C | M91: teplota předehřevu | O91: tpředehřev | P91: =IF($D$85>te,$D$85,te) -> 5 | Q91: °C | X91: teplota | Z91: ti | AA91: =P63 -> 9 | AB91: °C | AE91: -10 | AF91: 2.603333333 | AY91: -11 | AZ91: 2.567666667
C92: rhpředehřev | D92: =((D101*P15)/(D97*(0.622+D101)))*100 -> 39.45617501 | E92: % | O92: rhpředehřev | P92: =((P101*P15)/(P97*(0.622+P101)))*100 -> 39.45617501 | Q92: % | X92: relativní vlhkost | Z92: rhi | AA92: =P64 -> 100 | AB92: % | AE92: -9 | AF92: 2.639 | AY92: -10 | AZ92: 2.603333333
A93: entalpie s.v. | C93: hsv4 | D93: =Konstanty!$F$2*D91 -> 5050 | E93: J/kg | M93: entalpie s.v. | O93: hsv4 | P93: =Konstanty!$F$2*P91 -> 5050 | Q93: J/kg | X93: entalpie s.v. | Z93: hsvi | AA93: =Konstanty!$F$2*AA91 -> 9090 | AB93: J/kg | AE93: -8 | AF93: 2.674666667 | AY93: -9 | AZ93: 2.639
A94: entalpie v.p. | C94: hvp4 | D94: =D101*(Konstanty!$F$3*D91+Konstanty!$F$4) -> 5470.342056 | E94: J/kg | M94: entalpie v.p. | O94: hvp4 | P94: =P101*(Konstanty!$F$3*P91+Konstanty!$F$4) -> 5470.342056 | Q94: J/kg | X94: entalpie v.p. | Z94: hvpi | AA94: =$AA$76*(Konstanty!$F$3*AA91+Konstanty!$F$4) -> 18311.90427 | AB94: J/kg | AE94: -7 | AF94: 2.710333333 | AY94: -8 | AZ94: 2.674666667
A95: entalpie | C95: h4 | D95: =D93+D94 -> 10520.34206 | E95: J/kg | M95: entalpie | O95: h4 | P95: =P93+P94 -> 10520.34206 | Q95: J/kg | X95: entalpie | Z95: hi | AA95: =AA93+AA94 -> 27401.90427 | AB95: J/kg | AE95: -6 | AF95: 2.746 | AY95: -7 | AZ95: 2.710333333
D96: =D95/1000 -> 10.52034206 | E96: kJ/kg | P96: =P95/1000 -> 10.52034206 | Q96: kJ/kg | AA96: =AA95/1000 -> 27.40190427 | AB96: kJ/kg | AE96: -5 | AF96: 2.781666667 | AY96: -6 | AZ96: 2.746
A97: tlak nasycené vodní páry | C97: p''vp4 | D97: =Konstanty!$F$12^((1500.3+23.5*D91)/(234+D91)) -> 870.4737963 | E97: Pa | M97: tlak nasycené vodní páry | O97: p''vp4 | P97: =Konstanty!$F$12^((1500.3+23.5*P91)/(234+P91)) -> 870.4737963 | Q97: Pa | X97: tlak nasycené vodní páry | Z97: p''vpi | AA97: =Konstanty!$F$12^((1500.3+23.5*AA91)/(234+AA91)) -> 1146.47173 | AB97: Pa | AE97: -4 | AF97: 2.817333333 | AY97: -5 | AZ97: 2.781666667
A98: tlak vodní páry | C98: pvp4 | D98: =(D92/100)*D97 -> 343.4556645 | E98: Pa | M98: tlak vodní páry | O98: pvp4 | P98: =(P92/100)*P97 -> 343.4556645 | Q98: Pa | X98: tlak vodní páry | Z98: pvpi | AA98: =(AA92/100)*AA97 -> 1146.47173 | AB98: Pa | AE98: -3 | AF98: 2.853 | AY98: -4 | AZ98: 2.817333333
A99: tlak suchého vzduchu | C99: psv4 | D99: =D103*Konstanty!$F$5*(D91+273.15) -> 97971.40433 | E99: Pa | M99: tlak suchého vzduchu | O99: psv4 | P99: =P103*Konstanty!$F$5*(P91+273.15) -> 97971.40433 | Q99: Pa | X99: tlak suchého vzduchu | Z99: psvi | AA99: =AA103*Konstanty!$F$5*(AA91+273.15) -> 98003.39739 | AB99: Pa | AE99: -2 | AF99: 2.888666667 | AY99: -3 | AZ99: 2.853
A100: tlak směsi vlhkého vzduchu | C100: p4 | D100: =D98+D99 -> 98314.86 | E100: Pa | M100: tlak směsi vlhkého vzduchu | O100: p4 | P100: =P98+P99 -> 98314.86 | Q100: Pa | X100: tlak směsi vlhkého vzduchu | Z100: pi | AA100: =AA98+AA99 -> 99149.86912 | AB100: Pa | AE100: -1 | AF100: 2.924333333 | AY100: -2 | AZ100: 2.888666667
A101: měrná vlhkost vzduchu | C101: x4 | D101: =P16 -> 0.002180114003 | E101: kg/kg s.v. | M101: měrná vlhkost vzduchu | O101: x4 | P101: =P16 -> 0.002180114003 | Q101: kg/kg s.v. | X101: měrná vlhkost vzduchu | Z101: xi | AA101: =(Konstanty!$F$5/Konstanty!$F$6)*(AA98/AA99) -> 0.007276561764 | AB101: kg/kg s.v. | AE101: 0 | AF101: 2.96 | AY101: -1 | AZ101: 2.924333333
D102: =D101*1000 -> 2.180114003 | E102: g/kg s.v. | P102: =P101*1000 -> 2.180114003 | Q102: g/kg s.v. | AA102: =AA101*1000 -> 7.276561764 | AB102: g/kg s.v. | AE102: 1 | AF102: 2.995666667 | AY102: 0 | AZ102: 2.96
A103: hustota vzduchu při t | D103: =VLOOKUP(D91,Tabulky!$V$15:$AF$75,9,0) -> 1.227 | E103: kg/m3 | M103: hustota vzduchu při t | P103: =VLOOKUP(P91,Tabulky!$V$15:$AF$75,9,0) -> 1.227 | Q103: kg/m3 | X103: hustota vzduchu při t | AA103: =VLOOKUP(AA91,Tabulky!$V$15:$AF$75,9,0) -> 1.21 | AB103: kg/m3 | AE103: 2 | AF103: 3.031333333 | AY103: 1 | AZ103: 2.995666667
AA104: =1.395-Teplota*0.004414 -> 1.253752 | AE104: 3 | AF104: 3.067 | AY104: 2 | AZ104: 3.031333333
A105: t4' | B105: smíšení vzduchu s exteriérovým | M105: t4' | N105: smíšení vzduchu s exteriérovým | AE105: 4 | AF105: 3.102666667 | AY105: 3 | AZ105: 3.067
A106: Množství čerstvého vzduchu | C106: Včerstv | D106: =IF(D91>tvyp,100,$D$86) -> 30 | E106: % | M106: Množství čerstvého vzduchu | O106: Včerstv | P106: =IF(P91>tvyp,100,$D$86) -> 30 | Q106: % | U106: A | V106: Ti | W106: =J6 -> 24 | Y106: B | Z106: tch | AA106: =AA91 -> 9 | AE106: 5 | AF106: 3.138333333 | AY106: 4 | AZ106: 3.102666667
A107: teplota vzduchu | C107: t4 | D107: =ROUND(((((D106/100)*D58)*D91+((1-(D106/100))*D58)*tvyp)/D58),0) -> 20 | E107: °C | M107: teplota vzduchu | O107: t4 | P107: =ROUND(((((P106/100)*P58)*P91+((1-(P106/100))*P58)*tvyp)/P58),0) -> 20 | Q107: °C | V107: xi | W107: =J16 -> 0.01014421464 | Z107: xch | AA107: =AA101 -> 0.007276561764 | AE107: 6 | AF107: 3.174 | AY107: 5 | AZ107: 3.138333333
A108: relativní vlhkost | C108: rh4 | D108: =(1-(D106/100))*D68+(D106/100)*D92 -> 60.66945959 | E108: % | M108: relativní vlhkost | O108: rh4 | P108: =(1-(P106/100))*P68+(P106/100)*P92 -> 64.30733437 | Q108: % | V108: xi | W108: =J17 -> 10.14421464 | Z108: xch | AA108: =AA102 -> 7.276561764 | AE108: 7 | AF108: 3.209666667 | AY108: 6 | AZ108: 3.174
A109: entalpie s.v. | C109: hsv4 | D109: =Konstanty!$F$2*D107 -> 20200 | E109: J/kg | M109: entalpie s.v. | O109: hsv4 | P109: =Konstanty!$F$2*P107 -> 20200 | Q109: J/kg | AE109: 8 | AF109: 3.245333333 | AY109: 7 | AZ109: 3.209666667
A110: entalpie v.p. | C110: hvp4 | D110: =D117*(Konstanty!$F$3*D107+Konstanty!$F$4) -> 22831.2 | E110: J/kg | M110: entalpie v.p. | O110: hvp4 | P110: =P117*(Konstanty!$F$3*P107+Konstanty!$F$4) -> 24200.20917 | Q110: J/kg | V110: dx | W110: =P62 -> 1.5 | AE110: 9 | AF110: 3.281 | AY110: 8 | AZ110: 3.245333333
A111: entalpie | C111: h4 | D111: =D109+D110 -> 43031.2 | E111: J/kg | M111: entalpie | O111: h4 | P111: =P109+P110 -> 44400.20917 | Q111: J/kg | V111: th | W111: =((W106-AA106)*W108+(AA108-W108)*W106-(W106-AA106)*(W108-W110))/(AA108-W108) -> 16.15386208 | AE111: 10 | AF111: 3.316666667 | AY111: 9 | AZ111: 3.281
D112: =D111/1000 -> 43.0312 | E112: kJ/kg | P112: =P111/1000 -> 44.40020917 | Q112: kJ/kg | W112: =ROUND(W111,0) -> 16 | AE112: 11 | AF112: 3.352333333 | AY112: 10 | AZ112: 3.316666667
A113: tlak nasycené vodní páry | C113: p''vp4 | D113: =Konstanty!$F$12^((1500.3+23.5*D107)/(234+D107)) -> 2338.082935 | E113: Pa | M113: tlak nasycené vodní páry | O113: p''vp4 | P113: =Konstanty!$F$12^((1500.3+23.5*P107)/(234+P107)) -> 2338.082935 | Q113: Pa | AE113: 12 | AF113: 3.388 | AY113: 11 | AZ113: 3.352333333
A114: tlak vodní páry | C114: pvp4 | D114: =(D108/100)*D113 -> 1418.502282 | E114: Pa | M114: tlak vodní páry | O114: pvp4 | P114: =(P108/100)*P113 -> 1503.558811 | Q114: Pa | AE114: 13 | AF114: 3.423666667 | AY114: 12 | AZ114: 3.388
A115: tlak suchého vzduchu | C115: psv4 | D115: =D119*Konstanty!$F$5*(D107+273.15) -> 98037.34247 | E115: Pa | M115: tlak suchého vzduchu | O115: psv4 | P115: =P119*Konstanty!$F$5*(P107+273.15) -> 98037.34247 | Q115: Pa | AE115: 14 | AF115: 3.459333333 | AY115: 13 | AZ115: 3.423666667
A116: tlak směsi vlhkého vzduchu | C116: p4 | D116: =D114+D115 -> 99455.84476 | E116: Pa | M116: tlak směsi vlhkého vzduchu | O116: p4 | P116: =P114+P115 -> 99540.90129 | Q116: Pa | AE116: 15 | AF116: 3.495 | AY116: 14 | AZ116: 3.459333333
A117: měrná vlhkost vzduchu | C117: x4 | D117: =(Konstanty!$F$5/Konstanty!$F$6)*(D114/D115) -> 0.009 | E117: kg/kg s.v. | M117: měrná vlhkost vzduchu | O117: x4 | P117: =(Konstanty!$F$5/Konstanty!$F$6)*(P114/P115) -> 0.009539659875 | Q117: kg/kg s.v. | AE117: 16 | AF117: 3.530666667 | AY117: 15 | AZ117: 3.495
D118: =D117*1000 -> 9 | E118: g/kg s.v. | P118: =P117*1000 -> 9.539659875 | Q118: g/kg s.v. | AE118: 17 | AF118: 3.566333333 | AY118: 16 | AZ118: 3.530666667
A119: hustota vzduchu při t | D119: =VLOOKUP(D107,Tabulky!$V$15:$AF$75,9,0) -> 1.165 | E119: kg/m3 | M119: hustota vzduchu při t | P119: =VLOOKUP(P107,Tabulky!$V$15:$AF$75,9,0) -> 1.165 | Q119: kg/m3 | AE119: 18 | AF119: 3.602 | AY119: 17 | AZ119: 3.566333333
AE120: 19 | AF120: 3.637666667 | AY120: 18 | AZ120: 3.602
A121: množství tepla na kondenzátoru | C121: Qk | D121: =AH69 -> 56696.28197 | E121: W | H121: přepočet mw na msv | I121: =(D58*D119)/(1+D117) -> 3.979052284 | J121: m3/s | M121: množství tepla na kondenzátoru | O121: Qk | P121: =BB70 -> 56763.6928 | Q121: W | AE121: 20 | AF121: 3.673333333 | AY121: 19 | AZ121: 3.637666667
A122: Požadované teplo na dohřev | C122: Qpož | D122: =(D134-D107)*Konstanty!F2*D119*I121+D88 -> 82432.22806 | E122: W | M122: Požadované teplo na dohřev | P122: =(P134-P107)*Konstanty!$F$2*P119*P58 -> 20868.94358 | Q122: W | AE122: 21 | AF122: 3.709 | AY122: 20 | AZ122: 3.673333333
A123: dosažená teplota | C123: t6 | D123: =D121/(D58*D119*Konstanty!$F$2)+D107 -> 33.98177773 | E123: °C | M123: dosažená teplota | O123: t6 | P123: =P121/(P58*P119*Konstanty!$F$2)+P107 -> 58.08011153 | Q123: °C | AE123: 22 | AF123: 3.744666667 | AY123: 21 | AZ123: 3.709
A124: potřeba dohřevu | C124: Qdohř | D124: =IF((D122-D121)>0,D122-D121,0) -> 25735.9461 | E124: W | M124: potřeba dohřevu | O124: Qdohř | P124: =IF((P122-P121)>0,P122-P121,0) -> 0 | Q124: W | AE124: 23 | AF124: 3.780333333 | AY124: 22 | AZ124: 3.744666667
A125: přebytečné teplo | C125: Qpřebyt | D125: =IF((D122-D121)<0,D121-D122,0) -> 0 | E125: W | M125: přebytečné teplo | O125: Qpřebyt | P125: =IF((P122-P121)<0,P121-P122,0) -> 35894.74921 | Q125: W | AE125: 24 | AF125: 3.816 | AY125: 23 | AZ125: 3.780333333
AE126: 25 | AF126: 3.851666667 | AY126: 24 | AZ126: 3.816
AE127: 26 | AF127: 3.887333333 | AY127: 25 | AZ127: 3.851666667
A128: teplota zvýšení do int | C128: tzv | D128: =Vypocet!D128 -> 2 | E128: °C | N128: teplota zvýšení do int | O128: tzv | P128: =Vypocet!P128 -> 2 | Q128: °C | AE128: 27 | AF128: 3.923 | AY128: 26 | AZ128: 3.887333333
A129: teplotní spád kondenzatoru | C129: Δt | D129: =Vypocet!D129 -> 0 | E129: °C | N129: teplotní spád kondenzatoru | O129: Δt | P129: =Vypocet!P129 -> 0 | Q129: °C | AE129: 28 | AF129: 3.958666667 | AY129: 27 | AZ129: 3.923
A130: teplota kondenzatoru | C130: tohř | D130: =Vypocet!D130 -> 0 | E130: °C | N130: teplota kondenzatoru | O130: tohř | P130: =Vypocet!P130 -> 0 | Q130: °C | AE130: 29 | AF130: 3.994333333 | AY130: 28 | AZ130: 3.958666667
A131: relativní vlhkost | C131: rhohř | D131: =Vypocet!D131 -> 0 | E131: % | N131: relativní vlhkost | O131: rhohř | P131: =Vypocet!P131 -> 0 | Q131: % | AE131: 30 | AF131: 4.03 | AY131: 29 | AZ131: 3.994333333
AE132: 31 | AF132: 4.065666667 | AY132: 30 | AZ132: 4.03
A133: t5 | B133: parametry vyduchu za kondenzátorem | M133: t5 | N133: parametry vyduchu za kondenzátorem | AE133: 32 | AF133: 4.101333333
A134: požadovaná teplotateplota do I | C134: t5 | D134: =Teplota+D128 -> 34 | E134: °C | M134: požadovaná teplota do I | O134: t5 | P134: =Teplota+P128 -> 34 | Q134: °C | AE134: 33 | AF134: 4.137
A135: dosažená teplota | C135: tdos | D135: =D123 -> 33.98177773 | E135: °C | M135: dosažená teplota | O135: t6 | P135: =P123 -> 58.08011153 | AE135: 34 | AF135: 4.172666667
AE136: 35 | AF136: 4.208333333
A137: relativní vlhkost | C137: rh5 | D137: =((D146*D116)/(D142*(0.622+D146)))*100 -> 26.65776139 | E137: % | M137: relativní vlhkost | O137: rh5 | P137: =((P146*P116)/(P142*(0.622+P146)))*100 -> 28.25621888 | Q137: %
A138: entalpie s.v. | C138: hsv5 | D138: =Konstanty!$F$2*D134 -> 34340 | E138: J/kg | M138: entalpie s.v. | O138: hsv5 | P138: =Konstanty!$F$2*P134 -> 34340 | Q138: J/kg
A139: entalpie v.p. | C139: hvp5 | D139: =D146*(Konstanty!$F$3*D134+Konstanty!$F$4) -> 23063.04 | E139: J/kg | M139: entalpie v.p. | O139: hvp5 | P139: =P146*(Konstanty!$F$3*P134+Konstanty!$F$4) -> 24445.95081 | Q139: J/kg
A140: entalpie | C140: h5 | D140: =D138+D139 -> 57403.04 | E140: J/kg | M140: entalpie | O140: h5 | P140: =P138+P139 -> 58785.95081 | Q140: J/kg
D141: =D140/1000 -> 57.40304 | E141: kJ/kg | P141: =P140/1000 -> 58.78595081 | Q141: kJ/kg
A142: tlak nasycené vodní páry | C142: p''vp5 | D142: =Konstanty!$F$12^((1500.3+23.5*D134)/(234+D134)) -> 5321.325002 | E142: Pa | M142: tlak nasycené vodní páry | O142: p''vp5 | P142: =Konstanty!$F$12^((1500.3+23.5*P134)/(234+P134)) -> 5321.325002 | Q142: Pa | AE142: dt vyp
A143: tlak vodní páry | C143: pvp5 | D143: =(D137/100)*D142 -> 1418.546122 | E143: Pa | M143: tlak vodní páry | O143: pvp5 | P143: =(P137/100)*P142 -> 1503.60524 | Q143: Pa | AE143: 2
A144: tlak suchého vzduchu | C144: psv5 | D144: =D148*Konstanty!$F$5*(D134+273.15) -> 97958.08466 | E144: Pa | M144: tlak suchého vzduchu | O144: psv5 | P144: =Konstanty!$F$8*Konstanty!$F$5*(P134+273.15) -> 108009.5893 | Q144: Pa | AE144: 3
A145: tlak směsi vlhkého vzduchu | C145: p5 | D145: =D143+D144 -> 99376.63078 | E145: Pa | M145: tlak směsi vlhkého vzduchu | O145: p5 | P145: =P143+P144 -> 109513.1945 | Q145: Pa | AE145: 4
A146: měrná vlhkost vzduchu | C146: x5 | D146: =D117 -> 0.009 | E146: kg/kg s.v. | M146: měrná vlhkost vzduchu | O146: x5 | P146: =P117 -> 0.009539659875 | Q146: kg/kg s.v. | AE146: 5
D147: =D146*1000 -> 9 | E147: g/kg s.v. | P147: =P146*1000 -> 9.539659875 | Q147: g/kg s.v. | AE147: 6 | AF147: =D124 -> 25735.9461
A148: hustota vzduchu při t | D148: =VLOOKUP(D134,Tabulky!$V$15:$AF$75,9,0) -> 1.111 | E148: kg/m3 | M148: hustota vzduchu při t | P148: =VLOOKUP(P134,Tabulky!$V$15:$AF$75,9,0) -> 1.111 | Q148: kg/m3 | AE148: 7
AE149: 8
A150: navlhčení z prostoru | M150: navlhčení z prostoru | AE150: 9
A151: dx=n.100/V.ρ | C151: dx | D151: =(D33*100)/D57*Konstanty!$F$8 -> 0.5924339684 | E151: g/kg s.v | M151: dx=n.100/V.ρ | O151: dx | P151: =(P30*100)/P57*Konstanty!$F$8 -> 0.05372030298 | Q151: g/kg s.v | AE151: 10
AE152: 11
A153: NUTNÉ vzduch privlhčit | M153: NUTNÉ vzduch privlhčit | AE153: 12
AE154: 13
AE155: 14
AE156: 15

Sheet V4
B1: Legenda | E1: hodnotu nutno zadat | J1: prevzato z první
E2: hodnota se vypočítává
E3: pomocná hodnota
A4: Parametry vzduchu | G4: interier klidovy rezim | U4: Produkce tepla od | X4: ni | Y4: =0.85*Y5+0.75*Y6+Y7 -> 60.5 | AB4: Qi=ni.6,2*(36-ti)
A5: Interiér | B5: ti | G5: Interiér | H5: ti | M5: Exteriér | N5: te | P5: minimální teplota -15 (tabulka) | U5: lidí | V5: =Y4*6.2*(36-Teplota) -> 1500.4 | W5: W | X5: nz | Y5: =Vypocet!Y5 -> 30 | Z5: zeny | AB5: ni=0,85nz+0,75nd+nm
A6: teplota | C6: ti | D6: =[0]!Teplota -> 32 | E6: °C | G6: teplota | I6: ti | J6: =Vypocet!J6 -> 24 | K6: °C | M6: teplota | O6: te | P6: =CEILING(Vypocet!P6+10,5) -> 0 | Q6: °C | X6: nd | Y6: =Vypocet!Y6 -> 20 | Z6: deti | AB6: nz - zeny, nd deti, nm muzi
A7: relativní vlhkost | C7: rhi | D7: =Vypocet!D7 -> 60 | E7: % | G7: relativní vlhkost | I7: rhi | J7: =Vypocet!J7 -> 55 | K7: % | M7: relativní vlhkost | O7: rhe | P7: =ROUND((93*te-3153.5)/(te-39.17),0) -> 81 | Q7: % | X7: nm | Y7: =Vypocet!Y7 -> 20 | Z7: muzi
A8: entalpie s.v. | C8: hsvi | D8: =Konstanty!$F$2*Teplota -> 32320 | E8: J/kg | G8: entalpie s.v. | I8: hsvi | J8: =Konstanty!$F$2*J6 -> 24240 | K8: J/kg | M8: entalpie s.v. | O8: hsve | P8: =Konstanty!$F$2*te -> 0 | Q8: J/kg
A9: entalpie v.p. | C9: hvpi | D9: =$D$16*(Konstanty!$F$3*Teplota+Konstanty!$F$4) -> 46343.0627 | E9: J/kg | G9: entalpie v.p. | I9: hvpi | J9: =$D$16*(Konstanty!$F$3*J6+Konstanty!$F$4) -> 46076.47346 | K9: J/kg | M9: entalpie v.p. | O9: hvpe | P9: =P16*(Konstanty!F3*P6+Konstanty!F4) -> 7824.162805 | Q9: J/kg | U9: Odpar z povrchů
A10: entalpie | C10: hi | D10: =D8+D9 -> 78663.0627 | E10: J/kg | G10: entalpie | I10: hi | J10: =J8+J9 -> 70316.47346 | K10: J/kg | M10: entalpie | O10: he | P10: =IF(P8<0,P9-P8,P8+P9) -> 7824.162805 | Q10: J/kg | AB10: (7+3,5*w)*S*(xp´´-x).10-3
D11: =D10/1000 -> 78.6630627 | E11: kJ/kg | J11: =J10/1000 -> 70.31647346 | K11: kJ/kg | P11: =P10/1000 -> 7.824162805 | Q11: kJ/kg | AB11: w stredni rychlost vzduchu
A12: tlak nasycené vodní páry | C12: p''vpi | D12: =Konstanty!$F$12^((1500.3+23.5*D6)/(234+D6)) -> 4756.622959 | E12: Pa | G12: tlak nasycené vodní páry | I12: p''vpi | J12: =Konstanty!$F$12^((1500.3+23.5*J6)/(234+J6)) -> 2984.426233 | K12: Pa | M12: tlak nasycené vodní páry | O12: p''vpe | P12: =Konstanty!$F$12^((1500.3+23.5*P6)/(234+P6)) -> 608.8296219 | Q12: Pa | S12: =2.718^(28.926-(6148/(273.15+te))) -> 612.5036633 | AB12: xp´´-merna vlhkost nasyceneho vzduchu
A13: tlak vodní páry | C13: pvpi | D13: =(D7/100)*D12 -> 2853.973775 | E13: Pa | G13: tlak vodní páry | I13: pvpi | J13: =(J7/100)*J12 -> 1641.434428 | K13: Pa | M13: tlak vodní páry | O13: pvpe | P13: =(P7/100)*P12 -> 493.1519937 | Q13: Pa | AB13: x - merna vlhkost vzduchu nad povrchem
A14: tlak suchého vzduchu | C14: psvi | D14: =D18*Konstanty!$F$5*(Teplota+273.15) -> 98021.00865 | E14: Pa | G14: tlak suchého vzduchu | I14: psvi | J14: =J18*Konstanty!$F$5*(Teplota+273.15) -> 100648.9177 | K14: Pa | M14: tlak suchého vzduchu | O14: psve | P14: =P18*Konstanty!F5*(P6+273.15) -> 98013.73162 | Q14: Pa | AB14: S plocha
A15: tlak směsi vlhkého vzduchu | C15: pi | D15: =D13+D14 -> 100874.9824 | E15: Pa | G15: tlak směsi vlhkého vzduchu | I15: pi | J15: =J13+J14 -> 102290.3522 | K15: Pa | M15: tlak směsi vlhkého vzduchu | O15: pe | P15: =P13+P14 -> 98506.88362 | Q15: Pa
A16: měrná vlhkost vzduchu | C16: xi | D16: =(Konstanty!$F$5/Konstanty!$F$6)*(D13/D14) -> 0.01811068229 | E16: kg/kg s.v. | G16: měrná vlhkost vzduchu | I16: xi | J16: =(Konstanty!$F$5/Konstanty!$F$6)*(J13/J14) -> 0.01014421464 | K16: kg/kg s.v. | M16: měrná vlhkost vzduchu | O16: xe | P16: =(Konstanty!F5/Konstanty!F6)*(P13/P14) -> 0.003129665122 | Q16: kg/kg s.v.
D17: =D16*1000 -> 18.11068229 | E17: g/kg s.v. | J17: =J16*1000 -> 10.14421464 | K17: g/kg s.v. | P17: =P16*1000 -> 3.129665122 | Q17: g/kg s.v.
A18: hustota vzduchu při t | D18: =VLOOKUP(Teplota,Tabulky!$V$15:$AF$75,9,0) -> 1.119 | E18: kg/m3 | G18: hustota vzduchu při t | J18: =VLOOKUP(J6,Tabulky!V15:AF75,9,0) -> 1.149 | K18: kg/m3 | M18: hustota vzduchu při t | P18: =VLOOKUP(te,Tabulky!V15:AF75,9,0) -> 1.25 | Q18: kg/m3
D19: =1.395-Teplota*0.004414 -> 1.253752
A20: Bazén | I20: rozměry bazénu
A21: Teplota vody | C21: tsniz | D21: =Vypocet!D21 -> 2 | E21: °C | F21: snížení teploty vody (dop 2-3°C) | I21: délka bazén | J21: a | K21: =Vypocet!K21 -> 25 | L21: m
A22: tvz-(2-3)°C | C22: tvod | D22: =D6-D21 -> 30 | E22: °C | I22: šířka bazén | J22: b | K22: =Vypocet!K22 -> 12 | L22: m
A24: Mn. odpařené vody
A25: mw=ε*A*(p´´vp-pvp) | C25: mw | D25: =D28*$D$29*($D$12/100-$D$13/100) -> 114158.951 | E25: g/h
D26: =D25/1000 -> 114.158951 | E26: kg/h | I26: budova
A27: typ bazenu | D27: =Vypocet!AH47 -> bazény - normální provoz | I27: délka | J27: a | K27: =Vypocet!K27 -> 40 | L27: m
A28: mnozstvi odp vody | D28: =VLOOKUP(D27,Tab_souc_odparu_bazen,7,0) -> 20 | H28: [g/(hPa.m2.h)] | I28: šířka | J28: b | K28: =Vypocet!K28 -> 15 | L28: m
A29: plocha bazénu | C29: A | D29: =K21*K22 -> 300 | E29: m2 | I29: výška | J29: v | K29: =Vypocet!K29 -> 7 | L29: m | M29: Produkce vlhkosti osobami - klidový režim
A30: Objem haly | C30: V | D30: =K27*K28*K29 -> 4200 | E30: m3 | M30: počet osob v bazénu | O30: nos | P30: =Vypocet!P30 -> 2
M31: množství vlhkosti | O31: mos | P31: =P30*100 -> 200 | Q31: g/h
A32: Produkce vlhkosti osobami - v provozu | P32: =P31/1000 -> 0.2 | Q32: kg/h | AE32: Výkon na kondenzátoru | AI32: Qk | AJ32: =AH69 -> 113243.3488 | AK32: W
A33: počet osob v bazénu | C33: nos | D33: =Vypocet!D33 -> 60 | E33: počet | G33: Produkce vlhkosti člověkem | P33: =P31/3600 -> 0.05555555556 | Q33: g/s | AJ33: =AH70 -> 113.2433488 | AK33: kW
A34: množství vlhkosti | C34: mos | D34: =D33*H35 -> 6300 | E34: g/h | G34: =Vypocet!AH50 -> člověk při středně těžké práci | AE34: Teplota požadovaná v interiéru | AI34: ti | AJ34: =Teplota -> 32 | AK34: °C
D35: =D34/1000 -> 6.3 | E35: kg/h | G35: =VLOOKUP(G34,Tabulky!W146:Z148,4,0) -> 60-150 | H35: =IF(G35="60-150",105,IF(G35="30-60",45,225)) -> 105 | I35: g/h | M35: Produkce vlhkosti - klidový režim | AY35: Výkon na kondenzátoru | BC35: Qk | BD35: =BB70 -> 56763.6928 | BE35: W
D36: =D34/3600 -> 1.75 | E36: g/s | G36: rozmezí | H36: průměr | L36: množství odpařené vody | O36: mw | P36: =Tabulky!$G$4*$D$29*($D$12/100-$D$13/100) -> 28539.73775 | Q36: g/h | BD36: =BB71 -> 56.7636928 | BE36: kW
A37: celkové množství odpařené vody | D37: =(D25+D34)*(I37/100+1) -> 126481.8986 | E37: g/h | H37: korekce | I37: =Vypocet!I37 -> 5 | J37: % | M37: celkové množství odpařené vody | P37: =(P36+P31)*(I37/100+1) -> 30176.72464 | Q37: g/h | AY37: Teplota požadovaná v interiéru | BC37: ti | BD37: =J6 -> 24 | BE37: °C
A38: Dimenzování průtoku vzduchu bazénové větrací jednotky pro zátěž | M38: Dimenzování průtoku vzduchu bazénové větrací jednotky pro klidový režim
A39: z množství odpařené vody | M39: z množství odpařené vody
A40: požadovaná vlhkost přiváděná | C40: xpoz | D40: =Vypocet!D40 -> 9 | E40: g/kg | G40: doporučená hodnota 8-10 g/kg | M40: požadovaná vlhkost přiváděná | O40: xpoz | P40: =Vypocet!P40 -> 9 | Q40: g/kg | S40: doporučená hodnota 8-10 g/kg
C41: V1 | D41: =(D37)/(D18*(D17-D40)) -> 12406.44594 | E41: m3/h | I41: =D147 -> 9 | J41: g/kg s.v. | O41: V1 | P41: =(P36+P31)/(Konstanty!$F$8*(J17-5)) -> 4560.659311 | Q41: m3/h
A42: z objemu haly | M42: z objemu haly
A43: výměna vzduchu | C43: n | D43: =Vypocet!D43 -> 1 | E43: 1/h | M43: výměna vzduchu | O43: n | P43: =Vypocet!P43 -> 1 | Q43: 1/h
A44: V=n*VH | C44: V2 | D44: =D30*D43 -> 4200 | E44: m3/h | M44: V=n*VH | O44: V2 | P44: =D30*P43 -> 4200 | Q44: m3/h
A45: z tepelných zisků
B46: tepelné ztráty | C46: Qzt | D46: =Vypocet!D46 -> 7 | E46: kW | H46: teplotní spád výústky | I46: dt | J46: =Vypocet!J46 -> 8 | K46: °C
B47: tepelné zisky | C47: Qzisk | D47: =Vypocet!D47 -> 16 | E47: kW
B48: Množství vzduchu | D48: =((D47-D46)/J46*Konstanty!$F$2*Konstanty!$F$8) -> 1391.90625 | E48: m3/h
A50: potřeba vzduchu pro osoby | W50: te | X50: teplota exteriérového vzduchu
C51: V2 | D51: =D33*D52 -> 3000 | W51: Qpředehřev | X51: Výkon pro předehřátí vzduchu
A52: množství čerstvého vzduchu/osoba | D52: =Vypocet!D52 -> 50 | E52: m3/h/os | G52: doporučená hodnota při zátěži (min hodnota 25m3/h) | W52: Qdohřátí | X52: Výkon spotřebovaný na dohřátí vzduchu na požadovanou úroveň
A54: Potřeba čerstvého vzduchu | D54: =IF(MAX(D41,D44,D48)>D51,"Ne","Ano") -> Ne | G54: nepočítá s tím dál samo! | AE54: Teplo odevzdané na výparníku | AK54: Množství kondenzátu
A55: Množství čerstvého vzduchu | D55: =IF(D54="ano",D51-MAX(D41,D44,D48),0) -> 0 | E55: m3/h | G55: pouze informativní charakter, množství V čerst rozhodne projektant | AE55: Qv=V*ρ*(hi-h3) | AG55: Qv | AH55: =D81 -> 85631.99912 | AI55: W | AK55: mkond = V*ρ*(xi-x3) | AM55: mkond | AN55: =IF(D58*D18*(D16-D77)<0,0,D58*D18*(D16-D77)) -> 0.01786982127 | AO55: kg/s | AY55: Teplo odevzdané na výparníku | BE55: Množství kondenzátu
AH56: =AH55/1000 -> 85.63199912 | AI56: kW | AN56: =AN55*1000 -> 17.86982127 | AO56: g/s | AY56: Qv=V*ρ*(hi-h3) | BA56: Qv | BB56: =P81 -> 47003.77313 | BC56: W | BE56: mkond = V*ρ*(xi-x3) | BG56: mkond | BH56: =IF(P58*J18*(J16-P77)<0,0,P58*J18*(J16-P77)) -> 0.002183415645 | BI56: kg/s
A57: průtok vzduchu | C57: V | D57: =MAX(D41,D44,D48) -> 12406.44594 | E57: m3/h | M57: průtok vzduchu | O57: V | P57: =MAX(P41,P44) -> 4560.659311 | Q57: m3/h | AN57: =AN55*3600 -> 64.33135657 | AO57: kg/h | BB57: =BB56/1000 -> 47.00377313 | BC57: kW | BH57: =BH56*1000 -> 2.183415645 | BI57: g/s
C58: V | D58: =D57/3600 -> 3.446234982 | E58: m3/s | O58: V | P58: =P57/3600 -> 1.266849809 | Q58: m3/s | AE58: Tepelné čerpadlo (TČ) | AI58: typ TČ | BH58: =BH56*3600 -> 7.860296323 | BI58: kg/h
AE59: Topný faktor TČ | AG59: COP | AH59: =VLOOKUP(Teplota,'V4'!AE83:AF136,2,0) -> 4.101333333 | AI59: Alfa S Duo | AY59: Tepelné čerpadlo (TČ) | BC59: typ TČ
A60: množství odebrané měrné vlh | C60: Δx | D60: 4.63388483 | E60: g/kg s.v | G60: vstupní měrná vlhkost do int | I60: xvyst | J60: =D147 -> 9 | K60: g/kg s.v. | AY60: Topný faktor TČ | BA60: COP | BB60: =VLOOKUP(J6,'V4'!AY84:AZ132,2,0) -> 3.816 | BC60: Alfa S Duo
A61: teplota chladiče | C61: tch | D61: =Vypocet!D61 -> 9 | E61: °C | AE61: Tepelná bilance TČ
A62: relativní vlhkost | C62: rhch | D62: =Vypocet!D62 -> 100 | E62: % | M62: množství odebrané měrné vlh | O62: Δx | P62: =Vypocet!P60 -> 1.5 | Q62: g/kg s.v. | AE62: Qk=Pel+Qv | AY62: Tepelná bilance TČ
M63: teplota chladiče | O63: tch | P63: =Vypocet!P61 -> 9 | Q63: °C | AE63: εt = COP | AF63: εt = Qv/Pel | AY63: Qk=Pel+Qv
M64: relativní vlhkost | O64: rhch | P64: =Vypocet!P62 -> 100 | Q64: % | AE64: Pel=Qk/(1+Et) | AY64: εt = COP | AZ64: εt = Qv/Pel
X65: Parametry chladiče | AE65: Výkon kompresoru | AG65: Pet | AH65: =AH55/(AH59-1) -> 27611.34967 | AI65: W | AY65: Pel=Qk/(1+Et)
A66: t3 | B66: parametry vyduchu za vyparnikem | M66: t3 | N66: parametry vyduchu za vyparnikem | X66: teplota | Z66: ti | AA66: =tch -> 9 | AB66: °C | AH66: =AH65/1000 -> 27.61134967 | AI66: kW | AY66: Výkon kompresoru | BA66: Pet | BB66: =BB56/(BB60+1) -> 9759.91967 | BC66: W
A67: teplota | C67: tvyp | D67: =W87 -> 22 | E67: °C | G67: =tvyp-te -> 22 | M67: teplota | O67: tvyp | P67: =W112 -> 16 | Q67: °C | X67: relativní vlhkost | Z67: rhi | AA67: =D62 -> 100 | AB67: % | AE67: Prikon kompresoru | AH67: =AH66/AH59 -> 6.732286169 | AI67: kW | BB67: =BB66/1000 -> 9.75991967 | BC67: kW
A68: relativní vlhkost | C68: rh3 | D68: =IF((D74/D73)*100>100,100,(D74/D73)*100) -> 80.32925201 | E68: % | M68: relativní vlhkost | O68: rh3 | P68: =IF((P74/P73)*100>100,100,(P74/P73)*100) -> 74.95783123 | Q68: % | X68: entalpie s.v. | Z68: hsvi | AA68: =Konstanty!$F$2*AA66 -> 9090 | AB68: J/kg | AE68: Teplo na kondenzátoru
A69: entalpie s.v. | C69: h3 | D69: =Konstanty!$F$2*D67 -> 22220 | E69: J/kg | M69: entalpie s.v. | O69: h3 | P69: =Konstanty!$F$2*P67 -> 16160 | Q69: J/kg | X69: entalpie v.p. | Z69: hvpi | AA69: =$AA$76*(Konstanty!$F$3*AA66+Konstanty!$F$4) -> 18311.90427 | AB69: J/kg | AE69: Výkon na kondenzátoru | AG69: Qk | AH69: =AH65+AH55 -> 113243.3488 | AI69: W | AY69: Teplo na kondenzátoru
A70: entalpie v.p. | C70: h3 | D70: =D77*(Konstanty!$F$3*D67+Konstanty!$F$4) -> 34237.53441 | E70: J/kg | M70: entalpie v.p. | O70: h3 | P70: =P77*(Konstanty!$F$3*P67+Konstanty!$F$4) -> 21865.02229 | Q70: J/kg | X70: entalpie | Z70: hi | AA70: =AA68+AA69 -> 27401.90427 | AB70: J/kg | AH70: =AH69/1000 -> 113.2433488 | AI70: kW | AY70: Výkon na kondenzátoru | BA70: Qk | BB70: =BB66+BB56 -> 56763.6928 | BC70: W
A71: entalpie | C71: h3 | D71: =D69+D70 -> 56457.53441 | E71: J/kg | M71: entalpie | O71: h3 | P71: =P69+P70 -> 38025.02229 | Q71: J/kg | AA71: =AA70/1000 -> 27.40190427 | AB71: kJ/kg | BB71: =BB70/1000 -> 56.7636928 | BC71: kW
D72: =D71/1000 -> 56.45753441 | E72: kJ/kg | P72: =P71/1000 -> 38.02502229 | Q72: kJ/kg | X72: tlak nasycené vodní páry | Z72: p''vpi | AA72: =Konstanty!$F$12^((1500.3+23.5*AA66)/(234+AA66)) -> 1146.47173 | AB72: Pa
A73: tlak nasycené vodní páry | C73: p''vp3 | D73: =Konstanty!$F$12^((1500.3+23.5*D67)/(234+D67)) -> 2644.07912 | E73: Pa | M73: tlak nasycené vodní páry | O73: p''vp3 | P73: =Konstanty!$F$12^((1500.3+23.5*P67)/(234+P67)) -> 1817.468722 | Q73: Pa | X73: tlak vodní páry | Z73: pvpi | AA73: =(AA67/100)*AA72 -> 1146.47173 | AB73: Pa | AE73: Graf topneho faktoru | AH73: TnG Air 13, vzduch/voda
A74: tlak vodní páry | C74: pvp3 | D74: =(D77*D75)/0.622 -> 2123.96898 | E74: Pa | G74: =((G77*D75)/(0.622+G77))/((0.622-G77)/(0.622)) -> 0 | H74: přepočet tlaku z x | M74: tlak vodní páry | O74: pvp3 | P74: =(P77*P75)/0.622 -> 1362.335137 | Q74: Pa | S74: =((S77*P75)/(0.622+S77))/((0.622-S77)/(0.622)) -> 1599.161688 | T74: přepočet tlaku z x | X74: tlak suchého vzduchu | Z74: psvi | AA74: =AA78*Konstanty!$F$5*(AA66+273.15) -> 98003.39739 | AB74: Pa | AY74: Graf topneho faktoru | BB74: TnG Air 13, vzduch/voda
A75: tlak suchého vzduchu | C75: psv3 | D75: =D79*Konstanty!$F$5*(D67+273.15) -> 98028.38614 | E75: Pa | M75: tlak suchého vzduchu | O75: psv3 | P75: =P79*Konstanty!$F$5*(P67+273.15) -> 98027.69719 | Q75: Pa | X75: tlak směsi vlhkého vzduchu | Z75: pi | AA75: =AA73+AA74 -> 99149.86912 | AB75: Pa | AE75: =Vypocet!AE107 -> teplota | AF75: =Vypocet!AF107 -> -18 | AG75: =Vypocet!AG107 -> -15 | AH75: =Vypocet!AH107 -> -10 | AI75: =Vypocet!AI107 -> -5 | AJ75: =Vypocet!AJ107 -> 0 | AK75: =Vypocet!AK107 -> 5 | AL75: =Vypocet!AL107 -> 10 | AM75: =Vypocet!AM107 -> 15
A76: tlak směsi vlhkého vzduchu | C76: p3 | D76: =D74+D75 -> 100152.3551 | E76: Pa | M76: tlak směsi vlhkého vzduchu | O76: p3 | P76: =P74+P75 -> 99390.03233 | Q76: Pa | X76: měrná vlhkost vzduchu | Z76: xi | AA76: =(Konstanty!$F$5/Konstanty!$F$6)*(AA73/AA74) -> 0.007276561764 | AB76: kg/kg s.v. | AE76: =Vypocet!AE108 -> vykon | AF76: =Vypocet!AF108 -> 4.7 | AG76: =Vypocet!AG108 -> 5.75 | AH76: =Vypocet!AH108 -> 7 | AI76: =Vypocet!AI108 -> 8.24 | AJ76: =Vypocet!AJ108 -> 9.46 | AK76: =Vypocet!AK108 -> 10.69 | AL76: =Vypocet!AL108 -> 11.8 | AM76: =Vypocet!AM108 -> 13.1 | AY76: =Vypocet!AY108 -> teplota | AZ76: =Vypocet!AZ108 -> -18 | BA76: =Vypocet!BA108 -> -15 | BB76: =Vypocet!BB108 -> -10 | BC76: =Vypocet!BC108 -> -5 | BD76: =Vypocet!BD108 -> 0 | BE76: =Vypocet!BE108 -> 5 | BF76: =Vypocet!BF108 -> 10 | BG76: =Vypocet!BG108 -> 15
A77: měrná vlhkost vzduchu | C77: x3 | D77: =D16-deltaT/1000 -> 0.01347679746 | E77: kg/kg s.v. | G77: =IF(tvyp<D82,0,D16) -> 0 | H77: vezme x z Ti když tvyp<rosny bod | M77: měrná vlhkost vzduchu | O77: x3 | P77: =J16-P62/1000 -> 0.008644214643 | Q77: kg/kg s.v. | S77: =IF(tvyp<P82,0,J16) -> 0.01014421464 | T77: vezme x z Ti když tvyp<rosny bod | AA77: =AA76*1000 -> 7.276561764 | AB77: g/kg s.v. | AE77: =Vypocet!AE109 -> el prikon | AF77: =Vypocet!AF109 -> 2.24 | AG77: =Vypocet!AG109 -> 2.47 | AH77: =Vypocet!AH109 -> 2.72 | AI77: =Vypocet!AI109 -> 2.94 | AJ77: =Vypocet!AJ109 -> 3.2 | AK77: =Vypocet!AK109 -> 3.37 | AL77: =Vypocet!AL109 -> 3.55 | AM77: =Vypocet!AM109 -> 3.85 | AY77: =Vypocet!AY109 -> vykon | AZ77: =Vypocet!AZ109 -> 4.7 | BA77: =Vypocet!BA109 -> 5.75 | BB77: =Vypocet!BB109 -> 7 | BC77: =Vypocet!BC109 -> 8.24 | BD77: =Vypocet!BD109 -> 9.46 | BE77: =Vypocet!BE109 -> 10.69 | BF77: =Vypocet!BF109 -> 11.8 | BG77: =Vypocet!BG109 -> 13.1
D78: =D77*1000 -> 13.47679746 | E78: g/kg s.v. | P78: =P77*1000 -> 8.644214643 | Q78: g/kg s.v. | X78: hustota vzduchu při t | AA78: =VLOOKUP(AA66,Tabulky!$V$15:$AF$75,9,0) -> 1.21 | AB78: kg/m3 | AE78: =Vypocet!AE110 -> COP | AF78: =Vypocet!AF110 -> 2.1 | AG78: =Vypocet!AG110 -> 2.33 | AH78: =Vypocet!AH110 -> 2.57 | AI78: =Vypocet!AI110 -> 2.8 | AJ78: =Vypocet!AJ110 -> 2.96 | AK78: =Vypocet!AK110 -> 3.17 | AL78: =Vypocet!AL110 -> 3.32 | AM78: =Vypocet!AM110 -> 3.4 | AY78: =Vypocet!AY110 -> el prikon | AZ78: =Vypocet!AZ110 -> 2.24 | BA78: =Vypocet!BA110 -> 2.47 | BB78: =Vypocet!BB110 -> 2.72 | BC78: =Vypocet!BC110 -> 2.94 | BD78: =Vypocet!BD110 -> 3.2 | BE78: =Vypocet!BE110 -> 3.37 | BF78: =Vypocet!BF110 -> 3.55 | BG78: =Vypocet!BG110 -> 3.85
A79: hustota vzduchu při t | D79: =VLOOKUP(tvyp,Tabulky!$V$15:$AF$75,9,0) -> 1.157 | E79: kg/m3 | M79: hustota vzduchu při t | P79: =VLOOKUP(P67,Tabulky!$V$15:$AF$75,9,0) -> 1.181 | Q79: kg/m3 | AA79: =1.395-Teplota*0.004414 -> 1.253752 | AH79: =AH78-AG78 -> 0.24 | AI79: 0.23 | AJ79: 0.16 | AK79: 0.21 | AL79: 0.15 | AM79: 0.08 | AN79: průměr | AO79: =AVERAGE(AG79:AM79) -> 0.1783333333 | AP79: prumer/1 | AQ79: =AO79/5 -> 0.03566666667 | AY79: =Vypocet!AY111 -> COP | AZ79: =Vypocet!AZ111 -> 2.1 | BA79: =Vypocet!BA111 -> 2.33 | BB79: =Vypocet!BB111 -> 2.57 | BC79: =Vypocet!BC111 -> 2.8 | BD79: =Vypocet!BD111 -> 2.96 | BE79: =Vypocet!BE111 -> 3.17 | BF79: =Vypocet!BF111 -> 3.32 | BG79: =Vypocet!BG111 -> 3.4
AF80: popis závislosti | AH80: y=0,18571x+2,96 | BB80: =BB79-BA79 -> 0.24 | BC80: 0.23 | BD80: 0.16 | BE80: 0.21 | BF80: 0.15 | BG80: 0.08 | BH80: průměr | BI80: =AVERAGE(BA80:BG80) -> 0.1783333333 | BJ80: prumer/1 | BK80: =BI80/5 -> 0.03566666667
A81: teplo získané na výparníku | C81: Qv | D81: =D58*D18*(D10-D71) -> 85631.99912 | E81: W | M81: teplo získané na výparníku | O81: Qv | P81: =P58*J18*(J10-P71) -> 47003.77313 | Q81: W | U81: A | V81: Ti | W81: =Teplota -> 32 | Y81: B | Z81: tch | AA81: =AA66 -> 9 | AZ81: popis závislosti | BB81: y=0,18571x+2,96
B82: rosný bod | D82: =(243.5*LN(($D$7/100)*Konstanty!$F$12^((17.67*Teplota)/(243.5+Teplota))))/(17.67-(LN(($D$7/100)*Konstanty!$F$12^((17.67*Teplota)/(243.5+Teplota))))) -> 23.27425187 | E82: °C | N82: rosný bod | P82: =(243.5*LN((J7/100)*Konstanty!$F$12^((17.67*J6)/(243.5+J6))))/(17.67-(LN((J7/100)*Konstanty!$F$12^((17.67*J6)/(243.5+J6))))) -> 14.41381795 | Q82: °C | V82: xi | W82: =D16 -> 0.01811068229 | Z82: xch | AA82: =AA76 -> 0.007276561764 | AE82: teplota | AF82: COP | AH82: -18 | AI82: 2.1
V83: xi | W83: =D17 -> 18.11068229 | Z83: xch | AA83: =AA77 -> 7.276561764 | AE83: -18 | AF83: =$AQ$79*AE83+$AJ$78 -> 2.318 | AH83: -15 | AI83: 2.33 | AY83: teplota | AZ83: COP
A84: Distribuce tepla v závislosti na externí teplotě | AE84: -17 | AF84: 2.353666667 | AH84: -10 | AI84: 2.57 | AY84: -18 | AZ84: =$AQ$79*AY84+$AJ$78 -> 2.318
A85: teplota předehřevu te | C85: tpřed | D85: =Vypocet!D85 -> 5 | E85: °C | V85: dx | W85: =deltaT -> 4.63388483 | Y85: výpočet teplochy při teplote chladice | AE85: -16 | AF85: 2.389333333 | AH85: -5 | AI85: 2.8 | AY85: -17 | AZ85: 2.353666667
A86: množství čerst vzduchu | D86: =Vypocet!D86 -> 30 | E86: % | V86: th | W86: =((W81-AA81)*W83+(AA83-W83)*W81-(W81-AA81)*(W83-W85))/(AA83-W83) -> 22.16262088 | Y86: počítá s přímkou ti - tch a na ní počítá bod | AE86: -15 | AF86: 2.425 | AH86: 0 | AI86: 2.96 | AY86: -16 | AZ86: 2.389333333
A87: množství předehřívaného vzd | D87: =D58*(D86/100) -> 1.033870495 | E87: m3/h | W87: =ROUND(W86,0) -> 22 | AE87: -14 | AF87: 2.460666667 | AH87: 5 | AI87: 3.17 | AY87: -15 | AZ87: 2.425
A88: potřeba tepla na předehřev | D88: =IF(D85>te,((D87*P18)/(1+P16))*(D85-te)*P18*Konstanty!$F$2,0) -> 8132.432581 | E88: W | AE88: -13 | AF88: 2.496333333 | AH88: 10 | AI88: 3.32 | AY88: -14 | AZ88: 2.460666667
AE89: -12 | AF89: 2.532 | AH89: 15 | AI89: 3.4 | AY89: -13 | AZ89: 2.496333333
A90: t4 | B90: Předehřev exteriérového vzduchu | M90: t4 | N90: Předehřev exteriérového vzduchu | X90: Parametry chladiče klidovy rezim | AE90: -11 | AF90: 2.567666667 | AY90: -12 | AZ90: 2.532
A91: teplota předehřevu | C91: tpředehřev | D91: =IF($D$85>te,$D$85,te) -> 5 | E91: °C | M91: teplota předehřevu | O91: tpředehřev | P91: =IF($D$85>te,$D$85,te) -> 5 | Q91: °C | X91: teplota | Z91: ti | AA91: =P63 -> 9 | AB91: °C | AE91: -10 | AF91: 2.603333333 | AY91: -11 | AZ91: 2.567666667
C92: rhpředehřev | D92: =((D101*P15)/(D97*(0.622+D101)))*100 -> 56.65505156 | E92: % | O92: rhpředehřev | P92: =((P101*P15)/(P97*(0.622+P101)))*100 -> 56.65505156 | Q92: % | X92: relativní vlhkost | Z92: rhi | AA92: =P64 -> 100 | AB92: % | AE92: -9 | AF92: 2.639 | AY92: -10 | AZ92: 2.603333333
A93: entalpie s.v. | C93: hsv4 | D93: =Konstanty!$F$2*D91 -> 5050 | E93: J/kg | M93: entalpie s.v. | O93: hsv4 | P93: =Konstanty!$F$2*P91 -> 5050 | Q93: J/kg | X93: entalpie s.v. | Z93: hsvi | AA93: =Konstanty!$F$2*AA91 -> 9090 | AB93: J/kg | AE93: -8 | AF93: 2.674666667 | AY93: -9 | AZ93: 2.639
A94: entalpie v.p. | C94: hvp4 | D94: =D101*(Konstanty!$F$3*D91+Konstanty!$F$4) -> 7852.955724 | E94: J/kg | M94: entalpie v.p. | O94: hvp4 | P94: =P101*(Konstanty!$F$3*P91+Konstanty!$F$4) -> 7852.955724 | Q94: J/kg | X94: entalpie v.p. | Z94: hvpi | AA94: =$AA$76*(Konstanty!$F$3*AA91+Konstanty!$F$4) -> 18311.90427 | AB94: J/kg | AE94: -7 | AF94: 2.710333333 | AY94: -8 | AZ94: 2.674666667
A95: entalpie | C95: h4 | D95: =D93+D94 -> 12902.95572 | E95: J/kg | M95: entalpie | O95: h4 | P95: =P93+P94 -> 12902.95572 | Q95: J/kg | X95: entalpie | Z95: hi | AA95: =AA93+AA94 -> 27401.90427 | AB95: J/kg | AE95: -6 | AF95: 2.746 | AY95: -7 | AZ95: 2.710333333
D96: =D95/1000 -> 12.90295572 | E96: kJ/kg | P96: =P95/1000 -> 12.90295572 | Q96: kJ/kg | AA96: =AA95/1000 -> 27.40190427 | AB96: kJ/kg | AE96: -5 | AF96: 2.781666667 | AY96: -6 | AZ96: 2.746
A97: tlak nasycené vodní páry | C97: p''vp4 | D97: =Konstanty!$F$12^((1500.3+23.5*D91)/(234+D91)) -> 870.4737963 | E97: Pa | M97: tlak nasycené vodní páry | O97: p''vp4 | P97: =Konstanty!$F$12^((1500.3+23.5*P91)/(234+P91)) -> 870.4737963 | Q97: Pa | X97: tlak nasycené vodní páry | Z97: p''vpi | AA97: =Konstanty!$F$12^((1500.3+23.5*AA91)/(234+AA91)) -> 1146.47173 | AB97: Pa | AE97: -4 | AF97: 2.817333333 | AY97: -5 | AZ97: 2.781666667
A98: tlak vodní páry | C98: pvp4 | D98: =(D92/100)*D97 -> 493.1673781 | E98: Pa | M98: tlak vodní páry | O98: pvp4 | P98: =(P92/100)*P97 -> 493.1673781 | Q98: Pa | X98: tlak vodní páry | Z98: pvpi | AA98: =(AA92/100)*AA97 -> 1146.47173 | AB98: Pa | AE98: -3 | AF98: 2.853 | AY98: -4 | AZ98: 2.817333333
A99: tlak suchého vzduchu | C99: psv4 | D99: =D103*Konstanty!$F$5*(D91+273.15) -> 97971.40433 | E99: Pa | M99: tlak suchého vzduchu | O99: psv4 | P99: =P103*Konstanty!$F$5*(P91+273.15) -> 97971.40433 | Q99: Pa | X99: tlak suchého vzduchu | Z99: psvi | AA99: =AA103*Konstanty!$F$5*(AA91+273.15) -> 98003.39739 | AB99: Pa | AE99: -2 | AF99: 2.888666667 | AY99: -3 | AZ99: 2.853
A100: tlak směsi vlhkého vzduchu | C100: p4 | D100: =D98+D99 -> 98464.57171 | E100: Pa | M100: tlak směsi vlhkého vzduchu | O100: p4 | P100: =P98+P99 -> 98464.57171 | Q100: Pa | X100: tlak směsi vlhkého vzduchu | Z100: pi | AA100: =AA98+AA99 -> 99149.86912 | AB100: Pa | AE100: -1 | AF100: 2.924333333 | AY100: -2 | AZ100: 2.888666667
A101: měrná vlhkost vzduchu | C101: x4 | D101: =P16 -> 0.003129665122 | E101: kg/kg s.v. | M101: měrná vlhkost vzduchu | O101: x4 | P101: =P16 -> 0.003129665122 | Q101: kg/kg s.v. | X101: měrná vlhkost vzduchu | Z101: xi | AA101: =(Konstanty!$F$5/Konstanty!$F$6)*(AA98/AA99) -> 0.007276561764 | AB101: kg/kg s.v. | AE101: 0 | AF101: 2.96 | AY101: -1 | AZ101: 2.924333333
D102: =D101*1000 -> 3.129665122 | E102: g/kg s.v. | P102: =P101*1000 -> 3.129665122 | Q102: g/kg s.v. | AA102: =AA101*1000 -> 7.276561764 | AB102: g/kg s.v. | AE102: 1 | AF102: 2.995666667 | AY102: 0 | AZ102: 2.96
A103: hustota vzduchu při t | D103: =VLOOKUP(D91,Tabulky!$V$15:$AF$75,9,0) -> 1.227 | E103: kg/m3 | M103: hustota vzduchu při t | P103: =VLOOKUP(P91,Tabulky!$V$15:$AF$75,9,0) -> 1.227 | Q103: kg/m3 | X103: hustota vzduchu při t | AA103: =VLOOKUP(AA91,Tabulky!$V$15:$AF$75,9,0) -> 1.21 | AB103: kg/m3 | AE103: 2 | AF103: 3.031333333 | AY103: 1 | AZ103: 2.995666667
AA104: =1.395-Teplota*0.004414 -> 1.253752 | AE104: 3 | AF104: 3.067 | AY104: 2 | AZ104: 3.031333333
A105: t4' | B105: smíšení vzduchu s exteriérovým | M105: t4' | N105: smíšení vzduchu s exteriérovým | AE105: 4 | AF105: 3.102666667 | AY105: 3 | AZ105: 3.067
A106: Množství čerstvého vzduchu | C106: Včerstv | D106: =IF(D91>tvyp,100,$D$86) -> 30 | E106: % | M106: Množství čerstvého vzduchu | O106: Včerstv | P106: =IF(P91>tvyp,100,$D$86) -> 30 | Q106: % | U106: A | V106: Ti | W106: =J6 -> 24 | Y106: B | Z106: tch | AA106: =AA91 -> 9 | AE106: 5 | AF106: 3.138333333 | AY106: 4 | AZ106: 3.102666667
A107: teplota vzduchu | C107: t4 | D107: =ROUND(((((D106/100)*D58)*D91+((1-(D106/100))*D58)*tvyp)/D58),0) -> 17 | E107: °C | M107: teplota vzduchu | O107: t4 | P107: =ROUND(((((P106/100)*P58)*P91+((1-(P106/100))*P58)*tvyp)/P58),0) -> 17 | Q107: °C | V107: xi | W107: =J16 -> 0.01014421464 | Z107: xch | AA107: =AA101 -> 0.007276561764 | AE107: 6 | AF107: 3.174 | AY107: 5 | AZ107: 3.138333333
A108: relativní vlhkost | C108: rh4 | D108: =(1-(D106/100))*D68+(D106/100)*D92 -> 73.22699187 | E108: % | M108: relativní vlhkost | O108: rh4 | P108: =(1-(P106/100))*P68+(P106/100)*P92 -> 69.46699733 | Q108: % | V108: xi | W108: =J17 -> 10.14421464 | Z108: xch | AA108: =AA102 -> 7.276561764 | AE108: 7 | AF108: 3.209666667 | AY108: 6 | AZ108: 3.174
A109: entalpie s.v. | C109: hsv4 | D109: =Konstanty!$F$2*D107 -> 17170 | E109: J/kg | M109: entalpie s.v. | O109: hsv4 | P109: =Konstanty!$F$2*P107 -> 17170 | Q109: J/kg | AE109: 8 | AF109: 3.245333333 | AY109: 7 | AZ109: 3.209666667
A110: entalpie v.p. | C110: hvp4 | D110: =D117*(Konstanty!$F$3*D107+Konstanty!$F$4) -> 22781.52 | E110: J/kg | M110: entalpie v.p. | O110: hvp4 | P110: =P117*(Konstanty!$F$3*P107+Konstanty!$F$4) -> 21611.75474 | Q110: J/kg | V110: dx | W110: =P62 -> 1.5 | AE110: 9 | AF110: 3.281 | AY110: 8 | AZ110: 3.245333333
A111: entalpie | C111: h4 | D111: =D109+D110 -> 39951.52 | E111: J/kg | M111: entalpie | O111: h4 | P111: =P109+P110 -> 38781.75474 | Q111: J/kg | V111: th | W111: =((W106-AA106)*W108+(AA108-W108)*W106-(W106-AA106)*(W108-W110))/(AA108-W108) -> 16.15386208 | AE111: 10 | AF111: 3.316666667 | AY111: 9 | AZ111: 3.281
D112: =D111/1000 -> 39.95152 | E112: kJ/kg | P112: =P111/1000 -> 38.78175474 | Q112: kJ/kg | W112: =ROUND(W111,0) -> 16 | AE112: 11 | AF112: 3.352333333 | AY112: 10 | AZ112: 3.316666667
A113: tlak nasycené vodní páry | C113: p''vp4 | D113: =Konstanty!$F$12^((1500.3+23.5*D107)/(234+D107)) -> 1937.055475 | E113: Pa | M113: tlak nasycené vodní páry | O113: p''vp4 | P113: =Konstanty!$F$12^((1500.3+23.5*P107)/(234+P107)) -> 1937.055475 | Q113: Pa | AE113: 12 | AF113: 3.388 | AY113: 11 | AZ113: 3.352333333
A114: tlak vodní páry | C114: pvp4 | D114: =(D108/100)*D113 -> 1418.447455 | E114: Pa | M114: tlak vodní páry | O114: pvp4 | P114: =(P108/100)*P113 -> 1345.614275 | Q114: Pa | AE114: 13 | AF114: 3.423666667 | AY114: 12 | AZ114: 3.388
A115: tlak suchého vzduchu | C115: psv4 | D115: =D119*Konstanty!$F$5*(D107+273.15) -> 98033.55326 | E115: Pa | M115: tlak suchého vzduchu | O115: psv4 | P115: =P119*Konstanty!$F$5*(P107+273.15) -> 98033.55326 | Q115: Pa | AE115: 14 | AF115: 3.459333333 | AY115: 13 | AZ115: 3.423666667
A116: tlak směsi vlhkého vzduchu | C116: p4 | D116: =D114+D115 -> 99452.00071 | E116: Pa | M116: tlak směsi vlhkého vzduchu | O116: p4 | P116: =P114+P115 -> 99379.16753 | Q116: Pa | AE116: 15 | AF116: 3.495 | AY116: 14 | AZ116: 3.459333333
A117: měrná vlhkost vzduchu | C117: x4 | D117: =(Konstanty!$F$5/Konstanty!$F$6)*(D114/D115) -> 0.009 | E117: kg/kg s.v. | M117: měrná vlhkost vzduchu | O117: x4 | P117: =(Konstanty!$F$5/Konstanty!$F$6)*(P114/P115) -> 0.008537875993 | Q117: kg/kg s.v. | AE117: 16 | AF117: 3.530666667 | AY117: 15 | AZ117: 3.495
D118: =D117*1000 -> 9 | E118: g/kg s.v. | P118: =P117*1000 -> 8.537875993 | Q118: g/kg s.v. | AE118: 17 | AF118: 3.566333333 | AY118: 16 | AZ118: 3.530666667
A119: hustota vzduchu při t | D119: =VLOOKUP(D107,Tabulky!$V$15:$AF$75,9,0) -> 1.177 | E119: kg/m3 | M119: hustota vzduchu při t | P119: =VLOOKUP(P107,Tabulky!$V$15:$AF$75,9,0) -> 1.177 | Q119: kg/m3 | AE119: 18 | AF119: 3.602 | AY119: 17 | AZ119: 3.566333333
AE120: 19 | AF120: 3.637666667 | AY120: 18 | AZ120: 3.602
A121: množství tepla na kondenzátoru | C121: Qk | D121: =AH69 -> 113243.3488 | E121: W | H121: přepočet mw na msv | I121: =(D58*D119)/(1+D117) -> 4.02003823 | J121: m3/s | M121: množství tepla na kondenzátoru | O121: Qk | P121: =BB70 -> 56763.6928 | Q121: W | AE121: 20 | AF121: 3.673333333 | AY121: 19 | AZ121: 3.637666667
A122: Požadované teplo na dohřev | C122: Qpož | D122: =(D134-D107)*Konstanty!F2*D119*I121+D88 -> 89373.74697 | E122: W | M122: Požadované teplo na dohřev | P122: =(P134-P107)*Konstanty!$F$2*P119*P58 -> 25601.8818 | Q122: W | AE122: 21 | AF122: 3.709 | AY122: 20 | AZ122: 3.673333333
A123: dosažená teplota | C123: t6 | D123: =D121/(D58*D119*Konstanty!$F$2)+D107 -> 44.64203296 | E123: °C | M123: dosažená teplota | O123: t6 | P123: =P121/(P58*P119*Konstanty!$F$2)+P107 -> 54.6918691 | Q123: °C | AE123: 22 | AF123: 3.744666667 | AY123: 21 | AZ123: 3.709
A124: potřeba dohřevu | C124: Qdohř | D124: =IF((D122-D121)>0,D122-D121,0) -> 0 | E124: W | M124: potřeba dohřevu | O124: Qdohř | P124: =IF((P122-P121)>0,P122-P121,0) -> 0 | Q124: W | AE124: 23 | AF124: 3.780333333 | AY124: 22 | AZ124: 3.744666667
A125: přebytečné teplo | C125: Qpřebyt | D125: =IF((D122-D121)<0,D121-D122,0) -> 23869.60182 | E125: W | M125: přebytečné teplo | O125: Qpřebyt | P125: =IF((P122-P121)<0,P121-P122,0) -> 31161.811 | Q125: W | AE125: 24 | AF125: 3.816 | AY125: 23 | AZ125: 3.780333333
AE126: 25 | AF126: 3.851666667 | AY126: 24 | AZ126: 3.816
AE127: 26 | AF127: 3.887333333 | AY127: 25 | AZ127: 3.851666667
A128: teplota zvýšení do int | C128: tzv | D128: =Vypocet!D128 -> 2 | E128: °C | N128: teplota zvýšení do int | O128: tzv | P128: =Vypocet!P128 -> 2 | Q128: °C | AE128: 27 | AF128: 3.923 | AY128: 26 | AZ128: 3.887333333
A129: teplotní spád kondenzatoru | C129: Δt | D129: =Vypocet!D129 -> 0 | E129: °C | N129: teplotní spád kondenzatoru | O129: Δt | P129: =Vypocet!P129 -> 0 | Q129: °C | AE129: 28 | AF129: 3.958666667 | AY129: 27 | AZ129: 3.923
A130: teplota kondenzatoru | C130: tohř | D130: =Vypocet!D130 -> 0 | E130: °C | N130: teplota kondenzatoru | O130: tohř | P130: =Vypocet!P130 -> 0 | Q130: °C | AE130: 29 | AF130: 3.994333333 | AY130: 28 | AZ130: 3.958666667
A131: relativní vlhkost | C131: rhohř | D131: =Vypocet!D131 -> 0 | E131: % | N131: relativní vlhkost | O131: rhohř | P131: =Vypocet!P131 -> 0 | Q131: % | AE131: 30 | AF131: 4.03 | AY131: 29 | AZ131: 3.994333333
AE132: 31 | AF132: 4.065666667 | AY132: 30 | AZ132: 4.03
A133: t5 | B133: parametry vyduchu za kondenzátorem | M133: t5 | N133: parametry vyduchu za kondenzátorem | AE133: 32 | AF133: 4.101333333
A134: požadovaná teplotateplota do I | C134: t5 | D134: =Teplota+D128 -> 34 | E134: °C | M134: požadovaná teplota do I | O134: t5 | P134: =Teplota+P128 -> 34 | Q134: °C | AE134: 33 | AF134: 4.137
A135: dosažená teplota | C135: tdos | D135: =D123 -> 44.64203296 | E135: °C | M135: dosažená teplota | O135: t6 | P135: =P123 -> 54.6918691 | AE135: 34 | AF135: 4.172666667
AE136: 35 | AF136: 4.208333333
A137: relativní vlhkost | C137: rh5 | D137: =((D146*D116)/(D142*(0.622+D146)))*100 -> 26.65673104 | E137: % | M137: relativní vlhkost | O137: rh5 | P137: =((P146*P116)/(P142*(0.622+P146)))*100 -> 25.28798547 | Q137: %
A138: entalpie s.v. | C138: hsv5 | D138: =Konstanty!$F$2*D134 -> 34340 | E138: J/kg | M138: entalpie s.v. | O138: hsv5 | P138: =Konstanty!$F$2*P134 -> 34340 | Q138: J/kg
A139: entalpie v.p. | C139: hvp5 | D139: =D146*(Konstanty!$F$3*D134+Konstanty!$F$4) -> 23063.04 | E139: J/kg | M139: entalpie v.p. | O139: hvp5 | P139: =P146*(Konstanty!$F$3*P134+Konstanty!$F$4) -> 21878.81951 | Q139: J/kg
A140: entalpie | C140: h5 | D140: =D138+D139 -> 57403.04 | E140: J/kg | M140: entalpie | O140: h5 | P140: =P138+P139 -> 56218.81951 | Q140: J/kg
D141: =D140/1000 -> 57.40304 | E141: kJ/kg | P141: =P140/1000 -> 56.21881951 | Q141: kJ/kg
A142: tlak nasycené vodní páry | C142: p''vp5 | D142: =Konstanty!$F$12^((1500.3+23.5*D134)/(234+D134)) -> 5321.325002 | E142: Pa | M142: tlak nasycené vodní páry | O142: p''vp5 | P142: =Konstanty!$F$12^((1500.3+23.5*P134)/(234+P134)) -> 5321.325002 | Q142: Pa | AE142: dt vyp
A143: tlak vodní páry | C143: pvp5 | D143: =(D137/100)*D142 -> 1418.491294 | E143: Pa | M143: tlak vodní páry | O143: pvp5 | P143: =(P137/100)*P142 -> 1345.655893 | Q143: Pa | AE143: 2
A144: tlak suchého vzduchu | C144: psv5 | D144: =D148*Konstanty!$F$5*(D134+273.15) -> 97958.08466 | E144: Pa | M144: tlak suchého vzduchu | O144: psv5 | P144: =Konstanty!$F$8*Konstanty!$F$5*(P134+273.15) -> 108009.5893 | Q144: Pa | AE144: 3
A145: tlak směsi vlhkého vzduchu | C145: p5 | D145: =D143+D144 -> 99376.57595 | E145: Pa | M145: tlak směsi vlhkého vzduchu | O145: p5 | P145: =P143+P144 -> 109355.2452 | Q145: Pa | AE145: 4
A146: měrná vlhkost vzduchu | C146: x5 | D146: =D117 -> 0.009 | E146: kg/kg s.v. | M146: měrná vlhkost vzduchu | O146: x5 | P146: =P117 -> 0.008537875993 | Q146: kg/kg s.v. | AE146: 5
D147: =D146*1000 -> 9 | E147: g/kg s.v. | P147: =P146*1000 -> 8.537875993 | Q147: g/kg s.v. | AE147: 6 | AF147: =D124 -> 0
A148: hustota vzduchu při t | D148: =VLOOKUP(D134,Tabulky!$V$15:$AF$75,9,0) -> 1.111 | E148: kg/m3 | M148: hustota vzduchu při t | P148: =VLOOKUP(P134,Tabulky!$V$15:$AF$75,9,0) -> 1.111 | Q148: kg/m3 | AE148: 7
AE149: 8
A150: navlhčení z prostoru | M150: navlhčení z prostoru | AE150: 9
A151: dx=n.100/V.ρ | C151: dx | D151: =(D33*100)/D57*Konstanty!$F$8 -> 0.5924339684 | E151: g/kg s.v | M151: dx=n.100/V.ρ | O151: dx | P151: =(P30*100)/P57*Konstanty!$F$8 -> 0.05372030298 | Q151: g/kg s.v | AE151: 10
AE152: 11
A153: NUTNÉ vzduch privlhčit | M153: NUTNÉ vzduch privlhčit | AE153: 12
AE154: 13
AE155: 14
AE156: 15

Sheet V5
B1: Legenda | E1: hodnotu nutno zadat | J1: prevzato z první
E2: hodnota se vypočítává
E3: pomocná hodnota
A4: Parametry vzduchu | G4: interier klidovy rezim | U4: Produkce tepla od | X4: ni | Y4: =0.85*Y5+0.75*Y6+Y7 -> 60.5 | AB4: Qi=ni.6,2*(36-ti)
A5: Interiér | B5: ti | G5: Interiér | H5: ti | M5: Exteriér | N5: te | P5: minimální teplota -20 | U5: lidí | V5: =Y4*6.2*(36-Teplota) -> 1500.4 | W5: W | X5: nz | Y5: =Vypocet!Y5 -> 30 | Z5: zeny | AB5: ni=0,85nz+0,75nd+nm
A6: teplota | C6: ti | D6: =[0]!Teplota -> 32 | E6: °C | G6: teplota | I6: ti | J6: =Vypocet!J6 -> 24 | K6: °C | M6: teplota | O6: te | P6: =CEILING(Vypocet!P6+15,5) -> 5 | Q6: °C | X6: nd | Y6: =Vypocet!Y6 -> 20 | Z6: deti | AB6: nz - zeny, nd deti, nm muzi
A7: relativní vlhkost | C7: rhi | D7: =Vypocet!D7 -> 60 | E7: % | G7: relativní vlhkost | I7: rhi | J7: =Vypocet!J7 -> 55 | K7: % | M7: relativní vlhkost | O7: rhe | P7: =ROUND((93*te-3153.5)/(te-39.17),0) -> 79 | Q7: % | X7: nm | Y7: =Vypocet!Y7 -> 20 | Z7: muzi
A8: entalpie s.v. | C8: hsvi | D8: =Konstanty!$F$2*Teplota -> 32320 | E8: J/kg | G8: entalpie s.v. | I8: hsvi | J8: =Konstanty!$F$2*J6 -> 24240 | K8: J/kg | M8: entalpie s.v. | O8: hsve | P8: =Konstanty!$F$2*te -> 5050 | Q8: J/kg
A9: entalpie v.p. | C9: hvpi | D9: =$D$16*(Konstanty!$F$3*Teplota+Konstanty!$F$4) -> 46343.0627 | E9: J/kg | G9: entalpie v.p. | I9: hvpi | J9: =$D$16*(Konstanty!$F$3*J6+Konstanty!$F$4) -> 46076.47346 | K9: J/kg | M9: entalpie v.p. | O9: hvpe | P9: =P16*(Konstanty!F3*P6+Konstanty!F4) -> 10955.26128 | Q9: J/kg | U9: Odpar z povrchů
A10: entalpie | C10: hi | D10: =D8+D9 -> 78663.0627 | E10: J/kg | G10: entalpie | I10: hi | J10: =J8+J9 -> 70316.47346 | K10: J/kg | M10: entalpie | O10: he | P10: =IF(P8<0,P9-P8,P8+P9) -> 16005.26128 | Q10: J/kg | AB10: (7+3,5*w)*S*(xp´´-x).10-3
D11: =D10/1000 -> 78.6630627 | E11: kJ/kg | J11: =J10/1000 -> 70.31647346 | K11: kJ/kg | P11: =P10/1000 -> 16.00526128 | Q11: kJ/kg | AB11: w stredni rychlost vzduchu
A12: tlak nasycené vodní páry | C12: p''vpi | D12: =Konstanty!$F$12^((1500.3+23.5*D6)/(234+D6)) -> 4756.622959 | E12: Pa | G12: tlak nasycené vodní páry | I12: p''vpi | J12: =Konstanty!$F$12^((1500.3+23.5*J6)/(234+J6)) -> 2984.426233 | K12: Pa | M12: tlak nasycené vodní páry | O12: p''vpe | P12: =Konstanty!$F$12^((1500.3+23.5*P6)/(234+P6)) -> 870.4737963 | Q12: Pa | S12: =2.718^(28.926-(6148/(273.15+te))) -> 917.9205542 | AB12: xp´´-merna vlhkost nasyceneho vzduchu
A13: tlak vodní páry | C13: pvpi | D13: =(D7/100)*D12 -> 2853.973775 | E13: Pa | G13: tlak vodní páry | I13: pvpi | J13: =(J7/100)*J12 -> 1641.434428 | K13: Pa | M13: tlak vodní páry | O13: pvpe | P13: =(P7/100)*P12 -> 687.6742991 | Q13: Pa | AB13: x - merna vlhkost vzduchu nad povrchem
A14: tlak suchého vzduchu | C14: psvi | D14: =D18*Konstanty!$F$5*(Teplota+273.15) -> 98021.00865 | E14: Pa | G14: tlak suchého vzduchu | I14: psvi | J14: =J18*Konstanty!$F$5*(Teplota+273.15) -> 100648.9177 | K14: Pa | M14: tlak suchého vzduchu | O14: psve | P14: =P18*Konstanty!F5*(P6+273.15) -> 97971.40433 | Q14: Pa | AB14: S plocha
A15: tlak směsi vlhkého vzduchu | C15: pi | D15: =D13+D14 -> 100874.9824 | E15: Pa | G15: tlak směsi vlhkého vzduchu | I15: pi | J15: =J13+J14 -> 102290.3522 | K15: Pa | M15: tlak směsi vlhkého vzduchu | O15: pe | P15: =P13+P14 -> 98659.07863 | Q15: Pa
A16: měrná vlhkost vzduchu | C16: xi | D16: =(Konstanty!$F$5/Konstanty!$F$6)*(D13/D14) -> 0.01811068229 | E16: kg/kg s.v. | G16: měrná vlhkost vzduchu | I16: xi | J16: =(Konstanty!$F$5/Konstanty!$F$6)*(J13/J14) -> 0.01014421464 | K16: kg/kg s.v. | M16: měrná vlhkost vzduchu | O16: xe | P16: =(Konstanty!F5/Konstanty!F6)*(P13/P14) -> 0.004366037495 | Q16: kg/kg s.v.
D17: =D16*1000 -> 18.11068229 | E17: g/kg s.v. | J17: =J16*1000 -> 10.14421464 | K17: g/kg s.v. | P17: =P16*1000 -> 4.366037495 | Q17: g/kg s.v.
A18: hustota vzduchu při t | D18: =VLOOKUP(Teplota,Tabulky!$V$15:$AF$75,9,0) -> 1.119 | E18: kg/m3 | G18: hustota vzduchu při t | J18: =VLOOKUP(J6,Tabulky!V15:AF75,9,0) -> 1.149 | K18: kg/m3 | M18: hustota vzduchu při t | P18: =VLOOKUP(te,Tabulky!V15:AF75,9,0) -> 1.227 | Q18: kg/m3
D19: =1.395-Teplota*0.004414 -> 1.253752
A20: Bazén | I20: rozměry bazénu
A21: Teplota vody | C21: tsniz | D21: =Vypocet!D21 -> 2 | E21: °C | F21: snížení teploty vody (dop 2-3°C) | I21: délka bazén | J21: a | K21: =Vypocet!K21 -> 25 | L21: m
A22: tvz-(2-3)°C | C22: tvod | D22: =D6-D21 -> 30 | E22: °C | I22: šířka bazén | J22: b | K22: =Vypocet!K22 -> 12 | L22: m
A24: Mn. odpařené vody
A25: mw=ε*A*(p´´vp-pvp) | C25: mw | D25: =D28*$D$29*($D$12/100-$D$13/100) -> 114158.951 | E25: g/h
D26: =D25/1000 -> 114.158951 | E26: kg/h | I26: budova
A27: typ bazenu | D27: =Vypocet!AH47 -> bazény - normální provoz | I27: délka | J27: a | K27: =Vypocet!K27 -> 40 | L27: m
A28: mnozstvi odp vody | D28: =VLOOKUP(D27,Tab_souc_odparu_bazen,7,0) -> 20 | H28: [g/(hPa.m2.h)] | I28: šířka | J28: b | K28: =Vypocet!K28 -> 15 | L28: m
A29: plocha bazénu | C29: A | D29: =K21*K22 -> 300 | E29: m2 | I29: výška | J29: v | K29: =Vypocet!K29 -> 7 | L29: m | M29: Produkce vlhkosti osobami - klidový režim
A30: Objem haly | C30: V | D30: =K27*K28*K29 -> 4200 | E30: m3 | M30: počet osob v bazénu | O30: nos | P30: =Vypocet!P30 -> 2
M31: množství vlhkosti | O31: mos | P31: =P30*100 -> 200 | Q31: g/h
A32: Produkce vlhkosti osobami - v provozu | P32: =P31/1000 -> 0.2 | Q32: kg/h | AE32: Výkon na kondenzátoru | AI32: Qk | AJ32: =AH69 -> 150103.4296 | AK32: W
A33: počet osob v bazénu | C33: nos | D33: =Vypocet!D33 -> 60 | E33: počet | G33: Produkce vlhkosti člověkem | P33: =P31/3600 -> 0.05555555556 | Q33: g/s | AJ33: =AH70 -> 150.1034296 | AK33: kW
A34: množství vlhkosti | C34: mos | D34: =D33*H35 -> 6300 | E34: g/h | G34: =Vypocet!AH50 -> člověk při středně těžké práci | AE34: Teplota požadovaná v interiéru | AI34: ti | AJ34: =Teplota -> 32 | AK34: °C
D35: =D34/1000 -> 6.3 | E35: kg/h | G35: =VLOOKUP(G34,Tabulky!W146:Z148,4,0) -> 60-150 | H35: =IF(G35="60-150",105,IF(G35="30-60",45,225)) -> 105 | I35: g/h | M35: Produkce vlhkosti - klidový režim | AY35: Výkon na kondenzátoru | BC35: Qk | BD35: =BB70 -> 56763.6928 | BE35: W
D36: =D34/3600 -> 1.75 | E36: g/s | G36: rozmezí | H36: průměr | L36: množství odpařené vody | O36: mw | P36: =Tabulky!$G$4*$D$29*($D$12/100-$D$13/100) -> 28539.73775 | Q36: g/h | BD36: =BB71 -> 56.7636928 | BE36: kW
A37: celkové množství odpařené vody | D37: =(D25+D34)*(I37/100+1) -> 126481.8986 | E37: g/h | H37: korekce | I37: =Vypocet!I37 -> 5 | J37: % | M37: celkové množství odpařené vody | P37: =(P36+P31)*(I37/100+1) -> 30176.72464 | Q37: g/h | AY37: Teplota požadovaná v interiéru | BC37: ti | BD37: =J6 -> 24 | BE37: °C
A38: Dimenzování průtoku vzduchu bazénové větrací jednotky pro zátěž | M38: Dimenzování průtoku vzduchu bazénové větrací jednotky pro klidový režim
A39: z množství odpařené vody | M39: z množství odpařené vody
A40: požadovaná vlhkost přiváděná | C40: xpoz | D40: =Vypocet!D40 -> 9 | E40: g/kg | G40: doporučená hodnota 8-10 g/kg | M40: požadovaná vlhkost přiváděná | O40: xpoz | P40: =Vypocet!P40 -> 9 | Q40: g/kg | S40: doporučená hodnota 8-10 g/kg
C41: V1 | D41: =(D37)/(D18*(D17-D40)) -> 12406.44594 | E41: m3/h | I41: =D147 -> 9 | J41: g/kg s.v. | O41: V1 | P41: =(P36+P31)/(Konstanty!$F$8*(J17-5)) -> 4560.659311 | Q41: m3/h
A42: z objemu haly | M42: z objemu haly
A43: výměna vzduchu | C43: n | D43: =Vypocet!D43 -> 1 | E43: 1/h | M43: výměna vzduchu | O43: n | P43: =Vypocet!P43 -> 1 | Q43: 1/h
A44: V=n*VH | C44: V2 | D44: =D30*D43 -> 4200 | E44: m3/h | M44: V=n*VH | O44: V2 | P44: =D30*P43 -> 4200 | Q44: m3/h
A45: z tepelných zisků
B46: tepelné ztráty | C46: Qzt | D46: =Vypocet!D46 -> 7 | E46: kW | H46: teplotní spád výústky | I46: dt | J46: =Vypocet!J46 -> 8 | K46: °C
B47: tepelné zisky | C47: Qzisk | D47: =Vypocet!D47 -> 16 | E47: kW
B48: Množství vzduchu | D48: =((D47-D46)/J46*Konstanty!$F$2*Konstanty!$F$8) -> 1391.90625 | E48: m3/h
BF49: te | BG49: teplota exteriérového vzduchu
A50: potřeba vzduchu pro osoby | W50: te | X50: teplota exteriérového vzduchu | BF50: Qpředehřev | BG50: Výkon pro předehřátí vzduchu
C51: V2 | D51: =D33*D52 -> 3000 | W51: Qpředehřev | X51: Výkon pro předehřátí vzduchu | BF51: Qdohřátí | BG51: Výkon spotřebovaný na dohřátí vzduchu na požadovanou úroveň
A52: množství čerstvého vzduchu/osoba | D52: =Vypocet!D52 -> 50 | E52: m3/h/os | G52: doporučená hodnota při zátěži (min hodnota 25m3/h) | W52: Qdohřátí | X52: Výkon spotřebovaný na dohřátí vzduchu na požadovanou úroveň
A54: Potřeba čerstvého vzduchu | D54: =IF(MAX(D41,D44,D48)>D51,"Ne","Ano") -> Ne | G54: nepočítá s tím dál samo! | AE54: Teplo odevzdané na výparníku | AK54: Množství kondenzátu
A55: Množství čerstvého vzduchu | D55: =IF(D54="ano",D51-MAX(D41,D44,D48),0) -> 0 | E55: m3/h | G55: pouze informativní charakter, množství V čerst rozhodne projektant | AE55: Qv=V*ρ*(hi-h3) | AG55: Qv | AH55: =D81 -> 113504.7391 | AI55: W | AK55: mkond = V*ρ*(xi-x3) | AM55: mkond | AN55: =IF(D58*D18*(D16-D77)<0,0,D58*D18*(D16-D77)) -> 0.02414256667 | AO55: kg/s | AY55: Teplo odevzdané na výparníku | BE55: Množství kondenzátu
AH56: =AH55/1000 -> 113.5047391 | AI56: kW | AN56: =AN55*1000 -> 24.14256667 | AO56: g/s | AY56: Qv=V*ρ*(hi-h3) | BA56: Qv | BB56: =P81 -> 47003.77313 | BC56: W | BE56: mkond = V*ρ*(xi-x3) | BG56: mkond | BH56: =IF(P58*J18*(J16-P77)<0,0,P58*J18*(J16-P77)) -> 0.002183415645 | BI56: kg/s
A57: průtok vzduchu | C57: V | D57: =MAX(D41,D44,D48) -> 12406.44594 | E57: m3/h | M57: průtok vzduchu | O57: V | P57: =MAX(P41,P44) -> 4560.659311 | Q57: m3/h | AN57: =AN55*3600 -> 86.91324001 | AO57: kg/h | BB57: =BB56/1000 -> 47.00377313 | BC57: kW | BH57: =BH56*1000 -> 2.183415645 | BI57: g/s
C58: V | D58: =D57/3600 -> 3.446234982 | E58: m3/s | O58: V | P58: =P57/3600 -> 1.266849809 | Q58: m3/s | AE58: Tepelné čerpadlo (TČ) | AI58: typ TČ | BH58: =BH56*3600 -> 7.860296323 | BI58: kg/h
AE59: Topný faktor TČ | AG59: COP | AH59: =VLOOKUP(Teplota,'V5'!AE83:AF136,2,0) -> 4.101333333 | AI59: Alfa S Duo | AY59: Tepelné čerpadlo (TČ) | BC59: typ TČ
A60: množství odebrané měrné vlh | C60: Δx | D60: 6.26049202 | E60: g/kg s.v | G60: vstupní měrná vlhkost do int | I60: xvyst | J60: =D147 -> 9 | K60: g/kg s.v. | AY60: Topný faktor TČ | BA60: COP | BB60: =VLOOKUP(J6,'V5'!AY84:AZ132,2,0) -> 3.816 | BC60: Alfa S Duo
A61: teplota chladiče | C61: tch | D61: =Vypocet!D61 -> 9 | E61: °C | AE61: Tepelná bilance TČ
A62: relativní vlhkost | C62: rhch | D62: =Vypocet!D62 -> 100 | E62: % | M62: množství odebrané měrné vlh | O62: Δx | P62: =Vypocet!P60 -> 1.5 | Q62: g/kg s.v. | AE62: Qk=Pel+Qv | AY62: Tepelná bilance TČ
M63: teplota chladiče | O63: tch | P63: =Vypocet!P61 -> 9 | Q63: °C | AE63: εt = COP | AF63: εt = Qv/Pel | AY63: Qk=Pel+Qv
M64: relativní vlhkost | O64: rhch | P64: =Vypocet!P62 -> 100 | Q64: % | AE64: Pel=Qk/(1+Et) | AY64: εt = COP | AZ64: εt = Qv/Pel
X65: Parametry chladiče | AE65: Výkon kompresoru | AG65: Pet | AH65: =AH55/(AH59-1) -> 36598.69058 | AI65: W | AY65: Pel=Qk/(1+Et)
A66: t3 | B66: parametry vyduchu za vyparnikem | M66: t3 | N66: parametry vyduchu za vyparnikem | X66: teplota | Z66: ti | AA66: =tch -> 9 | AB66: °C | AH66: =AH65/1000 -> 36.59869058 | AI66: kW | AY66: Výkon kompresoru | BA66: Pet | BB66: =BB56/(BB60+1) -> 9759.91967 | BC66: W
A67: teplota | C67: tvyp | D67: =W87 -> 19 | E67: °C | G67: =tvyp-te -> 14 | M67: teplota | O67: tvyp | P67: =W112 -> 16 | Q67: °C | X67: relativní vlhkost | Z67: rhi | AA67: =D62 -> 100 | AB67: % | AE67: Prikon kompresoru | AH67: =AH66/AH59 -> 8.923607912 | AI67: kW | BB67: =BB66/1000 -> 9.75991967 | BC67: kW
A68: relativní vlhkost | C68: rh3 | D68: =IF((D74/D73)*100>100,100,(D74/D73)*100) -> 85.01490798 | E68: % | M68: relativní vlhkost | O68: rh3 | P68: =IF((P74/P73)*100>100,100,(P74/P73)*100) -> 74.95783123 | Q68: % | X68: entalpie s.v. | Z68: hsvi | AA68: =Konstanty!$F$2*AA66 -> 9090 | AB68: J/kg | AE68: Teplo na kondenzátoru
A69: entalpie s.v. | C69: h3 | D69: =Konstanty!$F$2*D67 -> 19190 | E69: J/kg | M69: entalpie s.v. | O69: h3 | P69: =Konstanty!$F$2*P67 -> 16160 | Q69: J/kg | X69: entalpie v.p. | Z69: hvpi | AA69: =$AA$76*(Konstanty!$F$3*AA66+Konstanty!$F$4) -> 18311.90427 | AB69: J/kg | AE69: Výkon na kondenzátoru | AG69: Qk | AH69: =AH65+AH55 -> 150103.4296 | AI69: W | AY69: Teplo na kondenzátoru
A70: entalpie v.p. | C70: h3 | D70: =D77*(Konstanty!$F$3*D67+Konstanty!$F$4) -> 30039.75833 | E70: J/kg | M70: entalpie v.p. | O70: h3 | P70: =P77*(Konstanty!$F$3*P67+Konstanty!$F$4) -> 21865.02229 | Q70: J/kg | X70: entalpie | Z70: hi | AA70: =AA68+AA69 -> 27401.90427 | AB70: J/kg | AH70: =AH69/1000 -> 150.1034296 | AI70: kW | AY70: Výkon na kondenzátoru | BA70: Qk | BB70: =BB66+BB56 -> 56763.6928 | BC70: W
A71: entalpie | C71: h3 | D71: =D69+D70 -> 49229.75833 | E71: J/kg | M71: entalpie | O71: h3 | P71: =P69+P70 -> 38025.02229 | Q71: J/kg | AA71: =AA70/1000 -> 27.40190427 | AB71: kJ/kg | BB71: =BB70/1000 -> 56.7636928 | BC71: kW
D72: =D71/1000 -> 49.22975833 | E72: kJ/kg | P72: =P71/1000 -> 38.02502229 | Q72: kJ/kg | X72: tlak nasycené vodní páry | Z72: p''vpi | AA72: =Konstanty!$F$12^((1500.3+23.5*AA66)/(234+AA66)) -> 1146.47173 | AB72: Pa
A73: tlak nasycené vodní páry | C73: p''vp3 | D73: =Konstanty!$F$12^((1500.3+23.5*D67)/(234+D67)) -> 2197.029852 | E73: Pa | M73: tlak nasycené vodní páry | O73: p''vp3 | P73: =Konstanty!$F$12^((1500.3+23.5*P67)/(234+P67)) -> 1817.468722 | Q73: Pa | X73: tlak vodní páry | Z73: pvpi | AA73: =(AA67/100)*AA72 -> 1146.47173 | AB73: Pa | AE73: Graf topneho faktoru | AH73: TnG Air 13, vzduch/voda
A74: tlak vodní páry | C74: pvp3 | D74: =(D77*D75)/0.622 -> 1867.802907 | E74: Pa | G74: =((G77*D75)/(0.622+G77))/((0.622-G77)/(0.622)) -> 0 | H74: přepočet tlaku z x | M74: tlak vodní páry | O74: pvp3 | P74: =(P77*P75)/0.622 -> 1362.335137 | Q74: Pa | S74: =((S77*P75)/(0.622+S77))/((0.622-S77)/(0.622)) -> 1599.161688 | T74: přepočet tlaku z x | X74: tlak suchého vzduchu | Z74: psvi | AA74: =AA78*Konstanty!$F$5*(AA66+273.15) -> 98003.39739 | AB74: Pa | AY74: Graf topneho faktoru | BB74: TnG Air 13, vzduch/voda
A75: tlak suchého vzduchu | C75: psv3 | D75: =D79*Konstanty!$F$5*(D67+273.15) -> 98038.3759 | E75: Pa | M75: tlak suchého vzduchu | O75: psv3 | P75: =P79*Konstanty!$F$5*(P67+273.15) -> 98027.69719 | Q75: Pa | X75: tlak směsi vlhkého vzduchu | Z75: pi | AA75: =AA73+AA74 -> 99149.86912 | AB75: Pa | AE75: =Vypocet!AE107 -> teplota | AF75: =Vypocet!AF107 -> -18 | AG75: =Vypocet!AG107 -> -15 | AH75: =Vypocet!AH107 -> -10 | AI75: =Vypocet!AI107 -> -5 | AJ75: =Vypocet!AJ107 -> 0 | AK75: =Vypocet!AK107 -> 5 | AL75: =Vypocet!AL107 -> 10 | AM75: =Vypocet!AM107 -> 15
A76: tlak směsi vlhkého vzduchu | C76: p3 | D76: =D74+D75 -> 99906.1788 | E76: Pa | M76: tlak směsi vlhkého vzduchu | O76: p3 | P76: =P74+P75 -> 99390.03233 | Q76: Pa | X76: měrná vlhkost vzduchu | Z76: xi | AA76: =(Konstanty!$F$5/Konstanty!$F$6)*(AA73/AA74) -> 0.007276561764 | AB76: kg/kg s.v. | AE76: =Vypocet!AE108 -> vykon | AF76: =Vypocet!AF108 -> 4.7 | AG76: =Vypocet!AG108 -> 5.75 | AH76: =Vypocet!AH108 -> 7 | AI76: =Vypocet!AI108 -> 8.24 | AJ76: =Vypocet!AJ108 -> 9.46 | AK76: =Vypocet!AK108 -> 10.69 | AL76: =Vypocet!AL108 -> 11.8 | AM76: =Vypocet!AM108 -> 13.1 | AY76: =Vypocet!AY108 -> teplota | AZ76: =Vypocet!AZ108 -> -18 | BA76: =Vypocet!BA108 -> -15 | BB76: =Vypocet!BB108 -> -10 | BC76: =Vypocet!BC108 -> -5 | BD76: =Vypocet!BD108 -> 0 | BE76: =Vypocet!BE108 -> 5 | BF76: =Vypocet!BF108 -> 10 | BG76: =Vypocet!BG108 -> 15
A77: měrná vlhkost vzduchu | C77: x3 | D77: =D16-deltaT/1000 -> 0.01185019027 | E77: kg/kg s.v. | G77: =IF(tvyp<D82,0,D16) -> 0 | H77: vezme x z Ti když tvyp<rosny bod | M77: měrná vlhkost vzduchu | O77: x3 | P77: =J16-P62/1000 -> 0.008644214643 | Q77: kg/kg s.v. | S77: =IF(tvyp<P82,0,J16) -> 0.01014421464 | T77: vezme x z Ti když tvyp<rosny bod | AA77: =AA76*1000 -> 7.276561764 | AB77: g/kg s.v. | AE77: =Vypocet!AE109 -> el prikon | AF77: =Vypocet!AF109 -> 2.24 | AG77: =Vypocet!AG109 -> 2.47 | AH77: =Vypocet!AH109 -> 2.72 | AI77: =Vypocet!AI109 -> 2.94 | AJ77: =Vypocet!AJ109 -> 3.2 | AK77: =Vypocet!AK109 -> 3.37 | AL77: =Vypocet!AL109 -> 3.55 | AM77: =Vypocet!AM109 -> 3.85 | AY77: =Vypocet!AY109 -> vykon | AZ77: =Vypocet!AZ109 -> 4.7 | BA77: =Vypocet!BA109 -> 5.75 | BB77: =Vypocet!BB109 -> 7 | BC77: =Vypocet!BC109 -> 8.24 | BD77: =Vypocet!BD109 -> 9.46 | BE77: =Vypocet!BE109 -> 10.69 | BF77: =Vypocet!BF109 -> 11.8 | BG77: =Vypocet!BG109 -> 13.1
D78: =D77*1000 -> 11.85019027 | E78: g/kg s.v. | P78: =P77*1000 -> 8.644214643 | Q78: g/kg s.v. | X78: hustota vzduchu při t | AA78: =VLOOKUP(AA66,Tabulky!$V$15:$AF$75,9,0) -> 1.21 | AB78: kg/m3 | AE78: =Vypocet!AE110 -> COP | AF78: =Vypocet!AF110 -> 2.1 | AG78: =Vypocet!AG110 -> 2.33 | AH78: =Vypocet!AH110 -> 2.57 | AI78: =Vypocet!AI110 -> 2.8 | AJ78: =Vypocet!AJ110 -> 2.96 | AK78: =Vypocet!AK110 -> 3.17 | AL78: =Vypocet!AL110 -> 3.32 | AM78: =Vypocet!AM110 -> 3.4 | AY78: =Vypocet!AY110 -> el prikon | AZ78: =Vypocet!AZ110 -> 2.24 | BA78: =Vypocet!BA110 -> 2.47 | BB78: =Vypocet!BB110 -> 2.72 | BC78: =Vypocet!BC110 -> 2.94 | BD78: =Vypocet!BD110 -> 3.2 | BE78: =Vypocet!BE110 -> 3.37 | BF78: =Vypocet!BF110 -> 3.55 | BG78: =Vypocet!BG110 -> 3.85
A79: hustota vzduchu při t | D79: =VLOOKUP(tvyp,Tabulky!$V$15:$AF$75,9,0) -> 1.169 | E79: kg/m3 | M79: hustota vzduchu při t | P79: =VLOOKUP(P67,Tabulky!$V$15:$AF$75,9,0) -> 1.181 | Q79: kg/m3 | AA79: =1.395-Teplota*0.004414 -> 1.253752 | AH79: =AH78-AG78 -> 0.24 | AI79: 0.23 | AJ79: 0.16 | AK79: 0.21 | AL79: 0.15 | AM79: 0.08 | AN79: průměr | AO79: =AVERAGE(AG79:AM79) -> 0.1783333333 | AP79: prumer/1 | AQ79: =AO79/5 -> 0.03566666667 | AY79: =Vypocet!AY111 -> COP | AZ79: =Vypocet!AZ111 -> 2.1 | BA79: =Vypocet!BA111 -> 2.33 | BB79: =Vypocet!BB111 -> 2.57 | BC79: =Vypocet!BC111 -> 2.8 | BD79: =Vypocet!BD111 -> 2.96 | BE79: =Vypocet!BE111 -> 3.17 | BF79: =Vypocet!BF111 -> 3.32 | BG79: =Vypocet!BG111 -> 3.4
AF80: popis závislosti | AH80: y=0,18571x+2,96 | BB80: =BB79-BA79 -> 0.24 | BC80: 0.23 | BD80: 0.16 | BE80: 0.21 | BF80: 0.15 | BG80: 0.08 | BH80: průměr | BI80: =AVERAGE(BA80:BG80) -> 0.1783333333 | BJ80: prumer/1 | BK80: =BI80/5 -> 0.03566666667
A81: teplo získané na výparníku | C81: Qv | D81: =D58*D18*(D10-D71) -> 113504.7391 | E81: W | M81: teplo získané na výparníku | O81: Qv | P81: =P58*J18*(J10-P71) -> 47003.77313 | Q81: W | U81: A | V81: Ti | W81: =Teplota -> 32 | Y81: B | Z81: tch | AA81: =AA66 -> 9 | AZ81: popis závislosti | BB81: y=0,18571x+2,96
B82: rosný bod | D82: =(243.5*LN(($D$7/100)*Konstanty!$F$12^((17.67*Teplota)/(243.5+Teplota))))/(17.67-(LN(($D$7/100)*Konstanty!$F$12^((17.67*Teplota)/(243.5+Teplota))))) -> 23.27425187 | E82: °C | N82: rosný bod | P82: =(243.5*LN((J7/100)*Konstanty!$F$12^((17.67*J6)/(243.5+J6))))/(17.67-(LN((J7/100)*Konstanty!$F$12^((17.67*J6)/(243.5+J6))))) -> 14.41381795 | Q82: °C | V82: xi | W82: =D16 -> 0.01811068229 | Z82: xch | AA82: =AA76 -> 0.007276561764 | AE82: teplota | AF82: COP | AH82: -18 | AI82: 2.1
V83: xi | W83: =D17 -> 18.11068229 | Z83: xch | AA83: =AA77 -> 7.276561764 | AE83: -18 | AF83: =$AQ$79*AE83+$AJ$78 -> 2.318 | AH83: -15 | AI83: 2.33 | AY83: teplota | AZ83: COP
A84: Distribuce tepla v závislosti na externí teplotě | AE84: -17 | AF84: 2.353666667 | AH84: -10 | AI84: 2.57 | AY84: -18 | AZ84: =$AQ$79*AY84+$AJ$78 -> 2.318
A85: teplota předehřevu te | C85: tpřed | D85: =Vypocet!D85 -> 5 | E85: °C | V85: dx | W85: =deltaT -> 6.26049202 | Y85: výpočet teplochy při teplote chladice | AE85: -16 | AF85: 2.389333333 | AH85: -5 | AI85: 2.8 | AY85: -17 | AZ85: 2.353666667
A86: množství čerst vzduchu | D86: =Vypocet!D86 -> 30 | E86: % | V86: th | W86: =((W81-AA81)*W83+(AA83-W83)*W81-(W81-AA81)*(W83-W85))/(AA83-W83) -> 18.70945961 | Y86: počítá s přímkou ti - tch a na ní počítá bod | AE86: -15 | AF86: 2.425 | AH86: 0 | AI86: 2.96 | AY86: -16 | AZ86: 2.389333333
A87: množství předehřívaného vzd | D87: =D58*(D86/100) -> 1.033870495 | E87: m3/h | W87: =ROUND(W86,0) -> 19 | AE87: -14 | AF87: 2.460666667 | AH87: 5 | AI87: 3.17 | AY87: -15 | AZ87: 2.425
A88: potřeba tepla na předehřev | D88: =IF(D85>te,((D87*P18)/(1+P16))*(D85-te)*P18*Konstanty!$F$2,0) -> 0 | E88: W | AE88: -13 | AF88: 2.496333333 | AH88: 10 | AI88: 3.32 | AY88: -14 | AZ88: 2.460666667
AE89: -12 | AF89: 2.532 | AH89: 15 | AI89: 3.4 | AY89: -13 | AZ89: 2.496333333
A90: t4 | B90: Předehřev exteriérového vzduchu | M90: t4 | N90: Předehřev exteriérového vzduchu | X90: Parametry chladiče klidovy rezim | AE90: -11 | AF90: 2.567666667 | AY90: -12 | AZ90: 2.532
A91: teplota předehřevu | C91: tpředehřev | D91: =IF($D$85>te,$D$85,te) -> 5 | E91: °C | M91: teplota předehřevu | O91: tpředehřev | P91: =IF($D$85>te,$D$85,te) -> 5 | Q91: °C | X91: teplota | Z91: ti | AA91: =P63 -> 9 | AB91: °C | AE91: -10 | AF91: 2.603333333 | AY91: -11 | AZ91: 2.567666667
C92: rhpředehřev | D92: =((D101*P15)/(D97*(0.622+D101)))*100 -> 79.00245963 | E92: % | O92: rhpředehřev | P92: =((P101*P15)/(P97*(0.622+P101)))*100 -> 79.00245963 | Q92: % | X92: relativní vlhkost | Z92: rhi | AA92: =P64 -> 100 | AB92: % | AE92: -9 | AF92: 2.639 | AY92: -10 | AZ92: 2.603333333
A93: entalpie s.v. | C93: hsv4 | D93: =Konstanty!$F$2*D91 -> 5050 | E93: J/kg | M93: entalpie s.v. | O93: hsv4 | P93: =Konstanty!$F$2*P91 -> 5050 | Q93: J/kg | X93: entalpie s.v. | Z93: hsvi | AA93: =Konstanty!$F$2*AA91 -> 9090 | AB93: J/kg | AE93: -8 | AF93: 2.674666667 | AY93: -9 | AZ93: 2.639
A94: entalpie v.p. | C94: hvp4 | D94: =D101*(Konstanty!$F$3*D91+Konstanty!$F$4) -> 10955.26128 | E94: J/kg | M94: entalpie v.p. | O94: hvp4 | P94: =P101*(Konstanty!$F$3*P91+Konstanty!$F$4) -> 10955.26128 | Q94: J/kg | X94: entalpie v.p. | Z94: hvpi | AA94: =$AA$76*(Konstanty!$F$3*AA91+Konstanty!$F$4) -> 18311.90427 | AB94: J/kg | AE94: -7 | AF94: 2.710333333 | AY94: -8 | AZ94: 2.674666667
A95: entalpie | C95: h4 | D95: =D93+D94 -> 16005.26128 | E95: J/kg | M95: entalpie | O95: h4 | P95: =P93+P94 -> 16005.26128 | Q95: J/kg | X95: entalpie | Z95: hi | AA95: =AA93+AA94 -> 27401.90427 | AB95: J/kg | AE95: -6 | AF95: 2.746 | AY95: -7 | AZ95: 2.710333333
D96: =D95/1000 -> 16.00526128 | E96: kJ/kg | P96: =P95/1000 -> 16.00526128 | Q96: kJ/kg | AA96: =AA95/1000 -> 27.40190427 | AB96: kJ/kg | AE96: -5 | AF96: 2.781666667 | AY96: -6 | AZ96: 2.746
A97: tlak nasycené vodní páry | C97: p''vp4 | D97: =Konstanty!$F$12^((1500.3+23.5*D91)/(234+D91)) -> 870.4737963 | E97: Pa | M97: tlak nasycené vodní páry | O97: p''vp4 | P97: =Konstanty!$F$12^((1500.3+23.5*P91)/(234+P91)) -> 870.4737963 | Q97: Pa | X97: tlak nasycené vodní páry | Z97: p''vpi | AA97: =Konstanty!$F$12^((1500.3+23.5*AA91)/(234+AA91)) -> 1146.47173 | AB97: Pa | AE97: -4 | AF97: 2.817333333 | AY97: -5 | AZ97: 2.781666667
A98: tlak vodní páry | C98: pvp4 | D98: =(D92/100)*D97 -> 687.6957095 | E98: Pa | M98: tlak vodní páry | O98: pvp4 | P98: =(P92/100)*P97 -> 687.6957095 | Q98: Pa | X98: tlak vodní páry | Z98: pvpi | AA98: =(AA92/100)*AA97 -> 1146.47173 | AB98: Pa | AE98: -3 | AF98: 2.853 | AY98: -4 | AZ98: 2.817333333
A99: tlak suchého vzduchu | C99: psv4 | D99: =D103*Konstanty!$F$5*(D91+273.15) -> 97971.40433 | E99: Pa | M99: tlak suchého vzduchu | O99: psv4 | P99: =P103*Konstanty!$F$5*(P91+273.15) -> 97971.40433 | Q99: Pa | X99: tlak suchého vzduchu | Z99: psvi | AA99: =AA103*Konstanty!$F$5*(AA91+273.15) -> 98003.39739 | AB99: Pa | AE99: -2 | AF99: 2.888666667 | AY99: -3 | AZ99: 2.853
A100: tlak směsi vlhkého vzduchu | C100: p4 | D100: =D98+D99 -> 98659.10004 | E100: Pa | M100: tlak směsi vlhkého vzduchu | O100: p4 | P100: =P98+P99 -> 98659.10004 | Q100: Pa | X100: tlak směsi vlhkého vzduchu | Z100: pi | AA100: =AA98+AA99 -> 99149.86912 | AB100: Pa | AE100: -1 | AF100: 2.924333333 | AY100: -2 | AZ100: 2.888666667
A101: měrná vlhkost vzduchu | C101: x4 | D101: =P16 -> 0.004366037495 | E101: kg/kg s.v. | M101: měrná vlhkost vzduchu | O101: x4 | P101: =P16 -> 0.004366037495 | Q101: kg/kg s.v. | X101: měrná vlhkost vzduchu | Z101: xi | AA101: =(Konstanty!$F$5/Konstanty!$F$6)*(AA98/AA99) -> 0.007276561764 | AB101: kg/kg s.v. | AE101: 0 | AF101: 2.96 | AY101: -1 | AZ101: 2.924333333
D102: =D101*1000 -> 4.366037495 | E102: g/kg s.v. | P102: =P101*1000 -> 4.366037495 | Q102: g/kg s.v. | AA102: =AA101*1000 -> 7.276561764 | AB102: g/kg s.v. | AE102: 1 | AF102: 2.995666667 | AY102: 0 | AZ102: 2.96
A103: hustota vzduchu při t | D103: =VLOOKUP(D91,Tabulky!$V$15:$AF$75,9,0) -> 1.227 | E103: kg/m3 | M103: hustota vzduchu při t | P103: =VLOOKUP(P91,Tabulky!$V$15:$AF$75,9,0) -> 1.227 | Q103: kg/m3 | X103: hustota vzduchu při t | AA103: =VLOOKUP(AA91,Tabulky!$V$15:$AF$75,9,0) -> 1.21 | AB103: kg/m3 | AE103: 2 | AF103: 3.031333333 | AY103: 1 | AZ103: 2.995666667
AA104: =1.395-Teplota*0.004414 -> 1.253752 | AE104: 3 | AF104: 3.067 | AY104: 2 | AZ104: 3.031333333
A105: t4' | B105: smíšení vzduchu s exteriérovým | M105: t4' | N105: smíšení vzduchu s exteriérovým | AE105: 4 | AF105: 3.102666667 | AY105: 3 | AZ105: 3.067
A106: Množství čerstvého vzduchu | C106: Včerstv | D106: =IF(D91>tvyp,100,$D$86) -> 30 | E106: % | M106: Množství čerstvého vzduchu | O106: Včerstv | P106: =IF(P91>tvyp,100,$D$86) -> 30 | Q106: % | U106: A | V106: Ti | W106: =J6 -> 24 | Y106: B | Z106: tch | AA106: =AA91 -> 9 | AE106: 5 | AF106: 3.138333333 | AY106: 4 | AZ106: 3.102666667
A107: teplota vzduchu | C107: t4 | D107: =ROUND(((((D106/100)*D58)*D91+((1-(D106/100))*D58)*tvyp)/D58),0) -> 15 | E107: °C | M107: teplota vzduchu | O107: t4 | P107: =ROUND(((((P106/100)*P58)*P91+((1-(P106/100))*P58)*tvyp)/P58),0) -> 15 | Q107: °C | V107: xi | W107: =J16 -> 0.01014421464 | Z107: xch | AA107: =AA101 -> 0.007276561764 | AE107: 6 | AF107: 3.174 | AY107: 5 | AZ107: 3.138333333
A108: relativní vlhkost | C108: rh4 | D108: =(1-(D106/100))*D68+(D106/100)*D92 -> 83.21117347 | E108: % | M108: relativní vlhkost | O108: rh4 | P108: =(1-(P106/100))*P68+(P106/100)*P92 -> 76.17121975 | Q108: % | V108: xi | W108: =J17 -> 10.14421464 | Z108: xch | AA108: =AA102 -> 7.276561764 | AE108: 7 | AF108: 3.209666667 | AY108: 6 | AZ108: 3.174
A109: entalpie s.v. | C109: hsv4 | D109: =Konstanty!$F$2*D107 -> 15150 | E109: J/kg | M109: entalpie s.v. | O109: hsv4 | P109: =Konstanty!$F$2*P107 -> 15150 | Q109: J/kg | AE109: 8 | AF109: 3.245333333 | AY109: 7 | AZ109: 3.209666667
A110: entalpie v.p. | C110: hvp4 | D110: =D117*(Konstanty!$F$3*D107+Konstanty!$F$4) -> 22748.4 | E110: J/kg | M110: entalpie v.p. | O110: hvp4 | P110: =P117*(Konstanty!$F$3*P107+Konstanty!$F$4) -> 20823.8065 | Q110: J/kg | V110: dx | W110: =P62 -> 1.5 | AE110: 9 | AF110: 3.281 | AY110: 8 | AZ110: 3.245333333
A111: entalpie | C111: h4 | D111: =D109+D110 -> 37898.4 | E111: J/kg | M111: entalpie | O111: h4 | P111: =P109+P110 -> 35973.8065 | Q111: J/kg | V111: th | W111: =((W106-AA106)*W108+(AA108-W108)*W106-(W106-AA106)*(W108-W110))/(AA108-W108) -> 16.15386208 | AE111: 10 | AF111: 3.316666667 | AY111: 9 | AZ111: 3.281
D112: =D111/1000 -> 37.8984 | E112: kJ/kg | P112: =P111/1000 -> 35.9738065 | Q112: kJ/kg | W112: =ROUND(W111,0) -> 16 | AE112: 11 | AF112: 3.352333333 | AY112: 10 | AZ112: 3.316666667
A113: tlak nasycené vodní páry | C113: p''vp4 | D113: =Konstanty!$F$12^((1500.3+23.5*D107)/(234+D107)) -> 1704.392217 | E113: Pa | M113: tlak nasycené vodní páry | O113: p''vp4 | P113: =Konstanty!$F$12^((1500.3+23.5*P107)/(234+P107)) -> 1704.392217 | Q113: Pa | AE113: 12 | AF113: 3.388 | AY113: 11 | AZ113: 3.352333333
A114: tlak vodní páry | C114: pvp4 | D114: =(D108/100)*D113 -> 1418.244765 | E114: Pa | M114: tlak vodní páry | O114: pvp4 | P114: =(P108/100)*P113 -> 1298.256341 | Q114: Pa | AE114: 13 | AF114: 3.423666667 | AY114: 12 | AZ114: 3.388
A115: tlak suchého vzduchu | C115: psv4 | D115: =D119*Konstanty!$F$5*(D107+273.15) -> 98019.54463 | E115: Pa | M115: tlak suchého vzduchu | O115: psv4 | P115: =P119*Konstanty!$F$5*(P107+273.15) -> 98019.54463 | Q115: Pa | AE115: 14 | AF115: 3.459333333 | AY115: 13 | AZ115: 3.423666667
A116: tlak směsi vlhkého vzduchu | C116: p4 | D116: =D114+D115 -> 99437.7894 | E116: Pa | M116: tlak směsi vlhkého vzduchu | O116: p4 | P116: =P114+P115 -> 99317.80097 | Q116: Pa | AE116: 15 | AF116: 3.495 | AY116: 14 | AZ116: 3.459333333
A117: měrná vlhkost vzduchu | C117: x4 | D117: =(Konstanty!$F$5/Konstanty!$F$6)*(D114/D115) -> 0.009 | E117: kg/kg s.v. | M117: měrná vlhkost vzduchu | O117: x4 | P117: =(Konstanty!$F$5/Konstanty!$F$6)*(P114/P115) -> 0.008238568802 | Q117: kg/kg s.v. | AE117: 16 | AF117: 3.530666667 | AY117: 15 | AZ117: 3.495
D118: =D117*1000 -> 9 | E118: g/kg s.v. | P118: =P117*1000 -> 8.238568802 | Q118: g/kg s.v. | AE118: 17 | AF118: 3.566333333 | AY118: 16 | AZ118: 3.530666667
A119: hustota vzduchu při t | D119: =VLOOKUP(D107,Tabulky!$V$15:$AF$75,9,0) -> 1.185 | E119: kg/m3 | M119: hustota vzduchu při t | P119: =VLOOKUP(P107,Tabulky!$V$15:$AF$75,9,0) -> 1.185 | Q119: kg/m3 | AE119: 18 | AF119: 3.602 | AY119: 17 | AZ119: 3.566333333
AE120: 19 | AF120: 3.637666667 | AY120: 18 | AZ120: 3.602
A121: množství tepla na kondenzátoru | C121: Qk | D121: =AH69 -> 150103.4296 | E121: W | H121: přepočet mw na msv | I121: =(D58*D119)/(1+D117) -> 4.047362194 | J121: m3/s | M121: množství tepla na kondenzátoru | O121: Qk | P121: =BB70 -> 56763.6928 | Q121: W | AE121: 20 | AF121: 3.673333333 | AY121: 19 | AZ121: 3.637666667
A122: Požadované teplo na dohřev | C122: Qpož | D122: =(D134-D107)*Konstanty!F2*D119*I121+D88 -> 92037.6234 | E122: W | M122: Požadované teplo na dohřev | P122: =(P134-P107)*Konstanty!$F$2*P119*P58 -> 28808.35468 | Q122: W | AE122: 21 | AF122: 3.709 | AY122: 20 | AZ122: 3.673333333
A123: dosažená teplota | C123: t6 | D123: =D121/(D58*D119*Konstanty!$F$2)+D107 -> 51.39200677 | E123: °C | M123: dosažená teplota | O123: t6 | P123: =P121/(P58*P119*Konstanty!$F$2)+P107 -> 52.43740923 | Q123: °C | AE123: 22 | AF123: 3.744666667 | AY123: 21 | AZ123: 3.709
A124: potřeba dohřevu | C124: Qdohř | D124: =IF((D122-D121)>0,D122-D121,0) -> 0 | E124: W | M124: potřeba dohřevu | O124: Qdohř | P124: =IF((P122-P121)>0,P122-P121,0) -> 0 | Q124: W | AE124: 23 | AF124: 3.780333333 | AY124: 22 | AZ124: 3.744666667
A125: přebytečné teplo | C125: Qpřebyt | D125: =IF((D122-D121)<0,D121-D122,0) -> 58065.80624 | E125: W | M125: přebytečné teplo | O125: Qpřebyt | P125: =IF((P122-P121)<0,P121-P122,0) -> 27955.33812 | Q125: W | AE125: 24 | AF125: 3.816 | AY125: 23 | AZ125: 3.780333333
AE126: 25 | AF126: 3.851666667 | AY126: 24 | AZ126: 3.816
AE127: 26 | AF127: 3.887333333 | AY127: 25 | AZ127: 3.851666667
A128: teplota zvýšení do int | C128: tzv | D128: =Vypocet!D128 -> 2 | E128: °C | N128: teplota zvýšení do int | O128: tzv | P128: =Vypocet!P128 -> 2 | Q128: °C | AE128: 27 | AF128: 3.923 | AY128: 26 | AZ128: 3.887333333
A129: teplotní spád kondenzatoru | C129: Δt | D129: =Vypocet!D129 -> 0 | E129: °C | N129: teplotní spád kondenzatoru | O129: Δt | P129: =Vypocet!P129 -> 0 | Q129: °C | AE129: 28 | AF129: 3.958666667 | AY129: 27 | AZ129: 3.923
A130: teplota kondenzatoru | C130: tohř | D130: =Vypocet!D130 -> 0 | E130: °C | N130: teplota kondenzatoru | O130: tohř | P130: =Vypocet!P130 -> 0 | Q130: °C | AE130: 29 | AF130: 3.994333333 | AY130: 28 | AZ130: 3.958666667
A131: relativní vlhkost | C131: rhohř | D131: =Vypocet!D131 -> 0 | E131: % | N131: relativní vlhkost | O131: rhohř | P131: =Vypocet!P131 -> 0 | Q131: % | AE131: 30 | AF131: 4.03 | AY131: 29 | AZ131: 3.994333333
AE132: 31 | AF132: 4.065666667 | AY132: 30 | AZ132: 4.03
A133: t5 | B133: parametry vyduchu za kondenzátorem | M133: t5 | N133: parametry vyduchu za kondenzátorem | AE133: 32 | AF133: 4.101333333
A134: požadovaná teplotateplota do I | C134: t5 | D134: =Teplota+D128 -> 34 | E134: °C | M134: požadovaná teplota do I | O134: t5 | P134: =Teplota+P128 -> 34 | Q134: °C | AE134: 33 | AF134: 4.137
A135: dosažená teplota | C135: tdos | D135: =D123 -> 51.39200677 | E135: °C | M135: dosažená teplota | O135: t6 | P135: =P123 -> 52.43740923 | AE135: 34 | AF135: 4.172666667
AE136: 35 | AF136: 4.208333333
A137: relativní vlhkost | C137: rh5 | D137: =((D146*D116)/(D142*(0.622+D146)))*100 -> 26.6529219 | E137: % | M137: relativní vlhkost | O137: rh5 | P137: =((P146*P116)/(P142*(0.622+P146)))*100 -> 24.39799323 | Q137: %
A138: entalpie s.v. | C138: hsv5 | D138: =Konstanty!$F$2*D134 -> 34340 | E138: J/kg | M138: entalpie s.v. | O138: hsv5 | P138: =Konstanty!$F$2*P134 -> 34340 | Q138: J/kg
A139: entalpie v.p. | C139: hvp5 | D139: =D146*(Konstanty!$F$3*D134+Konstanty!$F$4) -> 23063.04 | E139: J/kg | M139: entalpie v.p. | O139: hvp5 | P139: =P146*(Konstanty!$F$3*P134+Konstanty!$F$4) -> 21111.82687 | Q139: J/kg
A140: entalpie | C140: h5 | D140: =D138+D139 -> 57403.04 | E140: J/kg | M140: entalpie | O140: h5 | P140: =P138+P139 -> 55451.82687 | Q140: J/kg
D141: =D140/1000 -> 57.40304 | E141: kJ/kg | P141: =P140/1000 -> 55.45182687 | Q141: kJ/kg
A142: tlak nasycené vodní páry | C142: p''vp5 | D142: =Konstanty!$F$12^((1500.3+23.5*D134)/(234+D134)) -> 5321.325002 | E142: Pa | M142: tlak nasycené vodní páry | O142: p''vp5 | P142: =Konstanty!$F$12^((1500.3+23.5*P134)/(234+P134)) -> 5321.325002 | Q142: Pa | AE142: dt vyp
A143: tlak vodní páry | C143: pvp5 | D143: =(D137/100)*D142 -> 1418.288597 | E143: Pa | M143: tlak vodní páry | O143: pvp5 | P143: =(P137/100)*P142 -> 1298.296514 | Q143: Pa | AE143: 2
A144: tlak suchého vzduchu | C144: psv5 | D144: =D148*Konstanty!$F$5*(D134+273.15) -> 97958.08466 | E144: Pa | M144: tlak suchého vzduchu | O144: psv5 | P144: =Konstanty!$F$8*Konstanty!$F$5*(P134+273.15) -> 108009.5893 | Q144: Pa | AE144: 3
A145: tlak směsi vlhkého vzduchu | C145: p5 | D145: =D143+D144 -> 99376.37325 | E145: Pa | M145: tlak směsi vlhkého vzduchu | O145: p5 | P145: =P143+P144 -> 109307.8858 | Q145: Pa | AE145: 4
A146: měrná vlhkost vzduchu | C146: x5 | D146: =D117 -> 0.009 | E146: kg/kg s.v. | M146: měrná vlhkost vzduchu | O146: x5 | P146: =P117 -> 0.008238568802 | Q146: kg/kg s.v. | AE146: 5
D147: =D146*1000 -> 9 | E147: g/kg s.v. | P147: =P146*1000 -> 8.238568802 | Q147: g/kg s.v. | AE147: 6 | AF147: =D124 -> 0
A148: hustota vzduchu při t | D148: =VLOOKUP(D134,Tabulky!$V$15:$AF$75,9,0) -> 1.111 | E148: kg/m3 | M148: hustota vzduchu při t | P148: =VLOOKUP(P134,Tabulky!$V$15:$AF$75,9,0) -> 1.111 | Q148: kg/m3 | AE148: 7
AE149: 8
A150: navlhčení z prostoru | M150: navlhčení z prostoru | AE150: 9
A151: dx=n.100/V.ρ | C151: dx | D151: =(D33*100)/D57*Konstanty!$F$8 -> 0.5924339684 | E151: g/kg s.v | M151: dx=n.100/V.ρ | O151: dx | P151: =(P30*100)/P57*Konstanty!$F$8 -> 0.05372030298 | Q151: g/kg s.v | AE151: 10
AE152: 11
A153: NUTNÉ vzduch privlhčit | M153: NUTNÉ vzduch privlhčit | AE153: 12
AE154: 13
AE155: 14
AE156: 15

Sheet V6
B1: Legenda | E1: hodnotu nutno zadat | J1: prevzato z první
E2: hodnota se vypočítává
E3: pomocná hodnota
A4: Parametry vzduchu | G4: interier klidovy rezim | U4: Produkce tepla od | X4: ni | Y4: =0.85*Y5+0.75*Y6+Y7 -> 60.5 | AB4: Qi=ni.6,2*(36-ti)
A5: Interiér | B5: ti | G5: Interiér | H5: ti | M5: Exteriér | N5: te | P5: minimální teplota -15 (tabulka) | U5: lidí | V5: =Y4*6.2*(36-Teplota) -> 1500.4 | W5: W | X5: nz | Y5: =Vypocet!Y5 -> 30 | Z5: zeny | AB5: ni=0,85nz+0,75nd+nm
A6: teplota | C6: ti | D6: =[0]!Teplota -> 32 | E6: °C | G6: teplota | I6: ti | J6: =Vypocet!J6 -> 24 | K6: °C | M6: teplota | O6: te | P6: =CEILING(Vypocet!P6+20,5) -> 10 | Q6: °C | X6: nd | Y6: =Vypocet!Y6 -> 20 | Z6: deti | AB6: nz - zeny, nd deti, nm muzi
A7: relativní vlhkost | C7: rhi | D7: =Vypocet!D7 -> 60 | E7: % | G7: relativní vlhkost | I7: rhi | J7: =Vypocet!J7 -> 55 | K7: % | M7: relativní vlhkost | O7: rhe | P7: =ROUND((93*te-3153.5)/(te-39.17),0) -> 76 | Q7: % | X7: nm | Y7: =Vypocet!Y7 -> 20 | Z7: muzi
A8: entalpie s.v. | C8: hsvi | D8: =Konstanty!$F$2*Teplota -> 32320 | E8: J/kg | G8: entalpie s.v. | I8: hsvi | J8: =Konstanty!$F$2*J6 -> 24240 | K8: J/kg | M8: entalpie s.v. | O8: hsve | P8: =Konstanty!$F$2*te -> 10100 | Q8: J/kg
A9: entalpie v.p. | C9: hvpi | D9: =$D$16*(Konstanty!$F$3*Teplota+Konstanty!$F$4) -> 46343.0627 | E9: J/kg | G9: entalpie v.p. | I9: hvpi | J9: =$D$16*(Konstanty!$F$3*J6+Konstanty!$F$4) -> 46076.47346 | K9: J/kg | M9: entalpie v.p. | O9: hvpe | P9: =P16*(Konstanty!F3*P6+Konstanty!F4) -> 14895.50536 | Q9: J/kg | U9: Odpar z povrchů
A10: entalpie | C10: hi | D10: =D8+D9 -> 78663.0627 | E10: J/kg | G10: entalpie | I10: hi | J10: =J8+J9 -> 70316.47346 | K10: J/kg | M10: entalpie | O10: he | P10: =IF(P8<0,P9-P8,P8+P9) -> 24995.50536 | Q10: J/kg | AB10: (7+3,5*w)*S*(xp´´-x).10-3
D11: =D10/1000 -> 78.6630627 | E11: kJ/kg | J11: =J10/1000 -> 70.31647346 | K11: kJ/kg | P11: =P10/1000 -> 24.99550536 | Q11: kJ/kg | AB11: w stredni rychlost vzduchu
A12: tlak nasycené vodní páry | C12: p''vpi | D12: =Konstanty!$F$12^((1500.3+23.5*D6)/(234+D6)) -> 4756.622959 | E12: Pa | G12: tlak nasycené vodní páry | I12: p''vpi | J12: =Konstanty!$F$12^((1500.3+23.5*J6)/(234+J6)) -> 2984.426233 | K12: Pa | M12: tlak nasycené vodní páry | O12: p''vpe | P12: =Konstanty!$F$12^((1500.3+23.5*P6)/(234+P6)) -> 1226.457542 | Q12: Pa | S12: =2.718^(28.926-(6148/(273.15+te))) -> 1356.114734 | AB12: xp´´-merna vlhkost nasyceneho vzduchu
A13: tlak vodní páry | C13: pvpi | D13: =(D7/100)*D12 -> 2853.973775 | E13: Pa | G13: tlak vodní páry | I13: pvpi | J13: =(J7/100)*J12 -> 1641.434428 | K13: Pa | M13: tlak vodní páry | O13: pvpe | P13: =(P7/100)*P12 -> 932.1077319 | Q13: Pa | AB13: x - merna vlhkost vzduchu nad povrchem
A14: tlak suchého vzduchu | C14: psvi | D14: =D18*Konstanty!$F$5*(Teplota+273.15) -> 98021.00865 | E14: Pa | G14: tlak suchého vzduchu | I14: psvi | J14: =J18*Konstanty!$F$5*(Teplota+273.15) -> 100648.9177 | K14: Pa | M14: tlak suchého vzduchu | O14: psve | P14: =P18*Konstanty!F5*(P6+273.15) -> 98025.61599 | Q14: Pa | AB14: S plocha
A15: tlak směsi vlhkého vzduchu | C15: pi | D15: =D13+D14 -> 100874.9824 | E15: Pa | G15: tlak směsi vlhkého vzduchu | I15: pi | J15: =J13+J14 -> 102290.3522 | K15: Pa | M15: tlak směsi vlhkého vzduchu | O15: pe | P15: =P13+P14 -> 98957.72372 | Q15: Pa
A16: měrná vlhkost vzduchu | C16: xi | D16: =(Konstanty!$F$5/Konstanty!$F$6)*(D13/D14) -> 0.01811068229 | E16: kg/kg s.v. | G16: měrná vlhkost vzduchu | I16: xi | J16: =(Konstanty!$F$5/Konstanty!$F$6)*(J13/J14) -> 0.01014421464 | K16: kg/kg s.v. | M16: měrná vlhkost vzduchu | O16: xe | P16: =(Konstanty!F5/Konstanty!F6)*(P13/P14) -> 0.005914670171 | Q16: kg/kg s.v.
D17: =D16*1000 -> 18.11068229 | E17: g/kg s.v. | J17: =J16*1000 -> 10.14421464 | K17: g/kg s.v. | P17: =P16*1000 -> 5.914670171 | Q17: g/kg s.v.
A18: hustota vzduchu při t | D18: =VLOOKUP(Teplota,Tabulky!$V$15:$AF$75,9,0) -> 1.119 | E18: kg/m3 | G18: hustota vzduchu při t | J18: =VLOOKUP(J6,Tabulky!V15:AF75,9,0) -> 1.149 | K18: kg/m3 | M18: hustota vzduchu při t | P18: =VLOOKUP(te,Tabulky!V15:AF75,9,0) -> 1.206 | Q18: kg/m3
D19: =1.395-Teplota*0.004414 -> 1.253752
A20: Bazén | I20: rozměry bazénu
A21: Teplota vody | C21: tsniz | D21: =Vypocet!D21 -> 2 | E21: °C | F21: snížení teploty vody (dop 2-3°C) | I21: délka bazén | J21: a | K21: =Vypocet!K21 -> 25 | L21: m
A22: tvz-(2-3)°C | C22: tvod | D22: =D6-D21 -> 30 | E22: °C | I22: šířka bazén | J22: b | K22: =Vypocet!K22 -> 12 | L22: m
A24: Mn. odpařené vody
A25: mw=ε*A*(p´´vp-pvp) | C25: mw | D25: =D28*$D$29*($D$12/100-$D$13/100) -> 114158.951 | E25: g/h
D26: =D25/1000 -> 114.158951 | E26: kg/h | I26: budova
A27: typ bazenu | D27: =Vypocet!AH47 -> bazény - normální provoz | I27: délka | J27: a | K27: =Vypocet!K27 -> 40 | L27: m
A28: mnozstvi odp vody | D28: =VLOOKUP(D27,Tab_souc_odparu_bazen,7,0) -> 20 | H28: [g/(hPa.m2.h)] | I28: šířka | J28: b | K28: =Vypocet!K28 -> 15 | L28: m
A29: plocha bazénu | C29: A | D29: =K21*K22 -> 300 | E29: m2 | I29: výška | J29: v | K29: =Vypocet!K29 -> 7 | L29: m | M29: Produkce vlhkosti osobami - klidový režim
A30: Objem haly | C30: V | D30: =K27*K28*K29 -> 4200 | E30: m3 | M30: počet osob v bazénu | O30: nos | P30: =Vypocet!P30 -> 2
M31: množství vlhkosti | O31: mos | P31: =P30*100 -> 200 | Q31: g/h
A32: Produkce vlhkosti osobami - v provozu | P32: =P31/1000 -> 0.2 | Q32: kg/h | AE32: Výkon na kondenzátoru | AI32: Qk | AJ32: =AH69 -> 192519.6485 | AK32: W
A33: počet osob v bazénu | C33: nos | D33: =Vypocet!D33 -> 60 | E33: počet | G33: Produkce vlhkosti člověkem | P33: =P31/3600 -> 0.05555555556 | Q33: g/s | AJ33: =AH70 -> 192.5196485 | AK33: kW
A34: množství vlhkosti | C34: mos | D34: =D33*H35 -> 6300 | E34: g/h | G34: =Vypocet!AH50 -> člověk při středně těžké práci | AE34: Teplota požadovaná v interiéru | AI34: ti | AJ34: =Teplota -> 32 | AK34: °C
D35: =D34/1000 -> 6.3 | E35: kg/h | G35: =VLOOKUP(G34,Tabulky!W146:Z148,4,0) -> 60-150 | H35: =IF(G35="60-150",105,IF(G35="30-60",45,225)) -> 105 | I35: g/h | M35: Produkce vlhkosti - klidový režim | AY35: Výkon na kondenzátoru | BC35: Qk | BD35: =BB70 -> 56763.6928 | BE35: W
D36: =D34/3600 -> 1.75 | E36: g/s | G36: rozmezí | H36: průměr | L36: množství odpařené vody | O36: mw | P36: =Tabulky!$G$4*$D$29*($D$12/100-$D$13/100) -> 28539.73775 | Q36: g/h | BD36: =BB71 -> 56.7636928 | BE36: kW
A37: celkové množství odpařené vody | D37: =(D25+D34)*(I37/100+1) -> 126481.8986 | E37: g/h | H37: korekce | I37: =Vypocet!I37 -> 5 | J37: % | M37: celkové množství odpařené vody | P37: =(P36+P31)*(I37/100+1) -> 30176.72464 | Q37: g/h | AY37: Teplota požadovaná v interiéru | BC37: ti | BD37: =J6 -> 24 | BE37: °C
A38: Dimenzování průtoku vzduchu bazénové větrací jednotky pro zátěž | M38: Dimenzování průtoku vzduchu bazénové větrací jednotky pro klidový režim
A39: z množství odpařené vody | M39: z množství odpařené vody
A40: požadovaná vlhkost přiváděná | C40: xpoz | D40: =Vypocet!D40 -> 9 | E40: g/kg | G40: doporučená hodnota 8-10 g/kg | M40: požadovaná vlhkost přiváděná | O40: xpoz | P40: =Vypocet!P40 -> 9 | Q40: g/kg | S40: doporučená hodnota 8-10 g/kg
C41: V1 | D41: =(D37)/(D18*(D17-D40)) -> 12406.44594 | E41: m3/h | I41: =D147 -> 9 | J41: g/kg s.v. | O41: V1 | P41: =(P36+P31)/(Konstanty!$F$8*(J17-5)) -> 4560.659311 | Q41: m3/h
A42: z objemu haly | M42: z objemu haly
A43: výměna vzduchu | C43: n | D43: =Vypocet!D43 -> 1 | E43: 1/h | M43: výměna vzduchu | O43: n | P43: =Vypocet!P43 -> 1 | Q43: 1/h
A44: V=n*VH | C44: V2 | D44: =D30*D43 -> 4200 | E44: m3/h | M44: V=n*VH | O44: V2 | P44: =D30*P43 -> 4200 | Q44: m3/h
A45: z tepelných zisků
B46: tepelné ztráty | C46: Qzt | D46: =Vypocet!D46 -> 7 | E46: kW | H46: teplotní spád výústky | I46: dt | J46: =Vypocet!J46 -> 8 | K46: °C
B47: tepelné zisky | C47: Qzisk | D47: =Vypocet!D47 -> 16 | E47: kW
B48: Množství vzduchu | D48: =((D47-D46)/J46*Konstanty!$F$2*Konstanty!$F$8) -> 1391.90625 | E48: m3/h
A50: potřeba vzduchu pro osoby | W50: te | X50: teplota exteriérového vzduchu
C51: V2 | D51: =D33*D52 -> 3000 | W51: Qpředehřev | X51: Výkon pro předehřátí vzduchu
A52: množství čerstvého vzduchu/osoba | D52: =Vypocet!D52 -> 50 | E52: m3/h/os | G52: doporučená hodnota při zátěži (min hodnota 25m3/h) | W52: Qdohřátí | X52: Výkon spotřebovaný na dohřátí vzduchu na požadovanou úroveň
A54: Potřeba čerstvého vzduchu | D54: =IF(MAX(D41,D44,D48)>D51,"Ne","Ano") -> Ne | G54: nepočítá s tím dál samo! | AE54: Teplo odevzdané na výparníku | AK54: Množství kondenzátu
A55: Množství čerstvého vzduchu | D55: =IF(D54="ano",D51-MAX(D41,D44,D48),0) -> 0 | E55: m3/h | G55: pouze informativní charakter, množství V čerst rozhodne projektant | AE55: Qv=V*ρ*(hi-h3) | AG55: Qv | AH55: =D81 -> 145578.9019 | AI55: W | AK55: mkond = V*ρ*(xi-x3) | AM55: mkond | AN55: =IF(D58*D18*(D16-D77)<0,0,D58*D18*(D16-D77)) -> 0.03053527989 | AO55: kg/s | AY55: Teplo odevzdané na výparníku | BE55: Množství kondenzátu
AH56: =AH55/1000 -> 145.5789019 | AI56: kW | AN56: =AN55*1000 -> 30.53527989 | AO56: g/s | AY56: Qv=V*ρ*(hi-h3) | BA56: Qv | BB56: =P81 -> 47003.77313 | BC56: W | BE56: mkond = V*ρ*(xi-x3) | BG56: mkond | BH56: =IF(P58*J18*(J16-P77)<0,0,P58*J18*(J16-P77)) -> 0.002183415645 | BI56: kg/s
A57: průtok vzduchu | C57: V | D57: =MAX(D41,D44,D48) -> 12406.44594 | E57: m3/h | M57: průtok vzduchu | O57: V | P57: =MAX(P41,P44) -> 4560.659311 | Q57: m3/h | AN57: =AN55*3600 -> 109.9270076 | AO57: kg/h | BB57: =BB56/1000 -> 47.00377313 | BC57: kW | BH57: =BH56*1000 -> 2.183415645 | BI57: g/s
C58: V | D58: =D57/3600 -> 3.446234982 | E58: m3/s | O58: V | P58: =P57/3600 -> 1.266849809 | Q58: m3/s | AE58: Tepelné čerpadlo (TČ) | AI58: typ TČ | BH58: =BH56*3600 -> 7.860296323 | BI58: kg/h
AE59: Topný faktor TČ | AG59: COP | AH59: =VLOOKUP(Teplota,'V6'!AE83:AF136,2,0) -> 4.101333333 | AI59: Alfa S Duo | AY59: Tepelné čerpadlo (TČ) | BC59: typ TČ
A60: množství odebrané měrné vlh | C60: Δx | D60: 7.918208476 | E60: g/kg s.v | G60: vstupní měrná vlhkost do int | I60: xvyst | J60: =D147 -> 9 | K60: g/kg s.v. | AY60: Topný faktor TČ | BA60: COP | BB60: =VLOOKUP(J6,'V6'!AY84:AZ132,2,0) -> 3.816 | BC60: Alfa S Duo
A61: teplota chladiče | C61: tch | D61: =Vypocet!D61 -> 9 | E61: °C | AE61: Tepelná bilance TČ
A62: relativní vlhkost | C62: rhch | D62: =Vypocet!D62 -> 100 | E62: % | M62: množství odebrané měrné vlh | O62: Δx | P62: =Vypocet!P60 -> 1.5 | Q62: g/kg s.v. | AE62: Qk=Pel+Qv | AY62: Tepelná bilance TČ
M63: teplota chladiče | O63: tch | P63: =Vypocet!P61 -> 9 | Q63: °C | AE63: εt = COP | AF63: εt = Qv/Pel | AY63: Qk=Pel+Qv
M64: relativní vlhkost | O64: rhch | P64: =Vypocet!P62 -> 100 | Q64: % | AE64: Pel=Qk/(1+Et) | AY64: εt = COP | AZ64: εt = Qv/Pel
X65: Parametry chladiče | AE65: Výkon kompresoru | AG65: Pet | AH65: =AH55/(AH59-1) -> 46940.74654 | AI65: W | AY65: Pel=Qk/(1+Et)
A66: t3 | B66: parametry vyduchu za vyparnikem | M66: t3 | N66: parametry vyduchu za vyparnikem | X66: teplota | Z66: ti | AA66: =tch -> 9 | AB66: °C | AH66: =AH65/1000 -> 46.94074654 | AI66: kW | AY66: Výkon kompresoru | BA66: Pet | BB66: =BB56/(BB60+1) -> 9759.91967 | BC66: W
A67: teplota | C67: tvyp | D67: =W87 -> 15 | E67: °C | G67: =tvyp-te -> 5 | M67: teplota | O67: tvyp | P67: =W112 -> 16 | Q67: °C | X67: relativní vlhkost | Z67: rhi | AA67: =D62 -> 100 | AB67: % | AE67: Prikon kompresoru | AH67: =AH66/AH59 -> 11.44524054 | AI67: kW | BB67: =BB66/1000 -> 9.75991967 | BC67: kW
A68: relativní vlhkost | C68: rh3 | D68: =IF((D74/D73)*100>100,100,(D74/D73)*100) -> 94.23936646 | E68: % | M68: relativní vlhkost | O68: rh3 | P68: =IF((P74/P73)*100>100,100,(P74/P73)*100) -> 74.95783123 | Q68: % | X68: entalpie s.v. | Z68: hsvi | AA68: =Konstanty!$F$2*AA66 -> 9090 | AB68: J/kg | AE68: Teplo na kondenzátoru
A69: entalpie s.v. | C69: h3 | D69: =Konstanty!$F$2*D67 -> 15150 | E69: J/kg | M69: entalpie s.v. | O69: h3 | P69: =Konstanty!$F$2*P67 -> 16160 | Q69: J/kg | X69: entalpie v.p. | Z69: hvpi | AA69: =$AA$76*(Konstanty!$F$3*AA66+Konstanty!$F$4) -> 18311.90427 | AB69: J/kg | AE69: Výkon na kondenzátoru | AG69: Qk | AH69: =AH65+AH55 -> 192519.6485 | AI69: W | AY69: Teplo na kondenzátoru
A70: entalpie v.p. | C70: h3 | D70: =D77*(Konstanty!$F$3*D67+Konstanty!$F$4) -> 25762.49681 | E70: J/kg | M70: entalpie v.p. | O70: h3 | P70: =P77*(Konstanty!$F$3*P67+Konstanty!$F$4) -> 21865.02229 | Q70: J/kg | X70: entalpie | Z70: hi | AA70: =AA68+AA69 -> 27401.90427 | AB70: J/kg | AH70: =AH69/1000 -> 192.5196485 | AI70: kW | AY70: Výkon na kondenzátoru | BA70: Qk | BB70: =BB66+BB56 -> 56763.6928 | BC70: W
A71: entalpie | C71: h3 | D71: =D69+D70 -> 40912.49681 | E71: J/kg | M71: entalpie | O71: h3 | P71: =P69+P70 -> 38025.02229 | Q71: J/kg | AA71: =AA70/1000 -> 27.40190427 | AB71: kJ/kg | BB71: =BB70/1000 -> 56.7636928 | BC71: kW
D72: =D71/1000 -> 40.91249681 | E72: kJ/kg | P72: =P71/1000 -> 38.02502229 | Q72: kJ/kg | X72: tlak nasycené vodní páry | Z72: p''vpi | AA72: =Konstanty!$F$12^((1500.3+23.5*AA66)/(234+AA66)) -> 1146.47173 | AB72: Pa
A73: tlak nasycené vodní páry | C73: p''vp3 | D73: =Konstanty!$F$12^((1500.3+23.5*D67)/(234+D67)) -> 1704.392217 | E73: Pa | M73: tlak nasycené vodní páry | O73: p''vp3 | P73: =Konstanty!$F$12^((1500.3+23.5*P67)/(234+P67)) -> 1817.468722 | Q73: Pa | X73: tlak vodní páry | Z73: pvpi | AA73: =(AA67/100)*AA72 -> 1146.47173 | AB73: Pa | AE73: Graf topneho faktoru | AH73: TnG Air 13, vzduch/voda
A74: tlak vodní páry | C74: pvp3 | D74: =(D77*D75)/0.622 -> 1606.208428 | E74: Pa | G74: =((G77*D75)/(0.622+G77))/((0.622-G77)/(0.622)) -> 0 | H74: přepočet tlaku z x | M74: tlak vodní páry | O74: pvp3 | P74: =(P77*P75)/0.622 -> 1362.335137 | Q74: Pa | S74: =((S77*P75)/(0.622+S77))/((0.622-S77)/(0.622)) -> 1599.161688 | T74: přepočet tlaku z x | X74: tlak suchého vzduchu | Z74: psvi | AA74: =AA78*Konstanty!$F$5*(AA66+273.15) -> 98003.39739 | AB74: Pa | AY74: Graf topneho faktoru | BB74: TnG Air 13, vzduch/voda
A75: tlak suchého vzduchu | C75: psv3 | D75: =D79*Konstanty!$F$5*(D67+273.15) -> 98019.54463 | E75: Pa | M75: tlak suchého vzduchu | O75: psv3 | P75: =P79*Konstanty!$F$5*(P67+273.15) -> 98027.69719 | Q75: Pa | X75: tlak směsi vlhkého vzduchu | Z75: pi | AA75: =AA73+AA74 -> 99149.86912 | AB75: Pa | AE75: =Vypocet!AE107 -> teplota | AF75: =Vypocet!AF107 -> -18 | AG75: =Vypocet!AG107 -> -15 | AH75: =Vypocet!AH107 -> -10 | AI75: =Vypocet!AI107 -> -5 | AJ75: =Vypocet!AJ107 -> 0 | AK75: =Vypocet!AK107 -> 5 | AL75: =Vypocet!AL107 -> 10 | AM75: =Vypocet!AM107 -> 15
A76: tlak směsi vlhkého vzduchu | C76: p3 | D76: =D74+D75 -> 99625.75306 | E76: Pa | M76: tlak směsi vlhkého vzduchu | O76: p3 | P76: =P74+P75 -> 99390.03233 | Q76: Pa | X76: měrná vlhkost vzduchu | Z76: xi | AA76: =(Konstanty!$F$5/Konstanty!$F$6)*(AA73/AA74) -> 0.007276561764 | AB76: kg/kg s.v. | AE76: =Vypocet!AE108 -> vykon | AF76: =Vypocet!AF108 -> 4.7 | AG76: =Vypocet!AG108 -> 5.75 | AH76: =Vypocet!AH108 -> 7 | AI76: =Vypocet!AI108 -> 8.24 | AJ76: =Vypocet!AJ108 -> 9.46 | AK76: =Vypocet!AK108 -> 10.69 | AL76: =Vypocet!AL108 -> 11.8 | AM76: =Vypocet!AM108 -> 13.1 | AY76: =Vypocet!AY108 -> teplota | AZ76: =Vypocet!AZ108 -> -18 | BA76: =Vypocet!BA108 -> -15 | BB76: =Vypocet!BB108 -> -10 | BC76: =Vypocet!BC108 -> -5 | BD76: =Vypocet!BD108 -> 0 | BE76: =Vypocet!BE108 -> 5 | BF76: =Vypocet!BF108 -> 10 | BG76: =Vypocet!BG108 -> 15
A77: měrná vlhkost vzduchu | C77: x3 | D77: =D16-deltaT/1000 -> 0.01019247381 | E77: kg/kg s.v. | G77: =IF(tvyp<D82,0,D16) -> 0 | H77: vezme x z Ti když tvyp<rosny bod | M77: měrná vlhkost vzduchu | O77: x3 | P77: =J16-P62/1000 -> 0.008644214643 | Q77: kg/kg s.v. | S77: =IF(tvyp<P82,0,J16) -> 0.01014421464 | T77: vezme x z Ti když tvyp<rosny bod | AA77: =AA76*1000 -> 7.276561764 | AB77: g/kg s.v. | AE77: =Vypocet!AE109 -> el prikon | AF77: =Vypocet!AF109 -> 2.24 | AG77: =Vypocet!AG109 -> 2.47 | AH77: =Vypocet!AH109 -> 2.72 | AI77: =Vypocet!AI109 -> 2.94 | AJ77: =Vypocet!AJ109 -> 3.2 | AK77: =Vypocet!AK109 -> 3.37 | AL77: =Vypocet!AL109 -> 3.55 | AM77: =Vypocet!AM109 -> 3.85 | AY77: =Vypocet!AY109 -> vykon | AZ77: =Vypocet!AZ109 -> 4.7 | BA77: =Vypocet!BA109 -> 5.75 | BB77: =Vypocet!BB109 -> 7 | BC77: =Vypocet!BC109 -> 8.24 | BD77: =Vypocet!BD109 -> 9.46 | BE77: =Vypocet!BE109 -> 10.69 | BF77: =Vypocet!BF109 -> 11.8 | BG77: =Vypocet!BG109 -> 13.1
D78: =D77*1000 -> 10.19247381 | E78: g/kg s.v. | P78: =P77*1000 -> 8.644214643 | Q78: g/kg s.v. | X78: hustota vzduchu při t | AA78: =VLOOKUP(AA66,Tabulky!$V$15:$AF$75,9,0) -> 1.21 | AB78: kg/m3 | AE78: =Vypocet!AE110 -> COP | AF78: =Vypocet!AF110 -> 2.1 | AG78: =Vypocet!AG110 -> 2.33 | AH78: =Vypocet!AH110 -> 2.57 | AI78: =Vypocet!AI110 -> 2.8 | AJ78: =Vypocet!AJ110 -> 2.96 | AK78: =Vypocet!AK110 -> 3.17 | AL78: =Vypocet!AL110 -> 3.32 | AM78: =Vypocet!AM110 -> 3.4 | AY78: =Vypocet!AY110 -> el prikon | AZ78: =Vypocet!AZ110 -> 2.24 | BA78: =Vypocet!BA110 -> 2.47 | BB78: =Vypocet!BB110 -> 2.72 | BC78: =Vypocet!BC110 -> 2.94 | BD78: =Vypocet!BD110 -> 3.2 | BE78: =Vypocet!BE110 -> 3.37 | BF78: =Vypocet!BF110 -> 3.55 | BG78: =Vypocet!BG110 -> 3.85
A79: hustota vzduchu při t | D79: =VLOOKUP(tvyp,Tabulky!$V$15:$AF$75,9,0) -> 1.185 | E79: kg/m3 | M79: hustota vzduchu při t | P79: =VLOOKUP(P67,Tabulky!$V$15:$AF$75,9,0) -> 1.181 | Q79: kg/m3 | AA79: =1.395-Teplota*0.004414 -> 1.253752 | AH79: =AH78-AG78 -> 0.24 | AI79: 0.23 | AJ79: 0.16 | AK79: 0.21 | AL79: 0.15 | AM79: 0.08 | AN79: průměr | AO79: =AVERAGE(AG79:AM79) -> 0.1783333333 | AP79: prumer/1 | AQ79: =AO79/5 -> 0.03566666667 | AY79: =Vypocet!AY111 -> COP | AZ79: =Vypocet!AZ111 -> 2.1 | BA79: =Vypocet!BA111 -> 2.33 | BB79: =Vypocet!BB111 -> 2.57 | BC79: =Vypocet!BC111 -> 2.8 | BD79: =Vypocet!BD111 -> 2.96 | BE79: =Vypocet!BE111 -> 3.17 | BF79: =Vypocet!BF111 -> 3.32 | BG79: =Vypocet!BG111 -> 3.4
AF80: popis závislosti | AH80: y=0,18571x+2,96 | BB80: =BB79-BA79 -> 0.24 | BC80: 0.23 | BD80: 0.16 | BE80: 0.21 | BF80: 0.15 | BG80: 0.08 | BH80: průměr | BI80: =AVERAGE(BA80:BG80) -> 0.1783333333 | BJ80: prumer/1 | BK80: =BI80/5 -> 0.03566666667
A81: teplo získané na výparníku | C81: Qv | D81: =D58*D18*(D10-D71) -> 145578.9019 | E81: W | M81: teplo získané na výparníku | O81: Qv | P81: =P58*J18*(J10-P71) -> 47003.77313 | Q81: W | U81: A | V81: Ti | W81: =Teplota -> 32 | Y81: B | Z81: tch | AA81: =AA66 -> 9 | AZ81: popis závislosti | BB81: y=0,18571x+2,96
B82: rosný bod | D82: =(243.5*LN(($D$7/100)*Konstanty!$F$12^((17.67*Teplota)/(243.5+Teplota))))/(17.67-(LN(($D$7/100)*Konstanty!$F$12^((17.67*Teplota)/(243.5+Teplota))))) -> 23.27425187 | E82: °C | N82: rosný bod | P82: =(243.5*LN((J7/100)*Konstanty!$F$12^((17.67*J6)/(243.5+J6))))/(17.67-(LN((J7/100)*Konstanty!$F$12^((17.67*J6)/(243.5+J6))))) -> 14.41381795 | Q82: °C | V82: xi | W82: =D16 -> 0.01811068229 | Z82: xch | AA82: =AA76 -> 0.007276561764 | AE82: teplota | AF82: COP | AH82: -18 | AI82: 2.1
V83: xi | W83: =D17 -> 18.11068229 | Z83: xch | AA83: =AA77 -> 7.276561764 | AE83: -18 | AF83: =$AQ$79*AE83+$AJ$78 -> 2.318 | AH83: -15 | AI83: 2.33 | AY83: teplota | AZ83: COP
A84: Distribuce tepla v závislosti na externí teplotě | AE84: -17 | AF84: 2.353666667 | AH84: -10 | AI84: 2.57 | AY84: -18 | AZ84: =$AQ$79*AY84+$AJ$78 -> 2.318
A85: teplota předehřevu te | C85: tpřed | D85: =Vypocet!D85 -> 5 | E85: °C | V85: dx | W85: =deltaT -> 7.918208476 | Y85: výpočet teplochy při teplote chladice | AE85: -16 | AF85: 2.389333333 | AH85: -5 | AI85: 2.8 | AY85: -17 | AZ85: 2.353666667
A86: množství čerst vzduchu | D86: =Vypocet!D86 -> 30 | E86: % | V86: th | W86: =((W81-AA81)*W83+(AA83-W83)*W81-(W81-AA81)*(W83-W85))/(AA83-W83) -> 15.19025578 | Y86: počítá s přímkou ti - tch a na ní počítá bod | AE86: -15 | AF86: 2.425 | AH86: 0 | AI86: 2.96 | AY86: -16 | AZ86: 2.389333333
A87: množství předehřívaného vzd | D87: =D58*(D86/100) -> 1.033870495 | E87: m3/h | W87: =ROUND(W86,0) -> 15 | AE87: -14 | AF87: 2.460666667 | AH87: 5 | AI87: 3.17 | AY87: -15 | AZ87: 2.425
A88: potřeba tepla na předehřev | D88: =IF(D85>te,((D87*P18)/(1+P16))*(D85-te)*P18*Konstanty!$F$2,0) -> 0 | E88: W | AE88: -13 | AF88: 2.496333333 | AH88: 10 | AI88: 3.32 | AY88: -14 | AZ88: 2.460666667
AE89: -12 | AF89: 2.532 | AH89: 15 | AI89: 3.4 | AY89: -13 | AZ89: 2.496333333
A90: t4 | B90: Předehřev exteriérového vzduchu | M90: t4 | N90: Předehřev exteriérového vzduchu | X90: Parametry chladiče klidovy rezim | AE90: -11 | AF90: 2.567666667 | AY90: -12 | AZ90: 2.532
A91: teplota předehřevu | C91: tpředehřev | D91: =IF($D$85>te,$D$85,te) -> 10 | E91: °C | M91: teplota předehřevu | O91: tpředehřev | P91: =IF($D$85>te,$D$85,te) -> 10 | Q91: °C | X91: teplota | Z91: ti | AA91: =P63 -> 9 | AB91: °C | AE91: -10 | AF91: 2.603333333 | AY91: -11 | AZ91: 2.567666667
C92: rhpředehřev | D92: =((D101*P15)/(D97*(0.622+D101)))*100 -> 76.00236039 | E92: % | O92: rhpředehřev | P92: =((P101*P15)/(P97*(0.622+P101)))*100 -> 76.00236039 | Q92: % | X92: relativní vlhkost | Z92: rhi | AA92: =P64 -> 100 | AB92: % | AE92: -9 | AF92: 2.639 | AY92: -10 | AZ92: 2.603333333
A93: entalpie s.v. | C93: hsv4 | D93: =Konstanty!$F$2*D91 -> 10100 | E93: J/kg | M93: entalpie s.v. | O93: hsv4 | P93: =Konstanty!$F$2*P91 -> 10100 | Q93: J/kg | X93: entalpie s.v. | Z93: hsvi | AA93: =Konstanty!$F$2*AA91 -> 9090 | AB93: J/kg | AE93: -8 | AF93: 2.674666667 | AY93: -9 | AZ93: 2.639
A94: entalpie v.p. | C94: hvp4 | D94: =D101*(Konstanty!$F$3*D91+Konstanty!$F$4) -> 14895.50536 | E94: J/kg | M94: entalpie v.p. | O94: hvp4 | P94: =P101*(Konstanty!$F$3*P91+Konstanty!$F$4) -> 14895.50536 | Q94: J/kg | X94: entalpie v.p. | Z94: hvpi | AA94: =$AA$76*(Konstanty!$F$3*AA91+Konstanty!$F$4) -> 18311.90427 | AB94: J/kg | AE94: -7 | AF94: 2.710333333 | AY94: -8 | AZ94: 2.674666667
A95: entalpie | C95: h4 | D95: =D93+D94 -> 24995.50536 | E95: J/kg | M95: entalpie | O95: h4 | P95: =P93+P94 -> 24995.50536 | Q95: J/kg | X95: entalpie | Z95: hi | AA95: =AA93+AA94 -> 27401.90427 | AB95: J/kg | AE95: -6 | AF95: 2.746 | AY95: -7 | AZ95: 2.710333333
D96: =D95/1000 -> 24.99550536 | E96: kJ/kg | P96: =P95/1000 -> 24.99550536 | Q96: kJ/kg | AA96: =AA95/1000 -> 27.40190427 | AB96: kJ/kg | AE96: -5 | AF96: 2.781666667 | AY96: -6 | AZ96: 2.746
A97: tlak nasycené vodní páry | C97: p''vp4 | D97: =Konstanty!$F$12^((1500.3+23.5*D91)/(234+D91)) -> 1226.457542 | E97: Pa | M97: tlak nasycené vodní páry | O97: p''vp4 | P97: =Konstanty!$F$12^((1500.3+23.5*P91)/(234+P91)) -> 1226.457542 | Q97: Pa | X97: tlak nasycené vodní páry | Z97: p''vpi | AA97: =Konstanty!$F$12^((1500.3+23.5*AA91)/(234+AA91)) -> 1146.47173 | AB97: Pa | AE97: -4 | AF97: 2.817333333 | AY97: -5 | AZ97: 2.781666667
A98: tlak vodní páry | C98: pvp4 | D98: =(D92/100)*D97 -> 932.1366811 | E98: Pa | M98: tlak vodní páry | O98: pvp4 | P98: =(P92/100)*P97 -> 932.1366811 | Q98: Pa | X98: tlak vodní páry | Z98: pvpi | AA98: =(AA92/100)*AA97 -> 1146.47173 | AB98: Pa | AE98: -3 | AF98: 2.853 | AY98: -4 | AZ98: 2.817333333
A99: tlak suchého vzduchu | C99: psv4 | D99: =D103*Konstanty!$F$5*(D91+273.15) -> 98025.61599 | E99: Pa | M99: tlak suchého vzduchu | O99: psv4 | P99: =P103*Konstanty!$F$5*(P91+273.15) -> 98025.61599 | Q99: Pa | X99: tlak suchého vzduchu | Z99: psvi | AA99: =AA103*Konstanty!$F$5*(AA91+273.15) -> 98003.39739 | AB99: Pa | AE99: -2 | AF99: 2.888666667 | AY99: -3 | AZ99: 2.853
A100: tlak směsi vlhkého vzduchu | C100: p4 | D100: =D98+D99 -> 98957.75267 | E100: Pa | M100: tlak směsi vlhkého vzduchu | O100: p4 | P100: =P98+P99 -> 98957.75267 | Q100: Pa | X100: tlak směsi vlhkého vzduchu | Z100: pi | AA100: =AA98+AA99 -> 99149.86912 | AB100: Pa | AE100: -1 | AF100: 2.924333333 | AY100: -2 | AZ100: 2.888666667
A101: měrná vlhkost vzduchu | C101: x4 | D101: =P16 -> 0.005914670171 | E101: kg/kg s.v. | M101: měrná vlhkost vzduchu | O101: x4 | P101: =P16 -> 0.005914670171 | Q101: kg/kg s.v. | X101: měrná vlhkost vzduchu | Z101: xi | AA101: =(Konstanty!$F$5/Konstanty!$F$6)*(AA98/AA99) -> 0.007276561764 | AB101: kg/kg s.v. | AE101: 0 | AF101: 2.96 | AY101: -1 | AZ101: 2.924333333
D102: =D101*1000 -> 5.914670171 | E102: g/kg s.v. | P102: =P101*1000 -> 5.914670171 | Q102: g/kg s.v. | AA102: =AA101*1000 -> 7.276561764 | AB102: g/kg s.v. | AE102: 1 | AF102: 2.995666667 | AY102: 0 | AZ102: 2.96
A103: hustota vzduchu při t | D103: =VLOOKUP(D91,Tabulky!$V$15:$AF$75,9,0) -> 1.206 | E103: kg/m3 | M103: hustota vzduchu při t | P103: =VLOOKUP(P91,Tabulky!$V$15:$AF$75,9,0) -> 1.206 | Q103: kg/m3 | X103: hustota vzduchu při t | AA103: =VLOOKUP(AA91,Tabulky!$V$15:$AF$75,9,0) -> 1.21 | AB103: kg/m3 | AE103: 2 | AF103: 3.031333333 | AY103: 1 | AZ103: 2.995666667
AA104: =1.395-Teplota*0.004414 -> 1.253752 | AE104: 3 | AF104: 3.067 | AY104: 2 | AZ104: 3.031333333
A105: t4' | B105: smíšení vzduchu s exteriérovým | M105: t4' | N105: smíšení vzduchu s exteriérovým | AE105: 4 | AF105: 3.102666667 | AY105: 3 | AZ105: 3.067
A106: Množství čerstvého vzduchu | C106: Včerstv | D106: =IF(D91>tvyp,100,$D$86) -> 30 | E106: % | M106: Množství čerstvého vzduchu | O106: Včerstv | P106: =IF(P91>tvyp,100,$D$86) -> 30 | Q106: % | U106: A | V106: Ti | W106: =J6 -> 24 | Y106: B | Z106: tch | AA106: =AA91 -> 9 | AE106: 5 | AF106: 3.138333333 | AY106: 4 | AZ106: 3.102666667
A107: teplota vzduchu | C107: t4 | D107: =ROUND(((((D106/100)*D58)*D91+((1-(D106/100))*D58)*tvyp)/D58),0) -> 14 | E107: °C | M107: teplota vzduchu | O107: t4 | P107: =ROUND(((((P106/100)*P58)*P91+((1-(P106/100))*P58)*tvyp)/P58),0) -> 14 | Q107: °C | V107: xi | W107: =J16 -> 0.01014421464 | Z107: xch | AA107: =AA101 -> 0.007276561764 | AE107: 6 | AF107: 3.174 | AY107: 5 | AZ107: 3.138333333
A108: relativní vlhkost | C108: rh4 | D108: =(1-(D106/100))*D68+(D106/100)*D92 -> 88.76826464 | E108: % | M108: relativní vlhkost | O108: rh4 | P108: =(1-(P106/100))*P68+(P106/100)*P92 -> 75.27118998 | Q108: % | V108: xi | W108: =J17 -> 10.14421464 | Z108: xch | AA108: =AA102 -> 7.276561764 | AE108: 7 | AF108: 3.209666667 | AY108: 6 | AZ108: 3.174
A109: entalpie s.v. | C109: hsv4 | D109: =Konstanty!$F$2*D107 -> 14140 | E109: J/kg | M109: entalpie s.v. | O109: hsv4 | P109: =Konstanty!$F$2*P107 -> 14140 | Q109: J/kg | AE109: 8 | AF109: 3.245333333 | AY109: 7 | AZ109: 3.209666667
A110: entalpie v.p. | C110: hvp4 | D110: =D117*(Konstanty!$F$3*D107+Konstanty!$F$4) -> 22731.84 | E110: J/kg | M110: entalpie v.p. | O110: hvp4 | P110: =P117*(Konstanty!$F$3*P107+Konstanty!$F$4) -> 19275.49957 | Q110: J/kg | V110: dx | W110: =P62 -> 1.5 | AE110: 9 | AF110: 3.281 | AY110: 8 | AZ110: 3.245333333
A111: entalpie | C111: h4 | D111: =D109+D110 -> 36871.84 | E111: J/kg | M111: entalpie | O111: h4 | P111: =P109+P110 -> 33415.49957 | Q111: J/kg | V111: th | W111: =((W106-AA106)*W108+(AA108-W108)*W106-(W106-AA106)*(W108-W110))/(AA108-W108) -> 16.15386208 | AE111: 10 | AF111: 3.316666667 | AY111: 9 | AZ111: 3.281
D112: =D111/1000 -> 36.87184 | E112: kJ/kg | P112: =P111/1000 -> 33.41549957 | Q112: kJ/kg | W112: =ROUND(W111,0) -> 16 | AE112: 11 | AF112: 3.352333333 | AY112: 10 | AZ112: 3.316666667
A113: tlak nasycené vodní páry | C113: p''vp4 | D113: =Konstanty!$F$12^((1500.3+23.5*D107)/(234+D107)) -> 1597.52315 | E113: Pa | M113: tlak nasycené vodní páry | O113: p''vp4 | P113: =Konstanty!$F$12^((1500.3+23.5*P107)/(234+P107)) -> 1597.52315 | Q113: Pa | AE113: 12 | AF113: 3.388 | AY113: 11 | AZ113: 3.352333333
A114: tlak vodní páry | C114: pvp4 | D114: =(D108/100)*D113 -> 1418.093577 | E114: Pa | M114: tlak vodní páry | O114: pvp4 | P114: =(P108/100)*P113 -> 1202.474685 | Q114: Pa | AE114: 13 | AF114: 3.423666667 | AY114: 12 | AZ114: 3.388
A115: tlak suchého vzduchu | C115: psv4 | D115: =D119*Konstanty!$F$5*(D107+273.15) -> 98009.09557 | E115: Pa | M115: tlak suchého vzduchu | O115: psv4 | P115: =P119*Konstanty!$F$5*(P107+273.15) -> 98009.09557 | Q115: Pa | AE115: 14 | AF115: 3.459333333 | AY115: 13 | AZ115: 3.423666667
A116: tlak směsi vlhkého vzduchu | C116: p4 | D116: =D114+D115 -> 99427.18915 | E116: Pa | M116: tlak směsi vlhkého vzduchu | O116: p4 | P116: =P114+P115 -> 99211.57026 | Q116: Pa | AE116: 15 | AF116: 3.495 | AY116: 14 | AZ116: 3.459333333
A117: měrná vlhkost vzduchu | C117: x4 | D117: =(Konstanty!$F$5/Konstanty!$F$6)*(D114/D115) -> 0.009 | E117: kg/kg s.v. | M117: měrná vlhkost vzduchu | O117: x4 | P117: =(Konstanty!$F$5/Konstanty!$F$6)*(P114/P115) -> 0.007631564192 | Q117: kg/kg s.v. | AE117: 16 | AF117: 3.530666667 | AY117: 15 | AZ117: 3.495
D118: =D117*1000 -> 9 | E118: g/kg s.v. | P118: =P117*1000 -> 7.631564192 | Q118: g/kg s.v. | AE118: 17 | AF118: 3.566333333 | AY118: 16 | AZ118: 3.530666667
A119: hustota vzduchu při t | D119: =VLOOKUP(D107,Tabulky!$V$15:$AF$75,9,0) -> 1.189 | E119: kg/m3 | M119: hustota vzduchu při t | P119: =VLOOKUP(P107,Tabulky!$V$15:$AF$75,9,0) -> 1.189 | Q119: kg/m3 | AE119: 18 | AF119: 3.602 | AY119: 17 | AZ119: 3.566333333
AE120: 19 | AF120: 3.637666667 | AY120: 18 | AZ120: 3.602
A121: množství tepla na kondenzátoru | C121: Qk | D121: =AH69 -> 192519.6485 | E121: W | H121: přepočet mw na msv | I121: =(D58*D119)/(1+D117) -> 4.061024176 | J121: m3/s | M121: množství tepla na kondenzátoru | O121: Qk | P121: =BB70 -> 56763.6928 | Q121: W | AE121: 20 | AF121: 3.673333333 | AY121: 19 | AZ121: 3.637666667
A122: Požadované teplo na dohřev | C122: Qpož | D122: =(D134-D107)*Konstanty!F2*D119*I121+D88 -> 97536.86646 | E122: W | M122: Požadované teplo na dohřev | P122: =(P134-P107)*Konstanty!$F$2*P119*P58 -> 30426.94534 | Q122: W | AE122: 21 | AF122: 3.709 | AY122: 20 | AZ122: 3.673333333
A123: dosažená teplota | C123: t6 | D123: =D121/(D58*D119*Konstanty!$F$2)+D107 -> 60.51863311 | E123: °C | M123: dosažená teplota | O123: t6 | P123: =P121/(P58*P119*Konstanty!$F$2)+P107 -> 51.31146336 | Q123: °C | AE123: 22 | AF123: 3.744666667 | AY123: 21 | AZ123: 3.709
A124: potřeba dohřevu | C124: Qdohř | D124: =IF((D122-D121)>0,D122-D121,0) -> 0 | E124: W | M124: potřeba dohřevu | O124: Qdohř | P124: =IF((P122-P121)>0,P122-P121,0) -> 0 | Q124: W | AE124: 23 | AF124: 3.780333333 | AY124: 22 | AZ124: 3.744666667
A125: přebytečné teplo | C125: Qpřebyt | D125: =IF((D122-D121)<0,D121-D122,0) -> 94982.782 | E125: W | M125: přebytečné teplo | O125: Qpřebyt | P125: =IF((P122-P121)<0,P121-P122,0) -> 26336.74746 | Q125: W | AE125: 24 | AF125: 3.816 | AY125: 23 | AZ125: 3.780333333
AE126: 25 | AF126: 3.851666667 | AY126: 24 | AZ126: 3.816
AE127: 26 | AF127: 3.887333333 | AY127: 25 | AZ127: 3.851666667
A128: teplota zvýšení do int | C128: tzv | D128: =Vypocet!D128 -> 2 | E128: °C | N128: teplota zvýšení do int | O128: tzv | P128: =Vypocet!P128 -> 2 | Q128: °C | AE128: 27 | AF128: 3.923 | AY128: 26 | AZ128: 3.887333333
A129: teplotní spád kondenzatoru | C129: Δt | D129: =Vypocet!D129 -> 0 | E129: °C | N129: teplotní spád kondenzatoru | O129: Δt | P129: =Vypocet!P129 -> 0 | Q129: °C | AE129: 28 | AF129: 3.958666667 | AY129: 27 | AZ129: 3.923
A130: teplota kondenzatoru | C130: tohř | D130: =Vypocet!D130 -> 0 | E130: °C | N130: teplota kondenzatoru | O130: tohř | P130: =Vypocet!P130 -> 0 | Q130: °C | AE130: 29 | AF130: 3.994333333 | AY130: 28 | AZ130: 3.958666667
A131: relativní vlhkost | C131: rhohř | D131: =Vypocet!D131 -> 0 | E131: % | N131: relativní vlhkost | O131: rhohř | P131: =Vypocet!P131 -> 0 | Q131: % | AE131: 30 | AF131: 4.03 | AY131: 29 | AZ131: 3.994333333
AE132: 31 | AF132: 4.065666667 | AY132: 30 | AZ132: 4.03
A133: t5 | B133: parametry vyduchu za kondenzátorem | M133: t5 | N133: parametry vyduchu za kondenzátorem | AE133: 32 | AF133: 4.101333333
A134: požadovaná teplotateplota do I | C134: t5 | D134: =Teplota+D128 -> 34 | E134: °C | M134: požadovaná teplota do I | O134: t5 | P134: =Teplota+P128 -> 34 | Q134: °C | AE134: 33 | AF134: 4.137
A135: dosažená teplota | C135: tdos | D135: =D123 -> 60.51863311 | E135: °C | M135: dosažená teplota | O135: t6 | P135: =P123 -> 51.31146336 | AE135: 34 | AF135: 4.172666667
AE136: 35 | AF136: 4.208333333
A137: relativní vlhkost | C137: rh5 | D137: =((D146*D116)/(D142*(0.622+D146)))*100 -> 26.65008065 | E137: % | M137: relativní vlhkost | O137: rh5 | P137: =((P146*P116)/(P142*(0.622+P146)))*100 -> 22.59797943 | Q137: %
A138: entalpie s.v. | C138: hsv5 | D138: =Konstanty!$F$2*D134 -> 34340 | E138: J/kg | M138: entalpie s.v. | O138: hsv5 | P138: =Konstanty!$F$2*P134 -> 34340 | Q138: J/kg
A139: entalpie v.p. | C139: hvp5 | D139: =D146*(Konstanty!$F$3*D134+Konstanty!$F$4) -> 23063.04 | E139: J/kg | M139: entalpie v.p. | O139: hvp5 | P139: =P146*(Konstanty!$F$3*P134+Konstanty!$F$4) -> 19556.34114 | Q139: J/kg
A140: entalpie | C140: h5 | D140: =D138+D139 -> 57403.04 | E140: J/kg | M140: entalpie | O140: h5 | P140: =P138+P139 -> 53896.34114 | Q140: J/kg
D141: =D140/1000 -> 57.40304 | E141: kJ/kg | P141: =P140/1000 -> 53.89634114 | Q141: kJ/kg
A142: tlak nasycené vodní páry | C142: p''vp5 | D142: =Konstanty!$F$12^((1500.3+23.5*D134)/(234+D134)) -> 5321.325002 | E142: Pa | M142: tlak nasycené vodní páry | O142: p''vp5 | P142: =Konstanty!$F$12^((1500.3+23.5*P134)/(234+P134)) -> 5321.325002 | Q142: Pa | AE142: dt vyp
A143: tlak vodní páry | C143: pvp5 | D143: =(D137/100)*D142 -> 1418.137405 | E143: Pa | M143: tlak vodní páry | O143: pvp5 | P143: =(P137/100)*P142 -> 1202.511929 | Q143: Pa | AE143: 2
A144: tlak suchého vzduchu | C144: psv5 | D144: =D148*Konstanty!$F$5*(D134+273.15) -> 97958.08466 | E144: Pa | M144: tlak suchého vzduchu | O144: psv5 | P144: =Konstanty!$F$8*Konstanty!$F$5*(P134+273.15) -> 108009.5893 | Q144: Pa | AE144: 3
A145: tlak směsi vlhkého vzduchu | C145: p5 | D145: =D143+D144 -> 99376.22206 | E145: Pa | M145: tlak směsi vlhkého vzduchu | O145: p5 | P145: =P143+P144 -> 109212.1012 | Q145: Pa | AE145: 4
A146: měrná vlhkost vzduchu | C146: x5 | D146: =D117 -> 0.009 | E146: kg/kg s.v. | M146: měrná vlhkost vzduchu | O146: x5 | P146: =P117 -> 0.007631564192 | Q146: kg/kg s.v. | AE146: 5
D147: =D146*1000 -> 9 | E147: g/kg s.v. | P147: =P146*1000 -> 7.631564192 | Q147: g/kg s.v. | AE147: 6 | AF147: =D124 -> 0
A148: hustota vzduchu při t | D148: =VLOOKUP(D134,Tabulky!$V$15:$AF$75,9,0) -> 1.111 | E148: kg/m3 | M148: hustota vzduchu při t | P148: =VLOOKUP(P134,Tabulky!$V$15:$AF$75,9,0) -> 1.111 | Q148: kg/m3 | AE148: 7
AE149: 8
A150: navlhčení z prostoru | M150: navlhčení z prostoru | AE150: 9
A151: dx=n.100/V.ρ | C151: dx | D151: =(D33*100)/D57*Konstanty!$F$8 -> 0.5924339684 | E151: g/kg s.v | M151: dx=n.100/V.ρ | O151: dx | P151: =(P30*100)/P57*Konstanty!$F$8 -> 0.05372030298 | Q151: g/kg s.v | AE151: 10
AE152: 11
A153: NUTNÉ vzduch privlhčit | M153: NUTNÉ vzduch privlhčit | AE153: 12
AE154: 13
AE155: 14
AE156: 15

Sheet V7
B1: Legenda | E1: hodnotu nutno zadat | J1: prevzato z první
E2: hodnota se vypočítává
E3: pomocná hodnota
A4: Parametry vzduchu | G4: interier klidovy rezim | U4: Produkce tepla od | X4: ni | Y4: =0.85*Y5+0.75*Y6+Y7 -> 60.5 | AB4: Qi=ni.6,2*(36-ti)
A5: Interiér | B5: ti | G5: Interiér | H5: ti | M5: Exteriér | N5: te | P5: minimální teplota -15 (tabulka) | U5: lidí | V5: =Y4*6.2*(36-Teplota) -> 1500.4 | W5: W | X5: nz | Y5: =Vypocet!Y5 -> 30 | Z5: zeny | AB5: ni=0,85nz+0,75nd+nm
A6: teplota | C6: ti | D6: =[0]!Teplota -> 32 | E6: °C | G6: teplota | I6: ti | J6: =Vypocet!J6 -> 24 | K6: °C | M6: teplota | O6: te | P6: =CEILING(Vypocet!P6+25,5) -> 15 | Q6: °C | X6: nd | Y6: =Vypocet!Y6 -> 20 | Z6: deti | AB6: nz - zeny, nd deti, nm muzi
A7: relativní vlhkost | C7: rhi | D7: =Vypocet!D7 -> 60 | E7: % | G7: relativní vlhkost | I7: rhi | J7: =Vypocet!J7 -> 55 | K7: % | M7: relativní vlhkost | O7: rhe | P7: =ROUND((93*te-3153.5)/(te-39.17),0) -> 73 | Q7: % | X7: nm | Y7: =Vypocet!Y7 -> 20 | Z7: muzi
A8: entalpie s.v. | C8: hsvi | D8: =Konstanty!$F$2*Teplota -> 32320 | E8: J/kg | G8: entalpie s.v. | I8: hsvi | J8: =Konstanty!$F$2*J6 -> 24240 | K8: J/kg | M8: entalpie s.v. | O8: hsve | P8: =Konstanty!$F$2*te -> 15150 | Q8: J/kg
A9: entalpie v.p. | C9: hvpi | D9: =$D$16*(Konstanty!$F$3*Teplota+Konstanty!$F$4) -> 46343.0627 | E9: J/kg | G9: entalpie v.p. | I9: hvpi | J9: =$D$16*(Konstanty!$F$3*J6+Konstanty!$F$4) -> 46076.47346 | K9: J/kg | M9: entalpie v.p. | O9: hvpe | P9: =P16*(Konstanty!F3*P6+Konstanty!F4) -> 19956.85352 | Q9: J/kg | U9: Odpar z povrchů
A10: entalpie | C10: hi | D10: =D8+D9 -> 78663.0627 | E10: J/kg | G10: entalpie | I10: hi | J10: =J8+J9 -> 70316.47346 | K10: J/kg | M10: entalpie | O10: he | P10: =IF(P8<0,P9-P8,P8+P9) -> 35106.85352 | Q10: J/kg | AB10: (7+3,5*w)*S*(xp´´-x).10-3
D11: =D10/1000 -> 78.6630627 | E11: kJ/kg | J11: =J10/1000 -> 70.31647346 | K11: kJ/kg | P11: =P10/1000 -> 35.10685352 | Q11: kJ/kg | AB11: w stredni rychlost vzduchu
A12: tlak nasycené vodní páry | C12: p''vpi | D12: =Konstanty!$F$12^((1500.3+23.5*D6)/(234+D6)) -> 4756.622959 | E12: Pa | G12: tlak nasycené vodní páry | I12: p''vpi | J12: =Konstanty!$F$12^((1500.3+23.5*J6)/(234+J6)) -> 2984.426233 | K12: Pa | M12: tlak nasycené vodní páry | O12: p''vpe | P12: =Konstanty!$F$12^((1500.3+23.5*P6)/(234+P6)) -> 1704.392217 | Q12: Pa | S12: =2.718^(28.926-(6148/(273.15+te))) -> 1976.540518 | AB12: xp´´-merna vlhkost nasyceneho vzduchu
A13: tlak vodní páry | C13: pvpi | D13: =(D7/100)*D12 -> 2853.973775 | E13: Pa | G13: tlak vodní páry | I13: pvpi | J13: =(J7/100)*J12 -> 1641.434428 | K13: Pa | M13: tlak vodní páry | O13: pvpe | P13: =(P7/100)*P12 -> 1244.206319 | Q13: Pa | AB13: x - merna vlhkost vzduchu nad povrchem
A14: tlak suchého vzduchu | C14: psvi | D14: =D18*Konstanty!$F$5*(Teplota+273.15) -> 98021.00865 | E14: Pa | G14: tlak suchého vzduchu | I14: psvi | J14: =J18*Konstanty!$F$5*(Teplota+273.15) -> 100648.9177 | K14: Pa | M14: tlak suchého vzduchu | O14: psve | P14: =P18*Konstanty!F5*(P6+273.15) -> 98019.54463 | Q14: Pa | AB14: S plocha
A15: tlak směsi vlhkého vzduchu | C15: pi | D15: =D13+D14 -> 100874.9824 | E15: Pa | G15: tlak směsi vlhkého vzduchu | I15: pi | J15: =J13+J14 -> 102290.3522 | K15: Pa | M15: tlak směsi vlhkého vzduchu | O15: pe | P15: =P13+P14 -> 99263.75095 | Q15: Pa
A16: měrná vlhkost vzduchu | C16: xi | D16: =(Konstanty!$F$5/Konstanty!$F$6)*(D13/D14) -> 0.01811068229 | E16: kg/kg s.v. | G16: měrná vlhkost vzduchu | I16: xi | J16: =(Konstanty!$F$5/Konstanty!$F$6)*(J13/J14) -> 0.01014421464 | K16: kg/kg s.v. | M16: měrná vlhkost vzduchu | O16: xe | P16: =(Konstanty!F5/Konstanty!F6)*(P13/P14) -> 0.007895574267 | Q16: kg/kg s.v.
D17: =D16*1000 -> 18.11068229 | E17: g/kg s.v. | J17: =J16*1000 -> 10.14421464 | K17: g/kg s.v. | P17: =P16*1000 -> 7.895574267 | Q17: g/kg s.v.
A18: hustota vzduchu při t | D18: =VLOOKUP(Teplota,Tabulky!$V$15:$AF$75,9,0) -> 1.119 | E18: kg/m3 | G18: hustota vzduchu při t | J18: =VLOOKUP(J6,Tabulky!V15:AF75,9,0) -> 1.149 | K18: kg/m3 | M18: hustota vzduchu při t | P18: =VLOOKUP(te,Tabulky!V15:AF75,9,0) -> 1.185 | Q18: kg/m3
D19: =1.395-Teplota*0.004414 -> 1.253752
A20: Bazén | I20: rozměry bazénu
A21: Teplota vody | C21: tsniz | D21: =Vypocet!D21 -> 2 | E21: °C | F21: snížení teploty vody (dop 2-3°C) | I21: délka bazén | J21: a | K21: =Vypocet!K21 -> 25 | L21: m
A22: tvz-(2-3)°C | C22: tvod | D22: =D6-D21 -> 30 | E22: °C | I22: šířka bazén | J22: b | K22: =Vypocet!K22 -> 12 | L22: m
A24: Mn. odpařené vody
A25: mw=ε*A*(p´´vp-pvp) | C25: mw | D25: =D28*$D$29*($D$12/100-$D$13/100) -> 114158.951 | E25: g/h
D26: =D25/1000 -> 114.158951 | E26: kg/h | I26: budova
A27: typ bazenu | D27: =Vypocet!AH47 -> bazény - normální provoz | I27: délka | J27: a | K27: =Vypocet!K27 -> 40 | L27: m
A28: mnozstvi odp vody | D28: =VLOOKUP(D27,Tab_souc_odparu_bazen,7,0) -> 20 | H28: [g/(hPa.m2.h)] | I28: šířka | J28: b | K28: =Vypocet!K28 -> 15 | L28: m
A29: plocha bazénu | C29: A | D29: =K21*K22 -> 300 | E29: m2 | I29: výška | J29: v | K29: =Vypocet!K29 -> 7 | L29: m | M29: Produkce vlhkosti osobami - klidový režim
A30: Objem haly | C30: V | D30: =K27*K28*K29 -> 4200 | E30: m3 | M30: počet osob v bazénu | O30: nos | P30: =Vypocet!P30 -> 2
M31: množství vlhkosti | O31: mos | P31: =P30*100 -> 200 | Q31: g/h
A32: Produkce vlhkosti osobami - v provozu | P32: =P31/1000 -> 0.2 | Q32: kg/h | AE32: Výkon na kondenzátoru | AI32: Qk | AJ32: =AH69 -> 194862.9791 | AK32: W
A33: počet osob v bazénu | C33: nos | D33: =Vypocet!D33 -> 60 | E33: počet | G33: Produkce vlhkosti člověkem | P33: =P31/3600 -> 0.05555555556 | Q33: g/s | AJ33: =AH70 -> 194.8629791 | AK33: kW
A34: množství vlhkosti | C34: mos | D34: =D33*H35 -> 6300 | E34: g/h | G34: =Vypocet!AH50 -> člověk při středně těžké práci | AE34: Teplota požadovaná v interiéru | AI34: ti | AJ34: =Teplota -> 32 | AK34: °C
D35: =D34/1000 -> 6.3 | E35: kg/h | G35: =VLOOKUP(G34,Tabulky!W146:Z148,4,0) -> 60-150 | H35: =IF(G35="60-150",105,IF(G35="30-60",45,225)) -> 105 | I35: g/h | M35: Produkce vlhkosti - klidový režim | AY35: Výkon na kondenzátoru | BC35: Qk | BD35: =BB70 -> 56763.6928 | BE35: W
D36: =D34/3600 -> 1.75 | E36: g/s | G36: rozmezí | H36: průměr | L36: množství odpařené vody | O36: mw | P36: =Tabulky!$G$4*$D$29*($D$12/100-$D$13/100) -> 28539.73775 | Q36: g/h | BD36: =BB71 -> 56.7636928 | BE36: kW
A37: celkové množství odpařené vody | D37: =(D25+D34)*(I37/100+1) -> 126481.8986 | E37: g/h | H37: korekce | I37: =Vypocet!I37 -> 5 | J37: % | M37: celkové množství odpařené vody | P37: =(P36+P31)*(I37/100+1) -> 30176.72464 | Q37: g/h | AY37: Teplota požadovaná v interiéru | BC37: ti | BD37: =J6 -> 24 | BE37: °C
A38: Dimenzování průtoku vzduchu bazénové větrací jednotky pro zátěž | M38: Dimenzování průtoku vzduchu bazénové větrací jednotky pro klidový režim
A39: z množství odpařené vody | M39: z množství odpařené vody
A40: požadovaná vlhkost přiváděná | C40: xpoz | D40: =Vypocet!D40 -> 9 | E40: g/kg | G40: doporučená hodnota 8-10 g/kg | M40: požadovaná vlhkost přiváděná | O40: xpoz | P40: =Vypocet!P40 -> 9 | Q40: g/kg | S40: doporučená hodnota 8-10 g/kg
C41: V1 | D41: =(D37)/(D18*(D17-D40)) -> 12406.44594 | E41: m3/h | I41: =D147 -> 9.376442924 | J41: g/kg s.v. | O41: V1 | P41: =(P36+P31)/(Konstanty!$F$8*(J17-5)) -> 4560.659311 | Q41: m3/h
A42: z objemu haly | M42: z objemu haly
A43: výměna vzduchu | C43: n | D43: =Vypocet!D43 -> 1 | E43: 1/h | M43: výměna vzduchu | O43: n | P43: =Vypocet!P43 -> 1 | Q43: 1/h
A44: V=n*VH | C44: V2 | D44: =D30*D43 -> 4200 | E44: m3/h | M44: V=n*VH | O44: V2 | P44: =D30*P43 -> 4200 | Q44: m3/h
A45: z tepelných zisků
B46: tepelné ztráty | C46: Qzt | D46: =Vypocet!D46 -> 7 | E46: kW | H46: teplotní spád výústky | I46: dt | J46: =Vypocet!J46 -> 8 | K46: °C
B47: tepelné zisky | C47: Qzisk | D47: =Vypocet!D47 -> 16 | E47: kW
B48: Množství vzduchu | D48: =((D47-D46)/J46*Konstanty!$F$2*Konstanty!$F$8) -> 1391.90625 | E48: m3/h
A50: potřeba vzduchu pro osoby | W50: te | X50: teplota exteriérového vzduchu
C51: V2 | D51: =D33*D52 -> 3000 | W51: Qpředehřev | X51: Výkon pro předehřátí vzduchu
A52: množství čerstvého vzduchu/osoba | D52: =Vypocet!D52 -> 50 | E52: m3/h/os | G52: doporučená hodnota při zátěži (min hodnota 25m3/h) | W52: Qdohřátí | X52: Výkon spotřebovaný na dohřátí vzduchu na požadovanou úroveň | AF52: červeně zvýrazněné pole je teplota ext vyšší než teplota exteriéru, přívod vzduchu plně čerstvý
A54: Potřeba čerstvého vzduchu | D54: =IF(MAX(D41,D44,D48)>D51,"Ne","Ano") -> Ne | G54: nepočítá s tím dál samo! | AE54: Teplo odevzdané na výparníku | AK54: Množství kondenzátu
A55: Množství čerstvého vzduchu | D55: =IF(D54="ano",D51-MAX(D41,D44,D48),0) -> 0 | E55: m3/h | G55: pouze informativní charakter, množství V čerst rozhodne projektant | AE55: Qv=V*ρ*(hi-h3) | AG55: Qv | AH55: =D81 -> 147350.8743 | AI55: W | AK55: mkond = V*ρ*(xi-x3) | AM55: mkond | AN55: =IF(D58*D18*(D16-D77)<0,0,D58*D18*(D16-D77)) -> 0.03123632926 | AO55: kg/s | AY55: Teplo odevzdané na výparníku | BE55: Množství kondenzátu
AH56: =AH55/1000 -> 147.3508743 | AI56: kW | AN56: =AN55*1000 -> 31.23632926 | AO56: g/s | AY56: Qv=V*ρ*(hi-h3) | BA56: Qv | BB56: =P81 -> 47003.77313 | BC56: W | BE56: mkond = V*ρ*(xi-x3) | BG56: mkond | BH56: =IF(P58*J18*(J16-P77)<0,0,P58*J18*(J16-P77)) -> 0.002183415645 | BI56: kg/s
A57: průtok vzduchu | C57: V | D57: =MAX(D41,D44,D48) -> 12406.44594 | E57: m3/h | M57: průtok vzduchu | O57: V | P57: =MAX(P41,P44) -> 4560.659311 | Q57: m3/h | AN57: =AN55*3600 -> 112.4507853 | AO57: kg/h | BB57: =BB56/1000 -> 47.00377313 | BC57: kW | BH57: =BH56*1000 -> 2.183415645 | BI57: g/s
C58: V | D58: =D57/3600 -> 3.446234982 | E58: m3/s | O58: V | P58: =P57/3600 -> 1.266849809 | Q58: m3/s | AE58: Tepelné čerpadlo (TČ) | AI58: typ TČ | BH58: =BH56*3600 -> 7.860296323 | BI58: kg/h
AE59: Topný faktor TČ | AG59: COP | AH59: =VLOOKUP(Teplota,'V7'!AE83:AF136,2,0) -> 4.101333333 | AI59: Alfa S Duo | AY59: Tepelné čerpadlo (TČ) | BC59: typ TČ
A60: množství odebrané měrné vlh | C60: Δx | D60: 8.1 | E60: g/kg s.v | G60: vstupní měrná vlhkost do int | I60: xvyst | J60: =D147 -> 9.376442924 | K60: g/kg s.v. | AY60: Topný faktor TČ | BA60: COP | BB60: =VLOOKUP(J6,'V7'!AY84:AZ132,2,0) -> 3.816 | BC60: Alfa S Duo
A61: teplota chladiče | C61: tch | D61: =Vypocet!D61 -> 9 | E61: °C | AE61: Tepelná bilance TČ
A62: relativní vlhkost | C62: rhch | D62: =Vypocet!D62 -> 100 | E62: % | M62: množství odebrané měrné vlh | O62: Δx | P62: =Vypocet!P60 -> 1.5 | Q62: g/kg s.v. | AE62: Qk=Pel+Qv | AY62: Tepelná bilance TČ
M63: teplota chladiče | O63: tch | P63: =Vypocet!P61 -> 9 | Q63: °C | AE63: εt = COP | AF63: εt = Qv/Pel | AY63: Qk=Pel+Qv
M64: relativní vlhkost | O64: rhch | P64: =Vypocet!P62 -> 100 | Q64: % | AE64: Pel=Qk/(1+Et) | AY64: εt = COP | AZ64: εt = Qv/Pel
X65: Parametry chladiče | AE65: Výkon kompresoru | AG65: Pet | AH65: =AH55/(AH59-1) -> 47512.10479 | AI65: W | AY65: Pel=Qk/(1+Et)
A66: t3 | B66: parametry vyduchu za vyparnikem | M66: t3 | N66: parametry vyduchu za vyparnikem | X66: teplota | Z66: ti | AA66: =tch -> 9 | AB66: °C | AH66: =AH65/1000 -> 47.51210479 | AI66: kW | AY66: Výkon kompresoru | BA66: Pet | BB66: =BB56/(BB60+1) -> 9759.91967 | BC66: W
A67: teplota | C67: tvyp | D67: =W87 -> 15 | E67: °C | G67: =tvyp-te -> 0 | M67: teplota | O67: tvyp | P67: =W112 -> 16 | Q67: °C | X67: relativní vlhkost | Z67: rhi | AA67: =D62 -> 100 | AB67: % | AE67: Prikon kompresoru | AH67: =AH66/AH59 -> 11.58455091 | AI67: kW | BB67: =BB66/1000 -> 9.75991967 | BC67: kW
A68: relativní vlhkost | C68: rh3 | D68: =IF((D74/D73)*100>100,100,(D74/D73)*100) -> 92.55852643 | E68: % | M68: relativní vlhkost | O68: rh3 | P68: =IF((P74/P73)*100>100,100,(P74/P73)*100) -> 74.95783123 | Q68: % | X68: entalpie s.v. | Z68: hsvi | AA68: =Konstanty!$F$2*AA66 -> 9090 | AB68: J/kg | AE68: Teplo na kondenzátoru
A69: entalpie s.v. | C69: h3 | D69: =Konstanty!$F$2*D67 -> 15150 | E69: J/kg | M69: entalpie s.v. | O69: h3 | P69: =Konstanty!$F$2*P67 -> 16160 | Q69: J/kg | X69: entalpie v.p. | Z69: hvpi | AA69: =$AA$76*(Konstanty!$F$3*AA66+Konstanty!$F$4) -> 18311.90427 | AB69: J/kg | AE69: Výkon na kondenzátoru | AG69: Qk | AH69: =AH65+AH55 -> 194862.9791 | AI69: W | AY69: Teplo na kondenzátoru
A70: entalpie v.p. | C70: h3 | D70: =D77*(Konstanty!$F$3*D67+Konstanty!$F$4) -> 25303.00056 | E70: J/kg | M70: entalpie v.p. | O70: h3 | P70: =P77*(Konstanty!$F$3*P67+Konstanty!$F$4) -> 21865.02229 | Q70: J/kg | X70: entalpie | Z70: hi | AA70: =AA68+AA69 -> 27401.90427 | AB70: J/kg | AH70: =AH69/1000 -> 194.8629791 | AI70: kW | AY70: Výkon na kondenzátoru | BA70: Qk | BB70: =BB66+BB56 -> 56763.6928 | BC70: W
A71: entalpie | C71: h3 | D71: =D69+D70 -> 40453.00056 | E71: J/kg | M71: entalpie | O71: h3 | P71: =P69+P70 -> 38025.02229 | Q71: J/kg | AA71: =AA70/1000 -> 27.40190427 | AB71: kJ/kg | BB71: =BB70/1000 -> 56.7636928 | BC71: kW
D72: =D71/1000 -> 40.45300056 | E72: kJ/kg | P72: =P71/1000 -> 38.02502229 | Q72: kJ/kg | X72: tlak nasycené vodní páry | Z72: p''vpi | AA72: =Konstanty!$F$12^((1500.3+23.5*AA66)/(234+AA66)) -> 1146.47173 | AB72: Pa
A73: tlak nasycené vodní páry | C73: p''vp3 | D73: =Konstanty!$F$12^((1500.3+23.5*D67)/(234+D67)) -> 1704.392217 | E73: Pa | M73: tlak nasycené vodní páry | O73: p''vp3 | P73: =Konstanty!$F$12^((1500.3+23.5*P67)/(234+P67)) -> 1817.468722 | Q73: Pa | X73: tlak vodní páry | Z73: pvpi | AA73: =(AA67/100)*AA72 -> 1146.47173 | AB73: Pa | AE73: Graf topneho faktoru | AH73: TnG Air 13, vzduch/voda
A74: tlak vodní páry | C74: pvp3 | D74: =(D77*D75)/0.622 -> 1577.560321 | E74: Pa | G74: =((G77*D75)/(0.622+G77))/((0.622-G77)/(0.622)) -> 0 | H74: přepočet tlaku z x | M74: tlak vodní páry | O74: pvp3 | P74: =(P77*P75)/0.622 -> 1362.335137 | Q74: Pa | S74: =((S77*P75)/(0.622+S77))/((0.622-S77)/(0.622)) -> 1599.161688 | T74: přepočet tlaku z x | X74: tlak suchého vzduchu | Z74: psvi | AA74: =AA78*Konstanty!$F$5*(AA66+273.15) -> 98003.39739 | AB74: Pa | AY74: Graf topneho faktoru | BB74: TnG Air 13, vzduch/voda
A75: tlak suchého vzduchu | C75: psv3 | D75: =D79*Konstanty!$F$5*(D67+273.15) -> 98019.54463 | E75: Pa | M75: tlak suchého vzduchu | O75: psv3 | P75: =P79*Konstanty!$F$5*(P67+273.15) -> 98027.69719 | Q75: Pa | X75: tlak směsi vlhkého vzduchu | Z75: pi | AA75: =AA73+AA74 -> 99149.86912 | AB75: Pa | AE75: =Vypocet!AE107 -> teplota | AF75: =Vypocet!AF107 -> -18 | AG75: =Vypocet!AG107 -> -15 | AH75: =Vypocet!AH107 -> -10 | AI75: =Vypocet!AI107 -> -5 | AJ75: =Vypocet!AJ107 -> 0 | AK75: =Vypocet!AK107 -> 5 | AL75: =Vypocet!AL107 -> 10 | AM75: =Vypocet!AM107 -> 15
A76: tlak směsi vlhkého vzduchu | C76: p3 | D76: =D74+D75 -> 99597.10495 | E76: Pa | M76: tlak směsi vlhkého vzduchu | O76: p3 | P76: =P74+P75 -> 99390.03233 | Q76: Pa | X76: měrná vlhkost vzduchu | Z76: xi | AA76: =(Konstanty!$F$5/Konstanty!$F$6)*(AA73/AA74) -> 0.007276561764 | AB76: kg/kg s.v. | AE76: =Vypocet!AE108 -> vykon | AF76: =Vypocet!AF108 -> 4.7 | AG76: =Vypocet!AG108 -> 5.75 | AH76: =Vypocet!AH108 -> 7 | AI76: =Vypocet!AI108 -> 8.24 | AJ76: =Vypocet!AJ108 -> 9.46 | AK76: =Vypocet!AK108 -> 10.69 | AL76: =Vypocet!AL108 -> 11.8 | AM76: =Vypocet!AM108 -> 13.1 | AY76: =Vypocet!AY108 -> teplota | AZ76: =Vypocet!AZ108 -> -18 | BA76: =Vypocet!BA108 -> -15 | BB76: =Vypocet!BB108 -> -10 | BC76: =Vypocet!BC108 -> -5 | BD76: =Vypocet!BD108 -> 0 | BE76: =Vypocet!BE108 -> 5 | BF76: =Vypocet!BF108 -> 10 | BG76: =Vypocet!BG108 -> 15
A77: měrná vlhkost vzduchu | C77: x3 | D77: =D16-deltaT/1000 -> 0.01001068229 | E77: kg/kg s.v. | G77: =IF(tvyp<D82,0,D16) -> 0 | H77: vezme x z Ti když tvyp<rosny bod | M77: měrná vlhkost vzduchu | O77: x3 | P77: =J16-P62/1000 -> 0.008644214643 | Q77: kg/kg s.v. | S77: =IF(tvyp<P82,0,J16) -> 0.01014421464 | T77: vezme x z Ti když tvyp<rosny bod | AA77: =AA76*1000 -> 7.276561764 | AB77: g/kg s.v. | AE77: =Vypocet!AE109 -> el prikon | AF77: =Vypocet!AF109 -> 2.24 | AG77: =Vypocet!AG109 -> 2.47 | AH77: =Vypocet!AH109 -> 2.72 | AI77: =Vypocet!AI109 -> 2.94 | AJ77: =Vypocet!AJ109 -> 3.2 | AK77: =Vypocet!AK109 -> 3.37 | AL77: =Vypocet!AL109 -> 3.55 | AM77: =Vypocet!AM109 -> 3.85 | AY77: =Vypocet!AY109 -> vykon | AZ77: =Vypocet!AZ109 -> 4.7 | BA77: =Vypocet!BA109 -> 5.75 | BB77: =Vypocet!BB109 -> 7 | BC77: =Vypocet!BC109 -> 8.24 | BD77: =Vypocet!BD109 -> 9.46 | BE77: =Vypocet!BE109 -> 10.69 | BF77: =Vypocet!BF109 -> 11.8 | BG77: =Vypocet!BG109 -> 13.1
D78: =D77*1000 -> 10.01068229 | E78: g/kg s.v. | P78: =P77*1000 -> 8.644214643 | Q78: g/kg s.v. | X78: hustota vzduchu při t | AA78: =VLOOKUP(AA66,Tabulky!$V$15:$AF$75,9,0) -> 1.21 | AB78: kg/m3 | AE78: =Vypocet!AE110 -> COP | AF78: =Vypocet!AF110 -> 2.1 | AG78: =Vypocet!AG110 -> 2.33 | AH78: =Vypocet!AH110 -> 2.57 | AI78: =Vypocet!AI110 -> 2.8 | AJ78: =Vypocet!AJ110 -> 2.96 | AK78: =Vypocet!AK110 -> 3.17 | AL78: =Vypocet!AL110 -> 3.32 | AM78: =Vypocet!AM110 -> 3.4 | AY78: =Vypocet!AY110 -> el prikon | AZ78: =Vypocet!AZ110 -> 2.24 | BA78: =Vypocet!BA110 -> 2.47 | BB78: =Vypocet!BB110 -> 2.72 | BC78: =Vypocet!BC110 -> 2.94 | BD78: =Vypocet!BD110 -> 3.2 | BE78: =Vypocet!BE110 -> 3.37 | BF78: =Vypocet!BF110 -> 3.55 | BG78: =Vypocet!BG110 -> 3.85
A79: hustota vzduchu při t | D79: =VLOOKUP(tvyp,Tabulky!$V$15:$AF$75,9,0) -> 1.185 | E79: kg/m3 | M79: hustota vzduchu při t | P79: =VLOOKUP(P67,Tabulky!$V$15:$AF$75,9,0) -> 1.181 | Q79: kg/m3 | AA79: =1.395-Teplota*0.004414 -> 1.253752 | AH79: =AH78-AG78 -> 0.24 | AI79: 0.23 | AJ79: 0.16 | AK79: 0.21 | AL79: 0.15 | AM79: 0.08 | AN79: průměr | AO79: =AVERAGE(AG79:AM79) -> 0.1783333333 | AP79: prumer/1 | AQ79: =AO79/5 -> 0.03566666667 | AY79: =Vypocet!AY111 -> COP | AZ79: =Vypocet!AZ111 -> 2.1 | BA79: =Vypocet!BA111 -> 2.33 | BB79: =Vypocet!BB111 -> 2.57 | BC79: =Vypocet!BC111 -> 2.8 | BD79: =Vypocet!BD111 -> 2.96 | BE79: =Vypocet!BE111 -> 3.17 | BF79: =Vypocet!BF111 -> 3.32 | BG79: =Vypocet!BG111 -> 3.4
AF80: popis závislosti | AH80: y=0,18571x+2,96 | BB80: =BB79-BA79 -> 0.24 | BC80: 0.23 | BD80: 0.16 | BE80: 0.21 | BF80: 0.15 | BG80: 0.08 | BH80: průměr | BI80: =AVERAGE(BA80:BG80) -> 0.1783333333 | BJ80: prumer/1 | BK80: =BI80/5 -> 0.03566666667
A81: teplo získané na výparníku | C81: Qv | D81: =D58*D18*(D10-D71) -> 147350.8743 | E81: W | M81: teplo získané na výparníku | O81: Qv | P81: =P58*J18*(J10-P71) -> 47003.77313 | Q81: W | U81: A | V81: Ti | W81: =Teplota -> 32 | Y81: B | Z81: tch | AA81: =AA66 -> 9 | AZ81: popis závislosti | BB81: y=0,18571x+2,96
B82: rosný bod | D82: =(243.5*LN(($D$7/100)*Konstanty!$F$12^((17.67*Teplota)/(243.5+Teplota))))/(17.67-(LN(($D$7/100)*Konstanty!$F$12^((17.67*Teplota)/(243.5+Teplota))))) -> 23.27425187 | E82: °C | N82: rosný bod | P82: =(243.5*LN((J7/100)*Konstanty!$F$12^((17.67*J6)/(243.5+J6))))/(17.67-(LN((J7/100)*Konstanty!$F$12^((17.67*J6)/(243.5+J6))))) -> 14.41381795 | Q82: °C | V82: xi | W82: =D16 -> 0.01811068229 | Z82: xch | AA82: =AA76 -> 0.007276561764 | AE82: teplota | AF82: COP | AH82: -18 | AI82: 2.1
V83: xi | W83: =D17 -> 18.11068229 | Z83: xch | AA83: =AA77 -> 7.276561764 | AE83: -18 | AF83: =$AQ$79*AE83+$AJ$78 -> 2.318 | AH83: -15 | AI83: 2.33 | AY83: teplota | AZ83: COP
A84: Distribuce tepla v závislosti na externí teplotě | AE84: -17 | AF84: 2.353666667 | AH84: -10 | AI84: 2.57 | AY84: -18 | AZ84: =$AQ$79*AY84+$AJ$78 -> 2.318
A85: teplota předehřevu te | C85: tpřed | D85: =Vypocet!D85 -> 5 | E85: °C | V85: dx | W85: =deltaT -> 8.1 | Y85: výpočet teplochy při teplote chladice | AE85: -16 | AF85: 2.389333333 | AH85: -5 | AI85: 2.8 | AY85: -17 | AZ85: 2.353666667
A86: množství čerst vzduchu | D86: =Vypocet!D86 -> 30 | E86: % | V86: th | W86: =((W81-AA81)*W83+(AA83-W83)*W81-(W81-AA81)*(W83-W85))/(AA83-W83) -> 14.80432643 | Y86: počítá s přímkou ti - tch a na ní počítá bod | AE86: -15 | AF86: 2.425 | AH86: 0 | AI86: 2.96 | AY86: -16 | AZ86: 2.389333333
A87: množství předehřívaného vzd | D87: =D58*(D86/100) -> 1.033870495 | E87: m3/h | W87: =ROUND(W86,0) -> 15 | AE87: -14 | AF87: 2.460666667 | AH87: 5 | AI87: 3.17 | AY87: -15 | AZ87: 2.425
A88: potřeba tepla na předehřev | D88: =IF(D85>te,((D87*P18)/(1+P16))*(D85-te)*P18*Konstanty!$F$2,0) -> 0 | E88: W | AE88: -13 | AF88: 2.496333333 | AH88: 10 | AI88: 3.32 | AY88: -14 | AZ88: 2.460666667
AE89: -12 | AF89: 2.532 | AH89: 15 | AI89: 3.4 | AY89: -13 | AZ89: 2.496333333
A90: t4 | B90: Předehřev exteriérového vzduchu | M90: t4 | N90: Předehřev exteriérového vzduchu | X90: Parametry chladiče klidovy rezim | AE90: -11 | AF90: 2.567666667 | AY90: -12 | AZ90: 2.532
A91: teplota předehřevu | C91: tpředehřev | D91: =IF($D$85>te,$D$85,te) -> 15 | E91: °C | M91: teplota předehřevu | O91: tpředehřev | P91: =IF($D$85>te,$D$85,te) -> 15 | Q91: °C | X91: teplota | Z91: ti | AA91: =P63 -> 9 | AB91: °C | AE91: -10 | AF91: 2.603333333 | AY91: -11 | AZ91: 2.567666667
C92: rhpředehřev | D92: =((D101*P15)/(D97*(0.622+D101)))*100 -> 73.00226009 | E92: % | O92: rhpředehřev | P92: =((P101*P15)/(P97*(0.622+P101)))*100 -> 73.00226009 | Q92: % | X92: relativní vlhkost | Z92: rhi | AA92: =P64 -> 100 | AB92: % | AE92: -9 | AF92: 2.639 | AY92: -10 | AZ92: 2.603333333
A93: entalpie s.v. | C93: hsv4 | D93: =Konstanty!$F$2*D91 -> 15150 | E93: J/kg | M93: entalpie s.v. | O93: hsv4 | P93: =Konstanty!$F$2*P91 -> 15150 | Q93: J/kg | X93: entalpie s.v. | Z93: hsvi | AA93: =Konstanty!$F$2*AA91 -> 9090 | AB93: J/kg | AE93: -8 | AF93: 2.674666667 | AY93: -9 | AZ93: 2.639
A94: entalpie v.p. | C94: hvp4 | D94: =D101*(Konstanty!$F$3*D91+Konstanty!$F$4) -> 19956.85352 | E94: J/kg | M94: entalpie v.p. | O94: hvp4 | P94: =P101*(Konstanty!$F$3*P91+Konstanty!$F$4) -> 19956.85352 | Q94: J/kg | X94: entalpie v.p. | Z94: hvpi | AA94: =$AA$76*(Konstanty!$F$3*AA91+Konstanty!$F$4) -> 18311.90427 | AB94: J/kg | AE94: -7 | AF94: 2.710333333 | AY94: -8 | AZ94: 2.674666667
A95: entalpie | C95: h4 | D95: =D93+D94 -> 35106.85352 | E95: J/kg | M95: entalpie | O95: h4 | P95: =P93+P94 -> 35106.85352 | Q95: J/kg | X95: entalpie | Z95: hi | AA95: =AA93+AA94 -> 27401.90427 | AB95: J/kg | AE95: -6 | AF95: 2.746 | AY95: -7 | AZ95: 2.710333333
D96: =D95/1000 -> 35.10685352 | E96: kJ/kg | P96: =P95/1000 -> 35.10685352 | Q96: kJ/kg | AA96: =AA95/1000 -> 27.40190427 | AB96: kJ/kg | AE96: -5 | AF96: 2.781666667 | AY96: -6 | AZ96: 2.746
A97: tlak nasycené vodní páry | C97: p''vp4 | D97: =Konstanty!$F$12^((1500.3+23.5*D91)/(234+D91)) -> 1704.392217 | E97: Pa | M97: tlak nasycené vodní páry | O97: p''vp4 | P97: =Konstanty!$F$12^((1500.3+23.5*P91)/(234+P91)) -> 1704.392217 | Q97: Pa | X97: tlak nasycené vodní páry | Z97: p''vpi | AA97: =Konstanty!$F$12^((1500.3+23.5*AA91)/(234+AA91)) -> 1146.47173 | AB97: Pa | AE97: -4 | AF97: 2.817333333 | AY97: -5 | AZ97: 2.781666667
A98: tlak vodní páry | C98: pvp4 | D98: =(D92/100)*D97 -> 1244.244839 | E98: Pa | M98: tlak vodní páry | O98: pvp4 | P98: =(P92/100)*P97 -> 1244.244839 | Q98: Pa | X98: tlak vodní páry | Z98: pvpi | AA98: =(AA92/100)*AA97 -> 1146.47173 | AB98: Pa | AE98: -3 | AF98: 2.853 | AY98: -4 | AZ98: 2.817333333
A99: tlak suchého vzduchu | C99: psv4 | D99: =D103*Konstanty!$F$5*(D91+273.15) -> 98019.54463 | E99: Pa | M99: tlak suchého vzduchu | O99: psv4 | P99: =P103*Konstanty!$F$5*(P91+273.15) -> 98019.54463 | Q99: Pa | X99: tlak suchého vzduchu | Z99: psvi | AA99: =AA103*Konstanty!$F$5*(AA91+273.15) -> 98003.39739 | AB99: Pa | AE99: -2 | AF99: 2.888666667 | AY99: -3 | AZ99: 2.853
A100: tlak směsi vlhkého vzduchu | C100: p4 | D100: =D98+D99 -> 99263.78947 | E100: Pa | M100: tlak směsi vlhkého vzduchu | O100: p4 | P100: =P98+P99 -> 99263.78947 | Q100: Pa | X100: tlak směsi vlhkého vzduchu | Z100: pi | AA100: =AA98+AA99 -> 99149.86912 | AB100: Pa | AE100: -1 | AF100: 2.924333333 | AY100: -2 | AZ100: 2.888666667
A101: měrná vlhkost vzduchu | C101: x4 | D101: =P16 -> 0.007895574267 | E101: kg/kg s.v. | M101: měrná vlhkost vzduchu | O101: x4 | P101: =P16 -> 0.007895574267 | Q101: kg/kg s.v. | X101: měrná vlhkost vzduchu | Z101: xi | AA101: =(Konstanty!$F$5/Konstanty!$F$6)*(AA98/AA99) -> 0.007276561764 | AB101: kg/kg s.v. | AE101: 0 | AF101: 2.96 | AY101: -1 | AZ101: 2.924333333
D102: =D101*1000 -> 7.895574267 | E102: g/kg s.v. | P102: =P101*1000 -> 7.895574267 | Q102: g/kg s.v. | AA102: =AA101*1000 -> 7.276561764 | AB102: g/kg s.v. | AE102: 1 | AF102: 2.995666667 | AY102: 0 | AZ102: 2.96
A103: hustota vzduchu při t | D103: =VLOOKUP(D91,Tabulky!$V$15:$AF$75,9,0) -> 1.185 | E103: kg/m3 | M103: hustota vzduchu při t | P103: =VLOOKUP(P91,Tabulky!$V$15:$AF$75,9,0) -> 1.185 | Q103: kg/m3 | X103: hustota vzduchu při t | AA103: =VLOOKUP(AA91,Tabulky!$V$15:$AF$75,9,0) -> 1.21 | AB103: kg/m3 | AE103: 2 | AF103: 3.031333333 | AY103: 1 | AZ103: 2.995666667
AA104: =1.395-Teplota*0.004414 -> 1.253752 | AE104: 3 | AF104: 3.067 | AY104: 2 | AZ104: 3.031333333
A105: t4' | B105: smíšení vzduchu s exteriérovým | M105: t4' | N105: smíšení vzduchu s exteriérovým | AE105: 4 | AF105: 3.102666667 | AY105: 3 | AZ105: 3.067
A106: Množství čerstvého vzduchu | C106: Včerstv | D106: =IF(D91>tvyp,100,$D$86) -> 30 | E106: % | M106: Množství čerstvého vzduchu | O106: Včerstv | P106: =IF(P91>tvyp,100,$D$86) -> 30 | Q106: % | U106: A | V106: Ti | W106: =J6 -> 24 | Y106: B | Z106: tch | AA106: =AA91 -> 9 | AE106: 5 | AF106: 3.138333333 | AY106: 4 | AZ106: 3.102666667
A107: teplota vzduchu | C107: t4 | D107: =ROUND(((((D106/100)*D58)*D91+((1-(D106/100))*D58)*tvyp)/D58),0) -> 15 | E107: °C | M107: teplota vzduchu | O107: t4 | P107: =ROUND(((((P106/100)*P58)*P91+((1-(P106/100))*P58)*tvyp)/P58),0) -> 15 | Q107: °C | V107: xi | W107: =J16 -> 0.01014421464 | Z107: xch | AA107: =AA101 -> 0.007276561764 | AE107: 6 | AF107: 3.174 | AY107: 5 | AZ107: 3.138333333
A108: relativní vlhkost | C108: rh4 | D108: =(1-(D106/100))*D68+(D106/100)*D92 -> 86.69164652 | E108: % | M108: relativní vlhkost | O108: rh4 | P108: =(1-(P106/100))*P68+(P106/100)*P92 -> 74.37115989 | Q108: % | V108: xi | W108: =J17 -> 10.14421464 | Z108: xch | AA108: =AA102 -> 7.276561764 | AE108: 7 | AF108: 3.209666667 | AY108: 6 | AZ108: 3.174
A109: entalpie s.v. | C109: hsv4 | D109: =Konstanty!$F$2*D107 -> 15150 | E109: J/kg | M109: entalpie s.v. | O109: hsv4 | P109: =Konstanty!$F$2*P107 -> 15150 | Q109: J/kg | AE109: 8 | AF109: 3.245333333 | AY109: 7 | AZ109: 3.209666667
A110: entalpie v.p. | C110: hvp4 | D110: =D117*(Konstanty!$F$3*D107+Konstanty!$F$4) -> 23699.89713 | E110: J/kg | M110: entalpie v.p. | O110: hvp4 | P110: =P117*(Konstanty!$F$3*P107+Konstanty!$F$4) -> 20331.70334 | Q110: J/kg | V110: dx | W110: =P62 -> 1.5 | AE110: 9 | AF110: 3.281 | AY110: 8 | AZ110: 3.245333333
A111: entalpie | C111: h4 | D111: =D109+D110 -> 38849.89713 | E111: J/kg | M111: entalpie | O111: h4 | P111: =P109+P110 -> 35481.70334 | Q111: J/kg | V111: th | W111: =((W106-AA106)*W108+(AA108-W108)*W106-(W106-AA106)*(W108-W110))/(AA108-W108) -> 16.15386208 | AE111: 10 | AF111: 3.316666667 | AY111: 9 | AZ111: 3.281
D112: =D111/1000 -> 38.84989713 | E112: kJ/kg | P112: =P111/1000 -> 35.48170334 | Q112: kJ/kg | W112: =ROUND(W111,0) -> 16 | AE112: 11 | AF112: 3.352333333 | AY112: 10 | AZ112: 3.316666667
A113: tlak nasycené vodní páry | C113: p''vp4 | D113: =Konstanty!$F$12^((1500.3+23.5*D107)/(234+D107)) -> 1704.392217 | E113: Pa | M113: tlak nasycené vodní páry | O113: p''vp4 | P113: =Konstanty!$F$12^((1500.3+23.5*P107)/(234+P107)) -> 1704.392217 | Q113: Pa | AE113: 12 | AF113: 3.388 | AY113: 11 | AZ113: 3.352333333
A114: tlak vodní páry | C114: pvp4 | D114: =(D108/100)*D113 -> 1477.565676 | E114: Pa | M114: tlak vodní páry | O114: pvp4 | P114: =(P108/100)*P113 -> 1267.576261 | Q114: Pa | AE114: 13 | AF114: 3.423666667 | AY114: 12 | AZ114: 3.388
A115: tlak suchého vzduchu | C115: psv4 | D115: =D119*Konstanty!$F$5*(D107+273.15) -> 98019.54463 | E115: Pa | M115: tlak suchého vzduchu | O115: psv4 | P115: =P119*Konstanty!$F$5*(P107+273.15) -> 98019.54463 | Q115: Pa | AE115: 14 | AF115: 3.459333333 | AY115: 13 | AZ115: 3.423666667
A116: tlak směsi vlhkého vzduchu | C116: p4 | D116: =D114+D115 -> 99497.11031 | E116: Pa | M116: tlak směsi vlhkého vzduchu | O116: p4 | P116: =P114+P115 -> 99287.12089 | Q116: Pa | AE116: 15 | AF116: 3.495 | AY116: 14 | AZ116: 3.459333333
A117: měrná vlhkost vzduchu | C117: x4 | D117: =(Konstanty!$F$5/Konstanty!$F$6)*(D114/D115) -> 0.009376442924 | E117: kg/kg s.v. | M117: měrná vlhkost vzduchu | O117: x4 | P117: =(Konstanty!$F$5/Konstanty!$F$6)*(P114/P115) -> 0.008043876935 | Q117: kg/kg s.v. | AE117: 16 | AF117: 3.530666667 | AY117: 15 | AZ117: 3.495
D118: =D117*1000 -> 9.376442924 | E118: g/kg s.v. | P118: =P117*1000 -> 8.043876935 | Q118: g/kg s.v. | AE118: 17 | AF118: 3.566333333 | AY118: 16 | AZ118: 3.530666667
A119: hustota vzduchu při t | D119: =VLOOKUP(D107,Tabulky!$V$15:$AF$75,9,0) -> 1.185 | E119: kg/m3 | M119: hustota vzduchu při t | P119: =VLOOKUP(P107,Tabulky!$V$15:$AF$75,9,0) -> 1.185 | Q119: kg/m3 | AE119: 18 | AF119: 3.602 | AY119: 17 | AZ119: 3.566333333
AE120: 19 | AF120: 3.637666667 | AY120: 18 | AZ120: 3.602
A121: množství tepla na kondenzátoru | C121: Qk | D121: =AH69 -> 194862.9791 | E121: W | H121: přepočet mw na msv | I121: =(D58*D119)/(1+D117) -> 4.045852747 | J121: m3/s | M121: množství tepla na kondenzátoru | O121: Qk | P121: =BB70 -> 56763.6928 | Q121: W | AE121: 20 | AF121: 3.673333333 | AY121: 19 | AZ121: 3.637666667
A122: Požadované teplo na dohřev | C122: Qpož | D122: =(D134-D107)*Konstanty!F2*D119*I121+D88 -> 92003.29833 | E122: W | M122: Požadované teplo na dohřev | P122: =(P134-P107)*Konstanty!$F$2*P119*P58 -> 28808.35468 | Q122: W | AE122: 21 | AF122: 3.709 | AY122: 20 | AZ122: 3.673333333
A123: dosažená teplota | C123: t6 | D123: =D121/(D58*D119*Konstanty!$F$2)+D107 -> 62.24378965 | E123: °C | M123: dosažená teplota | O123: t6 | P123: =P121/(P58*P119*Konstanty!$F$2)+P107 -> 52.43740923 | Q123: °C | AE123: 22 | AF123: 3.744666667 | AY123: 21 | AZ123: 3.709
A124: potřeba dohřevu | C124: Qdohř | D124: =IF((D122-D121)>0,D122-D121,0) -> 0 | E124: W | M124: potřeba dohřevu | O124: Qdohř | P124: =IF((P122-P121)>0,P122-P121,0) -> 0 | Q124: W | AE124: 23 | AF124: 3.780333333 | AY124: 22 | AZ124: 3.744666667
A125: přebytečné teplo | C125: Qpřebyt | D125: =IF((D122-D121)<0,D121-D122,0) -> 102859.6808 | E125: W | M125: přebytečné teplo | O125: Qpřebyt | P125: =IF((P122-P121)<0,P121-P122,0) -> 27955.33812 | Q125: W | AE125: 24 | AF125: 3.816 | AY125: 23 | AZ125: 3.780333333
AE126: 25 | AF126: 3.851666667 | AY126: 24 | AZ126: 3.816
AE127: 26 | AF127: 3.887333333 | AY127: 25 | AZ127: 3.851666667
A128: teplota zvýšení do int | C128: tzv | D128: =Vypocet!D128 -> 2 | E128: °C | N128: teplota zvýšení do int | O128: tzv | P128: =Vypocet!P128 -> 2 | Q128: °C | AE128: 27 | AF128: 3.923 | AY128: 26 | AZ128: 3.887333333
A129: teplotní spád kondenzatoru | C129: Δt | D129: =Vypocet!D129 -> 0 | E129: °C | N129: teplotní spád kondenzatoru | O129: Δt | P129: =Vypocet!P129 -> 0 | Q129: °C | AE129: 28 | AF129: 3.958666667 | AY129: 27 | AZ129: 3.923
A130: teplota kondenzatoru | C130: tohř | D130: =Vypocet!D130 -> 0 | E130: °C | N130: teplota kondenzatoru | O130: tohř | P130: =Vypocet!P130 -> 0 | Q130: °C | AE130: 29 | AF130: 3.994333333 | AY130: 28 | AZ130: 3.958666667
A131: relativní vlhkost | C131: rhohř | D131: =Vypocet!D131 -> 0 | E131: % | N131: relativní vlhkost | O131: rhohř | P131: =Vypocet!P131 -> 0 | Q131: % | AE131: 30 | AF131: 4.03 | AY131: 29 | AZ131: 3.994333333
AE132: 31 | AF132: 4.065666667 | AY132: 30 | AZ132: 4.03
A133: t5 | B133: parametry vyduchu za kondenzátorem | M133: t5 | N133: parametry vyduchu za kondenzátorem | AE133: 32 | AF133: 4.101333333
A134: požadovaná teplotateplota do I | C134: t5 | D134: =Teplota+D128 -> 34 | E134: °C | M134: požadovaná teplota do I | O134: t5 | P134: =Teplota+P128 -> 34 | Q134: °C | AE134: 33 | AF134: 4.137
A135: dosažená teplota | C135: tdos | D135: =D123 -> 62.24378965 | E135: °C | M135: dosažená teplota | O135: t6 | P135: =P123 -> 52.43740923 | AE135: 34 | AF135: 4.172666667
AE136: 35 | AF136: 4.208333333
A137: relativní vlhkost | C137: rh5 | D137: =((D146*D116)/(D142*(0.622+D146)))*100 -> 27.76773293 | E137: % | M137: relativní vlhkost | O137: rh5 | P137: =((P146*P116)/(P142*(0.622+P146)))*100 -> 23.82142597 | Q137: %
A138: entalpie s.v. | C138: hsv5 | D138: =Konstanty!$F$2*D134 -> 34340 | E138: J/kg | M138: entalpie s.v. | O138: hsv5 | P138: =Konstanty!$F$2*P134 -> 34340 | Q138: J/kg
A139: entalpie v.p. | C139: hvp5 | D139: =D146*(Konstanty!$F$3*D134+Konstanty!$F$4) -> 24027.69758 | E139: J/kg | M139: entalpie v.p. | O139: hvp5 | P139: =P146*(Konstanty!$F$3*P134+Konstanty!$F$4) -> 20612.91728 | Q139: J/kg
A140: entalpie | C140: h5 | D140: =D138+D139 -> 58367.69758 | E140: J/kg | M140: entalpie | O140: h5 | P140: =P138+P139 -> 54952.91728 | Q140: J/kg
D141: =D140/1000 -> 58.36769758 | E141: kJ/kg | P141: =P140/1000 -> 54.95291728 | Q141: kJ/kg
A142: tlak nasycené vodní páry | C142: p''vp5 | D142: =Konstanty!$F$12^((1500.3+23.5*D134)/(234+D134)) -> 5321.325002 | E142: Pa | M142: tlak nasycené vodní páry | O142: p''vp5 | P142: =Konstanty!$F$12^((1500.3+23.5*P134)/(234+P134)) -> 5321.325002 | Q142: Pa | AE142: dt vyp
A143: tlak vodní páry | C143: pvp5 | D143: =(D137/100)*D142 -> 1477.611315 | E143: Pa | M143: tlak vodní páry | O143: pvp5 | P143: =(P137/100)*P142 -> 1267.615496 | Q143: Pa | AE143: 2
A144: tlak suchého vzduchu | C144: psv5 | D144: =D148*Konstanty!$F$5*(D134+273.15) -> 97958.08466 | E144: Pa | M144: tlak suchého vzduchu | O144: psv5 | P144: =Konstanty!$F$8*Konstanty!$F$5*(P134+273.15) -> 108009.5893 | Q144: Pa | AE144: 3
A145: tlak směsi vlhkého vzduchu | C145: p5 | D145: =D143+D144 -> 99435.69597 | E145: Pa | M145: tlak směsi vlhkého vzduchu | O145: p5 | P145: =P143+P144 -> 109277.2048 | Q145: Pa | AE145: 4
A146: měrná vlhkost vzduchu | C146: x5 | D146: =D117 -> 0.009376442924 | E146: kg/kg s.v. | M146: měrná vlhkost vzduchu | O146: x5 | P146: =P117 -> 0.008043876935 | Q146: kg/kg s.v. | AE146: 5
D147: =D146*1000 -> 9.376442924 | E147: g/kg s.v. | P147: =P146*1000 -> 8.043876935 | Q147: g/kg s.v. | AE147: 6 | AF147: =D124 -> 0
A148: hustota vzduchu při t | D148: =VLOOKUP(D134,Tabulky!$V$15:$AF$75,9,0) -> 1.111 | E148: kg/m3 | M148: hustota vzduchu při t | P148: =VLOOKUP(P134,Tabulky!$V$15:$AF$75,9,0) -> 1.111 | Q148: kg/m3 | AE148: 7
AE149: 8
A150: navlhčení z prostoru | M150: navlhčení z prostoru | AE150: 9
A151: dx=n.100/V.ρ | C151: dx | D151: =(D33*100)/D57*Konstanty!$F$8 -> 0.5924339684 | E151: g/kg s.v | M151: dx=n.100/V.ρ | O151: dx | P151: =(P30*100)/P57*Konstanty!$F$8 -> 0.05372030298 | Q151: g/kg s.v | AE151: 10
AE152: 11
A153: NUTNÉ vzduch privlhčit | M153: NUTNÉ vzduch privlhčit | AE153: 12
AE154: 13
AE155: 14
AE156: 15

Sheet V8
B1: Legenda | E1: hodnotu nutno zadat | J1: prevzato z první
E2: hodnota se vypočítává
E3: pomocná hodnota
A4: Parametry vzduchu | G4: interier klidovy rezim | U4: Produkce tepla od | X4: ni | Y4: =0.85*Y5+0.75*Y6+Y7 -> 60.5 | AB4: Qi=ni.6,2*(36-ti)
A5: Interiér | B5: ti | G5: Interiér | H5: ti | M5: Exteriér | N5: te | P5: minimální teplota -15 (tabulka) | U5: lidí | V5: =Y4*6.2*(36-Teplota) -> 1500.4 | W5: W | X5: nz | Y5: =Vypocet!Y5 -> 30 | Z5: zeny | AB5: ni=0,85nz+0,75nd+nm
A6: teplota | C6: ti | D6: =[0]!Teplota -> 32 | E6: °C | G6: teplota | I6: ti | J6: =Vypocet!J6 -> 24 | K6: °C | M6: teplota | O6: te | P6: =CEILING(Vypocet!P6+30,5) -> 20 | Q6: °C | X6: nd | Y6: =Vypocet!Y6 -> 20 | Z6: deti | AB6: nz - zeny, nd deti, nm muzi
A7: relativní vlhkost | C7: rhi | D7: =Vypocet!D7 -> 60 | E7: % | G7: relativní vlhkost | I7: rhi | J7: =Vypocet!J7 -> 55 | K7: % | M7: relativní vlhkost | O7: rhe | P7: =ROUND((93*te-3153.5)/(te-39.17),0) -> 67 | Q7: % | X7: nm | Y7: =Vypocet!Y7 -> 20 | Z7: muzi
A8: entalpie s.v. | C8: hsvi | D8: =Konstanty!$F$2*Teplota -> 32320 | E8: J/kg | G8: entalpie s.v. | I8: hsvi | J8: =Konstanty!$F$2*J6 -> 24240 | K8: J/kg | M8: entalpie s.v. | O8: hsve | P8: =Konstanty!$F$2*te -> 20200 | Q8: J/kg
A9: entalpie v.p. | C9: hvpi | D9: =$D$16*(Konstanty!$F$3*Teplota+Konstanty!$F$4) -> 46343.0627 | E9: J/kg | G9: entalpie v.p. | I9: hvpi | J9: =$D$16*(Konstanty!$F$3*J6+Konstanty!$F$4) -> 46076.47346 | K9: J/kg | M9: entalpie v.p. | O9: hvpe | P9: =P16*(Konstanty!F3*P6+Konstanty!F4) -> 25213.51616 | Q9: J/kg | U9: Odpar z povrchů
A10: entalpie | C10: hi | D10: =D8+D9 -> 78663.0627 | E10: J/kg | G10: entalpie | I10: hi | J10: =J8+J9 -> 70316.47346 | K10: J/kg | M10: entalpie | O10: he | P10: =IF(P8<0,P9-P8,P8+P9) -> 45413.51616 | Q10: J/kg | AB10: (7+3,5*w)*S*(xp´´-x).10-3
D11: =D10/1000 -> 78.6630627 | E11: kJ/kg | J11: =J10/1000 -> 70.31647346 | K11: kJ/kg | P11: =P10/1000 -> 45.41351616 | Q11: kJ/kg | AB11: w stredni rychlost vzduchu
A12: tlak nasycené vodní páry | C12: p''vpi | D12: =Konstanty!$F$12^((1500.3+23.5*D6)/(234+D6)) -> 4756.622959 | E12: Pa | G12: tlak nasycené vodní páry | I12: p''vpi | J12: =Konstanty!$F$12^((1500.3+23.5*J6)/(234+J6)) -> 2984.426233 | K12: Pa | M12: tlak nasycené vodní páry | O12: p''vpe | P12: =Konstanty!$F$12^((1500.3+23.5*P6)/(234+P6)) -> 2338.082935 | Q12: Pa | S12: =2.718^(28.926-(6148/(273.15+te))) -> 2844.028417 | AB12: xp´´-merna vlhkost nasyceneho vzduchu
A13: tlak vodní páry | C13: pvpi | D13: =(D7/100)*D12 -> 2853.973775 | E13: Pa | G13: tlak vodní páry | I13: pvpi | J13: =(J7/100)*J12 -> 1641.434428 | K13: Pa | M13: tlak vodní páry | O13: pvpe | P13: =(P7/100)*P12 -> 1566.515567 | Q13: Pa | AB13: x - merna vlhkost vzduchu nad povrchem
A14: tlak suchého vzduchu | C14: psvi | D14: =D18*Konstanty!$F$5*(Teplota+273.15) -> 98021.00865 | E14: Pa | G14: tlak suchého vzduchu | I14: psvi | J14: =J18*Konstanty!$F$5*(Teplota+273.15) -> 100648.9177 | K14: Pa | M14: tlak suchého vzduchu | O14: psve | P14: =P18*Konstanty!F5*(P6+273.15) -> 98037.34247 | Q14: Pa | AB14: S plocha
A15: tlak směsi vlhkého vzduchu | C15: pi | D15: =D13+D14 -> 100874.9824 | E15: Pa | G15: tlak směsi vlhkého vzduchu | I15: pi | J15: =J13+J14 -> 102290.3522 | K15: Pa | M15: tlak směsi vlhkého vzduchu | O15: pe | P15: =P13+P14 -> 99603.85804 | Q15: Pa
A16: měrná vlhkost vzduchu | C16: xi | D16: =(Konstanty!$F$5/Konstanty!$F$6)*(D13/D14) -> 0.01811068229 | E16: kg/kg s.v. | G16: měrná vlhkost vzduchu | I16: xi | J16: =(Konstanty!$F$5/Konstanty!$F$6)*(J13/J14) -> 0.01014421464 | K16: kg/kg s.v. | M16: měrná vlhkost vzduchu | O16: xe | P16: =(Konstanty!F5/Konstanty!F6)*(P13/P14) -> 0.009939102871 | Q16: kg/kg s.v.
D17: =D16*1000 -> 18.11068229 | E17: g/kg s.v. | J17: =J16*1000 -> 10.14421464 | K17: g/kg s.v. | P17: =P16*1000 -> 9.939102871 | Q17: g/kg s.v.
A18: hustota vzduchu při t | D18: =VLOOKUP(Teplota,Tabulky!$V$15:$AF$75,9,0) -> 1.119 | E18: kg/m3 | G18: hustota vzduchu při t | J18: =VLOOKUP(J6,Tabulky!V15:AF75,9,0) -> 1.149 | K18: kg/m3 | M18: hustota vzduchu při t | P18: =VLOOKUP(te,Tabulky!V15:AF75,9,0) -> 1.165 | Q18: kg/m3
D19: =1.395-Teplota*0.004414 -> 1.253752
A20: Bazén | I20: rozměry bazénu
A21: Teplota vody | C21: tsniz | D21: =Vypocet!D21 -> 2 | E21: °C | F21: snížení teploty vody (dop 2-3°C) | I21: délka bazén | J21: a | K21: =Vypocet!K21 -> 25 | L21: m
A22: tvz-(2-3)°C | C22: tvod | D22: =D6-D21 -> 30 | E22: °C | I22: šířka bazén | J22: b | K22: =Vypocet!K22 -> 12 | L22: m
A24: Mn. odpařené vody
A25: mw=ε*A*(p´´vp-pvp) | C25: mw | D25: =D28*$D$29*($D$12/100-$D$13/100) -> 114158.951 | E25: g/h
D26: =D25/1000 -> 114.158951 | E26: kg/h | I26: budova
A27: typ bazenu | D27: =Vypocet!AH47 -> bazény - normální provoz | I27: délka | J27: a | K27: =Vypocet!K27 -> 40 | L27: m
A28: mnozstvi odp vody | D28: =VLOOKUP(D27,Tab_souc_odparu_bazen,7,0) -> 20 | H28: [g/(hPa.m2.h)] | I28: šířka | J28: b | K28: =Vypocet!K28 -> 15 | L28: m
A29: plocha bazénu | C29: A | D29: =K21*K22 -> 300 | E29: m2 | I29: výška | J29: v | K29: =Vypocet!K29 -> 7 | L29: m | M29: Produkce vlhkosti osobami - klidový režim
A30: Objem haly | C30: V | D30: =K27*K28*K29 -> 4200 | E30: m3 | M30: počet osob v bazénu | O30: nos | P30: =Vypocet!P30 -> 2
M31: množství vlhkosti | O31: mos | P31: =P30*100 -> 200 | Q31: g/h
A32: Produkce vlhkosti osobami - v provozu | P32: =P31/1000 -> 0.2 | Q32: kg/h | AE32: Výkon na kondenzátoru | AI32: Qk | AJ32: =AH69 -> 194862.9791 | AK32: W
A33: počet osob v bazénu | C33: nos | D33: =Vypocet!D33 -> 60 | E33: počet | G33: Produkce vlhkosti člověkem | P33: =P31/3600 -> 0.05555555556 | Q33: g/s | AJ33: =AH70 -> 194.8629791 | AK33: kW
A34: množství vlhkosti | C34: mos | D34: =D33*H35 -> 6300 | E34: g/h | G34: =Vypocet!AH50 -> člověk při středně těžké práci | AE34: Teplota požadovaná v interiéru | AI34: ti | AJ34: =Teplota -> 32 | AK34: °C
D35: =D34/1000 -> 6.3 | E35: kg/h | G35: =VLOOKUP(G34,Tabulky!W146:Z148,4,0) -> 60-150 | H35: =IF(G35="60-150",105,IF(G35="30-60",45,225)) -> 105 | I35: g/h | M35: Produkce vlhkosti - klidový režim | AY35: Výkon na kondenzátoru | BC35: Qk | BD35: =BB70 -> 56763.6928 | BE35: W
D36: =D34/3600 -> 1.75 | E36: g/s | G36: rozmezí | H36: průměr | L36: množství odpařené vody | O36: mw | P36: =Tabulky!$G$4*$D$29*($D$12/100-$D$13/100) -> 28539.73775 | Q36: g/h | BD36: =BB71 -> 56.7636928 | BE36: kW
A37: celkové množství odpařené vody | D37: =(D25+D34)*(I37/100+1) -> 126481.8986 | E37: g/h | H37: korekce | I37: =Vypocet!I37 -> 5 | J37: % | M37: celkové množství odpařené vody | P37: =(P36+P31)*(I37/100+1) -> 30176.72464 | Q37: g/h | AY37: Teplota požadovaná v interiéru | BC37: ti | BD37: =J6 -> 24 | BE37: °C
A38: Dimenzování průtoku vzduchu bazénové větrací jednotky pro zátěž | M38: Dimenzování průtoku vzduchu bazénové větrací jednotky pro klidový režim
A39: z množství odpařené vody | M39: z množství odpařené vody
A40: požadovaná vlhkost přiváděná | C40: xpoz | D40: =Vypocet!D40 -> 9 | E40: g/kg | G40: doporučená hodnota 8-10 g/kg | M40: požadovaná vlhkost přiváděná | O40: xpoz | P40: =Vypocet!P40 -> 9 | Q40: g/kg | S40: doporučená hodnota 8-10 g/kg
C41: V1 | D41: =(D37)/(D18*(D17-D40)) -> 12406.44594 | E41: m3/h | I41: =D147 -> 9.939409591 | J41: g/kg s.v. | O41: V1 | P41: =(P36+P31)/(Konstanty!$F$8*(J17-5)) -> 4560.659311 | Q41: m3/h
A42: z objemu haly | M42: z objemu haly
A43: výměna vzduchu | C43: n | D43: =Vypocet!D43 -> 1 | E43: 1/h | M43: výměna vzduchu | O43: n | P43: =Vypocet!P43 -> 1 | Q43: 1/h
A44: V=n*VH | C44: V2 | D44: =D30*D43 -> 4200 | E44: m3/h | M44: V=n*VH | O44: V2 | P44: =D30*P43 -> 4200 | Q44: m3/h
A45: z tepelných zisků
B46: tepelné ztráty | C46: Qzt | D46: =Vypocet!D46 -> 7 | E46: kW | H46: teplotní spád výústky | I46: dt | J46: =Vypocet!J46 -> 8 | K46: °C
B47: tepelné zisky | C47: Qzisk | D47: =Vypocet!D47 -> 16 | E47: kW
B48: Množství vzduchu | D48: =((D47-D46)/J46*Konstanty!$F$2*Konstanty!$F$8) -> 1391.90625 | E48: m3/h
A50: potřeba vzduchu pro osoby | W50: te | X50: teplota exteriérového vzduchu
C51: V2 | D51: =D33*D52 -> 3000 | W51: Qpředehřev | X51: Výkon pro předehřátí vzduchu
A52: množství čerstvého vzduchu/osoba | D52: =Vypocet!D52 -> 50 | E52: m3/h/os | G52: doporučená hodnota při zátěži (min hodnota 25m3/h) | W52: Qdohřátí | X52: Výkon spotřebovaný na dohřátí vzduchu na požadovanou úroveň | AF52: červeně zvýrazněné pole je teplota ext vyšší než teplota exteriéru, přívod vzduchu plně čerstvý
A54: Potřeba čerstvého vzduchu | D54: =IF(MAX(D41,D44,D48)>D51,"Ne","Ano") -> Ne | G54: nepočítá s tím dál samo! | AE54: Teplo odevzdané na výparníku | AK54: Množství kondenzátu
A55: Množství čerstvého vzduchu | D55: =IF(D54="ano",D51-MAX(D41,D44,D48),0) -> 0 | E55: m3/h | G55: pouze informativní charakter, množství V čerst rozhodne projektant | AE55: Qv=V*ρ*(hi-h3) | AG55: Qv | AH55: =D81 -> 147350.8743 | AI55: W | AK55: mkond = V*ρ*(xi-x3) | AM55: mkond | AN55: =IF(D58*D18*(D16-D77)<0,0,D58*D18*(D16-D77)) -> 0.03123632926 | AO55: kg/s | AY55: Teplo odevzdané na výparníku | BE55: Množství kondenzátu
AH56: =AH55/1000 -> 147.3508743 | AI56: kW | AN56: =AN55*1000 -> 31.23632926 | AO56: g/s | AY56: Qv=V*ρ*(hi-h3) | BA56: Qv | BB56: =P81 -> 47003.77313 | BC56: W | BE56: mkond = V*ρ*(xi-x3) | BG56: mkond | BH56: =IF(P58*J18*(J16-P77)<0,0,P58*J18*(J16-P77)) -> 0.002183415645 | BI56: kg/s
A57: průtok vzduchu | C57: V | D57: =MAX(D41,D44,D48) -> 12406.44594 | E57: m3/h | M57: průtok vzduchu | O57: V | P57: =MAX(P41,P44) -> 4560.659311 | Q57: m3/h | AN57: =AN55*3600 -> 112.4507853 | AO57: kg/h | BB57: =BB56/1000 -> 47.00377313 | BC57: kW | BH57: =BH56*1000 -> 2.183415645 | BI57: g/s
C58: V | D58: =D57/3600 -> 3.446234982 | E58: m3/s | O58: V | P58: =P57/3600 -> 1.266849809 | Q58: m3/s | AE58: Tepelné čerpadlo (TČ) | AI58: typ TČ | BH58: =BH56*3600 -> 7.860296323 | BI58: kg/h
AE59: Topný faktor TČ | AG59: COP | AH59: =VLOOKUP(Teplota,'V8'!AE83:AF136,2,0) -> 4.101333333 | AI59: Alfa S Duo | AY59: Tepelné čerpadlo (TČ) | BC59: typ TČ
A60: množství odebrané měrné vlh | C60: Δx | D60: 8.1 | E60: g/kg s.v | G60: vstupní měrná vlhkost do int | I60: xvyst | J60: =D147 -> 9.939409591 | K60: g/kg s.v. | AY60: Topný faktor TČ | BA60: COP | BB60: =VLOOKUP(J6,'V8'!AY84:AZ132,2,0) -> 3.816 | BC60: Alfa S Duo
A61: teplota chladiče | C61: tch | D61: =Vypocet!D61 -> 9 | E61: °C | AE61: Tepelná bilance TČ
A62: relativní vlhkost | C62: rhch | D62: =Vypocet!D62 -> 100 | E62: % | M62: množství odebrané měrné vlh | O62: Δx | P62: =Vypocet!P60 -> 1.5 | Q62: g/kg s.v. | AE62: Qk=Pel+Qv | AY62: Tepelná bilance TČ
M63: teplota chladiče | O63: tch | P63: =Vypocet!P61 -> 9 | Q63: °C | AE63: εt = COP | AF63: εt = Qv/Pel | AY63: Qk=Pel+Qv
M64: relativní vlhkost | O64: rhch | P64: =Vypocet!P62 -> 100 | Q64: % | AE64: Pel=Qk/(1+Et) | AY64: εt = COP | AZ64: εt = Qv/Pel
X65: Parametry chladiče | AE65: Výkon kompresoru | AG65: Pet | AH65: =AH55/(AH59-1) -> 47512.10479 | AI65: W | AY65: Pel=Qk/(1+Et)
A66: t3 | B66: parametry vyduchu za vyparnikem | M66: t3 | N66: parametry vyduchu za vyparnikem | X66: teplota | Z66: ti | AA66: =tch -> 9 | AB66: °C | AH66: =AH65/1000 -> 47.51210479 | AI66: kW | AY66: Výkon kompresoru | BA66: Pet | BB66: =BB56/(BB60+1) -> 9759.91967 | BC66: W
A67: teplota | C67: tvyp | D67: =W87 -> 15 | E67: °C | G67: =tvyp-te -> -5 | M67: teplota | O67: tvyp | P67: =W112 -> 16 | Q67: °C | X67: relativní vlhkost | Z67: rhi | AA67: =D62 -> 100 | AB67: % | AE67: Prikon kompresoru | AH67: =AH66/AH59 -> 11.58455091 | AI67: kW | BB67: =BB66/1000 -> 9.75991967 | BC67: kW
A68: relativní vlhkost | C68: rh3 | D68: =IF((D74/D73)*100>100,100,(D74/D73)*100) -> 92.55852643 | E68: % | M68: relativní vlhkost | O68: rh3 | P68: =IF((P74/P73)*100>100,100,(P74/P73)*100) -> 74.95783123 | Q68: % | X68: entalpie s.v. | Z68: hsvi | AA68: =Konstanty!$F$2*AA66 -> 9090 | AB68: J/kg | AE68: Teplo na kondenzátoru
A69: entalpie s.v. | C69: h3 | D69: =Konstanty!$F$2*D67 -> 15150 | E69: J/kg | M69: entalpie s.v. | O69: h3 | P69: =Konstanty!$F$2*P67 -> 16160 | Q69: J/kg | X69: entalpie v.p. | Z69: hvpi | AA69: =$AA$76*(Konstanty!$F$3*AA66+Konstanty!$F$4) -> 18311.90427 | AB69: J/kg | AE69: Výkon na kondenzátoru | AG69: Qk | AH69: =AH65+AH55 -> 194862.9791 | AI69: W | AY69: Teplo na kondenzátoru
A70: entalpie v.p. | C70: h3 | D70: =D77*(Konstanty!$F$3*D67+Konstanty!$F$4) -> 25303.00056 | E70: J/kg | M70: entalpie v.p. | O70: h3 | P70: =P77*(Konstanty!$F$3*P67+Konstanty!$F$4) -> 21865.02229 | Q70: J/kg | X70: entalpie | Z70: hi | AA70: =AA68+AA69 -> 27401.90427 | AB70: J/kg | AH70: =AH69/1000 -> 194.8629791 | AI70: kW | AY70: Výkon na kondenzátoru | BA70: Qk | BB70: =BB66+BB56 -> 56763.6928 | BC70: W
A71: entalpie | C71: h3 | D71: =D69+D70 -> 40453.00056 | E71: J/kg | M71: entalpie | O71: h3 | P71: =P69+P70 -> 38025.02229 | Q71: J/kg | AA71: =AA70/1000 -> 27.40190427 | AB71: kJ/kg | BB71: =BB70/1000 -> 56.7636928 | BC71: kW
D72: =D71/1000 -> 40.45300056 | E72: kJ/kg | P72: =P71/1000 -> 38.02502229 | Q72: kJ/kg | X72: tlak nasycené vodní páry | Z72: p''vpi | AA72: =Konstanty!$F$12^((1500.3+23.5*AA66)/(234+AA66)) -> 1146.47173 | AB72: Pa
A73: tlak nasycené vodní páry | C73: p''vp3 | D73: =Konstanty!$F$12^((1500.3+23.5*D67)/(234+D67)) -> 1704.392217 | E73: Pa | M73: tlak nasycené vodní páry | O73: p''vp3 | P73: =Konstanty!$F$12^((1500.3+23.5*P67)/(234+P67)) -> 1817.468722 | Q73: Pa | X73: tlak vodní páry | Z73: pvpi | AA73: =(AA67/100)*AA72 -> 1146.47173 | AB73: Pa | AE73: Graf topneho faktoru | AH73: TnG Air 13, vzduch/voda
A74: tlak vodní páry | C74: pvp3 | D74: =(D77*D75)/0.622 -> 1577.560321 | E74: Pa | G74: =((G77*D75)/(0.622+G77))/((0.622-G77)/(0.622)) -> 0 | H74: přepočet tlaku z x | M74: tlak vodní páry | O74: pvp3 | P74: =(P77*P75)/0.622 -> 1362.335137 | Q74: Pa | S74: =((S77*P75)/(0.622+S77))/((0.622-S77)/(0.622)) -> 1599.161688 | T74: přepočet tlaku z x | X74: tlak suchého vzduchu | Z74: psvi | AA74: =AA78*Konstanty!$F$5*(AA66+273.15) -> 98003.39739 | AB74: Pa | AY74: Graf topneho faktoru | BB74: TnG Air 13, vzduch/voda
A75: tlak suchého vzduchu | C75: psv3 | D75: =D79*Konstanty!$F$5*(D67+273.15) -> 98019.54463 | E75: Pa | M75: tlak suchého vzduchu | O75: psv3 | P75: =P79*Konstanty!$F$5*(P67+273.15) -> 98027.69719 | Q75: Pa | X75: tlak směsi vlhkého vzduchu | Z75: pi | AA75: =AA73+AA74 -> 99149.86912 | AB75: Pa | AE75: =Vypocet!AE107 -> teplota | AF75: =Vypocet!AF107 -> -18 | AG75: =Vypocet!AG107 -> -15 | AH75: =Vypocet!AH107 -> -10 | AI75: =Vypocet!AI107 -> -5 | AJ75: =Vypocet!AJ107 -> 0 | AK75: =Vypocet!AK107 -> 5 | AL75: =Vypocet!AL107 -> 10 | AM75: =Vypocet!AM107 -> 15
A76: tlak směsi vlhkého vzduchu | C76: p3 | D76: =D74+D75 -> 99597.10495 | E76: Pa | M76: tlak směsi vlhkého vzduchu | O76: p3 | P76: =P74+P75 -> 99390.03233 | Q76: Pa | X76: měrná vlhkost vzduchu | Z76: xi | AA76: =(Konstanty!$F$5/Konstanty!$F$6)*(AA73/AA74) -> 0.007276561764 | AB76: kg/kg s.v. | AE76: =Vypocet!AE108 -> vykon | AF76: =Vypocet!AF108 -> 4.7 | AG76: =Vypocet!AG108 -> 5.75 | AH76: =Vypocet!AH108 -> 7 | AI76: =Vypocet!AI108 -> 8.24 | AJ76: =Vypocet!AJ108 -> 9.46 | AK76: =Vypocet!AK108 -> 10.69 | AL76: =Vypocet!AL108 -> 11.8 | AM76: =Vypocet!AM108 -> 13.1 | AY76: =Vypocet!AY108 -> teplota | AZ76: =Vypocet!AZ108 -> -18 | BA76: =Vypocet!BA108 -> -15 | BB76: =Vypocet!BB108 -> -10 | BC76: =Vypocet!BC108 -> -5 | BD76: =Vypocet!BD108 -> 0 | BE76: =Vypocet!BE108 -> 5 | BF76: =Vypocet!BF108 -> 10 | BG76: =Vypocet!BG108 -> 15
A77: měrná vlhkost vzduchu | C77: x3 | D77: =D16-deltaT/1000 -> 0.01001068229 | E77: kg/kg s.v. | G77: =IF(tvyp<D82,0,D16) -> 0 | H77: vezme x z Ti když tvyp<rosny bod | M77: měrná vlhkost vzduchu | O77: x3 | P77: =J16-P62/1000 -> 0.008644214643 | Q77: kg/kg s.v. | S77: =IF(tvyp<P82,0,J16) -> 0.01014421464 | T77: vezme x z Ti když tvyp<rosny bod | AA77: =AA76*1000 -> 7.276561764 | AB77: g/kg s.v. | AE77: =Vypocet!AE109 -> el prikon | AF77: =Vypocet!AF109 -> 2.24 | AG77: =Vypocet!AG109 -> 2.47 | AH77: =Vypocet!AH109 -> 2.72 | AI77: =Vypocet!AI109 -> 2.94 | AJ77: =Vypocet!AJ109 -> 3.2 | AK77: =Vypocet!AK109 -> 3.37 | AL77: =Vypocet!AL109 -> 3.55 | AM77: =Vypocet!AM109 -> 3.85 | AY77: =Vypocet!AY109 -> vykon | AZ77: =Vypocet!AZ109 -> 4.7 | BA77: =Vypocet!BA109 -> 5.75 | BB77: =Vypocet!BB109 -> 7 | BC77: =Vypocet!BC109 -> 8.24 | BD77: =Vypocet!BD109 -> 9.46 | BE77: =Vypocet!BE109 -> 10.69 | BF77: =Vypocet!BF109 -> 11.8 | BG77: =Vypocet!BG109 -> 13.1
D78: =D77*1000 -> 10.01068229 | E78: g/kg s.v. | P78: =P77*1000 -> 8.644214643 | Q78: g/kg s.v. | X78: hustota vzduchu při t | AA78: =VLOOKUP(AA66,Tabulky!$V$15:$AF$75,9,0) -> 1.21 | AB78: kg/m3 | AE78: =Vypocet!AE110 -> COP | AF78: =Vypocet!AF110 -> 2.1 | AG78: =Vypocet!AG110 -> 2.33 | AH78: =Vypocet!AH110 -> 2.57 | AI78: =Vypocet!AI110 -> 2.8 | AJ78: =Vypocet!AJ110 -> 2.96 | AK78: =Vypocet!AK110 -> 3.17 | AL78: =Vypocet!AL110 -> 3.32 | AM78: =Vypocet!AM110 -> 3.4 | AY78: =Vypocet!AY110 -> el prikon | AZ78: =Vypocet!AZ110 -> 2.24 | BA78: =Vypocet!BA110 -> 2.47 | BB78: =Vypocet!BB110 -> 2.72 | BC78: =Vypocet!BC110 -> 2.94 | BD78: =Vypocet!BD110 -> 3.2 | BE78: =Vypocet!BE110 -> 3.37 | BF78: =Vypocet!BF110 -> 3.55 | BG78: =Vypocet!BG110 -> 3.85
A79: hustota vzduchu při t | D79: =VLOOKUP(tvyp,Tabulky!$V$15:$AF$75,9,0) -> 1.185 | E79: kg/m3 | M79: hustota vzduchu při t | P79: =VLOOKUP(P67,Tabulky!$V$15:$AF$75,9,0) -> 1.181 | Q79: kg/m3 | AA79: =1.395-Teplota*0.004414 -> 1.253752 | AH79: =AH78-AG78 -> 0.24 | AI79: 0.23 | AJ79: 0.16 | AK79: 0.21 | AL79: 0.15 | AM79: 0.08 | AN79: průměr | AO79: =AVERAGE(AG79:AM79) -> 0.1783333333 | AP79: prumer/1 | AQ79: =AO79/5 -> 0.03566666667 | AY79: =Vypocet!AY111 -> COP | AZ79: =Vypocet!AZ111 -> 2.1 | BA79: =Vypocet!BA111 -> 2.33 | BB79: =Vypocet!BB111 -> 2.57 | BC79: =Vypocet!BC111 -> 2.8 | BD79: =Vypocet!BD111 -> 2.96 | BE79: =Vypocet!BE111 -> 3.17 | BF79: =Vypocet!BF111 -> 3.32 | BG79: =Vypocet!BG111 -> 3.4
AF80: popis závislosti | AH80: y=0,18571x+2,96 | BB80: =BB79-BA79 -> 0.24 | BC80: 0.23 | BD80: 0.16 | BE80: 0.21 | BF80: 0.15 | BG80: 0.08 | BH80: průměr | BI80: =AVERAGE(BA80:BG80) -> 0.1783333333 | BJ80: prumer/1 | BK80: =BI80/5 -> 0.03566666667
A81: teplo získané na výparníku | C81: Qv | D81: =D58*D18*(D10-D71) -> 147350.8743 | E81: W | M81: teplo získané na výparníku | O81: Qv | P81: =P58*J18*(J10-P71) -> 47003.77313 | Q81: W | U81: A | V81: Ti | W81: =Teplota -> 32 | Y81: B | Z81: tch | AA81: =AA66 -> 9 | AZ81: popis závislosti | BB81: y=0,18571x+2,96
B82: rosný bod | D82: =(243.5*LN(($D$7/100)*Konstanty!$F$12^((17.67*Teplota)/(243.5+Teplota))))/(17.67-(LN(($D$7/100)*Konstanty!$F$12^((17.67*Teplota)/(243.5+Teplota))))) -> 23.27425187 | E82: °C | N82: rosný bod | P82: =(243.5*LN((J7/100)*Konstanty!$F$12^((17.67*J6)/(243.5+J6))))/(17.67-(LN((J7/100)*Konstanty!$F$12^((17.67*J6)/(243.5+J6))))) -> 14.41381795 | Q82: °C | V82: xi | W82: =D16 -> 0.01811068229 | Z82: xch | AA82: =AA76 -> 0.007276561764 | AE82: teplota | AF82: COP | AH82: -18 | AI82: 2.1
V83: xi | W83: =D17 -> 18.11068229 | Z83: xch | AA83: =AA77 -> 7.276561764 | AE83: -18 | AF83: =$AQ$79*AE83+$AJ$78 -> 2.318 | AH83: -15 | AI83: 2.33 | AY83: teplota | AZ83: COP
A84: Distribuce tepla v závislosti na externí teplotě | AE84: -17 | AF84: 2.353666667 | AH84: -10 | AI84: 2.57 | AY84: -18 | AZ84: =$AQ$79*AY84+$AJ$78 -> 2.318
A85: teplota předehřevu te | C85: tpřed | D85: =Vypocet!D85 -> 5 | E85: °C | V85: dx | W85: =deltaT -> 8.1 | Y85: výpočet teplochy při teplote chladice | AE85: -16 | AF85: 2.389333333 | AH85: -5 | AI85: 2.8 | AY85: -17 | AZ85: 2.353666667
A86: množství čerst vzduchu | D86: =Vypocet!D86 -> 30 | E86: % | V86: th | W86: =((W81-AA81)*W83+(AA83-W83)*W81-(W81-AA81)*(W83-W85))/(AA83-W83) -> 14.80432643 | Y86: počítá s přímkou ti - tch a na ní počítá bod | AE86: -15 | AF86: 2.425 | AH86: 0 | AI86: 2.96 | AY86: -16 | AZ86: 2.389333333
A87: množství předehřívaného vzd | D87: =D58*(D86/100) -> 1.033870495 | E87: m3/h | W87: =ROUND(W86,0) -> 15 | AE87: -14 | AF87: 2.460666667 | AH87: 5 | AI87: 3.17 | AY87: -15 | AZ87: 2.425
A88: potřeba tepla na předehřev | D88: =IF(D85>te,((D87*P18)/(1+P16))*(D85-te)*P18*Konstanty!$F$2,0) -> 0 | E88: W | AE88: -13 | AF88: 2.496333333 | AH88: 10 | AI88: 3.32 | AY88: -14 | AZ88: 2.460666667
AE89: -12 | AF89: 2.532 | AH89: 15 | AI89: 3.4 | AY89: -13 | AZ89: 2.496333333
A90: t4 | B90: Předehřev exteriérového vzduchu | M90: t4 | N90: Předehřev exteriérového vzduchu | X90: Parametry chladiče klidovy rezim | AE90: -11 | AF90: 2.567666667 | AY90: -12 | AZ90: 2.532
A91: teplota předehřevu | C91: tpředehřev | D91: =IF($D$85>te,$D$85,te) -> 20 | E91: °C | M91: teplota předehřevu | O91: tpředehřev | P91: =IF($D$85>te,$D$85,te) -> 20 | Q91: °C | X91: teplota | Z91: ti | AA91: =P63 -> 9 | AB91: °C | AE91: -10 | AF91: 2.603333333 | AY91: -11 | AZ91: 2.567666667
C92: rhpředehřev | D92: =((D101*P15)/(D97*(0.622+D101)))*100 -> 67.00206762 | E92: % | O92: rhpředehřev | P92: =((P101*P15)/(P97*(0.622+P101)))*100 -> 67.00206762 | Q92: % | X92: relativní vlhkost | Z92: rhi | AA92: =P64 -> 100 | AB92: % | AE92: -9 | AF92: 2.639 | AY92: -10 | AZ92: 2.603333333
A93: entalpie s.v. | C93: hsv4 | D93: =Konstanty!$F$2*D91 -> 20200 | E93: J/kg | M93: entalpie s.v. | O93: hsv4 | P93: =Konstanty!$F$2*P91 -> 20200 | Q93: J/kg | X93: entalpie s.v. | Z93: hsvi | AA93: =Konstanty!$F$2*AA91 -> 9090 | AB93: J/kg | AE93: -8 | AF93: 2.674666667 | AY93: -9 | AZ93: 2.639
A94: entalpie v.p. | C94: hvp4 | D94: =D101*(Konstanty!$F$3*D91+Konstanty!$F$4) -> 25213.51616 | E94: J/kg | M94: entalpie v.p. | O94: hvp4 | P94: =P101*(Konstanty!$F$3*P91+Konstanty!$F$4) -> 25213.51616 | Q94: J/kg | X94: entalpie v.p. | Z94: hvpi | AA94: =$AA$76*(Konstanty!$F$3*AA91+Konstanty!$F$4) -> 18311.90427 | AB94: J/kg | AE94: -7 | AF94: 2.710333333 | AY94: -8 | AZ94: 2.674666667
A95: entalpie | C95: h4 | D95: =D93+D94 -> 45413.51616 | E95: J/kg | M95: entalpie | O95: h4 | P95: =P93+P94 -> 45413.51616 | Q95: J/kg | X95: entalpie | Z95: hi | AA95: =AA93+AA94 -> 27401.90427 | AB95: J/kg | AE95: -6 | AF95: 2.746 | AY95: -7 | AZ95: 2.710333333
D96: =D95/1000 -> 45.41351616 | E96: kJ/kg | P96: =P95/1000 -> 45.41351616 | Q96: kJ/kg | AA96: =AA95/1000 -> 27.40190427 | AB96: kJ/kg | AE96: -5 | AF96: 2.781666667 | AY96: -6 | AZ96: 2.746
A97: tlak nasycené vodní páry | C97: p''vp4 | D97: =Konstanty!$F$12^((1500.3+23.5*D91)/(234+D91)) -> 2338.082935 | E97: Pa | M97: tlak nasycené vodní páry | O97: p''vp4 | P97: =Konstanty!$F$12^((1500.3+23.5*P91)/(234+P91)) -> 2338.082935 | Q97: Pa | X97: tlak nasycené vodní páry | Z97: p''vpi | AA97: =Konstanty!$F$12^((1500.3+23.5*AA91)/(234+AA91)) -> 1146.47173 | AB97: Pa | AE97: -4 | AF97: 2.817333333 | AY97: -5 | AZ97: 2.781666667
A98: tlak vodní páry | C98: pvp4 | D98: =(D92/100)*D97 -> 1566.563909 | E98: Pa | M98: tlak vodní páry | O98: pvp4 | P98: =(P92/100)*P97 -> 1566.563909 | Q98: Pa | X98: tlak vodní páry | Z98: pvpi | AA98: =(AA92/100)*AA97 -> 1146.47173 | AB98: Pa | AE98: -3 | AF98: 2.853 | AY98: -4 | AZ98: 2.817333333
A99: tlak suchého vzduchu | C99: psv4 | D99: =D103*Konstanty!$F$5*(D91+273.15) -> 98037.34247 | E99: Pa | M99: tlak suchého vzduchu | O99: psv4 | P99: =P103*Konstanty!$F$5*(P91+273.15) -> 98037.34247 | Q99: Pa | X99: tlak suchého vzduchu | Z99: psvi | AA99: =AA103*Konstanty!$F$5*(AA91+273.15) -> 98003.39739 | AB99: Pa | AE99: -2 | AF99: 2.888666667 | AY99: -3 | AZ99: 2.853
A100: tlak směsi vlhkého vzduchu | C100: p4 | D100: =D98+D99 -> 99603.90638 | E100: Pa | M100: tlak směsi vlhkého vzduchu | O100: p4 | P100: =P98+P99 -> 99603.90638 | Q100: Pa | X100: tlak směsi vlhkého vzduchu | Z100: pi | AA100: =AA98+AA99 -> 99149.86912 | AB100: Pa | AE100: -1 | AF100: 2.924333333 | AY100: -2 | AZ100: 2.888666667
A101: měrná vlhkost vzduchu | C101: x4 | D101: =P16 -> 0.009939102871 | E101: kg/kg s.v. | M101: měrná vlhkost vzduchu | O101: x4 | P101: =P16 -> 0.009939102871 | Q101: kg/kg s.v. | X101: měrná vlhkost vzduchu | Z101: xi | AA101: =(Konstanty!$F$5/Konstanty!$F$6)*(AA98/AA99) -> 0.007276561764 | AB101: kg/kg s.v. | AE101: 0 | AF101: 2.96 | AY101: -1 | AZ101: 2.924333333
D102: =D101*1000 -> 9.939102871 | E102: g/kg s.v. | P102: =P101*1000 -> 9.939102871 | Q102: g/kg s.v. | AA102: =AA101*1000 -> 7.276561764 | AB102: g/kg s.v. | AE102: 1 | AF102: 2.995666667 | AY102: 0 | AZ102: 2.96
A103: hustota vzduchu při t | D103: =VLOOKUP(D91,Tabulky!$V$15:$AF$75,9,0) -> 1.165 | E103: kg/m3 | M103: hustota vzduchu při t | P103: =VLOOKUP(P91,Tabulky!$V$15:$AF$75,9,0) -> 1.165 | Q103: kg/m3 | X103: hustota vzduchu při t | AA103: =VLOOKUP(AA91,Tabulky!$V$15:$AF$75,9,0) -> 1.21 | AB103: kg/m3 | AE103: 2 | AF103: 3.031333333 | AY103: 1 | AZ103: 2.995666667
AA104: =1.395-Teplota*0.004414 -> 1.253752 | AE104: 3 | AF104: 3.067 | AY104: 2 | AZ104: 3.031333333
A105: t4' | B105: smíšení vzduchu s exteriérovým | M105: t4' | N105: smíšení vzduchu s exteriérovým | AE105: 4 | AF105: 3.102666667 | AY105: 3 | AZ105: 3.067
A106: Množství čerstvého vzduchu | C106: Včerstv | D106: =IF(D91>tvyp,100,$D$86) -> 100 | E106: % | M106: Množství čerstvého vzduchu | O106: Včerstv | P106: =IF(P91>tvyp,100,$D$86) -> 100 | Q106: % | U106: A | V106: Ti | W106: =J6 -> 24 | Y106: B | Z106: tch | AA106: =AA91 -> 9 | AE106: 5 | AF106: 3.138333333 | AY106: 4 | AZ106: 3.102666667
A107: teplota vzduchu | C107: t4 | D107: =ROUND(((((D106/100)*D58)*D91+((1-(D106/100))*D58)*tvyp)/D58),0) -> 20 | E107: °C | M107: teplota vzduchu | O107: t4 | P107: =ROUND(((((P106/100)*P58)*P91+((1-(P106/100))*P58)*tvyp)/P58),0) -> 20 | Q107: °C | V107: xi | W107: =J16 -> 0.01014421464 | Z107: xch | AA107: =AA101 -> 0.007276561764 | AE107: 6 | AF107: 3.174 | AY107: 5 | AZ107: 3.138333333
A108: relativní vlhkost | C108: rh4 | D108: =(1-(D106/100))*D68+(D106/100)*D92 -> 67.00206762 | E108: % | M108: relativní vlhkost | O108: rh4 | P108: =(1-(P106/100))*P68+(P106/100)*P92 -> 67.00206762 | Q108: % | V108: xi | W108: =J17 -> 10.14421464 | Z108: xch | AA108: =AA102 -> 7.276561764 | AE108: 7 | AF108: 3.209666667 | AY108: 6 | AZ108: 3.174
A109: entalpie s.v. | C109: hsv4 | D109: =Konstanty!$F$2*D107 -> 20200 | E109: J/kg | M109: entalpie s.v. | O109: hsv4 | P109: =Konstanty!$F$2*P107 -> 20200 | Q109: J/kg | AE109: 8 | AF109: 3.245333333 | AY109: 7 | AZ109: 3.209666667
A110: entalpie v.p. | C110: hvp4 | D110: =D117*(Konstanty!$F$3*D107+Konstanty!$F$4) -> 25214.29425 | E110: J/kg | M110: entalpie v.p. | O110: hvp4 | P110: =P117*(Konstanty!$F$3*P107+Konstanty!$F$4) -> 25214.29425 | Q110: J/kg | V110: dx | W110: =P62 -> 1.5 | AE110: 9 | AF110: 3.281 | AY110: 8 | AZ110: 3.245333333
A111: entalpie | C111: h4 | D111: =D109+D110 -> 45414.29425 | E111: J/kg | M111: entalpie | O111: h4 | P111: =P109+P110 -> 45414.29425 | Q111: J/kg | V111: th | W111: =((W106-AA106)*W108+(AA108-W108)*W106-(W106-AA106)*(W108-W110))/(AA108-W108) -> 16.15386208 | AE111: 10 | AF111: 3.316666667 | AY111: 9 | AZ111: 3.281
D112: =D111/1000 -> 45.41429425 | E112: kJ/kg | P112: =P111/1000 -> 45.41429425 | Q112: kJ/kg | W112: =ROUND(W111,0) -> 16 | AE112: 11 | AF112: 3.352333333 | AY112: 10 | AZ112: 3.316666667
A113: tlak nasycené vodní páry | C113: p''vp4 | D113: =Konstanty!$F$12^((1500.3+23.5*D107)/(234+D107)) -> 2338.082935 | E113: Pa | M113: tlak nasycené vodní páry | O113: p''vp4 | P113: =Konstanty!$F$12^((1500.3+23.5*P107)/(234+P107)) -> 2338.082935 | Q113: Pa | AE113: 12 | AF113: 3.388 | AY113: 11 | AZ113: 3.352333333
A114: tlak vodní páry | C114: pvp4 | D114: =(D108/100)*D113 -> 1566.563909 | E114: Pa | M114: tlak vodní páry | O114: pvp4 | P114: =(P108/100)*P113 -> 1566.563909 | Q114: Pa | AE114: 13 | AF114: 3.423666667 | AY114: 12 | AZ114: 3.388
A115: tlak suchého vzduchu | C115: psv4 | D115: =D119*Konstanty!$F$5*(D107+273.15) -> 98037.34247 | E115: Pa | M115: tlak suchého vzduchu | O115: psv4 | P115: =P119*Konstanty!$F$5*(P107+273.15) -> 98037.34247 | Q115: Pa | AE115: 14 | AF115: 3.459333333 | AY115: 13 | AZ115: 3.423666667
A116: tlak směsi vlhkého vzduchu | C116: p4 | D116: =D114+D115 -> 99603.90638 | E116: Pa | M116: tlak směsi vlhkého vzduchu | O116: p4 | P116: =P114+P115 -> 99603.90638 | Q116: Pa | AE116: 15 | AF116: 3.495 | AY116: 14 | AZ116: 3.459333333
A117: měrná vlhkost vzduchu | C117: x4 | D117: =(Konstanty!$F$5/Konstanty!$F$6)*(D114/D115) -> 0.009939409591 | E117: kg/kg s.v. | M117: měrná vlhkost vzduchu | O117: x4 | P117: =(Konstanty!$F$5/Konstanty!$F$6)*(P114/P115) -> 0.009939409591 | Q117: kg/kg s.v. | AE117: 16 | AF117: 3.530666667 | AY117: 15 | AZ117: 3.495
D118: =D117*1000 -> 9.939409591 | E118: g/kg s.v. | P118: =P117*1000 -> 9.939409591 | Q118: g/kg s.v. | AE118: 17 | AF118: 3.566333333 | AY118: 16 | AZ118: 3.530666667
A119: hustota vzduchu při t | D119: =VLOOKUP(D107,Tabulky!$V$15:$AF$75,9,0) -> 1.165 | E119: kg/m3 | M119: hustota vzduchu při t | P119: =VLOOKUP(P107,Tabulky!$V$15:$AF$75,9,0) -> 1.165 | Q119: kg/m3 | AE119: 18 | AF119: 3.602 | AY119: 17 | AZ119: 3.566333333
AE120: 19 | AF120: 3.637666667 | AY120: 18 | AZ120: 3.602
A121: množství tepla na kondenzátoru | C121: Qk | D121: =AH69 -> 194862.9791 | E121: W | H121: přepočet mw na msv | I121: =(D58*D119)/(1+D117) -> 3.975351111 | J121: m3/s | M121: množství tepla na kondenzátoru | O121: Qk | P121: =BB70 -> 56763.6928 | Q121: W | AE121: 20 | AF121: 3.673333333 | AY121: 19 | AZ121: 3.637666667
A122: Požadované teplo na dohřev | C122: Qpož | D122: =(D134-D107)*Konstanty!F2*D119*I121+D88 -> 65486.35639 | E122: W | M122: Požadované teplo na dohřev | P122: =(P134-P107)*Konstanty!$F$2*P119*P58 -> 20868.94358 | Q122: W | AE122: 21 | AF122: 3.709 | AY122: 20 | AZ122: 3.673333333
A123: dosažená teplota | C123: t6 | D123: =D121/(D58*D119*Konstanty!$F$2)+D107 -> 68.05484183 | E123: °C | M123: dosažená teplota | O123: t6 | P123: =P121/(P58*P119*Konstanty!$F$2)+P107 -> 58.08011153 | Q123: °C | AE123: 22 | AF123: 3.744666667 | AY123: 21 | AZ123: 3.709
A124: potřeba dohřevu | C124: Qdohř | D124: =IF((D122-D121)>0,D122-D121,0) -> 0 | E124: W | M124: potřeba dohřevu | O124: Qdohř | P124: =IF((P122-P121)>0,P122-P121,0) -> 0 | Q124: W | AE124: 23 | AF124: 3.780333333 | AY124: 22 | AZ124: 3.744666667
A125: přebytečné teplo | C125: Qpřebyt | D125: =IF((D122-D121)<0,D121-D122,0) -> 129376.6227 | E125: W | M125: přebytečné teplo | O125: Qpřebyt | P125: =IF((P122-P121)<0,P121-P122,0) -> 35894.74921 | Q125: W | AE125: 24 | AF125: 3.816 | AY125: 23 | AZ125: 3.780333333
AE126: 25 | AF126: 3.851666667 | AY126: 24 | AZ126: 3.816
AE127: 26 | AF127: 3.887333333 | AY127: 25 | AZ127: 3.851666667
A128: teplota zvýšení do int | C128: tzv | D128: =Vypocet!D128 -> 2 | E128: °C | N128: teplota zvýšení do int | O128: tzv | P128: =Vypocet!P128 -> 2 | Q128: °C | AE128: 27 | AF128: 3.923 | AY128: 26 | AZ128: 3.887333333
A129: teplotní spád kondenzatoru | C129: Δt | D129: =Vypocet!D129 -> 0 | E129: °C | N129: teplotní spád kondenzatoru | O129: Δt | P129: =Vypocet!P129 -> 0 | Q129: °C | AE129: 28 | AF129: 3.958666667 | AY129: 27 | AZ129: 3.923
A130: teplota kondenzatoru | C130: tohř | D130: =Vypocet!D130 -> 0 | E130: °C | N130: teplota kondenzatoru | O130: tohř | P130: =Vypocet!P130 -> 0 | Q130: °C | AE130: 29 | AF130: 3.994333333 | AY130: 28 | AZ130: 3.958666667
A131: relativní vlhkost | C131: rhohř | D131: =Vypocet!D131 -> 0 | E131: % | N131: relativní vlhkost | O131: rhohř | P131: =Vypocet!P131 -> 0 | Q131: % | AE131: 30 | AF131: 4.03 | AY131: 29 | AZ131: 3.994333333
AE132: 31 | AF132: 4.065666667 | AY132: 30 | AZ132: 4.03
A133: t5 | B133: parametry vyduchu za kondenzátorem | M133: t5 | N133: parametry vyduchu za kondenzátorem | AE133: 32 | AF133: 4.101333333
A134: požadovaná teplotateplota do I | C134: t5 | D134: =Teplota+D128 -> 34 | E134: °C | M134: požadovaná teplota do I | O134: t5 | P134: =Teplota+P128 -> 34 | Q134: °C | AE134: 33 | AF134: 4.137
A135: dosažená teplota | C135: tdos | D135: =D123 -> 68.05484183 | E135: °C | M135: dosažená teplota | O135: t6 | P135: =P123 -> 58.08011153 | AE135: 34 | AF135: 4.172666667
AE136: 35 | AF136: 4.208333333
A137: relativní vlhkost | C137: rh5 | D137: =((D146*D116)/(D142*(0.622+D146)))*100 -> 29.44026634 | E137: % | M137: relativní vlhkost | O137: rh5 | P137: =((P146*P116)/(P142*(0.622+P146)))*100 -> 29.44026634 | Q137: %
A138: entalpie s.v. | C138: hsv5 | D138: =Konstanty!$F$2*D134 -> 34340 | E138: J/kg | M138: entalpie s.v. | O138: hsv5 | P138: =Konstanty!$F$2*P134 -> 34340 | Q138: J/kg
A139: entalpie v.p. | C139: hvp5 | D139: =D146*(Konstanty!$F$3*D134+Konstanty!$F$4) -> 25470.33344 | E139: J/kg | M139: entalpie v.p. | O139: hvp5 | P139: =P146*(Konstanty!$F$3*P134+Konstanty!$F$4) -> 25470.33344 | Q139: J/kg
A140: entalpie | C140: h5 | D140: =D138+D139 -> 59810.33344 | E140: J/kg | M140: entalpie | O140: h5 | P140: =P138+P139 -> 59810.33344 | Q140: J/kg
D141: =D140/1000 -> 59.81033344 | E141: kJ/kg | P141: =P140/1000 -> 59.81033344 | Q141: kJ/kg
A142: tlak nasycené vodní páry | C142: p''vp5 | D142: =Konstanty!$F$12^((1500.3+23.5*D134)/(234+D134)) -> 5321.325002 | E142: Pa | M142: tlak nasycené vodní páry | O142: p''vp5 | P142: =Konstanty!$F$12^((1500.3+23.5*P134)/(234+P134)) -> 5321.325002 | Q142: Pa | AE142: dt vyp
A143: tlak vodní páry | C143: pvp5 | D143: =(D137/100)*D142 -> 1566.612253 | E143: Pa | M143: tlak vodní páry | O143: pvp5 | P143: =(P137/100)*P142 -> 1566.612253 | Q143: Pa | AE143: 2
A144: tlak suchého vzduchu | C144: psv5 | D144: =D148*Konstanty!$F$5*(D134+273.15) -> 97958.08466 | E144: Pa | M144: tlak suchého vzduchu | O144: psv5 | P144: =Konstanty!$F$8*Konstanty!$F$5*(P134+273.15) -> 108009.5893 | Q144: Pa | AE144: 3
A145: tlak směsi vlhkého vzduchu | C145: p5 | D145: =D143+D144 -> 99524.69691 | E145: Pa | M145: tlak směsi vlhkého vzduchu | O145: p5 | P145: =P143+P144 -> 109576.2015 | Q145: Pa | AE145: 4
A146: měrná vlhkost vzduchu | C146: x5 | D146: =D117 -> 0.009939409591 | E146: kg/kg s.v. | M146: měrná vlhkost vzduchu | O146: x5 | P146: =P117 -> 0.009939409591 | Q146: kg/kg s.v. | AE146: 5
D147: =D146*1000 -> 9.939409591 | E147: g/kg s.v. | P147: =P146*1000 -> 9.939409591 | Q147: g/kg s.v. | AE147: 6 | AF147: =D124 -> 0
A148: hustota vzduchu při t | D148: =VLOOKUP(D134,Tabulky!$V$15:$AF$75,9,0) -> 1.111 | E148: kg/m3 | M148: hustota vzduchu při t | P148: =VLOOKUP(P134,Tabulky!$V$15:$AF$75,9,0) -> 1.111 | Q148: kg/m3 | AE148: 7
AE149: 8
A150: navlhčení z prostoru | M150: navlhčení z prostoru | AE150: 9
A151: dx=n.100/V.ρ | C151: dx | D151: =(D33*100)/D57*Konstanty!$F$8 -> 0.5924339684 | E151: g/kg s.v | M151: dx=n.100/V.ρ | O151: dx | P151: =(P30*100)/P57*Konstanty!$F$8 -> 0.05372030298 | Q151: g/kg s.v | AE151: 10
AE152: 11
A153: NUTNÉ vzduch privlhčit | M153: NUTNÉ vzduch privlhčit | AE153: 12
AE154: 13
AE155: 14
AE156: 15

Sheet V9
B1: Legenda | E1: hodnotu nutno zadat | J1: prevzato z první
E2: hodnota se vypočítává
E3: pomocná hodnota
A4: Parametry vzduchu | G4: interier klidovy rezim | U4: Produkce tepla od | X4: ni | Y4: =0.85*Y5+0.75*Y6+Y7 -> 60.5 | AB4: Qi=ni.6,2*(36-ti)
A5: Interiér | B5: ti | G5: Interiér | H5: ti | M5: Exteriér | N5: te | P5: minimální teplota -15 (tabulka) | U5: lidí | V5: =Y4*6.2*(36-Teplota) -> 1500.4 | W5: W | X5: nz | Y5: =Vypocet!Y5 -> 30 | Z5: zeny | AB5: ni=0,85nz+0,75nd+nm
A6: teplota | C6: ti | D6: =[0]!Teplota -> 32 | E6: °C | G6: teplota | I6: ti | J6: =Vypocet!J6 -> 24 | K6: °C | M6: teplota | O6: te | P6: =CEILING(Vypocet!P6+35,5) -> 25 | Q6: °C | X6: nd | Y6: =Vypocet!Y6 -> 20 | Z6: deti | AB6: nz - zeny, nd deti, nm muzi
A7: relativní vlhkost | C7: rhi | D7: =Vypocet!D7 -> 60 | E7: % | G7: relativní vlhkost | I7: rhi | J7: =Vypocet!J7 -> 55 | K7: % | M7: relativní vlhkost | O7: rhe | P7: =ROUND((93*te-3153.5)/(te-39.17),0) -> 58 | Q7: % | X7: nm | Y7: =Vypocet!Y7 -> 20 | Z7: muzi
A8: entalpie s.v. | C8: hsvi | D8: =Konstanty!$F$2*Teplota -> 32320 | E8: J/kg | G8: entalpie s.v. | I8: hsvi | J8: =Konstanty!$F$2*J6 -> 24240 | K8: J/kg | M8: entalpie s.v. | O8: hsve | P8: =Konstanty!$F$2*te -> 25250 | Q8: J/kg
A9: entalpie v.p. | C9: hvpi | D9: =$D$16*(Konstanty!$F$3*Teplota+Konstanty!$F$4) -> 46343.0627 | E9: J/kg | G9: entalpie v.p. | I9: hvpi | J9: =$D$16*(Konstanty!$F$3*J6+Konstanty!$F$4) -> 46076.47346 | K9: J/kg | M9: entalpie v.p. | O9: hvpe | P9: =P16*(Konstanty!F3*P6+Konstanty!F4) -> 29697.77295 | Q9: J/kg | U9: Odpar z povrchů
A10: entalpie | C10: hi | D10: =D8+D9 -> 78663.0627 | E10: J/kg | G10: entalpie | I10: hi | J10: =J8+J9 -> 70316.47346 | K10: J/kg | M10: entalpie | O10: he | P10: =IF(P8<0,P9-P8,P8+P9) -> 54947.77295 | Q10: J/kg | AB10: (7+3,5*w)*S*(xp´´-x).10-3
D11: =D10/1000 -> 78.6630627 | E11: kJ/kg | J11: =J10/1000 -> 70.31647346 | K11: kJ/kg | P11: =P10/1000 -> 54.94777295 | Q11: kJ/kg | AB11: w stredni rychlost vzduchu
A12: tlak nasycené vodní páry | C12: p''vpi | D12: =Konstanty!$F$12^((1500.3+23.5*D6)/(234+D6)) -> 4756.622959 | E12: Pa | G12: tlak nasycené vodní páry | I12: p''vpi | J12: =Konstanty!$F$12^((1500.3+23.5*J6)/(234+J6)) -> 2984.426233 | K12: Pa | M12: tlak nasycené vodní páry | O12: p''vpe | P12: =Konstanty!$F$12^((1500.3+23.5*P6)/(234+P6)) -> 3168.469241 | Q12: Pa | S12: =2.718^(28.926-(6148/(273.15+te))) -> 4042.610029 | AB12: xp´´-merna vlhkost nasyceneho vzduchu
A13: tlak vodní páry | C13: pvpi | D13: =(D7/100)*D12 -> 2853.973775 | E13: Pa | G13: tlak vodní páry | I13: pvpi | J13: =(J7/100)*J12 -> 1641.434428 | K13: Pa | M13: tlak vodní páry | O13: pvpe | P13: =(P7/100)*P12 -> 1837.71216 | Q13: Pa | AB13: x - merna vlhkost vzduchu nad povrchem
A14: tlak suchého vzduchu | C14: psvi | D14: =D18*Konstanty!$F$5*(Teplota+273.15) -> 98021.00865 | E14: Pa | G14: tlak suchého vzduchu | I14: psvi | J14: =J18*Konstanty!$F$5*(Teplota+273.15) -> 100648.9177 | K14: Pa | M14: tlak suchého vzduchu | O14: psve | P14: =P18*Konstanty!F5*(P6+273.15) -> 97997.72792 | Q14: Pa | AB14: S plocha
A15: tlak směsi vlhkého vzduchu | C15: pi | D15: =D13+D14 -> 100874.9824 | E15: Pa | G15: tlak směsi vlhkého vzduchu | I15: pi | J15: =J13+J14 -> 102290.3522 | K15: Pa | M15: tlak směsi vlhkého vzduchu | O15: pe | P15: =P13+P14 -> 99835.44008 | Q15: Pa
A16: měrná vlhkost vzduchu | C16: xi | D16: =(Konstanty!$F$5/Konstanty!$F$6)*(D13/D14) -> 0.01811068229 | E16: kg/kg s.v. | G16: měrná vlhkost vzduchu | I16: xi | J16: =(Konstanty!$F$5/Konstanty!$F$6)*(J13/J14) -> 0.01014421464 | K16: kg/kg s.v. | M16: měrná vlhkost vzduchu | O16: xe | P16: =(Konstanty!F5/Konstanty!F6)*(P13/P14) -> 0.0116644827 | Q16: kg/kg s.v.
D17: =D16*1000 -> 18.11068229 | E17: g/kg s.v. | J17: =J16*1000 -> 10.14421464 | K17: g/kg s.v. | P17: =P16*1000 -> 11.6644827 | Q17: g/kg s.v.
A18: hustota vzduchu při t | D18: =VLOOKUP(Teplota,Tabulky!$V$15:$AF$75,9,0) -> 1.119 | E18: kg/m3 | G18: hustota vzduchu při t | J18: =VLOOKUP(J6,Tabulky!V15:AF75,9,0) -> 1.149 | K18: kg/m3 | M18: hustota vzduchu při t | P18: =VLOOKUP(te,Tabulky!V15:AF75,9,0) -> 1.145 | Q18: kg/m3
D19: =1.395-Teplota*0.004414 -> 1.253752
A20: Bazén | I20: rozměry bazénu
A21: Teplota vody | C21: tsniz | D21: =Vypocet!D21 -> 2 | E21: °C | F21: snížení teploty vody (dop 2-3°C) | I21: délka bazén | J21: a | K21: =Vypocet!K21 -> 25 | L21: m
A22: tvz-(2-3)°C | C22: tvod | D22: =D6-D21 -> 30 | E22: °C | I22: šířka bazén | J22: b | K22: =Vypocet!K22 -> 12 | L22: m
A24: Mn. odpařené vody
A25: mw=ε*A*(p´´vp-pvp) | C25: mw | D25: =D28*$D$29*($D$12/100-$D$13/100) -> 114158.951 | E25: g/h
D26: =D25/1000 -> 114.158951 | E26: kg/h | I26: budova
A27: typ bazenu | D27: =Vypocet!AH47 -> bazény - normální provoz | I27: délka | J27: a | K27: =Vypocet!K27 -> 40 | L27: m
A28: mnozstvi odp vody | D28: =VLOOKUP(D27,Tab_souc_odparu_bazen,7,0) -> 20 | H28: [g/(hPa.m2.h)] | I28: šířka | J28: b | K28: =Vypocet!K28 -> 15 | L28: m
A29: plocha bazénu | C29: A | D29: =K21*K22 -> 300 | E29: m2 | I29: výška | J29: v | K29: =Vypocet!K29 -> 7 | L29: m | M29: Produkce vlhkosti osobami - klidový režim
A30: Objem haly | C30: V | D30: =K27*K28*K29 -> 4200 | E30: m3 | M30: počet osob v bazénu | O30: nos | P30: =Vypocet!P30 -> 2
M31: množství vlhkosti | O31: mos | P31: =P30*100 -> 200 | Q31: g/h
A32: Produkce vlhkosti osobami - v provozu | P32: =P31/1000 -> 0.2 | Q32: kg/h | AE32: Výkon na kondenzátoru | AI32: Qk | AJ32: =AH69 -> 194862.9791 | AK32: W
A33: počet osob v bazénu | C33: nos | D33: =Vypocet!D33 -> 60 | E33: počet | G33: Produkce vlhkosti člověkem | P33: =P31/3600 -> 0.05555555556 | Q33: g/s | AJ33: =AH70 -> 194.8629791 | AK33: kW
A34: množství vlhkosti | C34: mos | D34: =D33*H35 -> 6300 | E34: g/h | G34: =Vypocet!AH50 -> člověk při středně těžké práci | AE34: Teplota požadovaná v interiéru | AI34: ti | AJ34: =Teplota -> 32 | AK34: °C
D35: =D34/1000 -> 6.3 | E35: kg/h | G35: =VLOOKUP(G34,Tabulky!W146:Z148,4,0) -> 60-150 | H35: =IF(G35="60-150",105,IF(G35="30-60",45,225)) -> 105 | I35: g/h | M35: Produkce vlhkosti - klidový režim | AY35: Výkon na kondenzátoru | BC35: Qk | BD35: =BB70 -> 56763.6928 | BE35: W
D36: =D34/3600 -> 1.75 | E36: g/s | G36: rozmezí | H36: průměr | L36: množství odpařené vody | O36: mw | P36: =Tabulky!$G$4*$D$29*($D$12/100-$D$13/100) -> 28539.73775 | Q36: g/h | AE36: Výkonová bilance pro režim plného provozu | BD36: =BB71 -> 56.7636928 | BE36: kW
A37: celkové množství odpařené vody | D37: =(D25+D34)*(I37/100+1) -> 126481.8986 | E37: g/h | H37: korekce | I37: =Vypocet!I37 -> 5 | J37: % | M37: celkové množství odpařené vody | P37: =(P36+P31)*(I37/100+1) -> 30176.72464 | Q37: g/h | AY37: Teplota požadovaná v interiéru | BC37: ti | BD37: =J6 -> 24 | BE37: °C
A38: Dimenzování průtoku vzduchu bazénové větrací jednotky pro zátěž | M38: Dimenzování průtoku vzduchu bazénové větrací jednotky pro klidový režim
A39: z množství odpařené vody | M39: z množství odpařené vody | AY39: Výkonová bilance pro klidový režim
A40: požadovaná vlhkost přiváděná | C40: xpoz | D40: =Vypocet!D40 -> 9 | E40: g/kg | G40: doporučená hodnota 8-10 g/kg | M40: požadovaná vlhkost přiváděná | O40: xpoz | P40: =Vypocet!P40 -> 9 | Q40: g/kg | S40: doporučená hodnota 8-10 g/kg
C41: V1 | D41: =(D37)/(D18*(D17-D40)) -> 12406.44594 | E41: m3/h | I41: =D147 -> 11.66484168 | J41: g/kg s.v. | O41: V1 | P41: =(P36+P31)/(Konstanty!$F$8*(J17-5)) -> 4560.659311 | Q41: m3/h
A42: z objemu haly | M42: z objemu haly
A43: výměna vzduchu | C43: n | D43: =Vypocet!D43 -> 1 | E43: 1/h | M43: výměna vzduchu | O43: n | P43: =Vypocet!P43 -> 1 | Q43: 1/h
A44: V=n*VH | C44: V2 | D44: =D30*D43 -> 4200 | E44: m3/h | M44: V=n*VH | O44: V2 | P44: =D30*P43 -> 4200 | Q44: m3/h
A45: z tepelných zisků
B46: tepelné ztráty | C46: Qzt | D46: =Vypocet!D46 -> 7 | E46: kW | H46: teplotní spád výústky | I46: dt | J46: =Vypocet!J46 -> 8 | K46: °C
B47: tepelné zisky | C47: Qzisk | D47: =Vypocet!D47 -> 16 | E47: kW
B48: Množství vzduchu | D48: =((D47-D46)/J46*Konstanty!$F$2*Konstanty!$F$8) -> 1391.90625 | E48: m3/h
BF49: te | BG49: teplota exteriérového vzduchu
A50: potřeba vzduchu pro osoby | W50: te | X50: teplota exteriérového vzduchu | BF50: Qpředehřev | BG50: Výkon pro předehřátí vzduchu
C51: V2 | D51: =D33*D52 -> 3000 | W51: Qpředehřev | X51: Výkon pro předehřátí vzduchu | BF51: Qdohřátí | BG51: Výkon spotřebovaný na dohřátí vzduchu na požadovanou úroveň
A52: množství čerstvého vzduchu/osoba | D52: =Vypocet!D52 -> 50 | E52: m3/h/os | G52: doporučená hodnota při zátěži (min hodnota 25m3/h) | W52: Qdohřátí | X52: Výkon spotřebovaný na dohřátí vzduchu na požadovanou úroveň | AF52: červeně zvýrazněné pole je teplota ext vyšší než teplota exteriéru, přívod vzduchu plně čerstvý
A54: Potřeba čerstvého vzduchu | D54: =IF(MAX(D41,D44,D48)>D51,"Ne","Ano") -> Ne | G54: nepočítá s tím dál samo! | AE54: Teplo odevzdané na výparníku | AK54: Množství kondenzátu
A55: Množství čerstvého vzduchu | D55: =IF(D54="ano",D51-MAX(D41,D44,D48),0) -> 0 | E55: m3/h | G55: pouze informativní charakter, množství V čerst rozhodne projektant | AE55: Qv=V*ρ*(hi-h3) | AG55: Qv | AH55: =D81 -> 147350.8743 | AI55: W | AK55: mkond = V*ρ*(xi-x3) | AM55: mkond | AN55: =IF(D58*D18*(D16-D77)<0,0,D58*D18*(D16-D77)) -> 0.03123632926 | AO55: kg/s | AY55: Teplo odevzdané na výparníku | BE55: Množství kondenzátu
AH56: =AH55/1000 -> 147.3508743 | AI56: kW | AN56: =AN55*1000 -> 31.23632926 | AO56: g/s | AY56: Qv=V*ρ*(hi-h3) | BA56: Qv | BB56: =P81 -> 47003.77313 | BC56: W | BE56: mkond = V*ρ*(xi-x3) | BG56: mkond | BH56: =IF(P58*J18*(J16-P77)<0,0,P58*J18*(J16-P77)) -> 0.002183415645 | BI56: kg/s
A57: průtok vzduchu | C57: V | D57: =MAX(D41,D44,D48) -> 12406.44594 | E57: m3/h | M57: průtok vzduchu | O57: V | P57: =MAX(P41,P44) -> 4560.659311 | Q57: m3/h | AN57: =AN55*3600 -> 112.4507853 | AO57: kg/h | BB57: =BB56/1000 -> 47.00377313 | BC57: kW | BH57: =BH56*1000 -> 2.183415645 | BI57: g/s
C58: V | D58: =D57/3600 -> 3.446234982 | E58: m3/s | O58: V | P58: =P57/3600 -> 1.266849809 | Q58: m3/s | AE58: Tepelné čerpadlo (TČ) | AI58: typ TČ | BH58: =BH56*3600 -> 7.860296323 | BI58: kg/h
AE59: Topný faktor TČ | AG59: COP | AH59: =VLOOKUP(Teplota,'V9'!AE83:AF136,2,0) -> 4.101333333 | AI59: Alfa S Duo | AY59: Tepelné čerpadlo (TČ) | BC59: typ TČ
A60: množství odebrané měrné vlh | C60: Δx | D60: 8.1 | E60: g/kg s.v | G60: vstupní měrná vlhkost do int | I60: xvyst | J60: =D147 -> 11.66484168 | K60: g/kg s.v. | AY60: Topný faktor TČ | BA60: COP | BB60: =VLOOKUP(J6,'V9'!AY84:AZ132,2,0) -> 3.816 | BC60: Alfa S Duo
A61: teplota chladiče | C61: tch | D61: =Vypocet!D61 -> 9 | E61: °C | AE61: Tepelná bilance TČ
A62: relativní vlhkost | C62: rhch | D62: =Vypocet!D62 -> 100 | E62: % | M62: množství odebrané měrné vlh | O62: Δx | P62: =Vypocet!P60 -> 1.5 | Q62: g/kg s.v. | AE62: Qk=Pel+Qv | AY62: Tepelná bilance TČ
M63: teplota chladiče | O63: tch | P63: =Vypocet!P61 -> 9 | Q63: °C | AE63: εt = COP | AF63: εt = Qv/Pel | AY63: Qk=Pel+Qv
M64: relativní vlhkost | O64: rhch | P64: =Vypocet!P62 -> 100 | Q64: % | AE64: Pel=Qk/(1+Et) | AY64: εt = COP | AZ64: εt = Qv/Pel
X65: Parametry chladiče | AE65: Výkon kompresoru | AG65: Pet | AH65: =AH55/(AH59-1) -> 47512.10479 | AI65: W | AY65: Pel=Qk/(1+Et)
A66: t3 | B66: parametry vyduchu za vyparnikem | M66: t3 | N66: parametry vyduchu za vyparnikem | X66: teplota | Z66: ti | AA66: =tch -> 9 | AB66: °C | AH66: =AH65/1000 -> 47.51210479 | AI66: kW | AY66: Výkon kompresoru | BA66: Pet | BB66: =BB56/(BB60+1) -> 9759.91967 | BC66: W
A67: teplota | C67: tvyp | D67: =W87 -> 15 | E67: °C | G67: =tvyp-te -> -10 | M67: teplota | O67: tvyp | P67: =W112 -> 16 | Q67: °C | X67: relativní vlhkost | Z67: rhi | AA67: =D62 -> 100 | AB67: % | AE67: Prikon kompresoru | AH67: =AH66/AH59 -> 11.58455091 | AI67: kW | BB67: =BB66/1000 -> 9.75991967 | BC67: kW
A68: relativní vlhkost | C68: rh3 | D68: =IF((D74/D73)*100>100,100,(D74/D73)*100) -> 92.55852643 | E68: % | M68: relativní vlhkost | O68: rh3 | P68: =IF((P74/P73)*100>100,100,(P74/P73)*100) -> 74.95783123 | Q68: % | X68: entalpie s.v. | Z68: hsvi | AA68: =Konstanty!$F$2*AA66 -> 9090 | AB68: J/kg | AE68: Teplo na kondenzátoru
A69: entalpie s.v. | C69: h3 | D69: =Konstanty!$F$2*D67 -> 15150 | E69: J/kg | M69: entalpie s.v. | O69: h3 | P69: =Konstanty!$F$2*P67 -> 16160 | Q69: J/kg | X69: entalpie v.p. | Z69: hvpi | AA69: =$AA$76*(Konstanty!$F$3*AA66+Konstanty!$F$4) -> 18311.90427 | AB69: J/kg | AE69: Výkon na kondenzátoru | AG69: Qk | AH69: =AH65+AH55 -> 194862.9791 | AI69: W | AY69: Teplo na kondenzátoru
A70: entalpie v.p. | C70: h3 | D70: =D77*(Konstanty!$F$3*D67+Konstanty!$F$4) -> 25303.00056 | E70: J/kg | M70: entalpie v.p. | O70: h3 | P70: =P77*(Konstanty!$F$3*P67+Konstanty!$F$4) -> 21865.02229 | Q70: J/kg | X70: entalpie | Z70: hi | AA70: =AA68+AA69 -> 27401.90427 | AB70: J/kg | AH70: =AH69/1000 -> 194.8629791 | AI70: kW | AY70: Výkon na kondenzátoru | BA70: Qk | BB70: =BB66+BB56 -> 56763.6928 | BC70: W
A71: entalpie | C71: h3 | D71: =D69+D70 -> 40453.00056 | E71: J/kg | M71: entalpie | O71: h3 | P71: =P69+P70 -> 38025.02229 | Q71: J/kg | AA71: =AA70/1000 -> 27.40190427 | AB71: kJ/kg | BB71: =BB70/1000 -> 56.7636928 | BC71: kW
D72: =D71/1000 -> 40.45300056 | E72: kJ/kg | P72: =P71/1000 -> 38.02502229 | Q72: kJ/kg | X72: tlak nasycené vodní páry | Z72: p''vpi | AA72: =Konstanty!$F$12^((1500.3+23.5*AA66)/(234+AA66)) -> 1146.47173 | AB72: Pa
A73: tlak nasycené vodní páry | C73: p''vp3 | D73: =Konstanty!$F$12^((1500.3+23.5*D67)/(234+D67)) -> 1704.392217 | E73: Pa | M73: tlak nasycené vodní páry | O73: p''vp3 | P73: =Konstanty!$F$12^((1500.3+23.5*P67)/(234+P67)) -> 1817.468722 | Q73: Pa | X73: tlak vodní páry | Z73: pvpi | AA73: =(AA67/100)*AA72 -> 1146.47173 | AB73: Pa | AE73: Graf topneho faktoru | AH73: TnG Air 13, vzduch/voda
A74: tlak vodní páry | C74: pvp3 | D74: =(D77*D75)/0.622 -> 1577.560321 | E74: Pa | G74: =((G77*D75)/(0.622+G77))/((0.622-G77)/(0.622)) -> 0 | H74: přepočet tlaku z x | M74: tlak vodní páry | O74: pvp3 | P74: =(P77*P75)/0.622 -> 1362.335137 | Q74: Pa | S74: =((S77*P75)/(0.622+S77))/((0.622-S77)/(0.622)) -> 1599.161688 | T74: přepočet tlaku z x | X74: tlak suchého vzduchu | Z74: psvi | AA74: =AA78*Konstanty!$F$5*(AA66+273.15) -> 98003.39739 | AB74: Pa | AY74: Graf topneho faktoru | BB74: TnG Air 13, vzduch/voda
A75: tlak suchého vzduchu | C75: psv3 | D75: =D79*Konstanty!$F$5*(D67+273.15) -> 98019.54463 | E75: Pa | M75: tlak suchého vzduchu | O75: psv3 | P75: =P79*Konstanty!$F$5*(P67+273.15) -> 98027.69719 | Q75: Pa | X75: tlak směsi vlhkého vzduchu | Z75: pi | AA75: =AA73+AA74 -> 99149.86912 | AB75: Pa | AE75: =Vypocet!AE107 -> teplota | AF75: =Vypocet!AF107 -> -18 | AG75: =Vypocet!AG107 -> -15 | AH75: =Vypocet!AH107 -> -10 | AI75: =Vypocet!AI107 -> -5 | AJ75: =Vypocet!AJ107 -> 0 | AK75: =Vypocet!AK107 -> 5 | AL75: =Vypocet!AL107 -> 10 | AM75: =Vypocet!AM107 -> 15
A76: tlak směsi vlhkého vzduchu | C76: p3 | D76: =D74+D75 -> 99597.10495 | E76: Pa | M76: tlak směsi vlhkého vzduchu | O76: p3 | P76: =P74+P75 -> 99390.03233 | Q76: Pa | X76: měrná vlhkost vzduchu | Z76: xi | AA76: =(Konstanty!$F$5/Konstanty!$F$6)*(AA73/AA74) -> 0.007276561764 | AB76: kg/kg s.v. | AE76: =Vypocet!AE108 -> vykon | AF76: =Vypocet!AF108 -> 4.7 | AG76: =Vypocet!AG108 -> 5.75 | AH76: =Vypocet!AH108 -> 7 | AI76: =Vypocet!AI108 -> 8.24 | AJ76: =Vypocet!AJ108 -> 9.46 | AK76: =Vypocet!AK108 -> 10.69 | AL76: =Vypocet!AL108 -> 11.8 | AM76: =Vypocet!AM108 -> 13.1 | AY76: =Vypocet!AY108 -> teplota | AZ76: =Vypocet!AZ108 -> -18 | BA76: =Vypocet!BA108 -> -15 | BB76: =Vypocet!BB108 -> -10 | BC76: =Vypocet!BC108 -> -5 | BD76: =Vypocet!BD108 -> 0 | BE76: =Vypocet!BE108 -> 5 | BF76: =Vypocet!BF108 -> 10 | BG76: =Vypocet!BG108 -> 15
